Workbook

Sheet ProjectInformation
A1: CPN DATA
A2: INFORMATION ADDED BY DESIGNER
A3: Section Engineer | B3: Flattery
A4: Design Team | B4: Johnson
A6: County | B6: TAMA
A7: Project Number | B7: NHSX-030-6(189)--3H-86
A8: English or Metric | B8: English
A9: Revised
A10: Project Path
A11: Bridge Block
A12: File No.

Sheet DataInput
B1: Cut and Fill | T1: Topsoil Stripping | V1: Existing Pavement Cut | X1: Plowing and Shaping | AL1: ="Topsoil Placement"&CHAR(10)&"Undercut" -> Topsoil Placement Undercut | AO1: ="Subgrade Treatment"&CHAR(10)&"Undercut " -> Subgrade Treatment Undercut
B2: Column 1 | C2: Column 2 | D2: Column 3 | E2: Column 4 | F2: Column 5 | G2: Column 6 | H2: Column 7 | I2: Column 8 | J2: Column 9 | K2: Column 10 | L2: Column 11 | M2: Column 12 | N2: Column 13 | O2: Column 14 | P2: Column 15 | Q2: Column 16 | R2: Column 17 | S2: Column 18 | T2: Column 1 | U2: Column 2 | V2: Column 1 | W2: Column 2 | X2: Column 1 | Y2: Column 2 | Z2: Column 3 | AA2: Column 4 | AB2: Column 5 | AC2: Column 6 | AD2: Column 7 | AE2: Column 8 | AF2: Column 9 | AG2: Column 10 | AH2: Column 11 | AI2: Column 12 | AJ2: Column 13 | AK2: Column 14 | AL2: Column 1 | AM2: Column 2 | AN2: Column 3 | AO2: Column 1 | AP2: Column 2 | AQ2: Column 3
A3: ="Station" -> Station | B3: ="Total Cut"&CHAR(10)&"End Area" -> Total Cut End Area | C3: ="Template Cut"&CHAR(10)&"Volume" -> Template Cut Volume | D3: ="Template"&CHAR(10)&"Class 10"&CHAR(10)&"Volume" -> Template Class 10 Volume | E3: ="Template"&CHAR(10)&"Topsoil Cut"&CHAR(10)&"Volume" -> Template Topsoil Cut Volume | F3: ="Template"&CHAR(10)&"Unsuitable"&CHAR(10)&"Type A"&CHAR(10)&"Volume" -> Template Unsuitable Type A Volume | G3: ="Template"&CHAR(10)&"Unsuitable"&CHAR(10)&"Type B"&CHAR(10)&"Volume" -> Template Unsuitable Type B Volume | H3: ="Template"&CHAR(10)&"Unsuitable"&CHAR(10)&"Type C"&CHAR(10)&"Volume" -> Template Unsuitable Type C Volume | I3: ="Template"&CHAR(10)&"Pavement"&CHAR(10)&"Removal"&CHAR(10)&"Volume" -> Template Pavement Removal Volume | J3: ="Template"&CHAR(10)&"Select Loam"&CHAR(10)&"Volume" -> Template Select Loam Volume | K3: ="Template"&CHAR(10)&"Select Sand"&CHAR(10)&"Volume" -> Template Select Sand Volume | L3: ="Template"&CHAR(10)&"Rock"&CHAR(10)&"Volume" -> Template Rock Volume | M3: ="Template"&CHAR(10)&"B & W"&CHAR(10)&"Rock"&CHAR(10)&"Volume" -> Template B & W Rock Volume | N3: ="Template"&CHAR(10)&"Waste"&CHAR(10)&"Volume" -> Template Waste Volume | O3: ="Template"&CHAR(10)&"Shale"&CHAR(10)&"Volume" -> Template Shale Volume | P3: ="Template"&CHAR(10)&"Rock Undercut"&CHAR(10)&"Volume" -> Template Rock Undercut Volume | Q3: ="Template Fill"&CHAR(10)&"End Area" -> Template Fill End Area | R3: ="Total Fill"&CHAR(10)&"Unadjusted"&CHAR(10)&CHAR(10)&"Volume" -> Total Fill Unadjusted Volume | S3: ="Topsoil"&CHAR(10)&"Placement"&CHAR(10)&"Undercut"&CHAR(10)&"Volume" -> Topsoil Placement Undercut Volume | T3: ="Topsoil"&CHAR(10)&"Stripping Undercut" -> Topsoil Stripping Undercut | V3: ="Total Existing"&CHAR(10)&"Pavement Cut" -> Total Existing Pavement Cut | X3: ="Plowing &"&CHAR(10)&"Shaping"&CHAR(10)&"End Area" -> Plowing & Shaping End Area | Y3: ="Plowing &"&CHAR(10)&"Shaping"&CHAR(10)&"Undercut"&CHAR(10)&"(+ Fill)" -> Plowing & Shaping Undercut (+ Fill) | Z3: ="Plowing &"&CHAR(10)&"Shaping"&CHAR(10)&"Class 10"&CHAR(10)&"Volume" -> Plowing & Shaping Class 10 Volume | AA3: ="Template"&CHAR(10)&"Topsoil Cut"&CHAR(10)&"Volume" -> Template Topsoil Cut Volume | AB3: ="Plowing &"&CHAR(10)&"Shaping"&CHAR(10)&"Unsuitable"&CHAR(10)&"Type A"&CHAR(10)&"Volume" -> Plowing & Shaping Unsuitable Type A Volume | AC3: ="Plowing &"&CHAR(10)&"Shaping"&CHAR(10)&"Unsuitable"&CHAR(10)&"Type B"&CHAR(10)&"Volume" -> Plowing & Shaping Unsuitable Type B Volume | AD3: ="Plowing &"&CHAR(10)&"Shaping"&CHAR(10)&"Unsuitable"&CHAR(10)&"Type C"&CHAR(10)&"Volume" -> Plowing & Shaping Unsuitable Type C Volume | AE3: ="Plowing &"&CHAR(10)&"Shaping"&CHAR(10)&"Existing"&CHAR(10)&"Pavement"&CHAR(10)&"Volume" -> Plowing & Shaping Existing Pavement Volume | AF3: ="Plowing &"&CHAR(10)&"Shaping"&CHAR(10)&"Select Loam"&CHAR(10)&"Volume" -> Plowing & Shaping Select Loam Volume | AG3: ="Plowing &"&CHAR(10)&"Shaping"&CHAR(10)&"Select Sand"&CHAR(10)&"Volume" -> Plowing & Shaping Select Sand Volume | AH3: ="Plowing &"&CHAR(10)&"Shaping"&CHAR(10)&"Rock"&CHAR(10)&"Volume" -> Plowing & Shaping Rock Volume | AI3: ="Plowing &"&CHAR(10)&"Shaping"&CHAR(10)&"Broken &"&CHAR(10)&"Weathered"&CHAR(10)&"Rock"&CHAR(10)&"Volume" -> Plowing & Shaping Broken & Weathered Rock Volume | AJ3: ="Plowing &"&CHAR(10)&"Shaping"&CHAR(10)&"Waste"&CHAR(10)&"Volume" -> Plowing & Shaping Waste Volume | AK3: ="Plowing &"&CHAR(10)&"Shaping"&CHAR(10)&"Shale"&CHAR(10)&"Volume" -> Plowing & Shaping Shale Volume | AL3: ="Topsoil Placement"&CHAR(10)&"Undercut" -> Topsoil Placement Undercut | AO3: ="Subgrade Treatment"&CHAR(10)&"Undercut" -> Subgrade Treatment Undercut
AL9: End Area | AM9: ="+C"&CHAR(10)&"Volume" -> +C Volume | AN9: ="-F"&CHAR(10)&"Volume" -> -F Volume | AO9: End Area | AP9: ="+C"&CHAR(10)&"Volume" -> +C Volume | AQ9: ="-F"&CHAR(10)&"Volume" -> -F Volume
T10: ="End Area" -> End Area | U10: Volume | V10: ="End Area" -> End Area | W10: Volume
A11: ML030
A12: 11150 | B12: 217 | C12: 206 | D12: 72 | E12: 51 | F12: 0 | G12: 83 | H12: 0 | I12: 0 | J12: 0 | K12: 0 | L12: 0 | M12: 0 | N12: 0 | O12: 0 | P12: 0 | Q12: 0 | R12: 0 | S12: 33 | T12: 58 | U12: 53 | AL12: 37 | AM12: 32 | AN12: 1 | AO12: 100 | AP12: 93 | AQ12: 0
A13: 11175 | B13: 227 | C13: 209 | D13: 0 | E13: 52 | F13: 0 | G13: 157 | H13: 0 | I13: 0 | J13: 0 | K13: 0 | L13: 0 | M13: 0 | N13: 0 | O13: 0 | P13: 0 | Q13: 0 | R13: 0 | S13: 34 | T13: 56 | U13: 53 | AL13: 35 | AM13: 33 | AN13: 1 | AO13: 100 | AP13: 93 | AQ13: 0
A14: 11200 | B14: 223 | C14: 208 | D14: 0 | E14: 54 | F14: 0 | G14: 155 | H14: 0 | I14: 0 | J14: 0 | K14: 0 | L14: 0 | M14: 0 | N14: 0 | O14: 0 | P14: 0 | Q14: 0 | R14: 0 | S14: 36 | T14: 58 | U14: 55 | AL14: 38 | AM14: 35 | AN14: 1 | AO14: 100 | AP14: 93 | AQ14: 0
A15: 11225 | B15: 227 | C15: 210 | D15: 0 | E15: 54 | F15: 0 | G15: 156 | H15: 0 | I15: 0 | J15: 0 | K15: 0 | L15: 0 | M15: 0 | N15: 0 | O15: 0 | P15: 0 | Q15: 0 | R15: 0 | S15: 37 | T15: 60 | U15: 56 | AL15: 40 | AM15: 37 | AN15: 0 | AO15: 100 | AP15: 93 | AQ15: 0
A16: 11250 | B16: 227 | C16: 215 | D16: 0 | E16: 55 | F16: 0 | G16: 160 | H16: 0 | I16: 0 | J16: 0 | K16: 0 | L16: 0 | M16: 0 | N16: 0 | O16: 0 | P16: 0 | Q16: 0 | R16: 0 | S16: 39 | T16: 61 | U16: 57 | AL16: 41 | AM16: 39 | AN16: 0 | AO16: 100 | AP16: 93 | AQ16: 0
A17: 11275 | B17: 238 | C17: 220 | D17: 0 | E17: 57 | F17: 0 | G17: 163 | H17: 0 | I17: 0 | J17: 0 | K17: 0 | L17: 0 | M17: 0 | N17: 0 | O17: 0 | P17: 0 | Q17: 0 | R17: 0 | S17: 41 | T17: 62 | U17: 58 | AL17: 43 | AM17: 41 | AN17: 0 | AO17: 100 | AP17: 93 | AQ17: 0
A18: 11300 | B18: 236 | C18: 230 | D18: 0 | E18: 63 | F18: 0 | G18: 166 | H18: 0 | I18: 0 | J18: 0 | K18: 0 | L18: 0 | M18: 0 | N18: 0 | O18: 0 | P18: 0 | Q18: 0 | R18: 0 | S18: 50 | T18: 64 | U18: 65 | AL18: 45 | AM18: 50 | AN18: 0 | AO18: 100 | AP18: 93 | AQ18: 0
A19: 11325 | B19: 260 | C19: 254 | D19: 0 | E19: 71 | F19: 0 | G19: 183 | H19: 0 | I19: 0 | J19: 0 | K19: 0 | L19: 0 | M19: 0 | N19: 0 | O19: 0 | P19: 0 | Q19: 0 | R19: 0 | S19: 59 | T19: 78 | U19: 72 | AL19: 64 | AM19: 59 | AN19: 0 | AO19: 100 | AP19: 93 | AQ19: 0
A20: 11350 | B20: 289 | C20: 273 | D20: 0 | E20: 72 | F20: 0 | G20: 201 | H20: 0 | I20: 0 | J20: 0 | K20: 0 | L20: 0 | M20: 0 | N20: 0 | O20: 0 | P20: 0 | Q20: 0 | R20: 0 | S20: 58 | T20: 78 | U20: 72 | AL20: 64 | AM20: 58 | AN20: 0 | AO20: 100 | AP20: 93 | AQ20: 0
A21: 11375 | B21: 300 | C21: 277 | D21: 0 | E21: 71 | F21: 0 | G21: 207 | H21: 0 | I21: 0 | J21: 0 | K21: 0 | L21: 0 | M21: 0 | N21: 0 | O21: 0 | P21: 0 | Q21: 0 | R21: 0 | S21: 57 | T21: 77 | U21: 70 | AL21: 62 | AM21: 57 | AN21: 0 | AO21: 100 | AP21: 93 | AQ21: 0
A22: 11400 | B22: 299 | C22: 275 | D22: 0 | E22: 69 | F22: 0 | G22: 206 | H22: 0 | I22: 0 | J22: 0 | K22: 0 | L22: 0 | M22: 0 | N22: 0 | O22: 0 | P22: 0 | Q22: 0 | R22: 0 | S22: 56 | T22: 76 | U22: 70 | AL22: 61 | AM22: 57 | AN22: 0 | AO22: 100 | AP22: 93 | AQ22: 0
A23: 11425 | B23: 296 | C23: 283 | D23: 0 | E23: 69 | F23: 0 | G23: 214 | H23: 0 | I23: 0 | J23: 0 | K23: 0 | L23: 0 | M23: 0 | N23: 0 | O23: 0 | P23: 0 | Q23: 0 | R23: 0 | S23: 59 | T23: 76 | U23: 72 | AL23: 62 | AM23: 59 | AN23: 0 | AO23: 100 | AP23: 93 | AQ23: 0
A24: 11450 | B24: 314 | C24: 337 | D24: 0 | E24: 72 | F24: 0 | G24: 265 | H24: 0 | I24: 0 | J24: 0 | K24: 0 | L24: 0 | M24: 0 | N24: 0 | O24: 0 | P24: 0 | Q24: 0 | R24: 0 | S24: 64 | T24: 80 | U24: 76 | AL24: 66 | AM24: 64 | AN24: 0 | AO24: 100 | AP24: 93 | AQ24: 0
A25: 11475 | B25: 415 | C25: 419 | D25: 0 | E25: 78 | F25: 0 | G25: 341 | H25: 0 | I25: 0 | J25: 0 | K25: 0 | L25: 0 | M25: 0 | N25: 0 | O25: 0 | P25: 0 | Q25: 0 | R25: 0 | S25: 70 | T25: 85 | U25: 80 | AL25: 73 | AM25: 70 | AN25: 0 | AO25: 100 | AP25: 93 | AQ25: 0
A26: 11500 | B26: 491 | C26: 435 | D26: 168 | E26: 80 | F26: 0 | G26: 187 | H26: 0 | I26: 0 | J26: 0 | K26: 0 | L26: 0 | M26: 0 | N26: 0 | O26: 0 | P26: 0 | Q26: 0 | R26: 0 | S26: 72 | T26: 88 | U26: 82 | AL26: 78 | AM26: 72 | AN26: 0 | AO26: 100 | AP26: 93 | AQ26: 0
A27: 11525 | B27: 449 | C27: 399 | D27: 320 | E27: 79 | F27: 0 | G27: 0 | H27: 0 | I27: 0 | J27: 0 | K27: 0 | L27: 0 | M27: 0 | N27: 0 | O27: 0 | P27: 0 | Q27: 0 | R27: 0 | S27: 73 | T27: 89 | U27: 82 | AL27: 79 | AM27: 73 | AN27: 0 | AO27: 100 | AP27: 92 | AQ27: 0
A28: 11550 | B28: 412 | C28: 364 | D28: 287 | E28: 77 | F28: 0 | G28: 0 | H28: 0 | I28: 0 | J28: 0 | K28: 0 | L28: 0 | M28: 0 | N28: 0 | O28: 0 | P28: 0 | Q28: 0 | R28: 0 | S28: 72 | T28: 89 | U28: 82 | AL28: 79 | AM28: 72 | AN28: 0 | AO28: 100 | AP28: 92 | AQ28: 1
A29: 11575 | B29: 375 | C29: 328 | D29: 252 | E29: 76 | F29: 0 | G29: 0 | H29: 0 | I29: 0 | J29: 0 | K29: 0 | L29: 0 | M29: 0 | N29: 0 | O29: 0 | P29: 0 | Q29: 0 | R29: 0 | S29: 72 | T29: 88 | U29: 81 | AL29: 78 | AM29: 72 | AN29: 0 | AO29: 100 | AP29: 88 | AQ29: 4
A30: 11600 | B30: 333 | C30: 281 | D30: 208 | E30: 73 | F30: 0 | G30: 0 | H30: 0 | I30: 0 | J30: 0 | K30: 0 | L30: 0 | M30: 0 | N30: 0 | O30: 0 | P30: 0 | Q30: 1 | R30: 2 | S30: 71 | T30: 88 | U30: 81 | AL30: 77 | AM30: 71 | AN30: 0 | AO30: 100 | AP30: 83 | AQ30: 10
A31: 11625 | B31: 275 | C31: 237 | D31: 167 | E31: 70 | F31: 0 | G31: 0 | H31: 0 | I31: 0 | J31: 0 | K31: 0 | L31: 0 | M31: 0 | N31: 0 | O31: 0 | P31: 0 | Q31: 4 | R31: 6 | S31: 69 | T31: 87 | U31: 80 | AL31: 76 | AM31: 68 | AN31: 1 | AO31: 100 | AP31: 77 | AQ31: 16
A32: 11650 | B32: 237 | C32: 200 | D32: 140 | E32: 61 | F32: 0 | G32: 0 | H32: 0 | I32: 0 | J32: 0 | K32: 0 | L32: 0 | M32: 0 | N32: 0 | O32: 0 | P32: 0 | Q32: 10 | R32: 14 | S32: 59 | T32: 86 | U32: 72 | AL32: 74 | AM32: 55 | AN32: 4 | AO32: 100 | AP32: 63 | AQ32: 29
A33: 11675 | B33: 196 | C33: 201 | D33: 157 | E33: 44 | F33: 0 | G33: 0 | H33: 0 | I33: 0 | J33: 0 | K33: 0 | L33: 0 | M33: 0 | N33: 0 | O33: 0 | P33: 0 | Q33: 20 | R33: 43 | S33: 48 | T33: 70 | U33: 64 | AL33: 54 | AM33: 40 | AN33: 8 | AO33: 100 | AP33: 36 | AQ33: 57
A34: 11700 | B34: 238 | C34: 366 | D34: 299 | E34: 67 | F34: 0 | G34: 0 | H34: 0 | I34: 0 | J34: 0 | K34: 0 | L34: 0 | M34: 0 | N34: 0 | O34: 0 | P34: 0 | Q34: 74 | R34: 34 | S34: 73 | T34: 67 | U34: 82 | AL34: 49 | AM34: 68 | AN34: 5 | AO34: 100 | AP34: 52 | AQ34: 41
A35: 11725 | B35: 553 | C35: 487 | D35: 389 | E35: 97 | F35: 0 | G35: 0 | H35: 0 | I35: 0 | J35: 0 | K35: 0 | L35: 0 | M35: 0 | N35: 0 | O35: 0 | P35: 0 | Q35: 0 | R35: 2 | S35: 99 | T35: 111 | U35: 102 | AL35: 109 | AM35: 99 | AN35: 0 | AO35: 100 | AP35: 83 | AQ35: 10
A36: 11750 | B36: 498 | C36: 409 | D36: 316 | E36: 93 | F36: 0 | G36: 0 | H36: 0 | I36: 0 | J36: 0 | K36: 0 | L36: 0 | M36: 0 | N36: 0 | O36: 0 | P36: 0 | Q36: 4 | R36: 7 | S36: 95 | T36: 109 | U36: 100 | AL36: 105 | AM36: 95 | AN36: 2 | AO36: 100 | AP36: 72 | AQ36: 21
A37: 11775 | B37: 385 | C37: 296 | D37: 226 | E37: 70 | F37: 0 | G37: 0 | H37: 0 | I37: 0 | J37: 0 | K37: 0 | L37: 0 | M37: 0 | N37: 0 | O37: 0 | P37: 0 | Q37: 12 | R37: 80 | S37: 95 | T37: 108 | U37: 100 | AL37: 104 | AM37: 66 | AN37: 30 | AO37: 100 | AP37: 58 | AQ37: 35
A38: 11800 | B38: 253 | C38: 225 | D38: 177 | E38: 48 | F38: 0 | G38: 0 | H38: 0 | I38: 0 | J38: 0 | K38: 0 | L38: 0 | M38: 0 | N38: 0 | O38: 0 | P38: 0 | Q38: 162 | R38: 139 | S38: 79 | T38: 109 | U38: 100 | AL38: 105 | AM38: 38 | AN38: 40 | AO38: 100 | AP38: 48 | AQ38: 91
A39: 11825 | B39: 232 | C39: 221 | D39: 171 | E39: 50 | F39: 0 | G39: 0 | H39: 0 | I39: 0 | J39: 0 | K39: 0 | L39: 0 | M39: 0 | N39: 0 | O39: 0 | P39: 0 | Q39: 138 | R39: 137 | S39: 65 | T39: 108 | U39: 105 | AL39: 65 | AM39: 41 | AN39: 24 | AO39: 200 | AP39: 43 | AQ39: 142
A40: 11850 | B40: 245 | C40: 233 | D40: 178 | E40: 55 | F40: 0 | G40: 0 | H40: 0 | I40: 0 | J40: 0 | K40: 0 | L40: 0 | M40: 0 | N40: 0 | O40: 0 | P40: 0 | Q40: 157 | R40: 140 | S40: 71 | T40: 117 | U40: 109 | AL40: 77 | AM40: 48 | AN40: 24 | AO40: 200 | AP40: 44 | AQ40: 141
A41: 11875 | B41: 259 | C41: 252 | D41: 183 | E41: 59 | F41: 0 | G41: 9 | H41: 0 | I41: 0 | J41: 0 | K41: 0 | L41: 0 | M41: 0 | N41: 0 | O41: 0 | P41: 0 | Q41: 145 | R41: 125 | S41: 72 | T41: 118 | U41: 109 | AL41: 77 | AM41: 51 | AN41: 21 | AO41: 200 | AP41: 53 | AQ41: 132
A42: 11900 | B42: 286 | C42: 290 | D42: 207 | E42: 64 | F42: 0 | G42: 19 | H42: 0 | I42: 0 | J42: 0 | K42: 0 | L42: 0 | M42: 0 | N42: 0 | O42: 0 | P42: 0 | Q42: 124 | R42: 106 | S42: 72 | T42: 118 | U42: 109 | AL42: 78 | AM42: 54 | AN42: 18 | AO42: 200 | AP42: 71 | AQ42: 114
A43: 11925 | B43: 342 | C43: 349 | D43: 260 | E43: 68 | F43: 0 | G43: 21 | H43: 0 | I43: 0 | J43: 0 | K43: 0 | L43: 0 | M43: 0 | N43: 0 | O43: 0 | P43: 0 | Q43: 106 | R43: 87 | S43: 72 | T43: 118 | U43: 110 | AL43: 78 | AM43: 57 | AN43: 15 | AO43: 200 | AP43: 87 | AQ43: 98
A44: 11950 | B44: 412 | C44: 422 | D44: 326 | E44: 74 | F44: 0 | G44: 21 | H44: 0 | I44: 0 | J44: 0 | K44: 0 | L44: 0 | M44: 0 | N44: 0 | O44: 0 | P44: 0 | Q44: 81 | R44: 64 | S44: 73 | T44: 119 | U44: 110 | AL44: 78 | AM44: 60 | AN44: 13 | AO44: 200 | AP44: 98 | AQ44: 88
A45: 11975 | B45: 499 | C45: 512 | D45: 401 | E45: 85 | F45: 0 | G45: 25 | H45: 0 | I45: 0 | J45: 0 | K45: 0 | L45: 0 | M45: 0 | N45: 0 | O45: 0 | P45: 0 | Q45: 58 | R45: 45 | S45: 76 | T45: 120 | U45: 112 | AL45: 80 | AM45: 65 | AN45: 11 | AO45: 200 | AP45: 107 | AQ45: 78
A46: 12000 | B46: 606 | C46: 621 | D46: 485 | E46: 97 | F46: 0 | G46: 38 | H46: 0 | I46: 0 | J46: 0 | K46: 0 | L46: 0 | M46: 0 | N46: 0 | O46: 0 | P46: 0 | Q46: 40 | R46: 30 | S46: 79 | T46: 122 | U46: 114 | AL46: 83 | AM46: 71 | AN46: 8 | AO46: 200 | AP46: 121 | AQ46: 64
A47: 12025 | B47: 734 | C47: 736 | D47: 576 | E47: 105 | F47: 0 | G47: 55 | H47: 0 | I47: 0 | J47: 0 | K47: 0 | L47: 0 | M47: 0 | N47: 0 | O47: 0 | P47: 0 | Q47: 26 | R47: 19 | S47: 81 | T47: 125 | U47: 116 | AL47: 87 | AM47: 76 | AN47: 5 | AO47: 200 | AP47: 138 | AQ47: 47
A48: 12050 | B48: 856 | C48: 860 | D48: 676 | E48: 109 | F48: 0 | G48: 75 | H48: 0 | I48: 0 | J48: 0 | K48: 0 | L48: 0 | M48: 0 | N48: 0 | O48: 0 | P48: 0 | Q48: 15 | R48: 12 | S48: 83 | T48: 126 | U48: 117 | AL48: 88 | AM48: 79 | AN48: 4 | AO48: 200 | AP48: 156 | AQ48: 29
A49: 12075 | B49: 1002 | C49: 1004 | D49: 796 | E49: 112 | F49: 0 | G49: 95 | H49: 0 | I49: 0 | J49: 0 | K49: 0 | L49: 0 | M49: 0 | N49: 0 | O49: 0 | P49: 0 | Q49: 10 | R49: 7 | S49: 84 | T49: 127 | U49: 118 | AL49: 90 | AM49: 82 | AN49: 2 | AO49: 200 | AP49: 172 | AQ49: 14
A50: 12100 | B50: 1166 | C50: 1181 | D50: 1014 | E50: 115 | F50: 0 | G50: 52 | H50: 0 | I50: 0 | J50: 0 | K50: 0 | L50: 0 | M50: 0 | N50: 0 | O50: 0 | P50: 0 | Q50: 6 | R50: 3 | S50: 86 | T50: 128 | U50: 120 | AL50: 91 | AM50: 85 | AN50: 1 | AO50: 200 | AP50: 182 | AQ50: 3
A51: 12125 | B51: 1385 | C51: 1402 | D51: 1282 | E51: 120 | F51: 0 | G51: 0 | H51: 0 | I51: 0 | J51: 0 | K51: 0 | L51: 0 | M51: 0 | N51: 0 | O51: 0 | P51: 0 | Q51: 0 | R51: 0 | S51: 89 | T51: 131 | U51: 122 | AL51: 94 | AM51: 89 | AN51: 0 | AO51: 200 | AP51: 185 | AQ51: 0
A52: 12150 | B52: 1644 | C52: 1651 | D52: 1527 | E52: 124 | F52: 0 | G52: 0 | H52: 0 | I52: 0 | J52: 0 | K52: 0 | L52: 0 | M52: 0 | N52: 0 | O52: 0 | P52: 0 | Q52: 0 | R52: 0 | S52: 92 | T52: 134 | U52: 125 | AL52: 98 | AM52: 92 | AN52: 0 | AO52: 200 | AP52: 185 | AQ52: 0
A53: 12175 | B53: 1922 | C53: 1910 | D53: 1783 | E53: 127 | F53: 0 | G53: 0 | H53: 0 | I53: 0 | J53: 0 | K53: 0 | L53: 0 | M53: 0 | N53: 0 | O53: 0 | P53: 0 | Q53: 0 | R53: 0 | S53: 95 | T53: 135 | U53: 127 | AL53: 101 | AM53: 95 | AN53: 0 | AO53: 200 | AP53: 185 | AQ53: 0
A54: 12200 | B54: 2204 | C54: 2155 | D54: 2026 | E54: 129 | F54: 0 | G54: 0 | H54: 0 | I54: 0 | J54: 0 | K54: 0 | L54: 0 | M54: 0 | N54: 0 | O54: 0 | P54: 0 | Q54: 0 | R54: 0 | S54: 98 | T54: 138 | U54: 129 | AL54: 104 | AM54: 98 | AN54: 0 | AO54: 200 | AP54: 185 | AQ54: 0
A55: 12225 | B55: 2450 | C55: 2352 | D55: 2220 | E55: 131 | F55: 0 | G55: 0 | H55: 0 | I55: 0 | J55: 0 | K55: 0 | L55: 0 | M55: 0 | N55: 0 | O55: 0 | P55: 0 | Q55: 0 | R55: 0 | S55: 101 | T55: 141 | U55: 131 | AL55: 108 | AM55: 101 | AN55: 0 | AO55: 200 | AP55: 185 | AQ55: 0
A56: 12250 | B56: 2630 | C56: 2522 | D56: 2394 | E56: 128 | F56: 0 | G56: 0 | H56: 0 | I56: 0 | J56: 0 | K56: 0 | L56: 0 | M56: 0 | N56: 0 | O56: 0 | P56: 0 | Q56: 0 | R56: 0 | S56: 103 | T56: 143 | U56: 128 | AL56: 111 | AM56: 103 | AN56: 0 | AO56: 200 | AP56: 185 | AQ56: 0
A57: 12275 | B57: 2818 | C57: 2831 | D57: 2705 | E57: 126 | F57: 0 | G57: 0 | H57: 0 | I57: 0 | J57: 0 | K57: 0 | L57: 0 | M57: 0 | N57: 0 | O57: 0 | P57: 0 | Q57: 0 | R57: 0 | S57: 106 | T57: 133 | U57: 126 | AL57: 112 | AM57: 106 | AN57: 0 | AO57: 200 | AP57: 185 | AQ57: 0
A58: 12300 | B58: 3296 | C58: 3292 | D58: 3158 | E58: 134 | F58: 0 | G58: 0 | H58: 0 | I58: 0 | J58: 0 | K58: 0 | L58: 0 | M58: 0 | N58: 0 | O58: 0 | P58: 0 | Q58: 0 | R58: 0 | S58: 115 | T58: 138 | U58: 134 | AL58: 117 | AM58: 115 | AN58: 0 | AO58: 200 | AP58: 185 | AQ58: 0
A59: 12325 | B59: 3814 | C59: 3694 | D59: 3552 | E59: 142 | F59: 0 | G59: 0 | H59: 0 | I59: 0 | J59: 0 | K59: 0 | L59: 0 | M59: 0 | N59: 0 | O59: 0 | P59: 0 | Q59: 0 | R59: 0 | S59: 124 | T59: 151 | U59: 142 | AL59: 133 | AM59: 124 | AN59: 0 | AO59: 200 | AP59: 185 | AQ59: 0
A60: 12350 | B60: 4165 | C60: 3985 | D60: 3837 | E60: 148 | F60: 0 | G60: 0 | H60: 0 | I60: 0 | J60: 0 | K60: 0 | L60: 0 | M60: 0 | N60: 0 | O60: 0 | P60: 0 | Q60: 0 | R60: 0 | S60: 130 | T60: 156 | U60: 148 | AL60: 136 | AM60: 130 | AN60: 0 | AO60: 200 | AP60: 185 | AQ60: 0
A61: 12375 | B61: 4442 | C61: 4250 | D61: 4095 | E61: 155 | F61: 0 | G61: 0 | H61: 0 | I61: 0 | J61: 0 | K61: 0 | L61: 0 | M61: 0 | N61: 0 | O61: 0 | P61: 0 | Q61: 0 | R61: 0 | S61: 138 | T61: 164 | U61: 155 | AL61: 145 | AM61: 138 | AN61: 0 | AO61: 200 | AP61: 185 | AQ61: 0
A62: 12400 | B62: 4738 | C62: 4527 | D62: 4368 | E62: 159 | F62: 0 | G62: 0 | H62: 0 | I62: 0 | J62: 0 | K62: 0 | L62: 0 | M62: 0 | N62: 0 | O62: 0 | P62: 0 | Q62: 0 | R62: 0 | S62: 144 | T62: 171 | U62: 159 | AL62: 154 | AM62: 144 | AN62: 0 | AO62: 200 | AP62: 185 | AQ62: 0
A63: 12425 | B63: 5039 | C63: 4811 | D63: 4644 | E63: 167 | F63: 0 | G63: 0 | H63: 0 | I63: 0 | J63: 0 | K63: 0 | L63: 0 | M63: 0 | N63: 0 | O63: 0 | P63: 0 | Q63: 0 | R63: 0 | S63: 156 | T63: 174 | U63: 167 | AL63: 159 | AM63: 156 | AN63: 0 | AO63: 200 | AP63: 185 | AQ63: 0
A64: 12450 | B64: 5353 | C64: 5078 | D64: 4906 | E64: 172 | F64: 0 | G64: 0 | H64: 0 | I64: 0 | J64: 0 | K64: 0 | L64: 0 | M64: 0 | N64: 0 | O64: 0 | P64: 0 | Q64: 0 | R64: 0 | S64: 166 | T64: 187 | U64: 172 | AL64: 177 | AM64: 166 | AN64: 0 | AO64: 200 | AP64: 185 | AQ64: 0
A65: 12475 | B65: 5616 | C65: 5353 | D65: 5184 | E65: 169 | F65: 0 | G65: 0 | H65: 0 | I65: 0 | J65: 0 | K65: 0 | L65: 0 | M65: 0 | N65: 0 | O65: 0 | P65: 0 | Q65: 0 | R65: 0 | S65: 168 | T65: 184 | U65: 169 | AL65: 181 | AM65: 168 | AN65: 0 | AO65: 200 | AP65: 185 | AQ65: 0
A66: 12500 | B66: 5946 | C66: 5686 | D66: 5521 | E66: 165 | F66: 0 | G66: 0 | H66: 0 | I66: 0 | J66: 0 | K66: 0 | L66: 0 | M66: 0 | N66: 0 | O66: 0 | P66: 0 | Q66: 0 | R66: 0 | S66: 169 | T66: 181 | U66: 165 | AL66: 182 | AM66: 169 | AN66: 0 | AO66: 200 | AP66: 185 | AQ66: 0
A67: 12525 | B67: 6336 | C67: 6074 | D67: 5908 | E67: 166 | F67: 0 | G67: 0 | H67: 0 | I67: 0 | J67: 0 | K67: 0 | L67: 0 | M67: 0 | N67: 0 | O67: 0 | P67: 0 | Q67: 0 | R67: 0 | S67: 172 | T67: 176 | U67: 166 | AL67: 184 | AM67: 172 | AN67: 0 | AO67: 200 | AP67: 185 | AQ67: 0
A68: 12550 | B68: 6784 | C68: 6477 | D68: 6304 | E68: 173 | F68: 0 | G68: 0 | H68: 0 | I68: 0 | J68: 0 | K68: 0 | L68: 0 | M68: 0 | N68: 0 | O68: 0 | P68: 0 | Q68: 0 | R68: 0 | S68: 174 | T68: 184 | U68: 173 | AL68: 187 | AM68: 174 | AN68: 0 | AO68: 200 | AP68: 185 | AQ68: 0
A69: 12575 | B69: 7205 | C69: 6780 | D69: 6598 | E69: 182 | F69: 0 | G69: 0 | H69: 0 | I69: 0 | J69: 0 | K69: 0 | L69: 0 | M69: 0 | N69: 0 | O69: 0 | P69: 0 | Q69: 0 | R69: 0 | S69: 176 | T69: 190 | U69: 182 | AL69: 189 | AM69: 176 | AN69: 0 | AO69: 200 | AP69: 185 | AQ69: 0
A70: 12600 | B70: 7439 | C70: 6955 | D70: 6569 | E70: 193 | F70: 0 | G70: 0 | H70: 0 | I70: 0 | J70: 192 | K70: 0 | L70: 0 | M70: 0 | N70: 0 | O70: 0 | P70: 0 | Q70: 0 | R70: 0 | S70: 184 | T70: 203 | U70: 193 | AL70: 191 | AM70: 184 | AN70: 0 | AO70: 200 | AP70: 185 | AQ70: 0
A71: 12625 | B71: 7583 | C71: 7061 | D71: 6488 | E71: 199 | F71: 0 | G71: 0 | H71: 0 | I71: 0 | J71: 374 | K71: 0 | L71: 0 | M71: 0 | N71: 0 | O71: 0 | P71: 0 | Q71: 0 | R71: 0 | S71: 191 | T71: 214 | U71: 199 | AL71: 206 | AM71: 191 | AN71: 0 | AO71: 200 | AP71: 185 | AQ71: 0
A72: 12650 | B72: 7669 | C72: 7103 | D72: 6554 | E72: 198 | F72: 0 | G72: 0 | H72: 0 | I72: 0 | J72: 351 | K72: 0 | L72: 0 | M72: 0 | N72: 0 | O72: 0 | P72: 0 | Q72: 0 | R72: 0 | S72: 190 | T72: 214 | U72: 198 | AL72: 206 | AM72: 190 | AN72: 0 | AO72: 200 | AP72: 185 | AQ72: 0
A73: 12675 | B73: 7673 | C73: 7089 | D73: 6145 | E73: 196 | F73: 0 | G73: 430 | H73: 0 | I73: 0 | J73: 318 | K73: 0 | L73: 0 | M73: 0 | N73: 0 | O73: 0 | P73: 0 | Q73: 0 | R73: 0 | S73: 187 | T73: 213 | U73: 196 | AL73: 204 | AM73: 187 | AN73: 0 | AO73: 200 | AP73: 185 | AQ73: 0
A74: 12700 | B74: 7639 | C74: 6994 | D74: 5615 | E74: 194 | F74: 0 | G74: 908 | H74: 0 | I74: 0 | J74: 277 | K74: 0 | L74: 0 | M74: 0 | N74: 0 | O74: 0 | P74: 0 | Q74: 0 | R74: 0 | S74: 184 | T74: 210 | U74: 194 | AL74: 200 | AM74: 184 | AN74: 0 | AO74: 200 | AP74: 185 | AQ74: 0
A75: 12725 | B75: 7468 | C75: 6835 | D75: 5445 | E75: 192 | F75: 0 | G75: 962 | H75: 0 | I75: 0 | J75: 236 | K75: 0 | L75: 0 | M75: 0 | N75: 0 | O75: 0 | P75: 0 | Q75: 0 | R75: 0 | S75: 182 | T75: 208 | U75: 192 | AL75: 198 | AM75: 182 | AN75: 0 | AO75: 200 | AP75: 185 | AQ75: 0
A76: 12750 | B76: 7295 | C76: 6672 | D76: 5308 | E76: 190 | F76: 0 | G76: 979 | H76: 0 | I76: 0 | J76: 196 | K76: 0 | L76: 0 | M76: 0 | N76: 0 | O76: 0 | P76: 0 | Q76: 0 | R76: 0 | S76: 179 | T76: 206 | U76: 190 | AL76: 195 | AM76: 179 | AN76: 0 | AO76: 200 | AP76: 185 | AQ76: 0
A77: 12775 | B77: 7116 | C77: 6630 | D77: 5237 | E77: 188 | F77: 0 | G77: 1042 | H77: 0 | I77: 0 | J77: 163 | K77: 0 | L77: 0 | M77: 0 | N77: 0 | O77: 0 | P77: 0 | Q77: 0 | R77: 0 | S77: 177 | T77: 203 | U77: 188 | AL77: 191 | AM77: 177 | AN77: 0 | AO77: 200 | AP77: 185 | AQ77: 0
A78: 12800 | B78: 7205 | C78: 6830 | D78: 5353 | E78: 188 | F78: 0 | G78: 1144 | H78: 0 | I78: 0 | J78: 145 | K78: 0 | L78: 0 | M78: 0 | N78: 0 | O78: 0 | P78: 0 | Q78: 0 | R78: 0 | S78: 177 | T78: 203 | U78: 188 | AL78: 191 | AM78: 177 | AN78: 0 | AO78: 200 | AP78: 185 | AQ78: 0
A79: 12825 | B79: 7549 | C79: 7089 | D79: 5575 | E79: 188 | F79: 0 | G79: 1196 | H79: 0 | I79: 0 | J79: 130 | K79: 0 | L79: 0 | M79: 0 | N79: 0 | O79: 0 | P79: 0 | Q79: 0 | R79: 0 | S79: 177 | T79: 203 | U79: 188 | AL79: 191 | AM79: 177 | AN79: 0 | AO79: 200 | AP79: 185 | AQ79: 0
A80: 12850 | B80: 7764 | C80: 7204 | D80: 5728 | E80: 188 | F80: 0 | G80: 1176 | H80: 0 | I80: 0 | J80: 112 | K80: 0 | L80: 0 | M80: 0 | N80: 0 | O80: 0 | P80: 0 | Q80: 0 | R80: 0 | S80: 177 | T80: 203 | U80: 188 | AL80: 191 | AM80: 177 | AN80: 0 | AO80: 200 | AP80: 185 | AQ80: 0
A81: 12875 | B81: 7798 | C81: 7248 | D81: 5859 | E81: 188 | F81: 0 | G81: 950 | H81: 0 | I81: 0 | J81: 251 | K81: 0 | L81: 0 | M81: 0 | N81: 0 | O81: 0 | P81: 0 | Q81: 0 | R81: 0 | S81: 177 | T81: 203 | U81: 188 | AL81: 191 | AM81: 177 | AN81: 0 | AO81: 200 | AP81: 185 | AQ81: 0
A82: 12900 | B82: 7859 | C82: 7303 | D82: 6010 | E82: 189 | F82: 0 | G82: 735 | H82: 0 | I82: 0 | J82: 369 | K82: 0 | L82: 0 | M82: 0 | N82: 0 | O82: 0 | P82: 0 | Q82: 0 | R82: 0 | S82: 178 | T82: 204 | U82: 189 | AL82: 192 | AM82: 178 | AN82: 0 | AO82: 200 | AP82: 185 | AQ82: 0
A83: 12925 | B83: 7916 | C83: 7441 | D83: 6225 | E83: 190 | F83: 0 | G83: 715 | H83: 0 | I83: 0 | J83: 311 | K83: 0 | L83: 0 | M83: 0 | N83: 0 | O83: 0 | P83: 0 | Q83: 0 | R83: 0 | S83: 179 | T83: 204 | U83: 190 | AL83: 192 | AM83: 179 | AN83: 0 | AO83: 200 | AP83: 185 | AQ83: 0
A84: 12950 | B84: 8156 | C84: 7681 | D84: 6536 | E84: 192 | F84: 0 | G84: 693 | H84: 0 | I84: 0 | J84: 260 | K84: 0 | L84: 0 | M84: 0 | N84: 0 | O84: 0 | P84: 0 | Q84: 0 | R84: 0 | S84: 181 | T84: 206 | U84: 192 | AL84: 195 | AM84: 182 | AN84: 0 | AO84: 200 | AP84: 185 | AQ84: 0
A85: 12975 | B85: 8434 | C85: 7940 | D85: 6867 | E85: 193 | F85: 0 | G85: 659 | H85: 0 | I85: 0 | J85: 221 | K85: 0 | L85: 0 | M85: 0 | N85: 0 | O85: 0 | P85: 0 | Q85: 0 | R85: 0 | S85: 183 | T85: 208 | U85: 193 | AL85: 198 | AM85: 184 | AN85: 0 | AO85: 200 | AP85: 185 | AQ85: 0
A86: 13000 | B86: 8716 | C86: 8237 | D86: 7226 | E86: 195 | F86: 0 | G86: 613 | H86: 0 | I86: 0 | J86: 203 | K86: 0 | L86: 0 | M86: 0 | N86: 0 | O86: 0 | P86: 0 | Q86: 0 | R86: 0 | S86: 186 | T86: 209 | U86: 195 | AL86: 199 | AM86: 186 | AN86: 0 | AO86: 200 | AP86: 185 | AQ86: 0
A87: 13025 | B87: 9075 | C87: 8384 | D87: 7476 | E87: 196 | F87: 0 | G87: 546 | H87: 0 | I87: 0 | J87: 166 | K87: 0 | L87: 0 | M87: 0 | N87: 0 | O87: 0 | P87: 0 | Q87: 0 | R87: 0 | S87: 187 | T87: 212 | U87: 196 | AL87: 202 | AM87: 187 | AN87: 0 | AO87: 200 | AP87: 185 | AQ87: 0
A88: 13050 | B88: 9035 | C88: 8273 | D88: 7527 | E88: 195 | F88: 0 | G88: 445 | H88: 0 | I88: 0 | J88: 107 | K88: 0 | L88: 0 | M88: 0 | N88: 0 | O88: 0 | P88: 0 | Q88: 0 | R88: 0 | S88: 186 | T88: 211 | U88: 195 | AL88: 201 | AM88: 185 | AN88: 0 | AO88: 200 | AP88: 185 | AQ88: 0
A89: 13075 | B89: 8835 | C89: 8127 | D89: 7344 | E89: 193 | F89: 0 | G89: 194 | H89: 0 | I89: 0 | J89: 396 | K89: 0 | L89: 0 | M89: 0 | N89: 0 | O89: 0 | P89: 0 | Q89: 0 | R89: 0 | S89: 184 | T89: 209 | U89: 193 | AL89: 199 | AM89: 184 | AN89: 0 | AO89: 200 | AP89: 185 | AQ89: 0
A90: 13100 | B90: 8719 | C90: 8059 | D90: 7167 | E90: 193 | F90: 0 | G90: 0 | H90: 0 | I90: 0 | J90: 699 | K90: 0 | L90: 0 | M90: 0 | N90: 0 | O90: 0 | P90: 0 | Q90: 0 | R90: 0 | S90: 183 | T90: 209 | U90: 193 | AL90: 198 | AM90: 183 | AN90: 0 | AO90: 200 | AP90: 185 | AQ90: 0
A91: 13125 | B91: 8689 | C91: 8112 | D91: 7244 | E91: 193 | F91: 0 | G91: 0 | H91: 0 | I91: 0 | J91: 675 | K91: 0 | L91: 0 | M91: 0 | N91: 0 | O91: 0 | P91: 0 | Q91: 0 | R91: 0 | S91: 183 | T91: 208 | U91: 193 | AL91: 197 | AM91: 183 | AN91: 0 | AO91: 200 | AP91: 185 | AQ91: 0
A92: 13150 | B92: 8833 | C92: 8266 | D92: 7422 | E92: 193 | F92: 0 | G92: 0 | H92: 0 | I92: 0 | J92: 652 | K92: 0 | L92: 0 | M92: 0 | N92: 0 | O92: 0 | P92: 0 | Q92: 0 | R92: 0 | S92: 183 | T92: 208 | U92: 193 | AL92: 198 | AM92: 183 | AN92: 0 | AO92: 200 | AP92: 185 | AQ92: 0
A93: 13175 | B93: 9023 | C93: 8412 | D93: 7591 | E93: 192 | F93: 0 | G93: 0 | H93: 0 | I93: 0 | J93: 629 | K93: 0 | L93: 0 | M93: 0 | N93: 0 | O93: 0 | P93: 0 | Q93: 0 | R93: 0 | S93: 183 | T93: 208 | U93: 192 | AL93: 198 | AM93: 183 | AN93: 0 | AO93: 200 | AP93: 185 | AQ93: 0
A94: 13200 | B94: 9148 | C94: 8587 | D94: 7788 | E94: 191 | F94: 0 | G94: 0 | H94: 0 | I94: 0 | J94: 607 | K94: 0 | L94: 0 | M94: 0 | N94: 0 | O94: 0 | P94: 0 | Q94: 0 | R94: 0 | S94: 181 | T94: 207 | U94: 191 | AL94: 197 | AM94: 181 | AN94: 0 | AO94: 200 | AP94: 185 | AQ94: 0
A95: 13225 | B95: 9399 | C95: 8823 | D95: 8047 | E95: 191 | F95: 0 | G95: 0 | H95: 0 | I95: 0 | J95: 586 | K95: 0 | L95: 0 | M95: 0 | N95: 0 | O95: 0 | P95: 0 | Q95: 0 | R95: 0 | S95: 180 | T95: 206 | U95: 191 | AL95: 195 | AM95: 180 | AN95: 0 | AO95: 200 | AP95: 185 | AQ95: 0
A96: 13250 | B96: 9659 | C96: 9091 | D96: 8338 | E96: 190 | F96: 0 | G96: 0 | H96: 0 | I96: 0 | J96: 564 | K96: 0 | L96: 0 | M96: 0 | N96: 0 | O96: 0 | P96: 0 | Q96: 0 | R96: 0 | S96: 179 | T96: 205 | U96: 190 | AL96: 194 | AM96: 179 | AN96: 0 | AO96: 200 | AP96: 185 | AQ96: 0
A97: 13275 | B97: 9978 | C97: 9462 | D97: 8614 | E97: 189 | F97: 0 | G97: 74 | H97: 0 | I97: 0 | J97: 584 | K97: 0 | L97: 0 | M97: 0 | N97: 0 | O97: 0 | P97: 0 | Q97: 0 | R97: 0 | S97: 179 | T97: 204 | U97: 189 | AL97: 192 | AM97: 179 | AN97: 0 | AO97: 200 | AP97: 185 | AQ97: 0
A98: 13300 | B98: 10459 | C98: 9908 | D98: 8926 | E98: 190 | F98: 0 | G98: 180 | H98: 0 | I98: 0 | J98: 612 | K98: 0 | L98: 0 | M98: 0 | N98: 0 | O98: 0 | P98: 0 | Q98: 0 | R98: 0 | S98: 180 | T98: 205 | U98: 190 | AL98: 193 | AM98: 180 | AN98: 0 | AO98: 200 | AP98: 185 | AQ98: 0
A99: 13325 | B99: 10943 | C99: 10298 | D99: 9265 | E99: 191 | F99: 0 | G99: 241 | H99: 0 | I99: 0 | J99: 601 | K99: 0 | L99: 0 | M99: 0 | N99: 0 | O99: 0 | P99: 0 | Q99: 0 | R99: 0 | S99: 181 | T99: 206 | U99: 191 | AL99: 195 | AM99: 181 | AN99: 0 | AO99: 200 | AP99: 185 | AQ99: 0
A100: 13350 | B100: 11301 | C100: 10599 | D100: 9517 | E100: 192 | F100: 0 | G100: 299 | H100: 0 | I100: 0 | J100: 591 | K100: 0 | L100: 0 | M100: 0 | N100: 0 | O100: 0 | P100: 0 | Q100: 0 | R100: 0 | S100: 181 | T100: 207 | U100: 192 | AL100: 196 | AM100: 181 | AN100: 0 | AO100: 200 | AP100: 185 | AQ100: 0
A101: 13375 | B101: 11592 | C101: 10796 | D101: 9674 | E101: 192 | F101: 0 | G101: 348 | H101: 0 | I101: 0 | J101: 582 | K101: 0 | L101: 0 | M101: 0 | N101: 0 | O101: 0 | P101: 0 | Q101: 0 | R101: 0 | S101: 182 | T101: 207 | U101: 192 | AL101: 196 | AM101: 182 | AN101: 0 | AO101: 200 | AP101: 185 | AQ101: 0
A102: 13400 | B102: 11727 | C102: 10785 | D102: 9664 | E102: 190 | F102: 0 | G102: 358 | H102: 0 | I102: 0 | J102: 573 | K102: 0 | L102: 0 | M102: 0 | N102: 0 | O102: 0 | P102: 0 | Q102: 0 | R102: 0 | S102: 181 | T102: 207 | U102: 190 | AL102: 196 | AM102: 181 | AN102: 0 | AO102: 200 | AP102: 185 | AQ102: 0
A103: 13425 | B103: 11569 | C103: 10509 | D103: 9443 | E103: 182 | F103: 0 | G103: 320 | H103: 0 | I103: 0 | J103: 564 | K103: 0 | L103: 0 | M103: 0 | N103: 0 | O103: 0 | P103: 0 | Q103: 0 | R103: 0 | S103: 179 | T103: 204 | U103: 182 | AL103: 195 | AM103: 179 | AN103: 0 | AO103: 200 | AP103: 185 | AQ103: 0
A104: 13450 | B104: 11131 | C104: 10037 | D104: 9049 | E104: 177 | F104: 0 | G104: 255 | H104: 0 | I104: 0 | J104: 557 | K104: 0 | L104: 0 | M104: 0 | N104: 0 | O104: 0 | P104: 0 | Q104: 0 | R104: 0 | S104: 175 | T104: 189 | U104: 177 | AL104: 192 | AM104: 175 | AN104: 0 | AO104: 200 | AP104: 185 | AQ104: 0
A105: 13475 | B105: 10549 | C105: 9494 | D105: 8454 | E105: 178 | F105: 0 | G105: 586 | H105: 0 | I105: 0 | J105: 277 | K105: 0 | L105: 0 | M105: 0 | N105: 0 | O105: 0 | P105: 0 | Q105: 0 | R105: 0 | S105: 170 | T105: 192 | U105: 178 | AL105: 185 | AM105: 170 | AN105: 0 | AO105: 200 | AP105: 185 | AQ105: 0
A106: 13500 | B106: 9959 | C106: 8916 | D106: 7800 | E106: 176 | F106: 0 | G106: 941 | H106: 0 | I106: 0 | J106: 0 | K106: 0 | L106: 0 | M106: 0 | N106: 0 | O106: 0 | P106: 0 | Q106: 0 | R106: 0 | S106: 167 | T106: 191 | U106: 176 | AL106: 182 | AM106: 167 | AN106: 0 | AO106: 200 | AP106: 185 | AQ106: 0
A107: 13525 | B107: 9300 | C107: 8266 | D107: 7192 | E107: 172 | F107: 0 | G107: 902 | H107: 0 | I107: 0 | J107: 0 | K107: 0 | L107: 0 | M107: 0 | N107: 0 | O107: 0 | P107: 0 | Q107: 0 | R107: 0 | S107: 163 | T107: 188 | U107: 172 | AL107: 178 | AM107: 163 | AN107: 0 | AO107: 200 | AP107: 185 | AQ107: 0
A108: 13550 | B108: 8555 | C108: 7525 | D108: 6509 | E108: 167 | F108: 0 | G108: 849 | H108: 0 | I108: 0 | J108: 0 | K108: 0 | L108: 0 | M108: 0 | N108: 0 | O108: 0 | P108: 0 | Q108: 0 | R108: 0 | S108: 158 | T108: 183 | U108: 167 | AL108: 173 | AM108: 158 | AN108: 0 | AO108: 200 | AP108: 185 | AQ108: 0
A109: 13575 | B109: 7699 | C109: 6756 | D109: 5803 | E109: 163 | F109: 0 | G109: 790 | H109: 0 | I109: 0 | J109: 0 | K109: 0 | L109: 0 | M109: 0 | N109: 0 | O109: 0 | P109: 0 | Q109: 0 | R109: 0 | S109: 153 | T109: 178 | U109: 163 | AL109: 168 | AM109: 153 | AN109: 0 | AO109: 200 | AP109: 185 | AQ109: 0
A110: 13600 | B110: 6895 | C110: 5949 | D110: 5061 | E110: 153 | F110: 0 | G110: 735 | H110: 0 | I110: 0 | J110: 0 | K110: 0 | L110: 0 | M110: 0 | N110: 0 | O110: 0 | P110: 0 | Q110: 0 | R110: 0 | S110: 148 | T110: 173 | U110: 153 | AL110: 163 | AM110: 148 | AN110: 0 | AO110: 200 | AP110: 185 | AQ110: 0
A111: 13625 | B111: 5954 | C111: 5147 | D111: 4298 | E111: 144 | F111: 0 | G111: 705 | H111: 0 | I111: 0 | J111: 0 | K111: 0 | L111: 0 | M111: 0 | N111: 0 | O111: 0 | P111: 0 | Q111: 0 | R111: 0 | S111: 141 | T111: 158 | U111: 144 | AL111: 157 | AM111: 141 | AN111: 0 | AO111: 200 | AP111: 185 | AQ111: 0
A112: 13650 | B112: 5164 | C112: 4523 | D112: 3691 | E112: 148 | F112: 0 | G112: 685 | H112: 0 | I112: 0 | J112: 0 | K112: 0 | L112: 0 | M112: 0 | N112: 0 | O112: 0 | P112: 0 | Q112: 0 | R112: 0 | S112: 134 | T112: 154 | U112: 148 | AL112: 149 | AM112: 134 | AN112: 0 | AO112: 200 | AP112: 185 | AQ112: 0
A113: 13675 | B113: 4607 | C113: 3639 | D113: 2859 | E113: 147 | F113: 0 | G113: 633 | H113: 0 | I113: 0 | J113: 0 | K113: 0 | L113: 0 | M113: 0 | N113: 0 | O113: 0 | P113: 0 | Q113: 0 | R113: 0 | S113: 122 | T113: 165 | U113: 147 | AL113: 141 | AM113: 122 | AN113: 0 | AO113: 200 | AP113: 185 | AQ113: 0
A114: 13700 | B114: 3255 | C114: 2593 | D114: 2158 | E114: 136 | F114: 0 | G114: 298 | H114: 0 | I114: 0 | J114: 0 | K114: 0 | L114: 0 | M114: 0 | N114: 0 | O114: 0 | P114: 0 | Q114: 0 | R114: 0 | S114: 108 | T114: 152 | U114: 136 | AL114: 123 | AM114: 108 | AN114: 0 | AO114: 200 | AP114: 185 | AQ114: 0
A115: 13725 | B115: 2346 | C115: 1706 | D115: 1580 | E115: 126 | F115: 0 | G115: 0 | H115: 0 | I115: 0 | J115: 0 | K115: 0 | L115: 0 | M115: 0 | N115: 0 | O115: 0 | P115: 0 | Q115: 0 | R115: 0 | S115: 94 | T115: 142 | U115: 126 | AL115: 110 | AM115: 94 | AN115: 0 | AO115: 200 | AP115: 185 | AQ115: 0
A116: 13750 | B116: 1339 | C116: 836 | D116: 737 | E116: 99 | F116: 0 | G116: 0 | H116: 0 | I116: 0 | J116: 0 | K116: 0 | L116: 0 | M116: 0 | N116: 0 | O116: 0 | P116: 0 | Q116: 0 | R116: 22 | S116: 79 | T116: 130 | U116: 114 | AL116: 94 | AM116: 74 | AN116: 5 | AO116: 200 | AP116: 138 | AQ116: 47
A117: 13775 | B117: 467 | C117: 264 | D117: 214 | E117: 49 | F117: 0 | G117: 0 | H117: 0 | I117: 0 | J117: 0 | K117: 0 | L117: 0 | M117: 0 | N117: 0 | O117: 0 | P117: 0 | Q117: 47 | R117: 174 | S117: 63 | T117: 117 | U117: 103 | AL117: 76 | AM117: 43 | AN117: 20 | AO117: 200 | AP117: 46 | AQ117: 139
A118: 13800 | B118: 102 | C118: 54 | D118: 39 | E118: 15 | F118: 0 | G118: 0 | H118: 0 | I118: 0 | J118: 0 | K118: 0 | L118: 0 | M118: 0 | N118: 0 | O118: 0 | P118: 0 | Q118: 330 | R118: 457 | S118: 54 | T118: 106 | U118: 96 | AL118: 61 | AM118: 19 | AN118: 35 | AO118: 200 | AP118: 0 | AQ118: 185
A119: 13825 | B119: 14 | C119: 13 | D119: 5 | E119: 8 | F119: 0 | G119: 0 | H119: 0 | I119: 0 | J119: 0 | K119: 0 | L119: 0 | M119: 0 | N119: 0 | O119: 0 | P119: 0 | Q119: 658 | R119: 698 | S119: 53 | T119: 101 | U119: 95 | AL119: 55 | AM119: 10 | AN119: 43 | AO119: 200 | AP119: 0 | AQ119: 185
A120: 13850 | B120: 15 | C120: 22 | D120: 14 | E120: 8 | F120: 0 | G120: 0 | H120: 0 | I120: 0 | J120: 0 | K120: 0 | L120: 0 | M120: 0 | N120: 0 | O120: 0 | P120: 0 | Q120: 850 | R120: 832 | S120: 59 | T120: 105 | U120: 99 | AL120: 60 | AM120: 11 | AN120: 48 | AO120: 200 | AP120: 0 | AQ120: 185
A121: 13875 | B121: 33 | C121: 36 | D121: 26 | E121: 10 | F121: 0 | G121: 0 | H121: 0 | I121: 0 | J121: 0 | K121: 0 | L121: 0 | M121: 0 | N121: 0 | O121: 0 | P121: 0 | Q121: 948 | R121: 901 | S121: 63 | T121: 110 | U121: 103 | AL121: 67 | AM121: 14 | AN121: 50 | AO121: 200 | AP121: 0 | AQ121: 185
A122: 13900 | B122: 45 | C122: 56 | D122: 43 | E122: 13 | F122: 0 | G122: 0 | H122: 0 | I122: 0 | J122: 0 | K122: 0 | L122: 0 | M122: 0 | N122: 0 | O122: 0 | P122: 0 | Q122: 999 | R122: 926 | S122: 65 | T122: 112 | U122: 104 | AL122: 70 | AM122: 17 | AN122: 48 | AO122: 200 | AP122: 0 | AQ122: 185
A123: 13925 | B123: 77 | C123: 108 | D123: 90 | E123: 17 | F123: 0 | G123: 0 | H123: 0 | I123: 0 | J123: 0 | K123: 0 | L123: 0 | M123: 0 | N123: 0 | O123: 0 | P123: 0 | Q123: 1001 | R123: 911 | S123: 69 | T123: 113 | U123: 107 | AL123: 71 | AM123: 23 | AN123: 46 | AO123: 200 | AP123: 0 | AQ123: 185
A124: 13950 | B124: 156 | C124: 222 | D124: 196 | E124: 26 | F124: 0 | G124: 0 | H124: 0 | I124: 0 | J124: 0 | K124: 0 | L124: 0 | M124: 0 | N124: 0 | O124: 0 | P124: 0 | Q124: 968 | R124: 814 | S124: 75 | T124: 118 | U124: 112 | AL124: 78 | AM124: 34 | AN124: 40 | AO124: 200 | AP124: 0 | AQ124: 185
A125: 13975 | B125: 323 | C125: 449 | D125: 406 | E125: 43 | F125: 0 | G125: 0 | H125: 0 | I125: 0 | J125: 0 | K125: 0 | L125: 0 | M125: 0 | N125: 0 | O125: 0 | P125: 0 | Q125: 791 | R125: 665 | S125: 83 | T125: 123 | U125: 118 | AL125: 84 | AM125: 48 | AN125: 35 | AO125: 200 | AP125: 13 | AQ125: 173
A126: 14000 | B126: 646 | C126: 736 | D126: 676 | E126: 60 | F126: 0 | G126: 0 | H126: 0 | I126: 0 | J126: 0 | K126: 0 | L126: 0 | M126: 0 | N126: 0 | O126: 0 | P126: 0 | Q126: 645 | R126: 533 | S126: 89 | T126: 131 | U126: 122 | AL126: 95 | AM126: 56 | AN126: 32 | AO126: 200 | AP126: 56 | AQ126: 130
A127: 14025 | B127: 944 | C127: 1024 | D127: 950 | E127: 74 | F127: 0 | G127: 0 | H127: 0 | I127: 0 | J127: 0 | K127: 0 | L127: 0 | M127: 0 | N127: 0 | O127: 0 | P127: 0 | Q127: 508 | R127: 411 | S127: 91 | T127: 132 | U127: 124 | AL127: 96 | AM127: 64 | AN127: 27 | AO127: 200 | AP127: 89 | AQ127: 96
A128: 14050 | B128: 1268 | C128: 1331 | D128: 1238 | E128: 93 | F128: 0 | G128: 0 | H128: 0 | I128: 0 | J128: 0 | K128: 0 | L128: 0 | M128: 0 | N128: 0 | O128: 0 | P128: 0 | Q128: 380 | R128: 195 | S128: 98 | T128: 135 | U128: 129 | AL128: 100 | AM128: 83 | AN128: 15 | AO128: 200 | AP128: 98 | AQ128: 88
A129: 14075 | B129: 1607 | C129: 2125 | D129: 2003 | E129: 122 | F129: 0 | G129: 0 | H129: 0 | I129: 0 | J129: 0 | K129: 0 | L129: 0 | M129: 0 | N129: 0 | O129: 0 | P129: 0 | Q129: 41 | R129: 19 | S129: 107 | T129: 143 | U129: 136 | AL129: 110 | AM129: 103 | AN129: 4 | AO129: 200 | AP129: 144 | AQ129: 41
A130: 14100 | B130: 2983 | C130: 2873 | D130: 2739 | E130: 134 | F130: 0 | G130: 0 | H130: 0 | I130: 0 | J130: 0 | K130: 0 | L130: 0 | M130: 0 | N130: 0 | O130: 0 | P130: 0 | Q130: 0 | R130: 0 | S130: 108 | T130: 151 | U130: 134 | AL130: 121 | AM130: 108 | AN130: 0 | AO130: 200 | AP130: 185 | AQ130: 0
A131: 14125 | B131: 3222 | C131: 3017 | D131: 2900 | E131: 117 | F131: 0 | G131: 0 | H131: 0 | I131: 0 | J131: 0 | K131: 0 | L131: 0 | M131: 0 | N131: 0 | O131: 0 | P131: 0 | Q131: 0 | R131: 0 | S131: 105 | T131: 139 | U131: 117 | AL131: 113 | AM131: 105 | AN131: 0 | AO131: 200 | AP131: 185 | AQ131: 0
A132: 14150 | B132: 3294 | C132: 3001 | D132: 2897 | E132: 104 | F132: 0 | G132: 0 | H132: 0 | I132: 0 | J132: 0 | K132: 0 | L132: 0 | M132: 0 | N132: 0 | O132: 0 | P132: 0 | Q132: 0 | R132: 0 | S132: 104 | T132: 113 | U132: 104 | AL132: 113 | AM132: 104 | AN132: 0 | AO132: 200 | AP132: 185 | AQ132: 0
A133: 14175 | B133: 3188 | C133: 2935 | D133: 2858 | E133: 77 | F133: 0 | G133: 0 | H133: 0 | I133: 0 | J133: 0 | K133: 0 | L133: 0 | M133: 0 | N133: 0 | O133: 0 | P133: 0 | Q133: 0 | R133: 0 | S133: 105 | T133: 113 | U133: 77 | AL133: 112 | AM133: 105 | AN133: 0 | AO133: 200 | AP133: 185 | AQ133: 0
A134: 14200 | B134: 3152 | C134: 2892 | D134: 2801 | E134: 91 | F134: 0 | G134: 0 | H134: 0 | I134: 0 | J134: 0 | K134: 0 | L134: 0 | M134: 0 | N134: 0 | O134: 0 | P134: 0 | Q134: 0 | R134: 0 | S134: 104 | T134: 54 | U134: 91 | AL134: 114 | AM134: 104 | AN134: 0 | AO134: 200 | AP134: 185 | AQ134: 0
A135: 14225 | B135: 3096 | C135: 2628 | D135: 2499 | E135: 129 | F135: 0 | G135: 0 | H135: 0 | I135: 0 | J135: 0 | K135: 0 | L135: 0 | M135: 0 | N135: 0 | O135: 0 | P135: 0 | Q135: 0 | R135: 0 | S135: 98 | T135: 143 | U135: 129 | AL135: 111 | AM135: 98 | AN135: 0 | AO135: 200 | AP135: 185 | AQ135: 0
A136: 14250 | B136: 2580 | C136: 1975 | D136: 1855 | E136: 121 | F136: 0 | G136: 0 | H136: 0 | I136: 0 | J136: 0 | K136: 0 | L136: 0 | M136: 0 | N136: 0 | O136: 0 | P136: 0 | Q136: 0 | R136: 0 | S136: 87 | T136: 135 | U136: 121 | AL136: 100 | AM136: 87 | AN136: 0 | AO136: 200 | AP136: 185 | AQ136: 0
A137: 14275 | B137: 1687 | C137: 1092 | D137: 980 | E137: 112 | F137: 0 | G137: 0 | H137: 0 | I137: 0 | J137: 0 | K137: 0 | L137: 0 | M137: 0 | N137: 0 | O137: 0 | P137: 0 | Q137: 0 | R137: 0 | S137: 78 | T137: 126 | U137: 114 | AL137: 88 | AM137: 78 | AN137: 0 | AO137: 200 | AP137: 185 | AQ137: 0
A138: 14300 | B138: 672 | C138: 374 | D138: 307 | E138: 67 | F138: 0 | G138: 0 | H138: 0 | I138: 0 | J138: 0 | K138: 0 | L138: 0 | M138: 0 | N138: 0 | O138: 0 | P138: 0 | Q138: 0 | R138: 121 | S138: 74 | T138: 120 | U138: 111 | AL138: 81 | AM138: 55 | AN138: 19 | AO138: 200 | AP138: 93 | AQ138: 93
A139: 14325 | B139: 137 | C139: 77 | D139: 59 | E139: 18 | F139: 0 | G139: 0 | H139: 0 | I139: 0 | J139: 0 | K139: 0 | L139: 0 | M139: 0 | N139: 0 | O139: 0 | P139: 0 | Q139: 261 | R139: 616 | S139: 71 | T139: 119 | U139: 109 | AL139: 79 | AM139: 24 | AN139: 47 | AO139: 200 | AP139: 0 | AQ139: 185
A140: 14350 | B140: 29 | C140: 26 | D140: 16 | E140: 9 | F140: 0 | G140: 0 | H140: 0 | I140: 0 | J140: 0 | K140: 0 | L140: 0 | M140: 0 | N140: 0 | O140: 0 | P140: 0 | Q140: 1069 | R140: 1099 | S140: 67 | T140: 115 | U140: 106 | AL140: 74 | AM140: 12 | AN140: 55 | AO140: 200 | AP140: 0 | AQ140: 185
A141: 14375 | B141: 26 | C141: 30 | D141: 20 | E141: 10 | F141: 0 | G141: 0 | H141: 0 | I141: 0 | J141: 0 | K141: 0 | L141: 0 | M141: 0 | N141: 0 | O141: 0 | P141: 0 | Q141: 1305 | R141: 1201 | S141: 67 | T141: 113 | U141: 105 | AL141: 71 | AM141: 13 | AN141: 54 | AO141: 200 | AP141: 0 | AQ141: 185
A142: 14400 | B142: 39 | C142: 48 | D142: 36 | E142: 12 | F142: 0 | G142: 0 | H142: 0 | I142: 0 | J142: 0 | K142: 0 | L142: 0 | M142: 0 | N142: 0 | O142: 0 | P142: 0 | Q142: 1289 | R142: 1152 | S142: 69 | T142: 115 | U142: 107 | AL142: 73 | AM142: 16 | AN142: 53 | AO142: 200 | AP142: 0 | AQ142: 185
A143: 14425 | B143: 64 | C143: 55 | D143: 42 | E143: 13 | F143: 0 | G143: 0 | H143: 0 | I143: 0 | J143: 0 | K143: 0 | L143: 0 | M143: 0 | N143: 0 | O143: 0 | P143: 0 | Q143: 1199 | R143: 1059 | S143: 69 | T143: 117 | U143: 107 | AL143: 76 | AM143: 17 | AN143: 52 | AO143: 200 | AP143: 0 | AQ143: 185
A144: 14450 | B144: 54 | C144: 46 | D144: 35 | E144: 12 | F144: 0 | G144: 0 | H144: 0 | I144: 0 | J144: 0 | K144: 0 | L144: 0 | M144: 0 | N144: 0 | O144: 0 | P144: 0 | Q144: 1088 | R144: 922 | S144: 65 | T144: 115 | U144: 104 | AL144: 73 | AM144: 15 | AN144: 49 | AO144: 200 | AP144: 0 | AQ144: 185
A145: 14475 | B145: 46 | C145: 49 | D145: 37 | E145: 13 | F145: 0 | G145: 0 | H145: 0 | I145: 0 | J145: 0 | K145: 0 | L145: 0 | M145: 0 | N145: 0 | O145: 0 | P145: 0 | Q145: 904 | R145: 726 | S145: 63 | T145: 109 | U145: 102 | AL145: 66 | AM145: 16 | AN145: 46 | AO145: 200 | AP145: 0 | AQ145: 185
A146: 14500 | B146: 61 | C146: 131 | D146: 103 | E146: 28 | F146: 0 | G146: 0 | H146: 0 | I146: 0 | J146: 0 | K146: 0 | L146: 0 | M146: 0 | N146: 0 | O146: 0 | P146: 0 | Q146: 663 | R146: 457 | S146: 66 | T146: 112 | U146: 105 | AL146: 69 | AM146: 24 | AN146: 42 | AO146: 200 | AP146: 19 | AQ146: 167
A147: 14525 | B147: 222 | C147: 454 | D147: 384 | E147: 70 | F147: 0 | G147: 0 | H147: 0 | I147: 0 | J147: 0 | K147: 0 | L147: 0 | M147: 0 | N147: 0 | O147: 0 | P147: 0 | Q147: 325 | R147: 170 | S147: 76 | T147: 115 | U147: 113 | AL147: 74 | AM147: 53 | AN147: 24 | AO147: 200 | AP147: 75 | AQ147: 110
A148: 14550 | B148: 758 | C148: 1198 | D148: 1083 | E148: 114 | F148: 0 | G148: 0 | H148: 0 | I148: 0 | J148: 0 | K148: 0 | L148: 0 | M148: 0 | N148: 0 | O148: 0 | P148: 0 | Q148: 42 | R148: 20 | S148: 92 | T148: 128 | U148: 125 | AL148: 91 | AM148: 88 | AN148: 5 | AO148: 200 | AP148: 149 | AQ148: 37
A149: 14575 | B149: 1829 | C149: 2305 | D149: 2164 | E149: 141 | F149: 0 | G149: 0 | H149: 0 | I149: 0 | J149: 0 | K149: 0 | L149: 0 | M149: 0 | N149: 0 | O149: 0 | P149: 0 | Q149: 0 | R149: 0 | S149: 114 | T149: 141 | U149: 141 | AL149: 109 | AM149: 114 | AN149: 0 | AO149: 200 | AP149: 185 | AQ149: 0
A150: 14600 | B150: 3150 | C150: 3561 | D150: 3405 | E150: 156 | F150: 0 | G150: 0 | H150: 0 | I150: 0 | J150: 0 | K150: 0 | L150: 0 | M150: 0 | N150: 0 | O150: 0 | P150: 0 | Q150: 0 | R150: 0 | S150: 134 | T150: 163 | U150: 156 | AL150: 138 | AM150: 134 | AN150: 0 | AO150: 200 | AP150: 185 | AQ150: 0
A151: 14625 | B151: 4541 | C151: 4842 | D151: 4678 | E151: 165 | F151: 0 | G151: 0 | H151: 0 | I151: 0 | J151: 0 | K151: 0 | L151: 0 | M151: 0 | N151: 0 | O151: 0 | P151: 0 | Q151: 0 | R151: 0 | S151: 146 | T151: 174 | U151: 165 | AL151: 152 | AM151: 146 | AN151: 0 | AO151: 200 | AP151: 185 | AQ151: 0
A152: 14650 | B152: 5919 | C152: 6116 | D152: 5944 | E152: 172 | F152: 0 | G152: 0 | H152: 0 | I152: 0 | J152: 0 | K152: 0 | L152: 0 | M152: 0 | N152: 0 | O152: 0 | P152: 0 | Q152: 0 | R152: 0 | S152: 155 | T152: 182 | U152: 172 | AL152: 163 | AM152: 155 | AN152: 0 | AO152: 200 | AP152: 185 | AQ152: 0
A153: 14675 | B153: 7292 | C153: 7436 | D153: 7095 | E153: 179 | F153: 0 | G153: 0 | H153: 0 | I153: 0 | J153: 162 | K153: 0 | L153: 0 | M153: 0 | N153: 0 | O153: 0 | P153: 0 | Q153: 0 | R153: 0 | S153: 165 | T153: 189 | U153: 179 | AL153: 173 | AM153: 165 | AN153: 0 | AO153: 200 | AP153: 185 | AQ153: 0
A154: 14700 | B154: 8770 | C154: 8735 | D154: 8209 | E154: 186 | F154: 0 | G154: 0 | H154: 0 | I154: 0 | J154: 340 | K154: 0 | L154: 0 | M154: 0 | N154: 0 | O154: 0 | P154: 0 | Q154: 0 | R154: 0 | S154: 175 | T154: 198 | U154: 186 | AL154: 184 | AM154: 175 | AN154: 0 | AO154: 200 | AP154: 185 | AQ154: 0
A155: 14725 | B155: 10098 | C155: 9804 | D155: 9240 | E155: 192 | F155: 0 | G155: 0 | H155: 0 | I155: 0 | J155: 372 | K155: 0 | L155: 0 | M155: 0 | N155: 0 | O155: 0 | P155: 0 | Q155: 0 | R155: 0 | S155: 182 | T155: 205 | U155: 192 | AL155: 193 | AM155: 182 | AN155: 0 | AO155: 200 | AP155: 185 | AQ155: 0
A156: 14750 | B156: 11077 | C156: 10550 | D156: 9938 | E156: 195 | F156: 0 | G156: 0 | H156: 0 | I156: 0 | J156: 417 | K156: 0 | L156: 0 | M156: 0 | N156: 0 | O156: 0 | P156: 0 | Q156: 0 | R156: 0 | S156: 186 | T156: 209 | U156: 195 | AL156: 199 | AM156: 186 | AN156: 0 | AO156: 200 | AP156: 185 | AQ156: 0
A157: 14775 | B157: 11710 | C157: 10880 | D157: 10209 | E157: 197 | F157: 0 | G157: 0 | H157: 0 | I157: 0 | J157: 474 | K157: 0 | L157: 0 | M157: 0 | N157: 0 | O157: 0 | P157: 0 | Q157: 0 | R157: 0 | S157: 188 | T157: 212 | U157: 197 | AL157: 203 | AM157: 188 | AN157: 0 | AO157: 200 | AP157: 185 | AQ157: 0
A158: 14800 | B158: 11791 | C158: 10806 | D158: 10078 | E158: 197 | F158: 0 | G158: 0 | H158: 0 | I158: 0 | J158: 532 | K158: 0 | L158: 0 | M158: 0 | N158: 0 | O158: 0 | P158: 0 | Q158: 0 | R158: 0 | S158: 188 | T158: 213 | U158: 197 | AL158: 204 | AM158: 188 | AN158: 0 | AO158: 200 | AP158: 185 | AQ158: 0
A159: 14825 | B159: 11551 | C159: 10512 | D159: 9726 | E159: 196 | F159: 0 | G159: 0 | H159: 0 | I159: 0 | J159: 590 | K159: 0 | L159: 0 | M159: 0 | N159: 0 | O159: 0 | P159: 0 | Q159: 0 | R159: 0 | S159: 187 | T159: 212 | U159: 196 | AL159: 203 | AM159: 187 | AN159: 0 | AO159: 200 | AP159: 185 | AQ159: 0
A160: 14850 | B160: 11156 | C160: 10109 | D160: 9264 | E160: 194 | F160: 0 | G160: 0 | H160: 0 | I160: 0 | J160: 650 | K160: 0 | L160: 0 | M160: 0 | N160: 0 | O160: 0 | P160: 0 | Q160: 0 | R160: 0 | S160: 185 | T160: 211 | U160: 194 | AL160: 201 | AM160: 185 | AN160: 0 | AO160: 200 | AP160: 185 | AQ160: 0
A161: 14875 | B161: 10679 | C161: 9660 | D161: 8955 | E161: 193 | F161: 0 | G161: 0 | H161: 0 | I161: 0 | J161: 512 | K161: 0 | L161: 0 | M161: 0 | N161: 0 | O161: 0 | P161: 0 | Q161: 0 | R161: 0 | S161: 184 | T161: 209 | U161: 193 | AL161: 199 | AM161: 184 | AN161: 0 | AO161: 200 | AP161: 185 | AQ161: 0
A162: 14900 | B162: 10187 | C162: 9200 | D162: 8638 | E162: 192 | F162: 0 | G162: 0 | H162: 0 | I162: 0 | J162: 371 | K162: 0 | L162: 0 | M162: 0 | N162: 0 | O162: 0 | P162: 0 | Q162: 0 | R162: 0 | S162: 182 | T162: 208 | U162: 192 | AL162: 198 | AM162: 182 | AN162: 0 | AO162: 200 | AP162: 185 | AQ162: 0
A163: 14925 | B163: 9686 | C163: 8744 | D163: 8128 | E163: 190 | F163: 0 | G163: 0 | H163: 0 | I163: 0 | J163: 427 | K163: 0 | L163: 0 | M163: 0 | N163: 0 | O163: 0 | P163: 0 | Q163: 0 | R163: 0 | S163: 179 | T163: 206 | U163: 190 | AL163: 195 | AM163: 179 | AN163: 0 | AO163: 200 | AP163: 185 | AQ163: 0
A164: 14950 | B164: 9202 | C164: 8336 | D164: 7665 | E164: 187 | F164: 0 | G164: 0 | H164: 0 | I164: 0 | J164: 484 | K164: 0 | L164: 0 | M164: 0 | N164: 0 | O164: 0 | P164: 0 | Q164: 0 | R164: 0 | S164: 176 | T164: 204 | U164: 187 | AL164: 192 | AM164: 176 | AN164: 0 | AO164: 200 | AP164: 185 | AQ164: 0
A165: 14975 | B165: 8804 | C165: 7940 | D165: 7215 | E165: 182 | F165: 0 | G165: 0 | H165: 0 | I165: 0 | J165: 542 | K165: 0 | L165: 0 | M165: 0 | N165: 0 | O165: 0 | P165: 0 | Q165: 0 | R165: 0 | S165: 173 | T165: 201 | U165: 182 | AL165: 188 | AM165: 173 | AN165: 0 | AO165: 200 | AP165: 185 | AQ165: 0
A166: 15000 | B166: 8345 | C166: 7459 | D166: 6626 | E166: 232 | F166: 0 | G166: 0 | H166: 0 | I166: 0 | J166: 602 | K166: 0 | L166: 0 | M166: 0 | N166: 0 | O166: 0 | P166: 0 | Q166: 0 | R166: 0 | S166: 169 | T166: 193 | U166: 232 | AL166: 185 | AM166: 169 | AN166: 0 | AO166: 200 | AP166: 185 | AQ166: 0
A167: 15025 | B167: 7766 | C167: 6954 | D167: 5973 | E167: 319 | F167: 0 | G167: 0 | H167: 0 | I167: 0 | J167: 663 | K167: 0 | L167: 0 | M167: 0 | N167: 0 | O167: 0 | P167: 0 | Q167: 0 | R167: 0 | S167: 164 | T167: 308 | U167: 291 | AL167: 180 | AM167: 164 | AN167: 0 | AO167: 200 | AP167: 185 | AQ167: 0
A168: 15050 | B168: 7255 | C168: 6339 | D168: 5269 | E168: 346 | F168: 0 | G168: 0 | H168: 0 | I168: 0 | J168: 725 | K168: 0 | L168: 0 | M168: 0 | N168: 0 | O168: 0 | P168: 0 | Q168: 0 | R168: 0 | S168: 157 | T168: 321 | U168: 318 | AL168: 175 | AM168: 157 | AN168: 0 | AO168: 200 | AP168: 185 | AQ168: 0
A169: 15075 | B169: 6437 | C169: 5802 | D169: 4679 | E169: 335 | F169: 0 | G169: 0 | H169: 0 | I169: 0 | J169: 789 | K169: 0 | L169: 0 | M169: 0 | N169: 0 | O169: 0 | P169: 0 | Q169: 0 | R169: 0 | S169: 150 | T169: 366 | U169: 335 | AL169: 164 | AM169: 150 | AN169: 0 | AO169: 200 | AP169: 185 | AQ169: 0
A170: 15100 | B170: 6096 | C170: 5503 | D170: 4766 | E170: 327 | F170: 0 | G170: 0 | H170: 0 | I170: 0 | J170: 410 | K170: 0 | L170: 0 | M170: 0 | N170: 0 | O170: 0 | P170: 0 | Q170: 0 | R170: 0 | S170: 144 | T170: 358 | U170: 327 | AL170: 159 | AM170: 144 | AN170: 0 | AO170: 200 | AP170: 185 | AQ170: 0
A171: 15125 | B171: 5792 | C171: 5236 | D171: 4919 | E171: 317 | F171: 0 | G171: 0 | H171: 0 | I171: 0 | J171: 0 | K171: 0 | L171: 0 | M171: 0 | N171: 0 | O171: 0 | P171: 0 | Q171: 0 | R171: 0 | S171: 138 | T171: 348 | U171: 317 | AL171: 152 | AM171: 138 | AN171: 0 | AO171: 200 | AP171: 185 | AQ171: 0
A172: 15150 | B172: 5519 | C172: 4973 | D172: 4665 | E172: 308 | F172: 0 | G172: 0 | H172: 0 | I172: 0 | J172: 0 | K172: 0 | L172: 0 | M172: 0 | N172: 0 | O172: 0 | P172: 0 | Q172: 0 | R172: 0 | S172: 131 | T172: 337 | U172: 308 | AL172: 145 | AM172: 131 | AN172: 0 | AO172: 200 | AP172: 185 | AQ172: 0
A173: 15175 | B173: 5223 | C173: 4688 | D173: 4391 | E173: 297 | F173: 0 | G173: 0 | H173: 0 | I173: 0 | J173: 0 | K173: 0 | L173: 0 | M173: 0 | N173: 0 | O173: 0 | P173: 0 | Q173: 0 | R173: 0 | S173: 126 | T173: 328 | U173: 299 | AL173: 139 | AM173: 126 | AN173: 0 | AO173: 200 | AP173: 185 | AQ173: 0
A174: 15200 | B174: 4904 | C174: 4391 | D174: 4108 | E174: 282 | F174: 0 | G174: 0 | H174: 0 | I174: 0 | J174: 0 | K174: 0 | L174: 0 | M174: 0 | N174: 0 | O174: 0 | P174: 0 | Q174: 0 | R174: 0 | S174: 116 | T174: 318 | U174: 284 | AL174: 132 | AM174: 116 | AN174: 0 | AO174: 200 | AP174: 185 | AQ174: 0
A175: 15225 | B175: 4580 | C175: 3963 | D175: 3693 | E175: 270 | F175: 0 | G175: 0 | H175: 0 | I175: 0 | J175: 0 | K175: 0 | L175: 0 | M175: 0 | N175: 0 | O175: 0 | P175: 0 | Q175: 0 | R175: 0 | S175: 106 | T175: 296 | U175: 270 | AL175: 117 | AM175: 106 | AN175: 0 | AO175: 200 | AP175: 185 | AQ175: 0
A176: 15250 | B176: 3979 | C176: 3448 | D176: 3185 | E176: 262 | F176: 0 | G176: 0 | H176: 0 | I176: 0 | J176: 0 | K176: 0 | L176: 0 | M176: 0 | N176: 0 | O176: 0 | P176: 0 | Q176: 0 | R176: 0 | S176: 101 | T176: 287 | U176: 263 | AL176: 112 | AM176: 101 | AN176: 0 | AO176: 200 | AP176: 185 | AQ176: 0
A177: 15275 | B177: 3468 | C177: 2979 | D177: 2725 | E177: 254 | F177: 0 | G177: 0 | H177: 0 | I177: 0 | J177: 0 | K177: 0 | L177: 0 | M177: 0 | N177: 0 | O177: 0 | P177: 0 | Q177: 0 | R177: 0 | S177: 95 | T177: 280 | U177: 254 | AL177: 107 | AM177: 95 | AN177: 0 | AO177: 200 | AP177: 185 | AQ177: 0
A178: 15300 | B178: 2967 | C178: 2505 | D178: 2261 | E178: 244 | F178: 0 | G178: 0 | H178: 0 | I178: 0 | J178: 0 | K178: 0 | L178: 0 | M178: 0 | N178: 0 | O178: 0 | P178: 0 | Q178: 0 | R178: 0 | S178: 88 | T178: 270 | U178: 244 | AL178: 99 | AM178: 88 | AN178: 0 | AO178: 200 | AP178: 189 | AQ178: 0
A179: 15325 | B179: 2442 | C179: 2022 | D179: 1789 | E179: 233 | F179: 0 | G179: 0 | H179: 0 | I179: 0 | J179: 0 | K179: 0 | L179: 0 | M179: 0 | N179: 0 | O179: 0 | P179: 0 | Q179: 0 | R179: 0 | S179: 79 | T179: 258 | U179: 233 | AL179: 90 | AM179: 79 | AN179: 0 | AO179: 208 | AP179: 194 | AQ179: 0
A180: 15350 | B180: 1926 | C180: 1534 | D180: 1311 | E180: 223 | F180: 0 | G180: 0 | H180: 0 | I180: 0 | J180: 0 | K180: 0 | L180: 0 | M180: 0 | N180: 0 | O180: 0 | P180: 0 | Q180: 0 | R180: 0 | S180: 71 | T180: 246 | U180: 223 | AL180: 80 | AM180: 71 | AN180: 0 | AO180: 211 | AP180: 200 | AQ180: 0
A181: 15375 | B181: 1387 | C181: 1042 | D181: 830 | E181: 212 | F181: 0 | G181: 0 | H181: 0 | I181: 0 | J181: 0 | K181: 0 | L181: 0 | M181: 0 | N181: 0 | O181: 0 | P181: 0 | Q181: 0 | R181: 0 | S181: 64 | T181: 236 | U181: 215 | AL181: 72 | AM181: 64 | AN181: 0 | AO181: 221 | AP181: 206 | AQ181: 0
A182: 15400 | B182: 864 | C182: 610 | D182: 418 | E182: 192 | F182: 0 | G182: 0 | H182: 0 | I182: 0 | J182: 0 | K182: 0 | L182: 0 | M182: 0 | N182: 0 | O182: 0 | P182: 0 | Q182: 0 | R182: 7 | S182: 59 | T182: 228 | U182: 210 | AL182: 65 | AM182: 57 | AN182: 2 | AO182: 223 | AP182: 193 | AQ182: 16
A183: 15425 | B183: 455 | C183: 301 | D183: 160 | E183: 141 | F183: 0 | G183: 0 | H183: 0 | I183: 0 | J183: 0 | K183: 0 | L183: 0 | M183: 0 | N183: 0 | O183: 0 | P183: 0 | Q183: 15 | R183: 50 | S183: 58 | T183: 226 | U183: 210 | AL183: 62 | AM183: 46 | AN183: 12 | AO183: 230 | AP183: 119 | AQ183: 94
A184: 15450 | B184: 195 | C184: 147 | D184: 72 | E184: 75 | F184: 0 | G184: 0 | H184: 0 | I184: 0 | J184: 0 | K184: 0 | L184: 0 | M184: 0 | N184: 0 | O184: 0 | P184: 0 | Q184: 93 | R184: 149 | S184: 60 | T184: 228 | U184: 213 | AL184: 63 | AM184: 35 | AN184: 24 | AO184: 230 | AP184: 29 | AQ184: 184
A185: 15475 | B185: 122 | C185: 122 | D185: 74 | E185: 48 | F185: 0 | G185: 0 | H185: 0 | I185: 0 | J185: 0 | K185: 0 | L185: 0 | M185: 0 | N185: 0 | O185: 0 | P185: 0 | Q185: 229 | R185: 253 | S185: 62 | T185: 232 | U185: 217 | AL185: 66 | AM185: 33 | AN185: 29 | AO185: 230 | AP185: 0 | AQ185: 213
A186: 15500 | B186: 142 | C186: 148 | D186: 95 | E186: 53 | F186: 0 | G186: 0 | H186: 0 | I186: 0 | J186: 0 | K186: 0 | L186: 0 | M186: 0 | N186: 0 | O186: 0 | P186: 0 | Q186: 317 | R186: 302 | S186: 65 | T186: 237 | U186: 223 | AL186: 69 | AM186: 36 | AN186: 29 | AO186: 230 | AP186: 0 | AQ186: 215
A187: 15525 | B187: 178 | C187: 179 | D187: 121 | E187: 58 | F187: 0 | G187: 0 | H187: 0 | I187: 0 | J187: 0 | K187: 0 | L187: 0 | M187: 0 | N187: 0 | O187: 0 | P187: 0 | Q187: 334 | R187: 302 | S187: 68 | T187: 244 | U187: 229 | AL187: 72 | AM187: 40 | AN187: 28 | AO187: 233 | AP187: 0 | AQ187: 222
A188: 15550 | B188: 210 | C188: 202 | D188: 139 | E188: 64 | F188: 0 | G188: 0 | H188: 0 | I188: 0 | J188: 0 | K188: 0 | L188: 0 | M188: 0 | N188: 0 | O188: 0 | P188: 0 | Q188: 319 | R188: 283 | S188: 69 | T188: 251 | U188: 234 | AL188: 75 | AM188: 43 | AN188: 25 | AO188: 246 | AP188: 0 | AQ188: 232
A189: 15575 | B189: 227 | C189: 225 | D189: 155 | E189: 70 | F189: 0 | G189: 0 | H189: 0 | I189: 0 | J189: 0 | K189: 0 | L189: 0 | M189: 0 | N189: 0 | O189: 0 | P189: 0 | Q189: 292 | R189: 262 | S189: 68 | T189: 255 | U189: 239 | AL189: 74 | AM189: 48 | AN189: 20 | AO189: 256 | AP189: 0 | AQ189: 251
A190: 15600 | B190: 259 | C190: 193 | D190: 127 | E190: 66 | F190: 0 | G190: 0 | H190: 0 | I190: 0 | J190: 0 | K190: 0 | L190: 0 | M190: 0 | N190: 0 | O190: 0 | P190: 0 | Q190: 274 | R190: 273 | S190: 64 | T190: 260 | U190: 237 | AL190: 72 | AM190: 45 | AN190: 19 | AO190: 286 | AP190: 0 | AQ190: 285
A191: 15625 | B191: 158 | C191: 191 | D191: 162 | E191: 29 | F191: 0 | G191: 0 | H191: 0 | I191: 0 | J191: 0 | K191: 0 | L191: 0 | M191: 0 | N191: 0 | O191: 0 | P191: 0 | Q191: 316 | R191: 242 | S191: 64 | T191: 251 | U191: 116 | AL191: 66 | AM191: 45 | AN191: 19 | AO191: 330 | AP191: 1 | AQ191: 304
A192: 15650 | B192: 254 | C192: 147 | D192: 129 | E192: 18 | F192: 0 | G192: 0 | H192: 0 | I192: 0 | J192: 0 | K192: 0 | L192: 0 | M192: 0 | N192: 0 | O192: 0 | P192: 0 | Q192: 207 | R192: 372 | S192: 60 | T192: 0 | U192: 111 | AL192: 72 | AM192: 38 | AN192: 22 | AO192: 330 | AP192: 1 | AQ192: 304
A193: 15675 | B193: 63 | C193: 73 | D193: 27 | E193: 46 | F193: 0 | G193: 0 | H193: 0 | I193: 0 | J193: 0 | K193: 0 | L193: 0 | M193: 0 | N193: 0 | O193: 0 | P193: 0 | Q193: 597 | R193: 589 | S193: 61 | T193: 239 | U193: 232 | AL193: 58 | AM193: 32 | AN193: 29 | AO193: 330 | AP193: 0 | AQ193: 297
A194: 15700 | B194: 94 | C194: 95 | D194: 37 | E194: 57 | F194: 0 | G194: 0 | H194: 0 | I194: 0 | J194: 0 | K194: 0 | L194: 0 | M194: 0 | N194: 0 | O194: 0 | P194: 0 | Q194: 674 | R194: 636 | S194: 69 | T194: 261 | U194: 243 | AL194: 73 | AM194: 40 | AN194: 29 | AO194: 312 | AP194: 0 | AQ194: 269
A195: 15725 | B195: 110 | C195: 113 | D195: 52 | E195: 61 | F195: 0 | G195: 0 | H195: 0 | I195: 0 | J195: 0 | K195: 0 | L195: 0 | M195: 0 | N195: 0 | O195: 0 | P195: 0 | Q195: 699 | R195: 649 | S195: 73 | T195: 263 | U195: 244 | AL195: 76 | AM195: 42 | AN195: 31 | AO195: 268 | AP195: 0 | AQ195: 239
A196: 15750 | B196: 134 | C196: 137 | D196: 73 | E196: 64 | F196: 0 | G196: 0 | H196: 0 | I196: 0 | J196: 0 | K196: 0 | L196: 0 | M196: 0 | N196: 0 | O196: 0 | P196: 0 | Q196: 702 | R196: 644 | S196: 78 | T196: 264 | U196: 246 | AL196: 82 | AM196: 44 | AN196: 34 | AO196: 249 | AP196: 0 | AQ196: 225
A197: 15775 | B197: 163 | C197: 181 | D197: 110 | E197: 71 | F197: 0 | G197: 0 | H197: 0 | I197: 0 | J197: 0 | K197: 0 | L197: 0 | M197: 0 | N197: 0 | O197: 0 | P197: 0 | Q197: 688 | R197: 622 | S197: 83 | T197: 267 | U197: 251 | AL197: 86 | AM197: 48 | AN197: 35 | AO197: 237 | AP197: 0 | AQ197: 217
A198: 15800 | B198: 229 | C198: 267 | D198: 184 | E198: 83 | F198: 0 | G198: 0 | H198: 0 | I198: 0 | J198: 0 | K198: 0 | L198: 0 | M198: 0 | N198: 0 | O198: 0 | P198: 0 | Q198: 656 | R198: 583 | S198: 90 | T198: 275 | U198: 259 | AL198: 93 | AM198: 56 | AN198: 34 | AO198: 231 | AP198: 0 | AQ198: 213
A199: 15825 | B199: 347 | C199: 413 | D199: 312 | E199: 101 | F199: 0 | G199: 0 | H199: 0 | I199: 0 | J199: 0 | K199: 0 | L199: 0 | M199: 0 | N199: 0 | O199: 0 | P199: 0 | Q199: 603 | R199: 523 | S199: 98 | T199: 286 | U199: 271 | AL199: 101 | AM199: 67 | AN199: 31 | AO199: 230 | AP199: 2 | AQ199: 211
A200: 15850 | B200: 544 | C200: 622 | D200: 496 | E200: 126 | F200: 0 | G200: 0 | H200: 0 | I200: 0 | J200: 0 | K200: 0 | L200: 0 | M200: 0 | N200: 0 | O200: 0 | P200: 0 | Q200: 528 | R200: 449 | S200: 106 | T200: 299 | U200: 282 | AL200: 111 | AM200: 77 | AN200: 29 | AO200: 230 | AP200: 15 | AQ200: 198
A201: 15875 | B201: 800 | C201: 866 | D201: 698 | E201: 160 | F201: 0 | G201: 8 | H201: 0 | I201: 0 | J201: 0 | K201: 0 | L201: 0 | M201: 0 | N201: 0 | O201: 0 | P201: 0 | Q201: 442 | R201: 377 | S201: 112 | T201: 311 | U201: 291 | AL201: 118 | AM201: 83 | AN201: 29 | AO201: 230 | AP201: 52 | AQ201: 159
A202: 15900 | B202: 1071 | C202: 1059 | D202: 866 | E202: 183 | F202: 0 | G202: 11 | H202: 0 | I202: 0 | J202: 0 | K202: 0 | L202: 0 | M202: 0 | N202: 0 | O202: 0 | P202: 0 | Q202: 372 | R202: 309 | S202: 117 | T202: 317 | U202: 295 | AL202: 124 | AM202: 87 | AN202: 29 | AO202: 227 | AP202: 93 | AQ202: 114
A203: 15925 | B203: 1218 | C203: 1092 | D203: 902 | E203: 187 | F203: 0 | G203: 2 | H203: 0 | I203: 0 | J203: 0 | K203: 0 | L203: 0 | M203: 0 | N203: 0 | O203: 0 | P203: 0 | Q203: 296 | R203: 245 | S203: 116 | T203: 320 | U203: 292 | AL203: 127 | AM203: 91 | AN203: 25 | AO203: 220 | AP203: 107 | AQ203: 94
A204: 15950 | B204: 1140 | C204: 959 | D204: 772 | E204: 187 | F204: 0 | G204: 0 | H204: 0 | I204: 0 | J204: 0 | K204: 0 | L204: 0 | M204: 0 | N204: 0 | O204: 0 | P204: 0 | Q204: 234 | R204: 202 | S204: 112 | T204: 311 | U204: 283 | AL204: 123 | AM204: 92 | AN204: 20 | AO204: 215 | AP204: 103 | AQ204: 93
A205: 15975 | B205: 931 | C205: 739 | D205: 564 | E205: 175 | F205: 0 | G205: 0 | H205: 0 | I205: 0 | J205: 0 | K205: 0 | L205: 0 | M205: 0 | N205: 0 | O205: 0 | P205: 0 | Q205: 201 | R205: 189 | S205: 107 | T205: 301 | U205: 275 | AL205: 118 | AM205: 87 | AN205: 21 | AO205: 208 | AP205: 88 | AQ205: 101
... 2035 more rows

Sheet DataInformation
B1: Total Cut and Fill Adjustment | Z1: Unsuitable Placement Check | AE1: Topsoil
B2: Unadjusted Total Cut | P2: Add Quantity | Q2: Combined Material to be Placed as Fill | R2: Unadjusted Total Fill | V2: Add Quantity | X2: Weighted Average Shrink Factor | Z2: Refer to Standard Road Plan EW-102 | AE2: Typical thickness is 12" | AF2: Typical Thickness is 8" | AG2: Topsoil Replacement Shrink Factor
C4: Shrink Factor | D4: Shrink Factor | E4: Shrink Factor | F4: Shrink Factor | G4: Shrink Factor | I4: Shrink Factor | J4: Shrink Factor | K4: Swell Factor | O4: Swell Factor | P4: Shrink Factor
C5: 1.3 | D5: 1.4 | E5: 1.3 | F5: 1.3 | G5: 1.3 | I5: 1.3 | J5: 1.2 | K5: 1.1 | O5: 0 | P5: 1.3 | X5: =IF(ISERROR(ROUNDUP(SUM((C6*C5),(E6*E5),(F6*F5),(G6*G5),(I6*I5),(J6*J5),(K6*(-K5)),(O6*(-O5)),(P6*P5))/SUM(C6,E6,F6,G6,I6,J6,K6,O6,P6),2)),"",ROUNDUP(SUM((C6*C5),(E6*E5),(F6*F5),(G6*G5),(I6*I5),(J6*J5),(K6*(-K5)),(O6*O5),(P6*P5))/SUM(C6,E6,F6,G6,I6,J6,K6,O6,P6),2)) -> 1.3 | AG5: 1.4
B6: =SUM(B11:B2611) -> 5486210 | C6: 4377677 | D6: 470373 | E6: 0 | F6: 281526 | G6: 0 | H6: 0 | I6: 357036 | J6: 0 | K6: 0 | L6: 0 | M6: 0 | N6: 0 | O6: 0 | P6: 62500 | Q6: 5078739 | R6: 3149242 | S6: 0 | T6: 207724 | U6: 0 | V6: 103029 | W6: 3459995 | X6: 4497993.5 | Y6: 580745.7 | Z6: ="5' Minimum"&CHAR(10)&"Class 10"&CHAR(10)&"End Area"&CHAR(10)&"Sq. Ft." -> 5' Minimum Class 10 End Area Sq. Ft. | AA6: ="20' Maximum"&CHAR(10)&"End Area"&CHAR(10)&CHAR(10)&"Sq. Ft." -> 20' Maximum End Area Sq. Ft. | AB6: =SUM(AB11:AB2611) -> 2634585.2 | AC6: ="3' Minimum"&CHAR(10)&"Class 10"&CHAR(10)&"End Area"&CHAR(10)&"Sq. Ft." -> 3' Minimum Class 10 End Area Sq. Ft. | AD6: =SUM(AD11:AD2611) -> 4064626.8 | AE6: =SUM(AE11:AE2611) -> 470373 | AF6: =SUM(AF11:AF2611) -> 281885 | AG6: =SUM(AG11:AG2611) -> 394639 | AH6: =SUM(AH11:AH2611) -> 75732.3
A7: Station | B7: ="Total Cut Unadjusted"&CHAR(10)&CHAR(10)&"Volume" -> Total Cut Unadjusted Volume | C7: Total Class 10 Unadjusted Volume | D7: Topsoil Cut Volume | E7: =DataInput!F3 -> Template Unsuitable Type A Volume | F7: =DataInput!G3 -> Template Unsuitable Type B Volume | G7: =DataInput!H3 -> Template Unsuitable Type C Volume | H7: =DataInput!I3 -> Template Pavement Removal Volume | I7: =DataInput!J3 -> Template Select Loam Volume | J7: =DataInput!K3 -> Template Select Sand Volume | K7: =DataInput!L3 -> Template Rock Volume | L7: =DataInput!M3 -> Template B & W Rock Volume | M7: =DataInput!N3 -> Template Waste Volume | N7: =DataInput!O3 -> Template Shale Volume | O7: =DataInput!P3 -> Template Rock Undercut Volume | P7: ="Manually"&CHAR(10)&"Calculated Cut"&CHAR(10)&"Adjustments"&CHAR(10)&"(+/- Cut)" -> Manually Calculated Cut Adjustments (+/- Cut) | Q7: ="Total"&CHAR(10)&"Cut"&CHAR(10)&"Adjusted" -> Total Cut Adjusted | R7: =DataInput!R3 -> Total Fill Unadjusted Volume | S7: =DataInput!Y3 -> Plowing & Shaping Undercut (+ Fill) | T7: ="Existing Topsoil"&CHAR(10)&"Stripping"&CHAR(10)&"Undercut"&CHAR(10)&"(+ Fill)" -> Existing Topsoil Stripping Undercut (+ Fill) | U7: ="Existing"&CHAR(10)&"Pavement"&CHAR(10)&"Undercut"&CHAR(10)&"(+Fill)" -> Existing Pavement Undercut (+Fill) | V7: ="Manually"&CHAR(10)&"Calculated Fill"&CHAR(10)&"Adjustments"&CHAR(10)&"(+/- Fill)" -> Manually Calculated Fill Adjustments (+/- Fill) | W7: ="Total"&CHAR(10)&"Fill"&CHAR(10)&"Adjusted" -> Total Fill Adjusted | X7: ="Total Fill"&CHAR(10)&" Adjusted w/"&CHAR(10)&"Weighted Average"&CHAR(10)&X5&" Shrink Factor" -> Total Fill Adjusted w/ Weighted Average 1.3 Shrink Factor | Y7: ="Total Cut Adjusted"&CHAR(10)&"Minus Fill w/ Shrink" -> Total Cut Adjusted Minus Fill w/ Shrink | AB7: ="Approx. Fill Vol."&CHAR(10)&"Below 5' & Above"&CHAR(10)&"20' w/ Shrink" -> Approx. Fill Vol. Below 5' & Above 20' w/ Shrink | AD7: ="Approx. Fill"&CHAR(10)&"Volume Below 3'"&CHAR(10)&"w/ Shrink" -> Approx. Fill Volume Below 3' w/ Shrink | AE7: =DataInput!T3&CHAR(10)&"Volume" -> Topsoil Stripping Undercut Volume | AF7: =DataInput!S3 -> Topsoil Placement Undercut Volume | AG7: ="Topsoil Placement"&CHAR(10)&"With "&$AG$5&" Shrink"&CHAR(10)&"Factor" -> Topsoil Placement With 1.4 Shrink Factor | AH7: ="Topsoil Stripping"&CHAR(10)&"Minus Topsoil"&CHAR(10)&"Placement"&CHAR(10)&"w/Shrink" -> Topsoil Stripping Minus Topsoil Placement w/Shrink
A11: =IF(DataInput!A11<>"",DataInput!A11,"") -> ML030
A12: =IF(DataInput!A12<>"",DataInput!A12,"") -> 11150 | B12: =SUM(DataInput!C12,DataInput!Y12)+(DataInput!U12-DataInput!E12) -> 208 | C12: =SUM(DataInput!D12,DataInput!Z12) -> 72 | D12: =DataInput!U12 -> 53 | E12: =SUM(DataInput!F12,DataInput!AB12) -> 0 | F12: =SUM(DataInput!G12,DataInput!AC12) -> 83 | G12: =SUM(DataInput!H12,DataInput!AD12) -> 0 | H12: =DataInput!I12 -> 0 | I12: =SUM(DataInput!J12,DataInput!AF12) -> 0 | J12: =SUM(DataInput!K12,DataInput!AG12) -> 0 | K12: =SUM(DataInput!L12,DataInput!AH12) -> 0 | L12: =SUM(DataInput!M12,DataInput!AI12) -> 0 | M12: =SUM(DataInput!N12,DataInput!AJ12) -> 0 | N12: =SUM(DataInput!O12,DataInput!AK12) -> 0 | O12: =DataInput!P12 -> 0 | Q12: =SUM(C12,E12:G12,I12:L12,N12:P12) -> 155 | R12: =DataInput!R12 -> 0 | S12: =DataInput!Y12 -> 0 | T12: =IF(DataInput!U12-DataInput!E12>0,DataInput!U12-DataInput!E12,"") -> 2 | U12: =IF(DataInput!W12-DataInput!I12>0,DataInput!W12-DataInput!I12,"") ->  | W12: =SUM(R12:V12) -> 2 | X12: =ROUNDUP(($W12*$X$5),1) -> 2.6 | Y12: =ROUNDUP(SUM(Q12-X12),1) -> 152.4 | Z12: 518.93 | AA12: 4146.34 | AB12: =ROUNDDOWN((IF(AA13>0,IFERROR(IF(AVERAGE(DataInput!Q12:Q13)>AVERAGE(AA13,AA12),ROUNDDOWN(((((AA12-Z12)+(AA13-Z13))/2)*(A13-A12))/27+S12+T12,0),IF(((((DataInput!Q13-Z13)+(DataInput!Q12-Z12))/2)*(A13-A12))/27+S12+T12>0,ROUNDDOWN(((((DataInput!Q13-Z12)+(DataInput!Q12-Z12))/2)*(A13-A12))/27+S12+T12,0),0)),0),0)*$X$5),1) -> 0 | AC12: 159.49 | AD12: =ROUNDDOWN((IF(AC13>0,IFERROR(IF(((((DataInput!Q12-AC12)+(DataInput!Q13-AC13))/2)*(A13-A12))/27+S12+T12>0,ROUNDDOWN(((((DataInput!Q12-AC12)+(DataInput!Q13-AC13))/2)*(A13-A12))/27+S12+T12,0),0),0),0)*$X$5),1) -> 0 | AE12: =DataInput!U12 -> 53 | AF12: =DataInput!S12 -> 33 | AG12: =ROUNDUP((AF12*$AG$5),1) -> 46.2 | AH12: =ROUNDUP((AE12-AG12),1) -> 6.8
A13: =IF(DataInput!A13<>"",DataInput!A13,"") -> 11175 | B13: =SUM(DataInput!C13,DataInput!Y13)+(DataInput!U13-DataInput!E13) -> 210 | C13: =SUM(DataInput!D13,DataInput!Z13) -> 0 | D13: =DataInput!U13 -> 53 | E13: =SUM(DataInput!F13,DataInput!AB13) -> 0 | F13: =SUM(DataInput!G13,DataInput!AC13) -> 157 | G13: =SUM(DataInput!H13,DataInput!AD13) -> 0 | H13: =DataInput!I13 -> 0 | I13: =SUM(DataInput!J13,DataInput!AF13) -> 0 | J13: =SUM(DataInput!K13,DataInput!AG13) -> 0 | K13: =SUM(DataInput!L13,DataInput!AH13) -> 0 | L13: =SUM(DataInput!M13,DataInput!AI13) -> 0 | M13: =SUM(DataInput!N13,DataInput!AJ13) -> 0 | N13: =SUM(DataInput!O13,DataInput!AK13) -> 0 | O13: =DataInput!P13 -> 0 | Q13: =SUM(C13,E13:G13,I13:L13,N13:P13) -> 157 | R13: =DataInput!R13 -> 0 | S13: =DataInput!Y13 -> 0 | T13: =IF(DataInput!U13-DataInput!E13>0,DataInput!U13-DataInput!E13,"") -> 1 | U13: =IF(DataInput!W13-DataInput!I13>0,DataInput!W13-DataInput!I13,"") ->  | W13: =SUM(R13:V13) -> 1 | X13: =ROUNDUP(($W13*$X$5),1) -> 1.3 | Y13: =ROUNDUP(SUM(Q13-X13),1) -> 155.7 | Z13: =Z12 -> 518.93 | AA13: =AA12 -> 4146.34 | AB13: =ROUNDDOWN((IF(AA14>0,IFERROR(IF(AVERAGE(DataInput!Q13:Q14)>AVERAGE(AA14,AA13),ROUNDDOWN(((((AA13-Z13)+(AA14-Z14))/2)*(A14-A13))/27+S13+T13,0),IF(((((DataInput!Q14-Z14)+(DataInput!Q13-Z13))/2)*(A14-A13))/27+S13+T13>0,ROUNDDOWN(((((DataInput!Q14-Z13)+(DataInput!Q13-Z13))/2)*(A14-A13))/27+S13+T13,0),0)),0),0)*$X$5),1) -> 0 | AC13: =AC12 -> 159.49 | AD13: =ROUNDDOWN((IF(AC14>0,IFERROR(IF(((((DataInput!Q13-AC13)+(DataInput!Q14-AC14))/2)*(A14-A13))/27+S13+T13>0,ROUNDDOWN(((((DataInput!Q13-AC13)+(DataInput!Q14-AC14))/2)*(A14-A13))/27+S13+T13,0),0),0),0)*$X$5),1) -> 0 | AE13: =DataInput!U13 -> 53 | AF13: =DataInput!S13 -> 34 | AG13: =ROUNDUP((AF13*$AG$5),1) -> 47.6 | AH13: =ROUNDUP((AE13-AG13),1) -> 5.4
A14: =IF(DataInput!A14<>"",DataInput!A14,"") -> 11200 | B14: =SUM(DataInput!C14,DataInput!Y14)+(DataInput!U14-DataInput!E14) -> 209 | C14: =SUM(DataInput!D14,DataInput!Z14) -> 0 | D14: =DataInput!U14 -> 55 | E14: =SUM(DataInput!F14,DataInput!AB14) -> 0 | F14: =SUM(DataInput!G14,DataInput!AC14) -> 155 | G14: =SUM(DataInput!H14,DataInput!AD14) -> 0 | H14: =DataInput!I14 -> 0 | I14: =SUM(DataInput!J14,DataInput!AF14) -> 0 | J14: =SUM(DataInput!K14,DataInput!AG14) -> 0 | K14: =SUM(DataInput!L14,DataInput!AH14) -> 0 | L14: =SUM(DataInput!M14,DataInput!AI14) -> 0 | M14: =SUM(DataInput!N14,DataInput!AJ14) -> 0 | N14: =SUM(DataInput!O14,DataInput!AK14) -> 0 | O14: =DataInput!P14 -> 0 | Q14: 155 | R14: =DataInput!R14 -> 0 | S14: =DataInput!Y14 -> 0 | T14: =IF(DataInput!U14-DataInput!E14>0,DataInput!U14-DataInput!E14,"") -> 1 | U14: =IF(DataInput!W14-DataInput!I14>0,DataInput!W14-DataInput!I14,"") ->  | W14: 1 | X14: 1.3 | Y14: 153.7 | Z14: =Z13 -> 518.93 | AA14: =AA13 -> 4146.34 | AB14: =ROUNDDOWN((IF(AA15>0,IFERROR(IF(AVERAGE(DataInput!Q14:Q15)>AVERAGE(AA15,AA14),ROUNDDOWN(((((AA14-Z14)+(AA15-Z15))/2)*(A15-A14))/27+S14+T14,0),IF(((((DataInput!Q15-Z15)+(DataInput!Q14-Z14))/2)*(A15-A14))/27+S14+T14>0,ROUNDDOWN(((((DataInput!Q15-Z14)+(DataInput!Q14-Z14))/2)*(A15-A14))/27+S14+T14,0),0)),0),0)*$X$5),1) -> 0 | AC14: =AC13 -> 159.49 | AD14: =ROUNDDOWN((IF(AC15>0,IFERROR(IF(((((DataInput!Q14-AC14)+(DataInput!Q15-AC15))/2)*(A15-A14))/27+S14+T14>0,ROUNDDOWN(((((DataInput!Q14-AC14)+(DataInput!Q15-AC15))/2)*(A15-A14))/27+S14+T14,0),0),0),0)*$X$5),1) -> 0 | AE14: =DataInput!U14 -> 55 | AF14: =DataInput!S14 -> 36 | AG14: 50.4 | AH14: 4.6
A15: =IF(DataInput!A15<>"",DataInput!A15,"") -> 11225 | B15: =SUM(DataInput!C15,DataInput!Y15)+(DataInput!U15-DataInput!E15) -> 212 | C15: =SUM(DataInput!D15,DataInput!Z15) -> 0 | D15: =DataInput!U15 -> 56 | E15: =SUM(DataInput!F15,DataInput!AB15) -> 0 | F15: =SUM(DataInput!G15,DataInput!AC15) -> 156 | G15: =SUM(DataInput!H15,DataInput!AD15) -> 0 | H15: =DataInput!I15 -> 0 | I15: =SUM(DataInput!J15,DataInput!AF15) -> 0 | J15: =SUM(DataInput!K15,DataInput!AG15) -> 0 | K15: =SUM(DataInput!L15,DataInput!AH15) -> 0 | L15: =SUM(DataInput!M15,DataInput!AI15) -> 0 | M15: =SUM(DataInput!N15,DataInput!AJ15) -> 0 | N15: =SUM(DataInput!O15,DataInput!AK15) -> 0 | O15: =DataInput!P15 -> 0 | Q15: 156 | R15: =DataInput!R15 -> 0 | S15: =DataInput!Y15 -> 0 | T15: =IF(DataInput!U15-DataInput!E15>0,DataInput!U15-DataInput!E15,"") -> 2 | U15: =IF(DataInput!W15-DataInput!I15>0,DataInput!W15-DataInput!I15,"") ->  | W15: 2 | X15: 2.6 | Y15: 153.4 | Z15: 518.93 | AA15: 4146.34 | AB15: =ROUNDDOWN((IF(AA16>0,IFERROR(IF(AVERAGE(DataInput!Q15:Q16)>AVERAGE(AA16,AA15),ROUNDDOWN(((((AA15-Z15)+(AA16-Z16))/2)*(A16-A15))/27+S15+T15,0),IF(((((DataInput!Q16-Z16)+(DataInput!Q15-Z15))/2)*(A16-A15))/27+S15+T15>0,ROUNDDOWN(((((DataInput!Q16-Z15)+(DataInput!Q15-Z15))/2)*(A16-A15))/27+S15+T15,0),0)),0),0)*$X$5),1) -> 0 | AC15: 159.49 | AD15: =ROUNDDOWN((IF(AC16>0,IFERROR(IF(((((DataInput!Q15-AC15)+(DataInput!Q16-AC16))/2)*(A16-A15))/27+S15+T15>0,ROUNDDOWN(((((DataInput!Q15-AC15)+(DataInput!Q16-AC16))/2)*(A16-A15))/27+S15+T15,0),0),0),0)*$X$5),1) -> 0 | AE15: =DataInput!U15 -> 56 | AF15: =DataInput!S15 -> 37 | AG15: 51.8 | AH15: 4.2
A16: =IF(DataInput!A16<>"",DataInput!A16,"") -> 11250 | B16: =SUM(DataInput!C16,DataInput!Y16)+(DataInput!U16-DataInput!E16) -> 217 | C16: =SUM(DataInput!D16,DataInput!Z16) -> 0 | D16: =DataInput!U16 -> 57 | E16: =SUM(DataInput!F16,DataInput!AB16) -> 0 | F16: =SUM(DataInput!G16,DataInput!AC16) -> 160 | G16: =SUM(DataInput!H16,DataInput!AD16) -> 0 | H16: =DataInput!I16 -> 0 | I16: =SUM(DataInput!J16,DataInput!AF16) -> 0 | J16: =SUM(DataInput!K16,DataInput!AG16) -> 0 | K16: =SUM(DataInput!L16,DataInput!AH16) -> 0 | L16: =SUM(DataInput!M16,DataInput!AI16) -> 0 | M16: =SUM(DataInput!N16,DataInput!AJ16) -> 0 | N16: =SUM(DataInput!O16,DataInput!AK16) -> 0 | O16: =DataInput!P16 -> 0 | Q16: 160 | R16: =DataInput!R16 -> 0 | S16: =DataInput!Y16 -> 0 | T16: =IF(DataInput!U16-DataInput!E16>0,DataInput!U16-DataInput!E16,"") -> 2 | U16: =IF(DataInput!W16-DataInput!I16>0,DataInput!W16-DataInput!I16,"") ->  | W16: 2 | X16: 2.6 | Y16: 157.4 | Z16: 518.93 | AA16: 4146.34 | AB16: =ROUNDDOWN((IF(AA17>0,IFERROR(IF(AVERAGE(DataInput!Q16:Q17)>AVERAGE(AA17,AA16),ROUNDDOWN(((((AA16-Z16)+(AA17-Z17))/2)*(A17-A16))/27+S16+T16,0),IF(((((DataInput!Q17-Z17)+(DataInput!Q16-Z16))/2)*(A17-A16))/27+S16+T16>0,ROUNDDOWN(((((DataInput!Q17-Z16)+(DataInput!Q16-Z16))/2)*(A17-A16))/27+S16+T16,0),0)),0),0)*$X$5),1) -> 0 | AC16: 159.49 | AD16: =ROUNDDOWN((IF(AC17>0,IFERROR(IF(((((DataInput!Q16-AC16)+(DataInput!Q17-AC17))/2)*(A17-A16))/27+S16+T16>0,ROUNDDOWN(((((DataInput!Q16-AC16)+(DataInput!Q17-AC17))/2)*(A17-A16))/27+S16+T16,0),0),0),0)*$X$5),1) -> 0 | AE16: =DataInput!U16 -> 57 | AF16: =DataInput!S16 -> 39 | AG16: 54.6 | AH16: 2.4
A17: =IF(DataInput!A17<>"",DataInput!A17,"") -> 11275 | B17: =SUM(DataInput!C17,DataInput!Y17)+(DataInput!U17-DataInput!E17) -> 221 | C17: =SUM(DataInput!D17,DataInput!Z17) -> 0 | D17: =DataInput!U17 -> 58 | E17: =SUM(DataInput!F17,DataInput!AB17) -> 0 | F17: =SUM(DataInput!G17,DataInput!AC17) -> 163 | G17: =SUM(DataInput!H17,DataInput!AD17) -> 0 | H17: =DataInput!I17 -> 0 | I17: =SUM(DataInput!J17,DataInput!AF17) -> 0 | J17: =SUM(DataInput!K17,DataInput!AG17) -> 0 | K17: =SUM(DataInput!L17,DataInput!AH17) -> 0 | L17: =SUM(DataInput!M17,DataInput!AI17) -> 0 | M17: =SUM(DataInput!N17,DataInput!AJ17) -> 0 | N17: =SUM(DataInput!O17,DataInput!AK17) -> 0 | O17: =DataInput!P17 -> 0 | Q17: 163 | R17: =DataInput!R17 -> 0 | S17: =DataInput!Y17 -> 0 | T17: =IF(DataInput!U17-DataInput!E17>0,DataInput!U17-DataInput!E17,"") -> 1 | U17: =IF(DataInput!W17-DataInput!I17>0,DataInput!W17-DataInput!I17,"") ->  | W17: 1 | X17: 1.3 | Y17: 161.7 | Z17: 518.93 | AA17: 4146.34 | AB17: =ROUNDDOWN((IF(AA18>0,IFERROR(IF(AVERAGE(DataInput!Q17:Q18)>AVERAGE(AA18,AA17),ROUNDDOWN(((((AA17-Z17)+(AA18-Z18))/2)*(A18-A17))/27+S17+T17,0),IF(((((DataInput!Q18-Z18)+(DataInput!Q17-Z17))/2)*(A18-A17))/27+S17+T17>0,ROUNDDOWN(((((DataInput!Q18-Z17)+(DataInput!Q17-Z17))/2)*(A18-A17))/27+S17+T17,0),0)),0),0)*$X$5),1) -> 0 | AC17: 159.49 | AD17: =ROUNDDOWN((IF(AC18>0,IFERROR(IF(((((DataInput!Q17-AC17)+(DataInput!Q18-AC18))/2)*(A18-A17))/27+S17+T17>0,ROUNDDOWN(((((DataInput!Q17-AC17)+(DataInput!Q18-AC18))/2)*(A18-A17))/27+S17+T17,0),0),0),0)*$X$5),1) -> 0 | AE17: =DataInput!U17 -> 58 | AF17: =DataInput!S17 -> 41 | AG17: 57.4 | AH17: 0.7
A18: =IF(DataInput!A18<>"",DataInput!A18,"") -> 11300 | B18: =SUM(DataInput!C18,DataInput!Y18)+(DataInput!U18-DataInput!E18) -> 232 | C18: =SUM(DataInput!D18,DataInput!Z18) -> 0 | D18: =DataInput!U18 -> 65 | E18: =SUM(DataInput!F18,DataInput!AB18) -> 0 | F18: =SUM(DataInput!G18,DataInput!AC18) -> 166 | G18: =SUM(DataInput!H18,DataInput!AD18) -> 0 | H18: =DataInput!I18 -> 0 | I18: =SUM(DataInput!J18,DataInput!AF18) -> 0 | J18: =SUM(DataInput!K18,DataInput!AG18) -> 0 | K18: =SUM(DataInput!L18,DataInput!AH18) -> 0 | L18: =SUM(DataInput!M18,DataInput!AI18) -> 0 | M18: =SUM(DataInput!N18,DataInput!AJ18) -> 0 | N18: =SUM(DataInput!O18,DataInput!AK18) -> 0 | O18: =DataInput!P18 -> 0 | Q18: 166 | R18: =DataInput!R18 -> 0 | S18: =DataInput!Y18 -> 0 | T18: =IF(DataInput!U18-DataInput!E18>0,DataInput!U18-DataInput!E18,"") -> 2 | U18: =IF(DataInput!W18-DataInput!I18>0,DataInput!W18-DataInput!I18,"") ->  | W18: 2 | X18: 2.6 | Y18: 163.4 | Z18: 518.93 | AA18: 4146.34 | AB18: =ROUNDDOWN((IF(AA19>0,IFERROR(IF(AVERAGE(DataInput!Q18:Q19)>AVERAGE(AA19,AA18),ROUNDDOWN(((((AA18-Z18)+(AA19-Z19))/2)*(A19-A18))/27+S18+T18,0),IF(((((DataInput!Q19-Z19)+(DataInput!Q18-Z18))/2)*(A19-A18))/27+S18+T18>0,ROUNDDOWN(((((DataInput!Q19-Z18)+(DataInput!Q18-Z18))/2)*(A19-A18))/27+S18+T18,0),0)),0),0)*$X$5),1) -> 0 | AC18: 159.49 | AD18: =ROUNDDOWN((IF(AC19>0,IFERROR(IF(((((DataInput!Q18-AC18)+(DataInput!Q19-AC19))/2)*(A19-A18))/27+S18+T18>0,ROUNDDOWN(((((DataInput!Q18-AC18)+(DataInput!Q19-AC19))/2)*(A19-A18))/27+S18+T18,0),0),0),0)*$X$5),1) -> 0 | AE18: =DataInput!U18 -> 65 | AF18: =DataInput!S18 -> 50 | AG18: 70 | AH18: -5
A19: =IF(DataInput!A19<>"",DataInput!A19,"") -> 11325 | B19: =SUM(DataInput!C19,DataInput!Y19)+(DataInput!U19-DataInput!E19) -> 255 | C19: =SUM(DataInput!D19,DataInput!Z19) -> 0 | D19: =DataInput!U19 -> 72 | E19: =SUM(DataInput!F19,DataInput!AB19) -> 0 | F19: =SUM(DataInput!G19,DataInput!AC19) -> 183 | G19: =SUM(DataInput!H19,DataInput!AD19) -> 0 | H19: =DataInput!I19 -> 0 | I19: =SUM(DataInput!J19,DataInput!AF19) -> 0 | J19: =SUM(DataInput!K19,DataInput!AG19) -> 0 | K19: =SUM(DataInput!L19,DataInput!AH19) -> 0 | L19: =SUM(DataInput!M19,DataInput!AI19) -> 0 | M19: =SUM(DataInput!N19,DataInput!AJ19) -> 0 | N19: =SUM(DataInput!O19,DataInput!AK19) -> 0 | O19: =DataInput!P19 -> 0 | Q19: 183 | R19: =DataInput!R19 -> 0 | S19: =DataInput!Y19 -> 0 | T19: =IF(DataInput!U19-DataInput!E19>0,DataInput!U19-DataInput!E19,"") -> 1 | U19: =IF(DataInput!W19-DataInput!I19>0,DataInput!W19-DataInput!I19,"") ->  | W19: 1 | X19: 1.3 | Y19: 181.7 | Z19: 518.93 | AA19: 4146.34 | AB19: =ROUNDDOWN((IF(AA20>0,IFERROR(IF(AVERAGE(DataInput!Q19:Q20)>AVERAGE(AA20,AA19),ROUNDDOWN(((((AA19-Z19)+(AA20-Z20))/2)*(A20-A19))/27+S19+T19,0),IF(((((DataInput!Q20-Z20)+(DataInput!Q19-Z19))/2)*(A20-A19))/27+S19+T19>0,ROUNDDOWN(((((DataInput!Q20-Z19)+(DataInput!Q19-Z19))/2)*(A20-A19))/27+S19+T19,0),0)),0),0)*$X$5),1) -> 0 | AC19: 159.49 | AD19: =ROUNDDOWN((IF(AC20>0,IFERROR(IF(((((DataInput!Q19-AC19)+(DataInput!Q20-AC20))/2)*(A20-A19))/27+S19+T19>0,ROUNDDOWN(((((DataInput!Q19-AC19)+(DataInput!Q20-AC20))/2)*(A20-A19))/27+S19+T19,0),0),0),0)*$X$5),1) -> 0 | AE19: =DataInput!U19 -> 72 | AF19: =DataInput!S19 -> 59 | AG19: 82.6 | AH19: -10.6
A20: =IF(DataInput!A20<>"",DataInput!A20,"") -> 11350 | B20: =SUM(DataInput!C20,DataInput!Y20)+(DataInput!U20-DataInput!E20) -> 273 | C20: =SUM(DataInput!D20,DataInput!Z20) -> 0 | D20: =DataInput!U20 -> 72 | E20: =SUM(DataInput!F20,DataInput!AB20) -> 0 | F20: =SUM(DataInput!G20,DataInput!AC20) -> 201 | G20: =SUM(DataInput!H20,DataInput!AD20) -> 0 | H20: =DataInput!I20 -> 0 | I20: =SUM(DataInput!J20,DataInput!AF20) -> 0 | J20: =SUM(DataInput!K20,DataInput!AG20) -> 0 | K20: =SUM(DataInput!L20,DataInput!AH20) -> 0 | L20: =SUM(DataInput!M20,DataInput!AI20) -> 0 | M20: =SUM(DataInput!N20,DataInput!AJ20) -> 0 | N20: =SUM(DataInput!O20,DataInput!AK20) -> 0 | O20: =DataInput!P20 -> 0 | Q20: 201 | R20: =DataInput!R20 -> 0 | S20: =DataInput!Y20 -> 0 | T20: =IF(DataInput!U20-DataInput!E20>0,DataInput!U20-DataInput!E20,"") ->  | U20: =IF(DataInput!W20-DataInput!I20>0,DataInput!W20-DataInput!I20,"") ->  | W20: 0 | X20: 0 | Y20: 201 | Z20: 518.93 | AA20: 4146.34 | AB20: =ROUNDDOWN((IF(AA21>0,IFERROR(IF(AVERAGE(DataInput!Q20:Q21)>AVERAGE(AA21,AA20),ROUNDDOWN(((((AA20-Z20)+(AA21-Z21))/2)*(A21-A20))/27+S20+T20,0),IF(((((DataInput!Q21-Z21)+(DataInput!Q20-Z20))/2)*(A21-A20))/27+S20+T20>0,ROUNDDOWN(((((DataInput!Q21-Z20)+(DataInput!Q20-Z20))/2)*(A21-A20))/27+S20+T20,0),0)),0),0)*$X$5),1) -> 0 | AC20: 159.49 | AD20: =ROUNDDOWN((IF(AC21>0,IFERROR(IF(((((DataInput!Q20-AC20)+(DataInput!Q21-AC21))/2)*(A21-A20))/27+S20+T20>0,ROUNDDOWN(((((DataInput!Q20-AC20)+(DataInput!Q21-AC21))/2)*(A21-A20))/27+S20+T20,0),0),0),0)*$X$5),1) -> 0 | AE20: =DataInput!U20 -> 72 | AF20: =DataInput!S20 -> 58 | AG20: 81.2 | AH20: -9.2
A21: =IF(DataInput!A21<>"",DataInput!A21,"") -> 11375 | B21: =SUM(DataInput!C21,DataInput!Y21)+(DataInput!U21-DataInput!E21) -> 276 | C21: =SUM(DataInput!D21,DataInput!Z21) -> 0 | D21: =DataInput!U21 -> 70 | E21: =SUM(DataInput!F21,DataInput!AB21) -> 0 | F21: =SUM(DataInput!G21,DataInput!AC21) -> 207 | G21: =SUM(DataInput!H21,DataInput!AD21) -> 0 | H21: =DataInput!I21 -> 0 | I21: =SUM(DataInput!J21,DataInput!AF21) -> 0 | J21: =SUM(DataInput!K21,DataInput!AG21) -> 0 | K21: =SUM(DataInput!L21,DataInput!AH21) -> 0 | L21: =SUM(DataInput!M21,DataInput!AI21) -> 0 | M21: =SUM(DataInput!N21,DataInput!AJ21) -> 0 | N21: =SUM(DataInput!O21,DataInput!AK21) -> 0 | O21: =DataInput!P21 -> 0 | Q21: 207 | R21: =DataInput!R21 -> 0 | S21: =DataInput!Y21 -> 0 | T21: =IF(DataInput!U21-DataInput!E21>0,DataInput!U21-DataInput!E21,"") ->  | U21: =IF(DataInput!W21-DataInput!I21>0,DataInput!W21-DataInput!I21,"") ->  | W21: 0 | X21: 0 | Y21: 207 | Z21: 518.93 | AA21: 4146.34 | AB21: =ROUNDDOWN((IF(AA22>0,IFERROR(IF(AVERAGE(DataInput!Q21:Q22)>AVERAGE(AA22,AA21),ROUNDDOWN(((((AA21-Z21)+(AA22-Z22))/2)*(A22-A21))/27+S21+T21,0),IF(((((DataInput!Q22-Z22)+(DataInput!Q21-Z21))/2)*(A22-A21))/27+S21+T21>0,ROUNDDOWN(((((DataInput!Q22-Z21)+(DataInput!Q21-Z21))/2)*(A22-A21))/27+S21+T21,0),0)),0),0)*$X$5),1) -> 0 | AC21: 159.49 | AD21: =ROUNDDOWN((IF(AC22>0,IFERROR(IF(((((DataInput!Q21-AC21)+(DataInput!Q22-AC22))/2)*(A22-A21))/27+S21+T21>0,ROUNDDOWN(((((DataInput!Q21-AC21)+(DataInput!Q22-AC22))/2)*(A22-A21))/27+S21+T21,0),0),0),0)*$X$5),1) -> 0 | AE21: =DataInput!U21 -> 70 | AF21: =DataInput!S21 -> 57 | AG21: 79.8 | AH21: -9.8
A22: =IF(DataInput!A22<>"",DataInput!A22,"") -> 11400 | B22: =SUM(DataInput!C22,DataInput!Y22)+(DataInput!U22-DataInput!E22) -> 276 | C22: =SUM(DataInput!D22,DataInput!Z22) -> 0 | D22: =DataInput!U22 -> 70 | E22: =SUM(DataInput!F22,DataInput!AB22) -> 0 | F22: =SUM(DataInput!G22,DataInput!AC22) -> 206 | G22: =SUM(DataInput!H22,DataInput!AD22) -> 0 | H22: =DataInput!I22 -> 0 | I22: =SUM(DataInput!J22,DataInput!AF22) -> 0 | J22: =SUM(DataInput!K22,DataInput!AG22) -> 0 | K22: =SUM(DataInput!L22,DataInput!AH22) -> 0 | L22: =SUM(DataInput!M22,DataInput!AI22) -> 0 | M22: =SUM(DataInput!N22,DataInput!AJ22) -> 0 | N22: =SUM(DataInput!O22,DataInput!AK22) -> 0 | O22: =DataInput!P22 -> 0 | Q22: 206 | R22: =DataInput!R22 -> 0 | S22: =DataInput!Y22 -> 0 | T22: =IF(DataInput!U22-DataInput!E22>0,DataInput!U22-DataInput!E22,"") -> 1 | U22: =IF(DataInput!W22-DataInput!I22>0,DataInput!W22-DataInput!I22,"") ->  | W22: 1 | X22: 1.3 | Y22: 204.7 | Z22: 518.93 | AA22: 4146.34 | AB22: =ROUNDDOWN((IF(AA23>0,IFERROR(IF(AVERAGE(DataInput!Q22:Q23)>AVERAGE(AA23,AA22),ROUNDDOWN(((((AA22-Z22)+(AA23-Z23))/2)*(A23-A22))/27+S22+T22,0),IF(((((DataInput!Q23-Z23)+(DataInput!Q22-Z22))/2)*(A23-A22))/27+S22+T22>0,ROUNDDOWN(((((DataInput!Q23-Z22)+(DataInput!Q22-Z22))/2)*(A23-A22))/27+S22+T22,0),0)),0),0)*$X$5),1) -> 0 | AC22: 159.49 | AD22: =ROUNDDOWN((IF(AC23>0,IFERROR(IF(((((DataInput!Q22-AC22)+(DataInput!Q23-AC23))/2)*(A23-A22))/27+S22+T22>0,ROUNDDOWN(((((DataInput!Q22-AC22)+(DataInput!Q23-AC23))/2)*(A23-A22))/27+S22+T22,0),0),0),0)*$X$5),1) -> 0 | AE22: =DataInput!U22 -> 70 | AF22: =DataInput!S22 -> 56 | AG22: 78.4 | AH22: -8.5
A23: =IF(DataInput!A23<>"",DataInput!A23,"") -> 11425 | B23: =SUM(DataInput!C23,DataInput!Y23)+(DataInput!U23-DataInput!E23) -> 286 | C23: =SUM(DataInput!D23,DataInput!Z23) -> 0 | D23: =DataInput!U23 -> 72 | E23: =SUM(DataInput!F23,DataInput!AB23) -> 0 | F23: =SUM(DataInput!G23,DataInput!AC23) -> 214 | G23: =SUM(DataInput!H23,DataInput!AD23) -> 0 | H23: =DataInput!I23 -> 0 | I23: =SUM(DataInput!J23,DataInput!AF23) -> 0 | J23: =SUM(DataInput!K23,DataInput!AG23) -> 0 | K23: =SUM(DataInput!L23,DataInput!AH23) -> 0 | L23: =SUM(DataInput!M23,DataInput!AI23) -> 0 | M23: =SUM(DataInput!N23,DataInput!AJ23) -> 0 | N23: =SUM(DataInput!O23,DataInput!AK23) -> 0 | O23: =DataInput!P23 -> 0 | Q23: 214 | R23: =DataInput!R23 -> 0 | S23: =DataInput!Y23 -> 0 | T23: =IF(DataInput!U23-DataInput!E23>0,DataInput!U23-DataInput!E23,"") -> 3 | U23: =IF(DataInput!W23-DataInput!I23>0,DataInput!W23-DataInput!I23,"") ->  | W23: 3 | X23: 3.9 | Y23: 210.1 | Z23: 518.93 | AA23: 4146.34 | AB23: =ROUNDDOWN((IF(AA24>0,IFERROR(IF(AVERAGE(DataInput!Q23:Q24)>AVERAGE(AA24,AA23),ROUNDDOWN(((((AA23-Z23)+(AA24-Z24))/2)*(A24-A23))/27+S23+T23,0),IF(((((DataInput!Q24-Z24)+(DataInput!Q23-Z23))/2)*(A24-A23))/27+S23+T23>0,ROUNDDOWN(((((DataInput!Q24-Z23)+(DataInput!Q23-Z23))/2)*(A24-A23))/27+S23+T23,0),0)),0),0)*$X$5),1) -> 0 | AC23: 159.49 | AD23: =ROUNDDOWN((IF(AC24>0,IFERROR(IF(((((DataInput!Q23-AC23)+(DataInput!Q24-AC24))/2)*(A24-A23))/27+S23+T23>0,ROUNDDOWN(((((DataInput!Q23-AC23)+(DataInput!Q24-AC24))/2)*(A24-A23))/27+S23+T23,0),0),0),0)*$X$5),1) -> 0 | AE23: =DataInput!U23 -> 72 | AF23: =DataInput!S23 -> 59 | AG23: 82.6 | AH23: -10.6
A24: =IF(DataInput!A24<>"",DataInput!A24,"") -> 11450 | B24: =SUM(DataInput!C24,DataInput!Y24)+(DataInput!U24-DataInput!E24) -> 341 | C24: =SUM(DataInput!D24,DataInput!Z24) -> 0 | D24: =DataInput!U24 -> 76 | E24: =SUM(DataInput!F24,DataInput!AB24) -> 0 | F24: =SUM(DataInput!G24,DataInput!AC24) -> 265 | G24: =SUM(DataInput!H24,DataInput!AD24) -> 0 | H24: =DataInput!I24 -> 0 | I24: =SUM(DataInput!J24,DataInput!AF24) -> 0 | J24: =SUM(DataInput!K24,DataInput!AG24) -> 0 | K24: =SUM(DataInput!L24,DataInput!AH24) -> 0 | L24: =SUM(DataInput!M24,DataInput!AI24) -> 0 | M24: =SUM(DataInput!N24,DataInput!AJ24) -> 0 | N24: =SUM(DataInput!O24,DataInput!AK24) -> 0 | O24: =DataInput!P24 -> 0 | Q24: 265 | R24: =DataInput!R24 -> 0 | S24: =DataInput!Y24 -> 0 | T24: =IF(DataInput!U24-DataInput!E24>0,DataInput!U24-DataInput!E24,"") -> 4 | U24: =IF(DataInput!W24-DataInput!I24>0,DataInput!W24-DataInput!I24,"") ->  | W24: 4 | X24: 5.2 | Y24: 259.8 | Z24: 518.93 | AA24: 4146.34 | AB24: =ROUNDDOWN((IF(AA25>0,IFERROR(IF(AVERAGE(DataInput!Q24:Q25)>AVERAGE(AA25,AA24),ROUNDDOWN(((((AA24-Z24)+(AA25-Z25))/2)*(A25-A24))/27+S24+T24,0),IF(((((DataInput!Q25-Z25)+(DataInput!Q24-Z24))/2)*(A25-A24))/27+S24+T24>0,ROUNDDOWN(((((DataInput!Q25-Z24)+(DataInput!Q24-Z24))/2)*(A25-A24))/27+S24+T24,0),0)),0),0)*$X$5),1) -> 0 | AC24: 159.49 | AD24: =ROUNDDOWN((IF(AC25>0,IFERROR(IF(((((DataInput!Q24-AC24)+(DataInput!Q25-AC25))/2)*(A25-A24))/27+S24+T24>0,ROUNDDOWN(((((DataInput!Q24-AC24)+(DataInput!Q25-AC25))/2)*(A25-A24))/27+S24+T24,0),0),0),0)*$X$5),1) -> 0 | AE24: =DataInput!U24 -> 76 | AF24: =DataInput!S24 -> 64 | AG24: 89.6 | AH24: -13.6
A25: =IF(DataInput!A25<>"",DataInput!A25,"") -> 11475 | B25: =SUM(DataInput!C25,DataInput!Y25)+(DataInput!U25-DataInput!E25) -> 421 | C25: =SUM(DataInput!D25,DataInput!Z25) -> 0 | D25: =DataInput!U25 -> 80 | E25: =SUM(DataInput!F25,DataInput!AB25) -> 0 | F25: =SUM(DataInput!G25,DataInput!AC25) -> 341 | G25: =SUM(DataInput!H25,DataInput!AD25) -> 0 | H25: =DataInput!I25 -> 0 | I25: =SUM(DataInput!J25,DataInput!AF25) -> 0 | J25: =SUM(DataInput!K25,DataInput!AG25) -> 0 | K25: =SUM(DataInput!L25,DataInput!AH25) -> 0 | L25: =SUM(DataInput!M25,DataInput!AI25) -> 0 | M25: =SUM(DataInput!N25,DataInput!AJ25) -> 0 | N25: =SUM(DataInput!O25,DataInput!AK25) -> 0 | O25: =DataInput!P25 -> 0 | Q25: 341 | R25: =DataInput!R25 -> 0 | S25: =DataInput!Y25 -> 0 | T25: =IF(DataInput!U25-DataInput!E25>0,DataInput!U25-DataInput!E25,"") -> 2 | U25: =IF(DataInput!W25-DataInput!I25>0,DataInput!W25-DataInput!I25,"") ->  | W25: 2 | X25: 2.6 | Y25: 338.4 | Z25: 518.93 | AA25: 4146.34 | AB25: =ROUNDDOWN((IF(AA26>0,IFERROR(IF(AVERAGE(DataInput!Q25:Q26)>AVERAGE(AA26,AA25),ROUNDDOWN(((((AA25-Z25)+(AA26-Z26))/2)*(A26-A25))/27+S25+T25,0),IF(((((DataInput!Q26-Z26)+(DataInput!Q25-Z25))/2)*(A26-A25))/27+S25+T25>0,ROUNDDOWN(((((DataInput!Q26-Z25)+(DataInput!Q25-Z25))/2)*(A26-A25))/27+S25+T25,0),0)),0),0)*$X$5),1) -> 0 | AC25: 159.49 | AD25: =ROUNDDOWN((IF(AC26>0,IFERROR(IF(((((DataInput!Q25-AC25)+(DataInput!Q26-AC26))/2)*(A26-A25))/27+S25+T25>0,ROUNDDOWN(((((DataInput!Q25-AC25)+(DataInput!Q26-AC26))/2)*(A26-A25))/27+S25+T25,0),0),0),0)*$X$5),1) -> 0 | AE25: =DataInput!U25 -> 80 | AF25: =DataInput!S25 -> 70 | AG25: 98 | AH25: -18
A26: =IF(DataInput!A26<>"",DataInput!A26,"") -> 11500 | B26: =SUM(DataInput!C26,DataInput!Y26)+(DataInput!U26-DataInput!E26) -> 437 | C26: =SUM(DataInput!D26,DataInput!Z26) -> 168 | D26: =DataInput!U26 -> 82 | E26: =SUM(DataInput!F26,DataInput!AB26) -> 0 | F26: =SUM(DataInput!G26,DataInput!AC26) -> 187 | G26: =SUM(DataInput!H26,DataInput!AD26) -> 0 | H26: =DataInput!I26 -> 0 | I26: =SUM(DataInput!J26,DataInput!AF26) -> 0 | J26: =SUM(DataInput!K26,DataInput!AG26) -> 0 | K26: =SUM(DataInput!L26,DataInput!AH26) -> 0 | L26: =SUM(DataInput!M26,DataInput!AI26) -> 0 | M26: =SUM(DataInput!N26,DataInput!AJ26) -> 0 | N26: =SUM(DataInput!O26,DataInput!AK26) -> 0 | O26: =DataInput!P26 -> 0 | Q26: 355 | R26: =DataInput!R26 -> 0 | S26: =DataInput!Y26 -> 0 | T26: =IF(DataInput!U26-DataInput!E26>0,DataInput!U26-DataInput!E26,"") -> 2 | U26: =IF(DataInput!W26-DataInput!I26>0,DataInput!W26-DataInput!I26,"") ->  | W26: 2 | X26: 2.6 | Y26: 352.4 | Z26: 518.93 | AA26: 4146.34 | AB26: =ROUNDDOWN((IF(AA27>0,IFERROR(IF(AVERAGE(DataInput!Q26:Q27)>AVERAGE(AA27,AA26),ROUNDDOWN(((((AA26-Z26)+(AA27-Z27))/2)*(A27-A26))/27+S26+T26,0),IF(((((DataInput!Q27-Z27)+(DataInput!Q26-Z26))/2)*(A27-A26))/27+S26+T26>0,ROUNDDOWN(((((DataInput!Q27-Z26)+(DataInput!Q26-Z26))/2)*(A27-A26))/27+S26+T26,0),0)),0),0)*$X$5),1) -> 0 | AC26: 159.49 | AD26: =ROUNDDOWN((IF(AC27>0,IFERROR(IF(((((DataInput!Q26-AC26)+(DataInput!Q27-AC27))/2)*(A27-A26))/27+S26+T26>0,ROUNDDOWN(((((DataInput!Q26-AC26)+(DataInput!Q27-AC27))/2)*(A27-A26))/27+S26+T26,0),0),0),0)*$X$5),1) -> 0 | AE26: =DataInput!U26 -> 82 | AF26: =DataInput!S26 -> 72 | AG26: 100.8 | AH26: -18.8
A27: =IF(DataInput!A27<>"",DataInput!A27,"") -> 11525 | B27: =SUM(DataInput!C27,DataInput!Y27)+(DataInput!U27-DataInput!E27) -> 402 | C27: =SUM(DataInput!D27,DataInput!Z27) -> 320 | D27: =DataInput!U27 -> 82 | E27: =SUM(DataInput!F27,DataInput!AB27) -> 0 | F27: =SUM(DataInput!G27,DataInput!AC27) -> 0 | G27: =SUM(DataInput!H27,DataInput!AD27) -> 0 | H27: =DataInput!I27 -> 0 | I27: =SUM(DataInput!J27,DataInput!AF27) -> 0 | J27: =SUM(DataInput!K27,DataInput!AG27) -> 0 | K27: =SUM(DataInput!L27,DataInput!AH27) -> 0 | L27: =SUM(DataInput!M27,DataInput!AI27) -> 0 | M27: =SUM(DataInput!N27,DataInput!AJ27) -> 0 | N27: =SUM(DataInput!O27,DataInput!AK27) -> 0 | O27: =DataInput!P27 -> 0 | Q27: 320 | R27: =DataInput!R27 -> 0 | S27: =DataInput!Y27 -> 0 | T27: =IF(DataInput!U27-DataInput!E27>0,DataInput!U27-DataInput!E27,"") -> 3 | U27: =IF(DataInput!W27-DataInput!I27>0,DataInput!W27-DataInput!I27,"") ->  | W27: 3 | X27: 3.9 | Y27: 316.1 | Z27: 518.93 | AA27: 4146.34 | AB27: =ROUNDDOWN((IF(AA28>0,IFERROR(IF(AVERAGE(DataInput!Q27:Q28)>AVERAGE(AA28,AA27),ROUNDDOWN(((((AA27-Z27)+(AA28-Z28))/2)*(A28-A27))/27+S27+T27,0),IF(((((DataInput!Q28-Z28)+(DataInput!Q27-Z27))/2)*(A28-A27))/27+S27+T27>0,ROUNDDOWN(((((DataInput!Q28-Z27)+(DataInput!Q27-Z27))/2)*(A28-A27))/27+S27+T27,0),0)),0),0)*$X$5),1) -> 0 | AC27: 159.49 | AD27: =ROUNDDOWN((IF(AC28>0,IFERROR(IF(((((DataInput!Q27-AC27)+(DataInput!Q28-AC28))/2)*(A28-A27))/27+S27+T27>0,ROUNDDOWN(((((DataInput!Q27-AC27)+(DataInput!Q28-AC28))/2)*(A28-A27))/27+S27+T27,0),0),0),0)*$X$5),1) -> 0 | AE27: =DataInput!U27 -> 82 | AF27: =DataInput!S27 -> 73 | AG27: 102.2 | AH27: -20.2
A28: =IF(DataInput!A28<>"",DataInput!A28,"") -> 11550 | B28: =SUM(DataInput!C28,DataInput!Y28)+(DataInput!U28-DataInput!E28) -> 369 | C28: =SUM(DataInput!D28,DataInput!Z28) -> 287 | D28: =DataInput!U28 -> 82 | E28: =SUM(DataInput!F28,DataInput!AB28) -> 0 | F28: =SUM(DataInput!G28,DataInput!AC28) -> 0 | G28: =SUM(DataInput!H28,DataInput!AD28) -> 0 | H28: =DataInput!I28 -> 0 | I28: =SUM(DataInput!J28,DataInput!AF28) -> 0 | J28: =SUM(DataInput!K28,DataInput!AG28) -> 0 | K28: =SUM(DataInput!L28,DataInput!AH28) -> 0 | L28: =SUM(DataInput!M28,DataInput!AI28) -> 0 | M28: =SUM(DataInput!N28,DataInput!AJ28) -> 0 | N28: =SUM(DataInput!O28,DataInput!AK28) -> 0 | O28: =DataInput!P28 -> 0 | Q28: 287 | R28: =DataInput!R28 -> 0 | S28: =DataInput!Y28 -> 0 | T28: =IF(DataInput!U28-DataInput!E28>0,DataInput!U28-DataInput!E28,"") -> 5 | U28: =IF(DataInput!W28-DataInput!I28>0,DataInput!W28-DataInput!I28,"") ->  | W28: 5 | X28: 6.5 | Y28: 280.5 | Z28: 518.93 | AA28: 4146.34 | AB28: =ROUNDDOWN((IF(AA29>0,IFERROR(IF(AVERAGE(DataInput!Q28:Q29)>AVERAGE(AA29,AA28),ROUNDDOWN(((((AA28-Z28)+(AA29-Z29))/2)*(A29-A28))/27+S28+T28,0),IF(((((DataInput!Q29-Z29)+(DataInput!Q28-Z28))/2)*(A29-A28))/27+S28+T28>0,ROUNDDOWN(((((DataInput!Q29-Z28)+(DataInput!Q28-Z28))/2)*(A29-A28))/27+S28+T28,0),0)),0),0)*$X$5),1) -> 0 | AC28: 159.49 | AD28: =ROUNDDOWN((IF(AC29>0,IFERROR(IF(((((DataInput!Q28-AC28)+(DataInput!Q29-AC29))/2)*(A29-A28))/27+S28+T28>0,ROUNDDOWN(((((DataInput!Q28-AC28)+(DataInput!Q29-AC29))/2)*(A29-A28))/27+S28+T28,0),0),0),0)*$X$5),1) -> 0 | AE28: =DataInput!U28 -> 82 | AF28: =DataInput!S28 -> 72 | AG28: 100.8 | AH28: -18.8
A29: =IF(DataInput!A29<>"",DataInput!A29,"") -> 11575 | B29: =SUM(DataInput!C29,DataInput!Y29)+(DataInput!U29-DataInput!E29) -> 333 | C29: =SUM(DataInput!D29,DataInput!Z29) -> 252 | D29: =DataInput!U29 -> 81 | E29: =SUM(DataInput!F29,DataInput!AB29) -> 0 | F29: =SUM(DataInput!G29,DataInput!AC29) -> 0 | G29: =SUM(DataInput!H29,DataInput!AD29) -> 0 | H29: =DataInput!I29 -> 0 | I29: =SUM(DataInput!J29,DataInput!AF29) -> 0 | J29: =SUM(DataInput!K29,DataInput!AG29) -> 0 | K29: =SUM(DataInput!L29,DataInput!AH29) -> 0 | L29: =SUM(DataInput!M29,DataInput!AI29) -> 0 | M29: =SUM(DataInput!N29,DataInput!AJ29) -> 0 | N29: =SUM(DataInput!O29,DataInput!AK29) -> 0 | O29: =DataInput!P29 -> 0 | Q29: 252 | R29: =DataInput!R29 -> 0 | S29: =DataInput!Y29 -> 0 | T29: =IF(DataInput!U29-DataInput!E29>0,DataInput!U29-DataInput!E29,"") -> 5 | U29: =IF(DataInput!W29-DataInput!I29>0,DataInput!W29-DataInput!I29,"") ->  | W29: 5 | X29: 6.5 | Y29: 245.5 | Z29: 518.93 | AA29: 4146.34 | AB29: =ROUNDDOWN((IF(AA30>0,IFERROR(IF(AVERAGE(DataInput!Q29:Q30)>AVERAGE(AA30,AA29),ROUNDDOWN(((((AA29-Z29)+(AA30-Z30))/2)*(A30-A29))/27+S29+T29,0),IF(((((DataInput!Q30-Z30)+(DataInput!Q29-Z29))/2)*(A30-A29))/27+S29+T29>0,ROUNDDOWN(((((DataInput!Q30-Z29)+(DataInput!Q29-Z29))/2)*(A30-A29))/27+S29+T29,0),0)),0),0)*$X$5),1) -> 0 | AC29: 159.49 | AD29: =ROUNDDOWN((IF(AC30>0,IFERROR(IF(((((DataInput!Q29-AC29)+(DataInput!Q30-AC30))/2)*(A30-A29))/27+S29+T29>0,ROUNDDOWN(((((DataInput!Q29-AC29)+(DataInput!Q30-AC30))/2)*(A30-A29))/27+S29+T29,0),0),0),0)*$X$5),1) -> 0 | AE29: =DataInput!U29 -> 81 | AF29: =DataInput!S29 -> 72 | AG29: 100.8 | AH29: -19.8
A30: =IF(DataInput!A30<>"",DataInput!A30,"") -> 11600 | B30: =SUM(DataInput!C30,DataInput!Y30)+(DataInput!U30-DataInput!E30) -> 289 | C30: =SUM(DataInput!D30,DataInput!Z30) -> 208 | D30: =DataInput!U30 -> 81 | E30: =SUM(DataInput!F30,DataInput!AB30) -> 0 | F30: =SUM(DataInput!G30,DataInput!AC30) -> 0 | G30: =SUM(DataInput!H30,DataInput!AD30) -> 0 | H30: =DataInput!I30 -> 0 | I30: =SUM(DataInput!J30,DataInput!AF30) -> 0 | J30: =SUM(DataInput!K30,DataInput!AG30) -> 0 | K30: =SUM(DataInput!L30,DataInput!AH30) -> 0 | L30: =SUM(DataInput!M30,DataInput!AI30) -> 0 | M30: =SUM(DataInput!N30,DataInput!AJ30) -> 0 | N30: =SUM(DataInput!O30,DataInput!AK30) -> 0 | O30: =DataInput!P30 -> 0 | Q30: 208 | R30: =DataInput!R30 -> 2 | S30: =DataInput!Y30 -> 0 | T30: =IF(DataInput!U30-DataInput!E30>0,DataInput!U30-DataInput!E30,"") -> 8 | U30: =IF(DataInput!W30-DataInput!I30>0,DataInput!W30-DataInput!I30,"") ->  | W30: 10 | X30: 13 | Y30: 195 | Z30: 518.93 | AA30: 4146.34 | AB30: =ROUNDDOWN((IF(AA31>0,IFERROR(IF(AVERAGE(DataInput!Q30:Q31)>AVERAGE(AA31,AA30),ROUNDDOWN(((((AA30-Z30)+(AA31-Z31))/2)*(A31-A30))/27+S30+T30,0),IF(((((DataInput!Q31-Z31)+(DataInput!Q30-Z30))/2)*(A31-A30))/27+S30+T30>0,ROUNDDOWN(((((DataInput!Q31-Z30)+(DataInput!Q30-Z30))/2)*(A31-A30))/27+S30+T30,0),0)),0),0)*$X$5),1) -> 0 | AC30: 159.49 | AD30: =ROUNDDOWN((IF(AC31>0,IFERROR(IF(((((DataInput!Q30-AC30)+(DataInput!Q31-AC31))/2)*(A31-A30))/27+S30+T30>0,ROUNDDOWN(((((DataInput!Q30-AC30)+(DataInput!Q31-AC31))/2)*(A31-A30))/27+S30+T30,0),0),0),0)*$X$5),1) -> 0 | AE30: =DataInput!U30 -> 81 | AF30: =DataInput!S30 -> 71 | AG30: 99.4 | AH30: -18.4
A31: =IF(DataInput!A31<>"",DataInput!A31,"") -> 11625 | B31: =SUM(DataInput!C31,DataInput!Y31)+(DataInput!U31-DataInput!E31) -> 247 | C31: =SUM(DataInput!D31,DataInput!Z31) -> 167 | D31: =DataInput!U31 -> 80 | E31: =SUM(DataInput!F31,DataInput!AB31) -> 0 | F31: =SUM(DataInput!G31,DataInput!AC31) -> 0 | G31: =SUM(DataInput!H31,DataInput!AD31) -> 0 | H31: =DataInput!I31 -> 0 | I31: =SUM(DataInput!J31,DataInput!AF31) -> 0 | J31: =SUM(DataInput!K31,DataInput!AG31) -> 0 | K31: =SUM(DataInput!L31,DataInput!AH31) -> 0 | L31: =SUM(DataInput!M31,DataInput!AI31) -> 0 | M31: =SUM(DataInput!N31,DataInput!AJ31) -> 0 | N31: =SUM(DataInput!O31,DataInput!AK31) -> 0 | O31: =DataInput!P31 -> 0 | Q31: 167 | R31: =DataInput!R31 -> 6 | S31: =DataInput!Y31 -> 0 | T31: =IF(DataInput!U31-DataInput!E31>0,DataInput!U31-DataInput!E31,"") -> 10 | U31: =IF(DataInput!W31-DataInput!I31>0,DataInput!W31-DataInput!I31,"") ->  | W31: 16 | X31: 20.8 | Y31: 146.2 | Z31: 518.93 | AA31: 4146.34 | AB31: =ROUNDDOWN((IF(AA32>0,IFERROR(IF(AVERAGE(DataInput!Q31:Q32)>AVERAGE(AA32,AA31),ROUNDDOWN(((((AA31-Z31)+(AA32-Z32))/2)*(A32-A31))/27+S31+T31,0),IF(((((DataInput!Q32-Z32)+(DataInput!Q31-Z31))/2)*(A32-A31))/27+S31+T31>0,ROUNDDOWN(((((DataInput!Q32-Z31)+(DataInput!Q31-Z31))/2)*(A32-A31))/27+S31+T31,0),0)),0),0)*$X$5),1) -> 0 | AC31: 159.49 | AD31: =ROUNDDOWN((IF(AC32>0,IFERROR(IF(((((DataInput!Q31-AC31)+(DataInput!Q32-AC32))/2)*(A32-A31))/27+S31+T31>0,ROUNDDOWN(((((DataInput!Q31-AC31)+(DataInput!Q32-AC32))/2)*(A32-A31))/27+S31+T31,0),0),0),0)*$X$5),1) -> 0 | AE31: =DataInput!U31 -> 80 | AF31: =DataInput!S31 -> 69 | AG31: 96.6 | AH31: -16.6
A32: =IF(DataInput!A32<>"",DataInput!A32,"") -> 11650 | B32: =SUM(DataInput!C32,DataInput!Y32)+(DataInput!U32-DataInput!E32) -> 211 | C32: =SUM(DataInput!D32,DataInput!Z32) -> 140 | D32: =DataInput!U32 -> 72 | E32: =SUM(DataInput!F32,DataInput!AB32) -> 0 | F32: =SUM(DataInput!G32,DataInput!AC32) -> 0 | G32: =SUM(DataInput!H32,DataInput!AD32) -> 0 | H32: =DataInput!I32 -> 0 | I32: =SUM(DataInput!J32,DataInput!AF32) -> 0 | J32: =SUM(DataInput!K32,DataInput!AG32) -> 0 | K32: =SUM(DataInput!L32,DataInput!AH32) -> 0 | L32: =SUM(DataInput!M32,DataInput!AI32) -> 0 | M32: =SUM(DataInput!N32,DataInput!AJ32) -> 0 | N32: =SUM(DataInput!O32,DataInput!AK32) -> 0 | O32: =DataInput!P32 -> 0 | Q32: 140 | R32: =DataInput!R32 -> 14 | S32: =DataInput!Y32 -> 0 | T32: =IF(DataInput!U32-DataInput!E32>0,DataInput!U32-DataInput!E32,"") -> 11 | U32: =IF(DataInput!W32-DataInput!I32>0,DataInput!W32-DataInput!I32,"") ->  | W32: 25 | X32: 32.5 | Y32: 107.5 | Z32: 518.93 | AA32: 4146.34 | AB32: =ROUNDDOWN((IF(AA33>0,IFERROR(IF(AVERAGE(DataInput!Q32:Q33)>AVERAGE(AA33,AA32),ROUNDDOWN(((((AA32-Z32)+(AA33-Z33))/2)*(A33-A32))/27+S32+T32,0),IF(((((DataInput!Q33-Z33)+(DataInput!Q32-Z32))/2)*(A33-A32))/27+S32+T32>0,ROUNDDOWN(((((DataInput!Q33-Z32)+(DataInput!Q32-Z32))/2)*(A33-A32))/27+S32+T32,0),0)),0),0)*$X$5),1) -> 0 | AC32: 159.49 | AD32: =ROUNDDOWN((IF(AC33>0,IFERROR(IF(((((DataInput!Q32-AC32)+(DataInput!Q33-AC33))/2)*(A33-A32))/27+S32+T32>0,ROUNDDOWN(((((DataInput!Q32-AC32)+(DataInput!Q33-AC33))/2)*(A33-A32))/27+S32+T32,0),0),0),0)*$X$5),1) -> 0 | AE32: =DataInput!U32 -> 72 | AF32: =DataInput!S32 -> 59 | AG32: 82.6 | AH32: -10.6
A33: =IF(DataInput!A33<>"",DataInput!A33,"") -> 11675 | B33: =SUM(DataInput!C33,DataInput!Y33)+(DataInput!U33-DataInput!E33) -> 221 | C33: =SUM(DataInput!D33,DataInput!Z33) -> 157 | D33: =DataInput!U33 -> 64 | E33: =SUM(DataInput!F33,DataInput!AB33) -> 0 | F33: =SUM(DataInput!G33,DataInput!AC33) -> 0 | G33: =SUM(DataInput!H33,DataInput!AD33) -> 0 | H33: =DataInput!I33 -> 0 | I33: =SUM(DataInput!J33,DataInput!AF33) -> 0 | J33: =SUM(DataInput!K33,DataInput!AG33) -> 0 | K33: =SUM(DataInput!L33,DataInput!AH33) -> 0 | L33: =SUM(DataInput!M33,DataInput!AI33) -> 0 | M33: =SUM(DataInput!N33,DataInput!AJ33) -> 0 | N33: =SUM(DataInput!O33,DataInput!AK33) -> 0 | O33: =DataInput!P33 -> 0 | Q33: 157 | R33: =DataInput!R33 -> 43 | S33: =DataInput!Y33 -> 0 | T33: =IF(DataInput!U33-DataInput!E33>0,DataInput!U33-DataInput!E33,"") -> 20 | U33: =IF(DataInput!W33-DataInput!I33>0,DataInput!W33-DataInput!I33,"") ->  | W33: 63 | X33: 81.9 | Y33: 75.1 | Z33: 518.93 | AA33: 4146.34 | AB33: =ROUNDDOWN((IF(AA34>0,IFERROR(IF(AVERAGE(DataInput!Q33:Q34)>AVERAGE(AA34,AA33),ROUNDDOWN(((((AA33-Z33)+(AA34-Z34))/2)*(A34-A33))/27+S33+T33,0),IF(((((DataInput!Q34-Z34)+(DataInput!Q33-Z33))/2)*(A34-A33))/27+S33+T33>0,ROUNDDOWN(((((DataInput!Q34-Z33)+(DataInput!Q33-Z33))/2)*(A34-A33))/27+S33+T33,0),0)),0),0)*$X$5),1) -> 0 | AC33: 159.49 | AD33: =ROUNDDOWN((IF(AC34>0,IFERROR(IF(((((DataInput!Q33-AC33)+(DataInput!Q34-AC34))/2)*(A34-A33))/27+S33+T33>0,ROUNDDOWN(((((DataInput!Q33-AC33)+(DataInput!Q34-AC34))/2)*(A34-A33))/27+S33+T33,0),0),0),0)*$X$5),1) -> 0 | AE33: =DataInput!U33 -> 64 | AF33: =DataInput!S33 -> 48 | AG33: 67.2 | AH33: -3.2
A34: =IF(DataInput!A34<>"",DataInput!A34,"") -> 11700 | B34: =SUM(DataInput!C34,DataInput!Y34)+(DataInput!U34-DataInput!E34) -> 381 | C34: =SUM(DataInput!D34,DataInput!Z34) -> 299 | D34: =DataInput!U34 -> 82 | E34: =SUM(DataInput!F34,DataInput!AB34) -> 0 | F34: =SUM(DataInput!G34,DataInput!AC34) -> 0 | G34: =SUM(DataInput!H34,DataInput!AD34) -> 0 | H34: =DataInput!I34 -> 0 | I34: =SUM(DataInput!J34,DataInput!AF34) -> 0 | J34: =SUM(DataInput!K34,DataInput!AG34) -> 0 | K34: =SUM(DataInput!L34,DataInput!AH34) -> 0 | L34: =SUM(DataInput!M34,DataInput!AI34) -> 0 | M34: =SUM(DataInput!N34,DataInput!AJ34) -> 0 | N34: =SUM(DataInput!O34,DataInput!AK34) -> 0 | O34: =DataInput!P34 -> 0 | Q34: 299 | R34: =DataInput!R34 -> 34 | S34: =DataInput!Y34 -> 0 | T34: =IF(DataInput!U34-DataInput!E34>0,DataInput!U34-DataInput!E34,"") -> 15 | U34: =IF(DataInput!W34-DataInput!I34>0,DataInput!W34-DataInput!I34,"") ->  | W34: 49 | X34: 63.7 | Y34: 235.3 | Z34: 518.93 | AA34: 4146.34 | AB34: =ROUNDDOWN((IF(AA35>0,IFERROR(IF(AVERAGE(DataInput!Q34:Q35)>AVERAGE(AA35,AA34),ROUNDDOWN(((((AA34-Z34)+(AA35-Z35))/2)*(A35-A34))/27+S34+T34,0),IF(((((DataInput!Q35-Z35)+(DataInput!Q34-Z34))/2)*(A35-A34))/27+S34+T34>0,ROUNDDOWN(((((DataInput!Q35-Z34)+(DataInput!Q34-Z34))/2)*(A35-A34))/27+S34+T34,0),0)),0),0)*$X$5),1) -> 0 | AC34: 159.49 | AD34: =ROUNDDOWN((IF(AC35>0,IFERROR(IF(((((DataInput!Q34-AC34)+(DataInput!Q35-AC35))/2)*(A35-A34))/27+S34+T34>0,ROUNDDOWN(((((DataInput!Q34-AC34)+(DataInput!Q35-AC35))/2)*(A35-A34))/27+S34+T34,0),0),0),0)*$X$5),1) -> 0 | AE34: =DataInput!U34 -> 82 | AF34: =DataInput!S34 -> 73 | AG34: 102.2 | AH34: -20.2
A35: =IF(DataInput!A35<>"",DataInput!A35,"") -> 11725 | B35: =SUM(DataInput!C35,DataInput!Y35)+(DataInput!U35-DataInput!E35) -> 492 | C35: =SUM(DataInput!D35,DataInput!Z35) -> 389 | D35: =DataInput!U35 -> 102 | E35: =SUM(DataInput!F35,DataInput!AB35) -> 0 | F35: =SUM(DataInput!G35,DataInput!AC35) -> 0 | G35: =SUM(DataInput!H35,DataInput!AD35) -> 0 | H35: =DataInput!I35 -> 0 | I35: =SUM(DataInput!J35,DataInput!AF35) -> 0 | J35: =SUM(DataInput!K35,DataInput!AG35) -> 0 | K35: =SUM(DataInput!L35,DataInput!AH35) -> 0 | L35: =SUM(DataInput!M35,DataInput!AI35) -> 0 | M35: =SUM(DataInput!N35,DataInput!AJ35) -> 0 | N35: =SUM(DataInput!O35,DataInput!AK35) -> 0 | O35: =DataInput!P35 -> 0 | Q35: 389 | R35: =DataInput!R35 -> 2 | S35: =DataInput!Y35 -> 0 | T35: =IF(DataInput!U35-DataInput!E35>0,DataInput!U35-DataInput!E35,"") -> 5 | U35: =IF(DataInput!W35-DataInput!I35>0,DataInput!W35-DataInput!I35,"") ->  | W35: 7 | X35: 9.1 | Y35: 379.9 | Z35: 518.93 | AA35: 4146.34 | AB35: =ROUNDDOWN((IF(AA36>0,IFERROR(IF(AVERAGE(DataInput!Q35:Q36)>AVERAGE(AA36,AA35),ROUNDDOWN(((((AA35-Z35)+(AA36-Z36))/2)*(A36-A35))/27+S35+T35,0),IF(((((DataInput!Q36-Z36)+(DataInput!Q35-Z35))/2)*(A36-A35))/27+S35+T35>0,ROUNDDOWN(((((DataInput!Q36-Z35)+(DataInput!Q35-Z35))/2)*(A36-A35))/27+S35+T35,0),0)),0),0)*$X$5),1) -> 0 | AC35: 159.49 | AD35: =ROUNDDOWN((IF(AC36>0,IFERROR(IF(((((DataInput!Q35-AC35)+(DataInput!Q36-AC36))/2)*(A36-A35))/27+S35+T35>0,ROUNDDOWN(((((DataInput!Q35-AC35)+(DataInput!Q36-AC36))/2)*(A36-A35))/27+S35+T35,0),0),0),0)*$X$5),1) -> 0 | AE35: =DataInput!U35 -> 102 | AF35: =DataInput!S35 -> 99 | AG35: 138.6 | AH35: -36.6
A36: =IF(DataInput!A36<>"",DataInput!A36,"") -> 11750 | B36: =SUM(DataInput!C36,DataInput!Y36)+(DataInput!U36-DataInput!E36) -> 416 | C36: =SUM(DataInput!D36,DataInput!Z36) -> 316 | D36: =DataInput!U36 -> 100 | E36: =SUM(DataInput!F36,DataInput!AB36) -> 0 | F36: =SUM(DataInput!G36,DataInput!AC36) -> 0 | G36: =SUM(DataInput!H36,DataInput!AD36) -> 0 | H36: =DataInput!I36 -> 0 | I36: =SUM(DataInput!J36,DataInput!AF36) -> 0 | J36: =SUM(DataInput!K36,DataInput!AG36) -> 0 | K36: =SUM(DataInput!L36,DataInput!AH36) -> 0 | L36: =SUM(DataInput!M36,DataInput!AI36) -> 0 | M36: =SUM(DataInput!N36,DataInput!AJ36) -> 0 | N36: =SUM(DataInput!O36,DataInput!AK36) -> 0 | O36: =DataInput!P36 -> 0 | Q36: 316 | R36: =DataInput!R36 -> 7 | S36: =DataInput!Y36 -> 0 | T36: =IF(DataInput!U36-DataInput!E36>0,DataInput!U36-DataInput!E36,"") -> 7 | U36: =IF(DataInput!W36-DataInput!I36>0,DataInput!W36-DataInput!I36,"") ->  | W36: 14 | X36: 18.2 | Y36: 297.8 | Z36: 518.93 | AA36: 4146.34 | AB36: =ROUNDDOWN((IF(AA37>0,IFERROR(IF(AVERAGE(DataInput!Q36:Q37)>AVERAGE(AA37,AA36),ROUNDDOWN(((((AA36-Z36)+(AA37-Z37))/2)*(A37-A36))/27+S36+T36,0),IF(((((DataInput!Q37-Z37)+(DataInput!Q36-Z36))/2)*(A37-A36))/27+S36+T36>0,ROUNDDOWN(((((DataInput!Q37-Z36)+(DataInput!Q36-Z36))/2)*(A37-A36))/27+S36+T36,0),0)),0),0)*$X$5),1) -> 0 | AC36: 159.49 | AD36: =ROUNDDOWN((IF(AC37>0,IFERROR(IF(((((DataInput!Q36-AC36)+(DataInput!Q37-AC37))/2)*(A37-A36))/27+S36+T36>0,ROUNDDOWN(((((DataInput!Q36-AC36)+(DataInput!Q37-AC37))/2)*(A37-A36))/27+S36+T36,0),0),0),0)*$X$5),1) -> 0 | AE36: =DataInput!U36 -> 100 | AF36: =DataInput!S36 -> 95 | AG36: 133 | AH36: -33
A37: =IF(DataInput!A37<>"",DataInput!A37,"") -> 11775 | B37: =SUM(DataInput!C37,DataInput!Y37)+(DataInput!U37-DataInput!E37) -> 326 | C37: =SUM(DataInput!D37,DataInput!Z37) -> 226 | D37: =DataInput!U37 -> 100 | E37: =SUM(DataInput!F37,DataInput!AB37) -> 0 | F37: =SUM(DataInput!G37,DataInput!AC37) -> 0 | G37: =SUM(DataInput!H37,DataInput!AD37) -> 0 | H37: =DataInput!I37 -> 0 | I37: =SUM(DataInput!J37,DataInput!AF37) -> 0 | J37: =SUM(DataInput!K37,DataInput!AG37) -> 0 | K37: =SUM(DataInput!L37,DataInput!AH37) -> 0 | L37: =SUM(DataInput!M37,DataInput!AI37) -> 0 | M37: =SUM(DataInput!N37,DataInput!AJ37) -> 0 | N37: =SUM(DataInput!O37,DataInput!AK37) -> 0 | O37: =DataInput!P37 -> 0 | Q37: 226 | R37: =DataInput!R37 -> 80 | S37: =DataInput!Y37 -> 0 | T37: =IF(DataInput!U37-DataInput!E37>0,DataInput!U37-DataInput!E37,"") -> 30 | U37: =IF(DataInput!W37-DataInput!I37>0,DataInput!W37-DataInput!I37,"") ->  | W37: 110 | X37: 143 | Y37: 83 | Z37: 518.93 | AA37: 4146.34 | AB37: =ROUNDDOWN((IF(AA38>0,IFERROR(IF(AVERAGE(DataInput!Q37:Q38)>AVERAGE(AA38,AA37),ROUNDDOWN(((((AA37-Z37)+(AA38-Z38))/2)*(A38-A37))/27+S37+T37,0),IF(((((DataInput!Q38-Z38)+(DataInput!Q37-Z37))/2)*(A38-A37))/27+S37+T37>0,ROUNDDOWN(((((DataInput!Q38-Z37)+(DataInput!Q37-Z37))/2)*(A38-A37))/27+S37+T37,0),0)),0),0)*$X$5),1) -> 0 | AC37: 159.49 | AD37: =ROUNDDOWN((IF(AC38>0,IFERROR(IF(((((DataInput!Q37-AC37)+(DataInput!Q38-AC38))/2)*(A38-A37))/27+S37+T37>0,ROUNDDOWN(((((DataInput!Q37-AC37)+(DataInput!Q38-AC38))/2)*(A38-A37))/27+S37+T37,0),0),0),0)*$X$5),1) -> 0 | AE37: =DataInput!U37 -> 100 | AF37: =DataInput!S37 -> 95 | AG37: 133 | AH37: -33
A38: =IF(DataInput!A38<>"",DataInput!A38,"") -> 11800 | B38: =SUM(DataInput!C38,DataInput!Y38)+(DataInput!U38-DataInput!E38) -> 277 | C38: =SUM(DataInput!D38,DataInput!Z38) -> 177 | D38: =DataInput!U38 -> 100 | E38: =SUM(DataInput!F38,DataInput!AB38) -> 0 | F38: =SUM(DataInput!G38,DataInput!AC38) -> 0 | G38: =SUM(DataInput!H38,DataInput!AD38) -> 0 | H38: =DataInput!I38 -> 0 | I38: =SUM(DataInput!J38,DataInput!AF38) -> 0 | J38: =SUM(DataInput!K38,DataInput!AG38) -> 0 | K38: =SUM(DataInput!L38,DataInput!AH38) -> 0 | L38: =SUM(DataInput!M38,DataInput!AI38) -> 0 | M38: =SUM(DataInput!N38,DataInput!AJ38) -> 0 | N38: =SUM(DataInput!O38,DataInput!AK38) -> 0 | O38: =DataInput!P38 -> 0 | Q38: 177 | R38: =DataInput!R38 -> 139 | S38: =DataInput!Y38 -> 0 | T38: =IF(DataInput!U38-DataInput!E38>0,DataInput!U38-DataInput!E38,"") -> 52 | U38: =IF(DataInput!W38-DataInput!I38>0,DataInput!W38-DataInput!I38,"") ->  | W38: 191 | X38: 248.3 | Y38: -71.3 | Z38: 518.93 | AA38: 4146.34 | AB38: =ROUNDDOWN((IF(AA39>0,IFERROR(IF(AVERAGE(DataInput!Q38:Q39)>AVERAGE(AA39,AA38),ROUNDDOWN(((((AA38-Z38)+(AA39-Z39))/2)*(A39-A38))/27+S38+T38,0),IF(((((DataInput!Q39-Z39)+(DataInput!Q38-Z38))/2)*(A39-A38))/27+S38+T38>0,ROUNDDOWN(((((DataInput!Q39-Z38)+(DataInput!Q38-Z38))/2)*(A39-A38))/27+S38+T38,0),0)),0),0)*$X$5),1) -> 0 | AC38: 159.49 | AD38: =ROUNDDOWN((IF(AC39>0,IFERROR(IF(((((DataInput!Q38-AC38)+(DataInput!Q39-AC39))/2)*(A39-A38))/27+S38+T38>0,ROUNDDOWN(((((DataInput!Q38-AC38)+(DataInput!Q39-AC39))/2)*(A39-A38))/27+S38+T38,0),0),0),0)*$X$5),1) -> 55.9 | AE38: =DataInput!U38 -> 100 | AF38: =DataInput!S38 -> 79 | AG38: 110.6 | AH38: -10.6
A39: =IF(DataInput!A39<>"",DataInput!A39,"") -> 11825 | B39: =SUM(DataInput!C39,DataInput!Y39)+(DataInput!U39-DataInput!E39) -> 276 | C39: =SUM(DataInput!D39,DataInput!Z39) -> 171 | D39: =DataInput!U39 -> 105 | E39: =SUM(DataInput!F39,DataInput!AB39) -> 0 | F39: =SUM(DataInput!G39,DataInput!AC39) -> 0 | G39: =SUM(DataInput!H39,DataInput!AD39) -> 0 | H39: =DataInput!I39 -> 0 | I39: =SUM(DataInput!J39,DataInput!AF39) -> 0 | J39: =SUM(DataInput!K39,DataInput!AG39) -> 0 | K39: =SUM(DataInput!L39,DataInput!AH39) -> 0 | L39: =SUM(DataInput!M39,DataInput!AI39) -> 0 | M39: =SUM(DataInput!N39,DataInput!AJ39) -> 0 | N39: =SUM(DataInput!O39,DataInput!AK39) -> 0 | O39: =DataInput!P39 -> 0 | Q39: 171 | R39: =DataInput!R39 -> 137 | S39: =DataInput!Y39 -> 0 | T39: =IF(DataInput!U39-DataInput!E39>0,DataInput!U39-DataInput!E39,"") -> 55 | U39: =IF(DataInput!W39-DataInput!I39>0,DataInput!W39-DataInput!I39,"") ->  | W39: 192 | X39: 249.6 | Y39: -78.6 | Z39: 518.93 | AA39: 4146.34 | AB39: =ROUNDDOWN((IF(AA40>0,IFERROR(IF(AVERAGE(DataInput!Q39:Q40)>AVERAGE(AA40,AA39),ROUNDDOWN(((((AA39-Z39)+(AA40-Z40))/2)*(A40-A39))/27+S39+T39,0),IF(((((DataInput!Q40-Z40)+(DataInput!Q39-Z39))/2)*(A40-A39))/27+S39+T39>0,ROUNDDOWN(((((DataInput!Q40-Z39)+(DataInput!Q39-Z39))/2)*(A40-A39))/27+S39+T39,0),0)),0),0)*$X$5),1) -> 0 | AC39: 159.49 | AD39: =ROUNDDOWN((IF(AC40>0,IFERROR(IF(((((DataInput!Q39-AC39)+(DataInput!Q40-AC40))/2)*(A40-A39))/27+S39+T39>0,ROUNDDOWN(((((DataInput!Q39-AC39)+(DataInput!Q40-AC40))/2)*(A40-A39))/27+S39+T39,0),0),0),0)*$X$5),1) -> 55.9 | AE39: =DataInput!U39 -> 105 | AF39: =DataInput!S39 -> 65 | AG39: 91 | AH39: 14
A40: =IF(DataInput!A40<>"",DataInput!A40,"") -> 11850 | B40: =SUM(DataInput!C40,DataInput!Y40)+(DataInput!U40-DataInput!E40) -> 287 | C40: =SUM(DataInput!D40,DataInput!Z40) -> 178 | D40: =DataInput!U40 -> 109 | E40: =SUM(DataInput!F40,DataInput!AB40) -> 0 | F40: =SUM(DataInput!G40,DataInput!AC40) -> 0 | G40: =SUM(DataInput!H40,DataInput!AD40) -> 0 | H40: =DataInput!I40 -> 0 | I40: =SUM(DataInput!J40,DataInput!AF40) -> 0 | J40: =SUM(DataInput!K40,DataInput!AG40) -> 0 | K40: =SUM(DataInput!L40,DataInput!AH40) -> 0 | L40: =SUM(DataInput!M40,DataInput!AI40) -> 0 | M40: =SUM(DataInput!N40,DataInput!AJ40) -> 0 | N40: =SUM(DataInput!O40,DataInput!AK40) -> 0 | O40: =DataInput!P40 -> 0 | Q40: 178 | R40: =DataInput!R40 -> 140 | S40: =DataInput!Y40 -> 0 | T40: =IF(DataInput!U40-DataInput!E40>0,DataInput!U40-DataInput!E40,"") -> 54 | U40: =IF(DataInput!W40-DataInput!I40>0,DataInput!W40-DataInput!I40,"") ->  | W40: 194 | X40: 252.2 | Y40: -74.2 | Z40: 518.93 | AA40: 4146.34 | AB40: =ROUNDDOWN((IF(AA41>0,IFERROR(IF(AVERAGE(DataInput!Q40:Q41)>AVERAGE(AA41,AA40),ROUNDDOWN(((((AA40-Z40)+(AA41-Z41))/2)*(A41-A40))/27+S40+T40,0),IF(((((DataInput!Q41-Z41)+(DataInput!Q40-Z40))/2)*(A41-A40))/27+S40+T40>0,ROUNDDOWN(((((DataInput!Q41-Z40)+(DataInput!Q40-Z40))/2)*(A41-A40))/27+S40+T40,0),0)),0),0)*$X$5),1) -> 0 | AC40: 159.49 | AD40: =ROUNDDOWN((IF(AC41>0,IFERROR(IF(((((DataInput!Q40-AC40)+(DataInput!Q41-AC41))/2)*(A41-A40))/27+S40+T40>0,ROUNDDOWN(((((DataInput!Q40-AC40)+(DataInput!Q41-AC41))/2)*(A41-A40))/27+S40+T40,0),0),0),0)*$X$5),1) -> 59.8 | AE40: =DataInput!U40 -> 109 | AF40: =DataInput!S40 -> 71 | AG40: 99.4 | AH40: 9.6
A41: =IF(DataInput!A41<>"",DataInput!A41,"") -> 11875 | B41: =SUM(DataInput!C41,DataInput!Y41)+(DataInput!U41-DataInput!E41) -> 302 | C41: =SUM(DataInput!D41,DataInput!Z41) -> 183 | D41: =DataInput!U41 -> 109 | E41: =SUM(DataInput!F41,DataInput!AB41) -> 0 | F41: =SUM(DataInput!G41,DataInput!AC41) -> 9 | G41: =SUM(DataInput!H41,DataInput!AD41) -> 0 | H41: =DataInput!I41 -> 0 | I41: =SUM(DataInput!J41,DataInput!AF41) -> 0 | J41: =SUM(DataInput!K41,DataInput!AG41) -> 0 | K41: =SUM(DataInput!L41,DataInput!AH41) -> 0 | L41: =SUM(DataInput!M41,DataInput!AI41) -> 0 | M41: =SUM(DataInput!N41,DataInput!AJ41) -> 0 | N41: =SUM(DataInput!O41,DataInput!AK41) -> 0 | O41: =DataInput!P41 -> 0 | Q41: 192 | R41: =DataInput!R41 -> 125 | S41: =DataInput!Y41 -> 0 | T41: =IF(DataInput!U41-DataInput!E41>0,DataInput!U41-DataInput!E41,"") -> 50 | U41: =IF(DataInput!W41-DataInput!I41>0,DataInput!W41-DataInput!I41,"") ->  | W41: 175 | X41: 227.5 | Y41: -35.5 | Z41: 518.93 | AA41: 4146.34 | AB41: =ROUNDDOWN((IF(AA42>0,IFERROR(IF(AVERAGE(DataInput!Q41:Q42)>AVERAGE(AA42,AA41),ROUNDDOWN(((((AA41-Z41)+(AA42-Z42))/2)*(A42-A41))/27+S41+T41,0),IF(((((DataInput!Q42-Z42)+(DataInput!Q41-Z41))/2)*(A42-A41))/27+S41+T41>0,ROUNDDOWN(((((DataInput!Q42-Z41)+(DataInput!Q41-Z41))/2)*(A42-A41))/27+S41+T41,0),0)),0),0)*$X$5),1) -> 0 | AC41: 159.49 | AD41: =ROUNDDOWN((IF(AC42>0,IFERROR(IF(((((DataInput!Q41-AC41)+(DataInput!Q42-AC42))/2)*(A42-A41))/27+S41+T41>0,ROUNDDOWN(((((DataInput!Q41-AC41)+(DataInput!Q42-AC42))/2)*(A42-A41))/27+S41+T41,0),0),0),0)*$X$5),1) -> 33.8 | AE41: =DataInput!U41 -> 109 | AF41: =DataInput!S41 -> 72 | AG41: 100.8 | AH41: 8.2
A42: =IF(DataInput!A42<>"",DataInput!A42,"") -> 11900 | B42: =SUM(DataInput!C42,DataInput!Y42)+(DataInput!U42-DataInput!E42) -> 335 | C42: =SUM(DataInput!D42,DataInput!Z42) -> 207 | D42: =DataInput!U42 -> 109 | E42: =SUM(DataInput!F42,DataInput!AB42) -> 0 | F42: =SUM(DataInput!G42,DataInput!AC42) -> 19 | G42: =SUM(DataInput!H42,DataInput!AD42) -> 0 | H42: =DataInput!I42 -> 0 | I42: =SUM(DataInput!J42,DataInput!AF42) -> 0 | J42: =SUM(DataInput!K42,DataInput!AG42) -> 0 | K42: =SUM(DataInput!L42,DataInput!AH42) -> 0 | L42: =SUM(DataInput!M42,DataInput!AI42) -> 0 | M42: =SUM(DataInput!N42,DataInput!AJ42) -> 0 | N42: =SUM(DataInput!O42,DataInput!AK42) -> 0 | O42: =DataInput!P42 -> 0 | Q42: 226 | R42: =DataInput!R42 -> 106 | S42: =DataInput!Y42 -> 0 | T42: =IF(DataInput!U42-DataInput!E42>0,DataInput!U42-DataInput!E42,"") -> 45 | U42: =IF(DataInput!W42-DataInput!I42>0,DataInput!W42-DataInput!I42,"") ->  | W42: 151 | X42: 196.3 | Y42: 29.7 | Z42: 518.93 | AA42: 4146.34 | AB42: =ROUNDDOWN((IF(AA43>0,IFERROR(IF(AVERAGE(DataInput!Q42:Q43)>AVERAGE(AA43,AA42),ROUNDDOWN(((((AA42-Z42)+(AA43-Z43))/2)*(A43-A42))/27+S42+T42,0),IF(((((DataInput!Q43-Z43)+(DataInput!Q42-Z42))/2)*(A43-A42))/27+S42+T42>0,ROUNDDOWN(((((DataInput!Q43-Z42)+(DataInput!Q42-Z42))/2)*(A43-A42))/27+S42+T42,0),0)),0),0)*$X$5),1) -> 0 | AC42: 159.49 | AD42: =ROUNDDOWN((IF(AC43>0,IFERROR(IF(((((DataInput!Q42-AC42)+(DataInput!Q43-AC43))/2)*(A43-A42))/27+S42+T42>0,ROUNDDOWN(((((DataInput!Q42-AC42)+(DataInput!Q43-AC43))/2)*(A43-A42))/27+S42+T42,0),0),0),0)*$X$5),1) -> 3.9 | AE42: =DataInput!U42 -> 109 | AF42: =DataInput!S42 -> 72 | AG42: 100.8 | AH42: 8.2
A43: =IF(DataInput!A43<>"",DataInput!A43,"") -> 11925 | B43: =SUM(DataInput!C43,DataInput!Y43)+(DataInput!U43-DataInput!E43) -> 391 | C43: =SUM(DataInput!D43,DataInput!Z43) -> 260 | D43: =DataInput!U43 -> 110 | E43: =SUM(DataInput!F43,DataInput!AB43) -> 0 | F43: =SUM(DataInput!G43,DataInput!AC43) -> 21 | G43: =SUM(DataInput!H43,DataInput!AD43) -> 0 | H43: =DataInput!I43 -> 0 | I43: =SUM(DataInput!J43,DataInput!AF43) -> 0 | J43: =SUM(DataInput!K43,DataInput!AG43) -> 0 | K43: =SUM(DataInput!L43,DataInput!AH43) -> 0 | L43: =SUM(DataInput!M43,DataInput!AI43) -> 0 | M43: =SUM(DataInput!N43,DataInput!AJ43) -> 0 | N43: =SUM(DataInput!O43,DataInput!AK43) -> 0 | O43: =DataInput!P43 -> 0 | Q43: 281 | R43: =DataInput!R43 -> 87 | S43: =DataInput!Y43 -> 0 | T43: =IF(DataInput!U43-DataInput!E43>0,DataInput!U43-DataInput!E43,"") -> 42 | U43: =IF(DataInput!W43-DataInput!I43>0,DataInput!W43-DataInput!I43,"") ->  | W43: 129 | X43: 167.7 | Y43: 113.3 | Z43: 518.93 | AA43: 4146.34 | AB43: =ROUNDDOWN((IF(AA44>0,IFERROR(IF(AVERAGE(DataInput!Q43:Q44)>AVERAGE(AA44,AA43),ROUNDDOWN(((((AA43-Z43)+(AA44-Z44))/2)*(A44-A43))/27+S43+T43,0),IF(((((DataInput!Q44-Z44)+(DataInput!Q43-Z43))/2)*(A44-A43))/27+S43+T43>0,ROUNDDOWN(((((DataInput!Q44-Z43)+(DataInput!Q43-Z43))/2)*(A44-A43))/27+S43+T43,0),0)),0),0)*$X$5),1) -> 0 | AC43: 159.49 | AD43: =ROUNDDOWN((IF(AC44>0,IFERROR(IF(((((DataInput!Q43-AC43)+(DataInput!Q44-AC44))/2)*(A44-A43))/27+S43+T43>0,ROUNDDOWN(((((DataInput!Q43-AC43)+(DataInput!Q44-AC44))/2)*(A44-A43))/27+S43+T43,0),0),0),0)*$X$5),1) -> 0 | AE43: =DataInput!U43 -> 110 | AF43: =DataInput!S43 -> 72 | AG43: 100.8 | AH43: 9.2
A44: =IF(DataInput!A44<>"",DataInput!A44,"") -> 11950 | B44: =SUM(DataInput!C44,DataInput!Y44)+(DataInput!U44-DataInput!E44) -> 458 | C44: =SUM(DataInput!D44,DataInput!Z44) -> 326 | D44: =DataInput!U44 -> 110 | E44: =SUM(DataInput!F44,DataInput!AB44) -> 0 | F44: =SUM(DataInput!G44,DataInput!AC44) -> 21 | G44: =SUM(DataInput!H44,DataInput!AD44) -> 0 | H44: =DataInput!I44 -> 0 | I44: =SUM(DataInput!J44,DataInput!AF44) -> 0 | J44: =SUM(DataInput!K44,DataInput!AG44) -> 0 | K44: =SUM(DataInput!L44,DataInput!AH44) -> 0 | L44: =SUM(DataInput!M44,DataInput!AI44) -> 0 | M44: =SUM(DataInput!N44,DataInput!AJ44) -> 0 | N44: =SUM(DataInput!O44,DataInput!AK44) -> 0 | O44: =DataInput!P44 -> 0 | Q44: 347 | R44: =DataInput!R44 -> 64 | S44: =DataInput!Y44 -> 0 | T44: =IF(DataInput!U44-DataInput!E44>0,DataInput!U44-DataInput!E44,"") -> 36 | U44: =IF(DataInput!W44-DataInput!I44>0,DataInput!W44-DataInput!I44,"") ->  | W44: 100 | X44: 130 | Y44: 217 | Z44: 518.93 | AA44: 4146.34 | AB44: =ROUNDDOWN((IF(AA45>0,IFERROR(IF(AVERAGE(DataInput!Q44:Q45)>AVERAGE(AA45,AA44),ROUNDDOWN(((((AA44-Z44)+(AA45-Z45))/2)*(A45-A44))/27+S44+T44,0),IF(((((DataInput!Q45-Z45)+(DataInput!Q44-Z44))/2)*(A45-A44))/27+S44+T44>0,ROUNDDOWN(((((DataInput!Q45-Z44)+(DataInput!Q44-Z44))/2)*(A45-A44))/27+S44+T44,0),0)),0),0)*$X$5),1) -> 0 | AC44: 159.49 | AD44: =ROUNDDOWN((IF(AC45>0,IFERROR(IF(((((DataInput!Q44-AC44)+(DataInput!Q45-AC45))/2)*(A45-A44))/27+S44+T44>0,ROUNDDOWN(((((DataInput!Q44-AC44)+(DataInput!Q45-AC45))/2)*(A45-A44))/27+S44+T44,0),0),0),0)*$X$5),1) -> 0 | AE44: =DataInput!U44 -> 110 | AF44: =DataInput!S44 -> 73 | AG44: 102.2 | AH44: 7.8
A45: =IF(DataInput!A45<>"",DataInput!A45,"") -> 11975 | B45: =SUM(DataInput!C45,DataInput!Y45)+(DataInput!U45-DataInput!E45) -> 539 | C45: =SUM(DataInput!D45,DataInput!Z45) -> 401 | D45: =DataInput!U45 -> 112 | E45: =SUM(DataInput!F45,DataInput!AB45) -> 0 | F45: =SUM(DataInput!G45,DataInput!AC45) -> 25 | G45: =SUM(DataInput!H45,DataInput!AD45) -> 0 | H45: =DataInput!I45 -> 0 | I45: =SUM(DataInput!J45,DataInput!AF45) -> 0 | J45: =SUM(DataInput!K45,DataInput!AG45) -> 0 | K45: =SUM(DataInput!L45,DataInput!AH45) -> 0 | L45: =SUM(DataInput!M45,DataInput!AI45) -> 0 | M45: =SUM(DataInput!N45,DataInput!AJ45) -> 0 | N45: =SUM(DataInput!O45,DataInput!AK45) -> 0 | O45: =DataInput!P45 -> 0 | Q45: 426 | R45: =DataInput!R45 -> 45 | S45: =DataInput!Y45 -> 0 | T45: =IF(DataInput!U45-DataInput!E45>0,DataInput!U45-DataInput!E45,"") -> 27 | U45: =IF(DataInput!W45-DataInput!I45>0,DataInput!W45-DataInput!I45,"") ->  | W45: 72 | X45: 93.6 | Y45: 332.4 | Z45: 518.93 | AA45: 4146.34 | AB45: =ROUNDDOWN((IF(AA46>0,IFERROR(IF(AVERAGE(DataInput!Q45:Q46)>AVERAGE(AA46,AA45),ROUNDDOWN(((((AA45-Z45)+(AA46-Z46))/2)*(A46-A45))/27+S45+T45,0),IF(((((DataInput!Q46-Z46)+(DataInput!Q45-Z45))/2)*(A46-A45))/27+S45+T45>0,ROUNDDOWN(((((DataInput!Q46-Z45)+(DataInput!Q45-Z45))/2)*(A46-A45))/27+S45+T45,0),0)),0),0)*$X$5),1) -> 0 | AC45: 159.49 | AD45: =ROUNDDOWN((IF(AC46>0,IFERROR(IF(((((DataInput!Q45-AC45)+(DataInput!Q46-AC46))/2)*(A46-A45))/27+S45+T45>0,ROUNDDOWN(((((DataInput!Q45-AC45)+(DataInput!Q46-AC46))/2)*(A46-A45))/27+S45+T45,0),0),0),0)*$X$5),1) -> 0 | AE45: =DataInput!U45 -> 112 | AF45: =DataInput!S45 -> 76 | AG45: 106.4 | AH45: 5.6
A46: =IF(DataInput!A46<>"",DataInput!A46,"") -> 12000 | B46: =SUM(DataInput!C46,DataInput!Y46)+(DataInput!U46-DataInput!E46) -> 638 | C46: =SUM(DataInput!D46,DataInput!Z46) -> 485 | D46: =DataInput!U46 -> 114 | E46: =SUM(DataInput!F46,DataInput!AB46) -> 0 | F46: =SUM(DataInput!G46,DataInput!AC46) -> 38 | G46: =SUM(DataInput!H46,DataInput!AD46) -> 0 | H46: =DataInput!I46 -> 0 | I46: =SUM(DataInput!J46,DataInput!AF46) -> 0 | J46: =SUM(DataInput!K46,DataInput!AG46) -> 0 | K46: =SUM(DataInput!L46,DataInput!AH46) -> 0 | L46: =SUM(DataInput!M46,DataInput!AI46) -> 0 | M46: =SUM(DataInput!N46,DataInput!AJ46) -> 0 | N46: =SUM(DataInput!O46,DataInput!AK46) -> 0 | O46: =DataInput!P46 -> 0 | Q46: 523 | R46: =DataInput!R46 -> 30 | S46: =DataInput!Y46 -> 0 | T46: =IF(DataInput!U46-DataInput!E46>0,DataInput!U46-DataInput!E46,"") -> 17 | U46: =IF(DataInput!W46-DataInput!I46>0,DataInput!W46-DataInput!I46,"") ->  | W46: 47 | X46: 61.1 | Y46: 461.9 | Z46: 518.93 | AA46: 4146.34 | AB46: =ROUNDDOWN((IF(AA47>0,IFERROR(IF(AVERAGE(DataInput!Q46:Q47)>AVERAGE(AA47,AA46),ROUNDDOWN(((((AA46-Z46)+(AA47-Z47))/2)*(A47-A46))/27+S46+T46,0),IF(((((DataInput!Q47-Z47)+(DataInput!Q46-Z46))/2)*(A47-A46))/27+S46+T46>0,ROUNDDOWN(((((DataInput!Q47-Z46)+(DataInput!Q46-Z46))/2)*(A47-A46))/27+S46+T46,0),0)),0),0)*$X$5),1) -> 0 | AC46: 159.49 | AD46: =ROUNDDOWN((IF(AC47>0,IFERROR(IF(((((DataInput!Q46-AC46)+(DataInput!Q47-AC47))/2)*(A47-A46))/27+S46+T46>0,ROUNDDOWN(((((DataInput!Q46-AC46)+(DataInput!Q47-AC47))/2)*(A47-A46))/27+S46+T46,0),0),0),0)*$X$5),1) -> 0 | AE46: =DataInput!U46 -> 114 | AF46: =DataInput!S46 -> 79 | AG46: 110.6 | AH46: 3.5
A47: =IF(DataInput!A47<>"",DataInput!A47,"") -> 12025 | B47: =SUM(DataInput!C47,DataInput!Y47)+(DataInput!U47-DataInput!E47) -> 747 | C47: =SUM(DataInput!D47,DataInput!Z47) -> 576 | D47: =DataInput!U47 -> 116 | E47: =SUM(DataInput!F47,DataInput!AB47) -> 0 | F47: =SUM(DataInput!G47,DataInput!AC47) -> 55 | G47: =SUM(DataInput!H47,DataInput!AD47) -> 0 | H47: =DataInput!I47 -> 0 | I47: =SUM(DataInput!J47,DataInput!AF47) -> 0 | J47: =SUM(DataInput!K47,DataInput!AG47) -> 0 | K47: =SUM(DataInput!L47,DataInput!AH47) -> 0 | L47: =SUM(DataInput!M47,DataInput!AI47) -> 0 | M47: =SUM(DataInput!N47,DataInput!AJ47) -> 0 | N47: =SUM(DataInput!O47,DataInput!AK47) -> 0 | O47: =DataInput!P47 -> 0 | P47: 48 | Q47: 679 | R47: =DataInput!R47 -> 19 | S47: =DataInput!Y47 -> 0 | T47: =IF(DataInput!U47-DataInput!E47>0,DataInput!U47-DataInput!E47,"") -> 11 | U47: =IF(DataInput!W47-DataInput!I47>0,DataInput!W47-DataInput!I47,"") ->  | V47: 909 | W47: 939 | X47: 1220.7 | Y47: -541.7 | Z47: 518.93 | AA47: 4146.34 | AB47: =ROUNDDOWN((IF(AA48>0,IFERROR(IF(AVERAGE(DataInput!Q47:Q48)>AVERAGE(AA48,AA47),ROUNDDOWN(((((AA47-Z47)+(AA48-Z48))/2)*(A48-A47))/27+S47+T47,0),IF(((((DataInput!Q48-Z48)+(DataInput!Q47-Z47))/2)*(A48-A47))/27+S47+T47>0,ROUNDDOWN(((((DataInput!Q48-Z47)+(DataInput!Q47-Z47))/2)*(A48-A47))/27+S47+T47,0),0)),0),0)*$X$5),1) -> 0 | AC47: 159.49 | AD47: =ROUNDDOWN((IF(AC48>0,IFERROR(IF(((((DataInput!Q47-AC47)+(DataInput!Q48-AC48))/2)*(A48-A47))/27+S47+T47>0,ROUNDDOWN(((((DataInput!Q47-AC47)+(DataInput!Q48-AC48))/2)*(A48-A47))/27+S47+T47,0),0),0),0)*$X$5),1) -> 0 | AE47: =DataInput!U47 -> 116 | AF47: =DataInput!S47 -> 81 | AG47: 113.4 | AH47: 2.6
A48: =IF(DataInput!A48<>"",DataInput!A48,"") -> 12050 | B48: =SUM(DataInput!C48,DataInput!Y48)+(DataInput!U48-DataInput!E48) -> 868 | C48: =SUM(DataInput!D48,DataInput!Z48) -> 676 | D48: =DataInput!U48 -> 117 | E48: =SUM(DataInput!F48,DataInput!AB48) -> 0 | F48: =SUM(DataInput!G48,DataInput!AC48) -> 75 | G48: =SUM(DataInput!H48,DataInput!AD48) -> 0 | H48: =DataInput!I48 -> 0 | I48: =SUM(DataInput!J48,DataInput!AF48) -> 0 | J48: =SUM(DataInput!K48,DataInput!AG48) -> 0 | K48: =SUM(DataInput!L48,DataInput!AH48) -> 0 | L48: =SUM(DataInput!M48,DataInput!AI48) -> 0 | M48: =SUM(DataInput!N48,DataInput!AJ48) -> 0 | N48: =SUM(DataInput!O48,DataInput!AK48) -> 0 | O48: =DataInput!P48 -> 0 | Q48: 751 | R48: =DataInput!R48 -> 12 | S48: =DataInput!Y48 -> 0 | T48: =IF(DataInput!U48-DataInput!E48>0,DataInput!U48-DataInput!E48,"") -> 8 | U48: =IF(DataInput!W48-DataInput!I48>0,DataInput!W48-DataInput!I48,"") ->  | W48: 20 | X48: 26 | Y48: 725 | Z48: 518.93 | AA48: 4146.34 | AB48: =ROUNDDOWN((IF(AA49>0,IFERROR(IF(AVERAGE(DataInput!Q48:Q49)>AVERAGE(AA49,AA48),ROUNDDOWN(((((AA48-Z48)+(AA49-Z49))/2)*(A49-A48))/27+S48+T48,0),IF(((((DataInput!Q49-Z49)+(DataInput!Q48-Z48))/2)*(A49-A48))/27+S48+T48>0,ROUNDDOWN(((((DataInput!Q49-Z48)+(DataInput!Q48-Z48))/2)*(A49-A48))/27+S48+T48,0),0)),0),0)*$X$5),1) -> 0 | AC48: 159.49 | AD48: =ROUNDDOWN((IF(AC49>0,IFERROR(IF(((((DataInput!Q48-AC48)+(DataInput!Q49-AC49))/2)*(A49-A48))/27+S48+T48>0,ROUNDDOWN(((((DataInput!Q48-AC48)+(DataInput!Q49-AC49))/2)*(A49-A48))/27+S48+T48,0),0),0),0)*$X$5),1) -> 0 | AE48: =DataInput!U48 -> 117 | AF48: =DataInput!S48 -> 83 | AG48: 116.2 | AH48: 0.8
A49: =IF(DataInput!A49<>"",DataInput!A49,"") -> 12075 | B49: =SUM(DataInput!C49,DataInput!Y49)+(DataInput!U49-DataInput!E49) -> 1010 | C49: =SUM(DataInput!D49,DataInput!Z49) -> 796 | D49: =DataInput!U49 -> 118 | E49: =SUM(DataInput!F49,DataInput!AB49) -> 0 | F49: =SUM(DataInput!G49,DataInput!AC49) -> 95 | G49: =SUM(DataInput!H49,DataInput!AD49) -> 0 | H49: =DataInput!I49 -> 0 | I49: =SUM(DataInput!J49,DataInput!AF49) -> 0 | J49: =SUM(DataInput!K49,DataInput!AG49) -> 0 | K49: =SUM(DataInput!L49,DataInput!AH49) -> 0 | L49: =SUM(DataInput!M49,DataInput!AI49) -> 0 | M49: =SUM(DataInput!N49,DataInput!AJ49) -> 0 | N49: =SUM(DataInput!O49,DataInput!AK49) -> 0 | O49: =DataInput!P49 -> 0 | Q49: 891 | R49: =DataInput!R49 -> 7 | S49: =DataInput!Y49 -> 0 | T49: =IF(DataInput!U49-DataInput!E49>0,DataInput!U49-DataInput!E49,"") -> 6 | U49: =IF(DataInput!W49-DataInput!I49>0,DataInput!W49-DataInput!I49,"") ->  | W49: 13 | X49: 16.9 | Y49: 874.1 | Z49: 518.93 | AA49: 4146.34 | AB49: =ROUNDDOWN((IF(AA50>0,IFERROR(IF(AVERAGE(DataInput!Q49:Q50)>AVERAGE(AA50,AA49),ROUNDDOWN(((((AA49-Z49)+(AA50-Z50))/2)*(A50-A49))/27+S49+T49,0),IF(((((DataInput!Q50-Z50)+(DataInput!Q49-Z49))/2)*(A50-A49))/27+S49+T49>0,ROUNDDOWN(((((DataInput!Q50-Z49)+(DataInput!Q49-Z49))/2)*(A50-A49))/27+S49+T49,0),0)),0),0)*$X$5),1) -> 0 | AC49: 159.49 | AD49: =ROUNDDOWN((IF(AC50>0,IFERROR(IF(((((DataInput!Q49-AC49)+(DataInput!Q50-AC50))/2)*(A50-A49))/27+S49+T49>0,ROUNDDOWN(((((DataInput!Q49-AC49)+(DataInput!Q50-AC50))/2)*(A50-A49))/27+S49+T49,0),0),0),0)*$X$5),1) -> 0 | AE49: =DataInput!U49 -> 118 | AF49: =DataInput!S49 -> 84 | AG49: 117.6 | AH49: 0.5
A50: =IF(DataInput!A50<>"",DataInput!A50,"") -> 12100 | B50: =SUM(DataInput!C50,DataInput!Y50)+(DataInput!U50-DataInput!E50) -> 1186 | C50: =SUM(DataInput!D50,DataInput!Z50) -> 1014 | D50: =DataInput!U50 -> 120 | E50: =SUM(DataInput!F50,DataInput!AB50) -> 0 | F50: =SUM(DataInput!G50,DataInput!AC50) -> 52 | G50: =SUM(DataInput!H50,DataInput!AD50) -> 0 | H50: =DataInput!I50 -> 0 | I50: =SUM(DataInput!J50,DataInput!AF50) -> 0 | J50: =SUM(DataInput!K50,DataInput!AG50) -> 0 | K50: =SUM(DataInput!L50,DataInput!AH50) -> 0 | L50: =SUM(DataInput!M50,DataInput!AI50) -> 0 | M50: =SUM(DataInput!N50,DataInput!AJ50) -> 0 | N50: =SUM(DataInput!O50,DataInput!AK50) -> 0 | O50: =DataInput!P50 -> 0 | Q50: 1066 | R50: =DataInput!R50 -> 3 | S50: =DataInput!Y50 -> 0 | T50: =IF(DataInput!U50-DataInput!E50>0,DataInput!U50-DataInput!E50,"") -> 5 | U50: =IF(DataInput!W50-DataInput!I50>0,DataInput!W50-DataInput!I50,"") ->  | W50: 8 | X50: 10.4 | Y50: 1055.6 | Z50: 518.93 | AA50: 4146.34 | AB50: =ROUNDDOWN((IF(AA51>0,IFERROR(IF(AVERAGE(DataInput!Q50:Q51)>AVERAGE(AA51,AA50),ROUNDDOWN(((((AA50-Z50)+(AA51-Z51))/2)*(A51-A50))/27+S50+T50,0),IF(((((DataInput!Q51-Z51)+(DataInput!Q50-Z50))/2)*(A51-A50))/27+S50+T50>0,ROUNDDOWN(((((DataInput!Q51-Z50)+(DataInput!Q50-Z50))/2)*(A51-A50))/27+S50+T50,0),0)),0),0)*$X$5),1) -> 0 | AC50: 159.49 | AD50: =ROUNDDOWN((IF(AC51>0,IFERROR(IF(((((DataInput!Q50-AC50)+(DataInput!Q51-AC51))/2)*(A51-A50))/27+S50+T50>0,ROUNDDOWN(((((DataInput!Q50-AC50)+(DataInput!Q51-AC51))/2)*(A51-A50))/27+S50+T50,0),0),0),0)*$X$5),1) -> 0 | AE50: =DataInput!U50 -> 120 | AF50: =DataInput!S50 -> 86 | AG50: 120.4 | AH50: -0.5
A51: =IF(DataInput!A51<>"",DataInput!A51,"") -> 12125 | B51: =SUM(DataInput!C51,DataInput!Y51)+(DataInput!U51-DataInput!E51) -> 1404 | C51: =SUM(DataInput!D51,DataInput!Z51) -> 1282 | D51: =DataInput!U51 -> 122 | E51: =SUM(DataInput!F51,DataInput!AB51) -> 0 | F51: =SUM(DataInput!G51,DataInput!AC51) -> 0 | G51: =SUM(DataInput!H51,DataInput!AD51) -> 0 | H51: =DataInput!I51 -> 0 | I51: =SUM(DataInput!J51,DataInput!AF51) -> 0 | J51: =SUM(DataInput!K51,DataInput!AG51) -> 0 | K51: =SUM(DataInput!L51,DataInput!AH51) -> 0 | L51: =SUM(DataInput!M51,DataInput!AI51) -> 0 | M51: =SUM(DataInput!N51,DataInput!AJ51) -> 0 | N51: =SUM(DataInput!O51,DataInput!AK51) -> 0 | O51: =DataInput!P51 -> 0 | Q51: 1282 | R51: =DataInput!R51 -> 0 | S51: =DataInput!Y51 -> 0 | T51: =IF(DataInput!U51-DataInput!E51>0,DataInput!U51-DataInput!E51,"") -> 2 | U51: =IF(DataInput!W51-DataInput!I51>0,DataInput!W51-DataInput!I51,"") ->  | W51: 2 | X51: 2.6 | Y51: 1279.4 | Z51: 518.93 | AA51: 4146.34 | AB51: =ROUNDDOWN((IF(AA52>0,IFERROR(IF(AVERAGE(DataInput!Q51:Q52)>AVERAGE(AA52,AA51),ROUNDDOWN(((((AA51-Z51)+(AA52-Z52))/2)*(A52-A51))/27+S51+T51,0),IF(((((DataInput!Q52-Z52)+(DataInput!Q51-Z51))/2)*(A52-A51))/27+S51+T51>0,ROUNDDOWN(((((DataInput!Q52-Z51)+(DataInput!Q51-Z51))/2)*(A52-A51))/27+S51+T51,0),0)),0),0)*$X$5),1) -> 0 | AC51: 159.49 | AD51: =ROUNDDOWN((IF(AC52>0,IFERROR(IF(((((DataInput!Q51-AC51)+(DataInput!Q52-AC52))/2)*(A52-A51))/27+S51+T51>0,ROUNDDOWN(((((DataInput!Q51-AC51)+(DataInput!Q52-AC52))/2)*(A52-A51))/27+S51+T51,0),0),0),0)*$X$5),1) -> 0 | AE51: =DataInput!U51 -> 122 | AF51: =DataInput!S51 -> 89 | AG51: 124.6 | AH51: -2.6
A52: =IF(DataInput!A52<>"",DataInput!A52,"") -> 12150 | B52: =SUM(DataInput!C52,DataInput!Y52)+(DataInput!U52-DataInput!E52) -> 1652 | C52: =SUM(DataInput!D52,DataInput!Z52) -> 1527 | D52: =DataInput!U52 -> 125 | E52: =SUM(DataInput!F52,DataInput!AB52) -> 0 | F52: =SUM(DataInput!G52,DataInput!AC52) -> 0 | G52: =SUM(DataInput!H52,DataInput!AD52) -> 0 | H52: =DataInput!I52 -> 0 | I52: =SUM(DataInput!J52,DataInput!AF52) -> 0 | J52: =SUM(DataInput!K52,DataInput!AG52) -> 0 | K52: =SUM(DataInput!L52,DataInput!AH52) -> 0 | L52: =SUM(DataInput!M52,DataInput!AI52) -> 0 | M52: =SUM(DataInput!N52,DataInput!AJ52) -> 0 | N52: =SUM(DataInput!O52,DataInput!AK52) -> 0 | O52: =DataInput!P52 -> 0 | Q52: 1527 | R52: =DataInput!R52 -> 0 | S52: =DataInput!Y52 -> 0 | T52: =IF(DataInput!U52-DataInput!E52>0,DataInput!U52-DataInput!E52,"") -> 1 | U52: =IF(DataInput!W52-DataInput!I52>0,DataInput!W52-DataInput!I52,"") ->  | W52: 1 | X52: 1.3 | Y52: 1525.7 | Z52: 518.93 | AA52: 4146.34 | AB52: =ROUNDDOWN((IF(AA53>0,IFERROR(IF(AVERAGE(DataInput!Q52:Q53)>AVERAGE(AA53,AA52),ROUNDDOWN(((((AA52-Z52)+(AA53-Z53))/2)*(A53-A52))/27+S52+T52,0),IF(((((DataInput!Q53-Z53)+(DataInput!Q52-Z52))/2)*(A53-A52))/27+S52+T52>0,ROUNDDOWN(((((DataInput!Q53-Z52)+(DataInput!Q52-Z52))/2)*(A53-A52))/27+S52+T52,0),0)),0),0)*$X$5),1) -> 0 | AC52: 159.49 | AD52: =ROUNDDOWN((IF(AC53>0,IFERROR(IF(((((DataInput!Q52-AC52)+(DataInput!Q53-AC53))/2)*(A53-A52))/27+S52+T52>0,ROUNDDOWN(((((DataInput!Q52-AC52)+(DataInput!Q53-AC53))/2)*(A53-A52))/27+S52+T52,0),0),0),0)*$X$5),1) -> 0 | AE52: =DataInput!U52 -> 125 | AF52: =DataInput!S52 -> 92 | AG52: 128.8 | AH52: -3.9
A53: =IF(DataInput!A53<>"",DataInput!A53,"") -> 12175 | B53: =SUM(DataInput!C53,DataInput!Y53)+(DataInput!U53-DataInput!E53) -> 1910 | C53: =SUM(DataInput!D53,DataInput!Z53) -> 1783 | D53: =DataInput!U53 -> 127 | E53: =SUM(DataInput!F53,DataInput!AB53) -> 0 | F53: =SUM(DataInput!G53,DataInput!AC53) -> 0 | G53: =SUM(DataInput!H53,DataInput!AD53) -> 0 | H53: =DataInput!I53 -> 0 | I53: =SUM(DataInput!J53,DataInput!AF53) -> 0 | J53: =SUM(DataInput!K53,DataInput!AG53) -> 0 | K53: =SUM(DataInput!L53,DataInput!AH53) -> 0 | L53: =SUM(DataInput!M53,DataInput!AI53) -> 0 | M53: =SUM(DataInput!N53,DataInput!AJ53) -> 0 | N53: =SUM(DataInput!O53,DataInput!AK53) -> 0 | O53: =DataInput!P53 -> 0 | Q53: 1783 | R53: =DataInput!R53 -> 0 | S53: =DataInput!Y53 -> 0 | T53: =IF(DataInput!U53-DataInput!E53>0,DataInput!U53-DataInput!E53,"") ->  | U53: =IF(DataInput!W53-DataInput!I53>0,DataInput!W53-DataInput!I53,"") ->  | W53: 0 | X53: 0 | Y53: 1783 | Z53: 518.93 | AA53: 4146.34 | AB53: =ROUNDDOWN((IF(AA54>0,IFERROR(IF(AVERAGE(DataInput!Q53:Q54)>AVERAGE(AA54,AA53),ROUNDDOWN(((((AA53-Z53)+(AA54-Z54))/2)*(A54-A53))/27+S53+T53,0),IF(((((DataInput!Q54-Z54)+(DataInput!Q53-Z53))/2)*(A54-A53))/27+S53+T53>0,ROUNDDOWN(((((DataInput!Q54-Z53)+(DataInput!Q53-Z53))/2)*(A54-A53))/27+S53+T53,0),0)),0),0)*$X$5),1) -> 0 | AC53: 159.49 | AD53: =ROUNDDOWN((IF(AC54>0,IFERROR(IF(((((DataInput!Q53-AC53)+(DataInput!Q54-AC54))/2)*(A54-A53))/27+S53+T53>0,ROUNDDOWN(((((DataInput!Q53-AC53)+(DataInput!Q54-AC54))/2)*(A54-A53))/27+S53+T53,0),0),0),0)*$X$5),1) -> 0 | AE53: =DataInput!U53 -> 127 | AF53: =DataInput!S53 -> 95 | AG53: 133 | AH53: -6
A54: =IF(DataInput!A54<>"",DataInput!A54,"") -> 12200 | B54: =SUM(DataInput!C54,DataInput!Y54)+(DataInput!U54-DataInput!E54) -> 2155 | C54: =SUM(DataInput!D54,DataInput!Z54) -> 2026 | D54: =DataInput!U54 -> 129 | E54: =SUM(DataInput!F54,DataInput!AB54) -> 0 | F54: =SUM(DataInput!G54,DataInput!AC54) -> 0 | G54: =SUM(DataInput!H54,DataInput!AD54) -> 0 | H54: =DataInput!I54 -> 0 | I54: =SUM(DataInput!J54,DataInput!AF54) -> 0 | J54: =SUM(DataInput!K54,DataInput!AG54) -> 0 | K54: =SUM(DataInput!L54,DataInput!AH54) -> 0 | L54: =SUM(DataInput!M54,DataInput!AI54) -> 0 | M54: =SUM(DataInput!N54,DataInput!AJ54) -> 0 | N54: =SUM(DataInput!O54,DataInput!AK54) -> 0 | O54: =DataInput!P54 -> 0 | Q54: 2026 | R54: =DataInput!R54 -> 0 | S54: =DataInput!Y54 -> 0 | T54: =IF(DataInput!U54-DataInput!E54>0,DataInput!U54-DataInput!E54,"") ->  | U54: =IF(DataInput!W54-DataInput!I54>0,DataInput!W54-DataInput!I54,"") ->  | W54: 0 | X54: 0 | Y54: 2026 | Z54: 518.93 | AA54: 4146.34 | AB54: =ROUNDDOWN((IF(AA55>0,IFERROR(IF(AVERAGE(DataInput!Q54:Q55)>AVERAGE(AA55,AA54),ROUNDDOWN(((((AA54-Z54)+(AA55-Z55))/2)*(A55-A54))/27+S54+T54,0),IF(((((DataInput!Q55-Z55)+(DataInput!Q54-Z54))/2)*(A55-A54))/27+S54+T54>0,ROUNDDOWN(((((DataInput!Q55-Z54)+(DataInput!Q54-Z54))/2)*(A55-A54))/27+S54+T54,0),0)),0),0)*$X$5),1) -> 0 | AC54: 159.49 | AD54: =ROUNDDOWN((IF(AC55>0,IFERROR(IF(((((DataInput!Q54-AC54)+(DataInput!Q55-AC55))/2)*(A55-A54))/27+S54+T54>0,ROUNDDOWN(((((DataInput!Q54-AC54)+(DataInput!Q55-AC55))/2)*(A55-A54))/27+S54+T54,0),0),0),0)*$X$5),1) -> 0 | AE54: =DataInput!U54 -> 129 | AF54: =DataInput!S54 -> 98 | AG54: 137.2 | AH54: -8.2
A55: =IF(DataInput!A55<>"",DataInput!A55,"") -> 12225 | B55: =SUM(DataInput!C55,DataInput!Y55)+(DataInput!U55-DataInput!E55) -> 2352 | C55: =SUM(DataInput!D55,DataInput!Z55) -> 2220 | D55: =DataInput!U55 -> 131 | E55: =SUM(DataInput!F55,DataInput!AB55) -> 0 | F55: =SUM(DataInput!G55,DataInput!AC55) -> 0 | G55: =SUM(DataInput!H55,DataInput!AD55) -> 0 | H55: =DataInput!I55 -> 0 | I55: =SUM(DataInput!J55,DataInput!AF55) -> 0 | J55: =SUM(DataInput!K55,DataInput!AG55) -> 0 | K55: =SUM(DataInput!L55,DataInput!AH55) -> 0 | L55: =SUM(DataInput!M55,DataInput!AI55) -> 0 | M55: =SUM(DataInput!N55,DataInput!AJ55) -> 0 | N55: =SUM(DataInput!O55,DataInput!AK55) -> 0 | O55: =DataInput!P55 -> 0 | Q55: 2220 | R55: =DataInput!R55 -> 0 | S55: =DataInput!Y55 -> 0 | T55: =IF(DataInput!U55-DataInput!E55>0,DataInput!U55-DataInput!E55,"") ->  | U55: =IF(DataInput!W55-DataInput!I55>0,DataInput!W55-DataInput!I55,"") ->  | W55: 0 | X55: 0 | Y55: 2220 | Z55: 518.93 | AA55: 4146.34 | AB55: =ROUNDDOWN((IF(AA56>0,IFERROR(IF(AVERAGE(DataInput!Q55:Q56)>AVERAGE(AA56,AA55),ROUNDDOWN(((((AA55-Z55)+(AA56-Z56))/2)*(A56-A55))/27+S55+T55,0),IF(((((DataInput!Q56-Z56)+(DataInput!Q55-Z55))/2)*(A56-A55))/27+S55+T55>0,ROUNDDOWN(((((DataInput!Q56-Z55)+(DataInput!Q55-Z55))/2)*(A56-A55))/27+S55+T55,0),0)),0),0)*$X$5),1) -> 0 | AC55: 159.49 | AD55: =ROUNDDOWN((IF(AC56>0,IFERROR(IF(((((DataInput!Q55-AC55)+(DataInput!Q56-AC56))/2)*(A56-A55))/27+S55+T55>0,ROUNDDOWN(((((DataInput!Q55-AC55)+(DataInput!Q56-AC56))/2)*(A56-A55))/27+S55+T55,0),0),0),0)*$X$5),1) -> 0 | AE55: =DataInput!U55 -> 131 | AF55: =DataInput!S55 -> 101 | AG55: 141.4 | AH55: -10.4
A56: =IF(DataInput!A56<>"",DataInput!A56,"") -> 12250 | B56: =SUM(DataInput!C56,DataInput!Y56)+(DataInput!U56-DataInput!E56) -> 2522 | C56: =SUM(DataInput!D56,DataInput!Z56) -> 2394 | D56: =DataInput!U56 -> 128 | E56: =SUM(DataInput!F56,DataInput!AB56) -> 0 | F56: =SUM(DataInput!G56,DataInput!AC56) -> 0 | G56: =SUM(DataInput!H56,DataInput!AD56) -> 0 | H56: =DataInput!I56 -> 0 | I56: =SUM(DataInput!J56,DataInput!AF56) -> 0 | J56: =SUM(DataInput!K56,DataInput!AG56) -> 0 | K56: =SUM(DataInput!L56,DataInput!AH56) -> 0 | L56: =SUM(DataInput!M56,DataInput!AI56) -> 0 | M56: =SUM(DataInput!N56,DataInput!AJ56) -> 0 | N56: =SUM(DataInput!O56,DataInput!AK56) -> 0 | O56: =DataInput!P56 -> 0 | Q56: 2394 | R56: =DataInput!R56 -> 0 | S56: =DataInput!Y56 -> 0 | T56: =IF(DataInput!U56-DataInput!E56>0,DataInput!U56-DataInput!E56,"") ->  | U56: =IF(DataInput!W56-DataInput!I56>0,DataInput!W56-DataInput!I56,"") ->  | W56: 0 | X56: 0 | Y56: 2394 | Z56: 518.93 | AA56: 4146.34 | AB56: =ROUNDDOWN((IF(AA57>0,IFERROR(IF(AVERAGE(DataInput!Q56:Q57)>AVERAGE(AA57,AA56),ROUNDDOWN(((((AA56-Z56)+(AA57-Z57))/2)*(A57-A56))/27+S56+T56,0),IF(((((DataInput!Q57-Z57)+(DataInput!Q56-Z56))/2)*(A57-A56))/27+S56+T56>0,ROUNDDOWN(((((DataInput!Q57-Z56)+(DataInput!Q56-Z56))/2)*(A57-A56))/27+S56+T56,0),0)),0),0)*$X$5),1) -> 0 | AC56: 159.49 | AD56: =ROUNDDOWN((IF(AC57>0,IFERROR(IF(((((DataInput!Q56-AC56)+(DataInput!Q57-AC57))/2)*(A57-A56))/27+S56+T56>0,ROUNDDOWN(((((DataInput!Q56-AC56)+(DataInput!Q57-AC57))/2)*(A57-A56))/27+S56+T56,0),0),0),0)*$X$5),1) -> 0 | AE56: =DataInput!U56 -> 128 | AF56: =DataInput!S56 -> 103 | AG56: 144.2 | AH56: -16.2
A57: =IF(DataInput!A57<>"",DataInput!A57,"") -> 12275 | B57: =SUM(DataInput!C57,DataInput!Y57)+(DataInput!U57-DataInput!E57) -> 2831 | C57: =SUM(DataInput!D57,DataInput!Z57) -> 2705 | D57: =DataInput!U57 -> 126 | E57: =SUM(DataInput!F57,DataInput!AB57) -> 0 | F57: =SUM(DataInput!G57,DataInput!AC57) -> 0 | G57: =SUM(DataInput!H57,DataInput!AD57) -> 0 | H57: =DataInput!I57 -> 0 | I57: =SUM(DataInput!J57,DataInput!AF57) -> 0 | J57: =SUM(DataInput!K57,DataInput!AG57) -> 0 | K57: =SUM(DataInput!L57,DataInput!AH57) -> 0 | L57: =SUM(DataInput!M57,DataInput!AI57) -> 0 | M57: =SUM(DataInput!N57,DataInput!AJ57) -> 0 | N57: =SUM(DataInput!O57,DataInput!AK57) -> 0 | O57: =DataInput!P57 -> 0 | Q57: 2705 | R57: =DataInput!R57 -> 0 | S57: =DataInput!Y57 -> 0 | T57: =IF(DataInput!U57-DataInput!E57>0,DataInput!U57-DataInput!E57,"") ->  | U57: =IF(DataInput!W57-DataInput!I57>0,DataInput!W57-DataInput!I57,"") ->  | W57: 0 | X57: 0 | Y57: 2705 | Z57: 518.93 | AA57: 4146.34 | AB57: =ROUNDDOWN((IF(AA58>0,IFERROR(IF(AVERAGE(DataInput!Q57:Q58)>AVERAGE(AA58,AA57),ROUNDDOWN(((((AA57-Z57)+(AA58-Z58))/2)*(A58-A57))/27+S57+T57,0),IF(((((DataInput!Q58-Z58)+(DataInput!Q57-Z57))/2)*(A58-A57))/27+S57+T57>0,ROUNDDOWN(((((DataInput!Q58-Z57)+(DataInput!Q57-Z57))/2)*(A58-A57))/27+S57+T57,0),0)),0),0)*$X$5),1) -> 0 | AC57: 159.49 | AD57: =ROUNDDOWN((IF(AC58>0,IFERROR(IF(((((DataInput!Q57-AC57)+(DataInput!Q58-AC58))/2)*(A58-A57))/27+S57+T57>0,ROUNDDOWN(((((DataInput!Q57-AC57)+(DataInput!Q58-AC58))/2)*(A58-A57))/27+S57+T57,0),0),0),0)*$X$5),1) -> 0 | AE57: =DataInput!U57 -> 126 | AF57: =DataInput!S57 -> 106 | AG57: 148.4 | AH57: -22.4
A58: =IF(DataInput!A58<>"",DataInput!A58,"") -> 12300 | B58: =SUM(DataInput!C58,DataInput!Y58)+(DataInput!U58-DataInput!E58) -> 3292 | C58: =SUM(DataInput!D58,DataInput!Z58) -> 3158 | D58: =DataInput!U58 -> 134 | E58: =SUM(DataInput!F58,DataInput!AB58) -> 0 | F58: =SUM(DataInput!G58,DataInput!AC58) -> 0 | G58: =SUM(DataInput!H58,DataInput!AD58) -> 0 | H58: =DataInput!I58 -> 0 | I58: =SUM(DataInput!J58,DataInput!AF58) -> 0 | J58: =SUM(DataInput!K58,DataInput!AG58) -> 0 | K58: =SUM(DataInput!L58,DataInput!AH58) -> 0 | L58: =SUM(DataInput!M58,DataInput!AI58) -> 0 | M58: =SUM(DataInput!N58,DataInput!AJ58) -> 0 | N58: =SUM(DataInput!O58,DataInput!AK58) -> 0 | O58: =DataInput!P58 -> 0 | Q58: 3158 | R58: =DataInput!R58 -> 0 | S58: =DataInput!Y58 -> 0 | T58: =IF(DataInput!U58-DataInput!E58>0,DataInput!U58-DataInput!E58,"") ->  | U58: =IF(DataInput!W58-DataInput!I58>0,DataInput!W58-DataInput!I58,"") ->  | W58: 0 | X58: 0 | Y58: 3158 | Z58: 518.93 | AA58: 4146.34 | AB58: =ROUNDDOWN((IF(AA59>0,IFERROR(IF(AVERAGE(DataInput!Q58:Q59)>AVERAGE(AA59,AA58),ROUNDDOWN(((((AA58-Z58)+(AA59-Z59))/2)*(A59-A58))/27+S58+T58,0),IF(((((DataInput!Q59-Z59)+(DataInput!Q58-Z58))/2)*(A59-A58))/27+S58+T58>0,ROUNDDOWN(((((DataInput!Q59-Z58)+(DataInput!Q58-Z58))/2)*(A59-A58))/27+S58+T58,0),0)),0),0)*$X$5),1) -> 0 | AC58: 159.49 | AD58: =ROUNDDOWN((IF(AC59>0,IFERROR(IF(((((DataInput!Q58-AC58)+(DataInput!Q59-AC59))/2)*(A59-A58))/27+S58+T58>0,ROUNDDOWN(((((DataInput!Q58-AC58)+(DataInput!Q59-AC59))/2)*(A59-A58))/27+S58+T58,0),0),0),0)*$X$5),1) -> 0 | AE58: =DataInput!U58 -> 134 | AF58: =DataInput!S58 -> 115 | AG58: 161 | AH58: -27
A59: =IF(DataInput!A59<>"",DataInput!A59,"") -> 12325 | B59: =SUM(DataInput!C59,DataInput!Y59)+(DataInput!U59-DataInput!E59) -> 3694 | C59: =SUM(DataInput!D59,DataInput!Z59) -> 3552 | D59: =DataInput!U59 -> 142 | E59: =SUM(DataInput!F59,DataInput!AB59) -> 0 | F59: =SUM(DataInput!G59,DataInput!AC59) -> 0 | G59: =SUM(DataInput!H59,DataInput!AD59) -> 0 | H59: =DataInput!I59 -> 0 | I59: =SUM(DataInput!J59,DataInput!AF59) -> 0 | J59: =SUM(DataInput!K59,DataInput!AG59) -> 0 | K59: =SUM(DataInput!L59,DataInput!AH59) -> 0 | L59: =SUM(DataInput!M59,DataInput!AI59) -> 0 | M59: =SUM(DataInput!N59,DataInput!AJ59) -> 0 | N59: =SUM(DataInput!O59,DataInput!AK59) -> 0 | O59: =DataInput!P59 -> 0 | Q59: 3552 | R59: =DataInput!R59 -> 0 | S59: =DataInput!Y59 -> 0 | T59: =IF(DataInput!U59-DataInput!E59>0,DataInput!U59-DataInput!E59,"") ->  | U59: =IF(DataInput!W59-DataInput!I59>0,DataInput!W59-DataInput!I59,"") ->  | W59: 0 | X59: 0 | Y59: 3552 | Z59: 518.93 | AA59: 4146.34 | AB59: =ROUNDDOWN((IF(AA60>0,IFERROR(IF(AVERAGE(DataInput!Q59:Q60)>AVERAGE(AA60,AA59),ROUNDDOWN(((((AA59-Z59)+(AA60-Z60))/2)*(A60-A59))/27+S59+T59,0),IF(((((DataInput!Q60-Z60)+(DataInput!Q59-Z59))/2)*(A60-A59))/27+S59+T59>0,ROUNDDOWN(((((DataInput!Q60-Z59)+(DataInput!Q59-Z59))/2)*(A60-A59))/27+S59+T59,0),0)),0),0)*$X$5),1) -> 0 | AC59: 159.49 | AD59: =ROUNDDOWN((IF(AC60>0,IFERROR(IF(((((DataInput!Q59-AC59)+(DataInput!Q60-AC60))/2)*(A60-A59))/27+S59+T59>0,ROUNDDOWN(((((DataInput!Q59-AC59)+(DataInput!Q60-AC60))/2)*(A60-A59))/27+S59+T59,0),0),0),0)*$X$5),1) -> 0 | AE59: =DataInput!U59 -> 142 | AF59: =DataInput!S59 -> 124 | AG59: 173.6 | AH59: -31.6
A60: =IF(DataInput!A60<>"",DataInput!A60,"") -> 12350 | B60: =SUM(DataInput!C60,DataInput!Y60)+(DataInput!U60-DataInput!E60) -> 3985 | C60: =SUM(DataInput!D60,DataInput!Z60) -> 3837 | D60: =DataInput!U60 -> 148 | E60: =SUM(DataInput!F60,DataInput!AB60) -> 0 | F60: =SUM(DataInput!G60,DataInput!AC60) -> 0 | G60: =SUM(DataInput!H60,DataInput!AD60) -> 0 | H60: =DataInput!I60 -> 0 | I60: =SUM(DataInput!J60,DataInput!AF60) -> 0 | J60: =SUM(DataInput!K60,DataInput!AG60) -> 0 | K60: =SUM(DataInput!L60,DataInput!AH60) -> 0 | L60: =SUM(DataInput!M60,DataInput!AI60) -> 0 | M60: =SUM(DataInput!N60,DataInput!AJ60) -> 0 | N60: =SUM(DataInput!O60,DataInput!AK60) -> 0 | O60: =DataInput!P60 -> 0 | Q60: 3837 | R60: =DataInput!R60 -> 0 | S60: =DataInput!Y60 -> 0 | T60: =IF(DataInput!U60-DataInput!E60>0,DataInput!U60-DataInput!E60,"") ->  | U60: =IF(DataInput!W60-DataInput!I60>0,DataInput!W60-DataInput!I60,"") ->  | W60: 0 | X60: 0 | Y60: 3837 | Z60: 518.93 | AA60: 4146.34 | AB60: =ROUNDDOWN((IF(AA61>0,IFERROR(IF(AVERAGE(DataInput!Q60:Q61)>AVERAGE(AA61,AA60),ROUNDDOWN(((((AA60-Z60)+(AA61-Z61))/2)*(A61-A60))/27+S60+T60,0),IF(((((DataInput!Q61-Z61)+(DataInput!Q60-Z60))/2)*(A61-A60))/27+S60+T60>0,ROUNDDOWN(((((DataInput!Q61-Z60)+(DataInput!Q60-Z60))/2)*(A61-A60))/27+S60+T60,0),0)),0),0)*$X$5),1) -> 0 | AC60: 159.49 | AD60: =ROUNDDOWN((IF(AC61>0,IFERROR(IF(((((DataInput!Q60-AC60)+(DataInput!Q61-AC61))/2)*(A61-A60))/27+S60+T60>0,ROUNDDOWN(((((DataInput!Q60-AC60)+(DataInput!Q61-AC61))/2)*(A61-A60))/27+S60+T60,0),0),0),0)*$X$5),1) -> 0 | AE60: =DataInput!U60 -> 148 | AF60: =DataInput!S60 -> 130 | AG60: 182 | AH60: -34
A61: =IF(DataInput!A61<>"",DataInput!A61,"") -> 12375 | B61: =SUM(DataInput!C61,DataInput!Y61)+(DataInput!U61-DataInput!E61) -> 4250 | C61: =SUM(DataInput!D61,DataInput!Z61) -> 4095 | D61: =DataInput!U61 -> 155 | E61: =SUM(DataInput!F61,DataInput!AB61) -> 0 | F61: =SUM(DataInput!G61,DataInput!AC61) -> 0 | G61: =SUM(DataInput!H61,DataInput!AD61) -> 0 | H61: =DataInput!I61 -> 0 | I61: =SUM(DataInput!J61,DataInput!AF61) -> 0 | J61: =SUM(DataInput!K61,DataInput!AG61) -> 0 | K61: =SUM(DataInput!L61,DataInput!AH61) -> 0 | L61: =SUM(DataInput!M61,DataInput!AI61) -> 0 | M61: =SUM(DataInput!N61,DataInput!AJ61) -> 0 | N61: =SUM(DataInput!O61,DataInput!AK61) -> 0 | O61: =DataInput!P61 -> 0 | Q61: 4095 | R61: =DataInput!R61 -> 0 | S61: =DataInput!Y61 -> 0 | T61: =IF(DataInput!U61-DataInput!E61>0,DataInput!U61-DataInput!E61,"") ->  | U61: =IF(DataInput!W61-DataInput!I61>0,DataInput!W61-DataInput!I61,"") ->  | W61: 0 | X61: 0 | Y61: 4095 | Z61: 518.93 | AA61: 4146.34 | AB61: =ROUNDDOWN((IF(AA62>0,IFERROR(IF(AVERAGE(DataInput!Q61:Q62)>AVERAGE(AA62,AA61),ROUNDDOWN(((((AA61-Z61)+(AA62-Z62))/2)*(A62-A61))/27+S61+T61,0),IF(((((DataInput!Q62-Z62)+(DataInput!Q61-Z61))/2)*(A62-A61))/27+S61+T61>0,ROUNDDOWN(((((DataInput!Q62-Z61)+(DataInput!Q61-Z61))/2)*(A62-A61))/27+S61+T61,0),0)),0),0)*$X$5),1) -> 0 | AC61: 159.49 | AD61: =ROUNDDOWN((IF(AC62>0,IFERROR(IF(((((DataInput!Q61-AC61)+(DataInput!Q62-AC62))/2)*(A62-A61))/27+S61+T61>0,ROUNDDOWN(((((DataInput!Q61-AC61)+(DataInput!Q62-AC62))/2)*(A62-A61))/27+S61+T61,0),0),0),0)*$X$5),1) -> 0 | AE61: =DataInput!U61 -> 155 | AF61: =DataInput!S61 -> 138 | AG61: 193.2 | AH61: -38.2
A62: =IF(DataInput!A62<>"",DataInput!A62,"") -> 12400 | B62: =SUM(DataInput!C62,DataInput!Y62)+(DataInput!U62-DataInput!E62) -> 4527 | C62: =SUM(DataInput!D62,DataInput!Z62) -> 4368 | D62: =DataInput!U62 -> 159 | E62: =SUM(DataInput!F62,DataInput!AB62) -> 0 | F62: =SUM(DataInput!G62,DataInput!AC62) -> 0 | G62: =SUM(DataInput!H62,DataInput!AD62) -> 0 | H62: =DataInput!I62 -> 0 | I62: =SUM(DataInput!J62,DataInput!AF62) -> 0 | J62: =SUM(DataInput!K62,DataInput!AG62) -> 0 | K62: =SUM(DataInput!L62,DataInput!AH62) -> 0 | L62: =SUM(DataInput!M62,DataInput!AI62) -> 0 | M62: =SUM(DataInput!N62,DataInput!AJ62) -> 0 | N62: =SUM(DataInput!O62,DataInput!AK62) -> 0 | O62: =DataInput!P62 -> 0 | Q62: 4368 | R62: =DataInput!R62 -> 0 | S62: =DataInput!Y62 -> 0 | T62: =IF(DataInput!U62-DataInput!E62>0,DataInput!U62-DataInput!E62,"") ->  | U62: =IF(DataInput!W62-DataInput!I62>0,DataInput!W62-DataInput!I62,"") ->  | W62: 0 | X62: 0 | Y62: 4368 | Z62: 518.93 | AA62: 4146.34 | AB62: =ROUNDDOWN((IF(AA63>0,IFERROR(IF(AVERAGE(DataInput!Q62:Q63)>AVERAGE(AA63,AA62),ROUNDDOWN(((((AA62-Z62)+(AA63-Z63))/2)*(A63-A62))/27+S62+T62,0),IF(((((DataInput!Q63-Z63)+(DataInput!Q62-Z62))/2)*(A63-A62))/27+S62+T62>0,ROUNDDOWN(((((DataInput!Q63-Z62)+(DataInput!Q62-Z62))/2)*(A63-A62))/27+S62+T62,0),0)),0),0)*$X$5),1) -> 0 | AC62: 159.49 | AD62: =ROUNDDOWN((IF(AC63>0,IFERROR(IF(((((DataInput!Q62-AC62)+(DataInput!Q63-AC63))/2)*(A63-A62))/27+S62+T62>0,ROUNDDOWN(((((DataInput!Q62-AC62)+(DataInput!Q63-AC63))/2)*(A63-A62))/27+S62+T62,0),0),0),0)*$X$5),1) -> 0 | AE62: =DataInput!U62 -> 159 | AF62: =DataInput!S62 -> 144 | AG62: 201.6 | AH62: -42.6
A63: =IF(DataInput!A63<>"",DataInput!A63,"") -> 12425 | B63: =SUM(DataInput!C63,DataInput!Y63)+(DataInput!U63-DataInput!E63) -> 4811 | C63: =SUM(DataInput!D63,DataInput!Z63) -> 4644 | D63: =DataInput!U63 -> 167 | E63: =SUM(DataInput!F63,DataInput!AB63) -> 0 | F63: =SUM(DataInput!G63,DataInput!AC63) -> 0 | G63: =SUM(DataInput!H63,DataInput!AD63) -> 0 | H63: =DataInput!I63 -> 0 | I63: =SUM(DataInput!J63,DataInput!AF63) -> 0 | J63: =SUM(DataInput!K63,DataInput!AG63) -> 0 | K63: =SUM(DataInput!L63,DataInput!AH63) -> 0 | L63: =SUM(DataInput!M63,DataInput!AI63) -> 0 | M63: =SUM(DataInput!N63,DataInput!AJ63) -> 0 | N63: =SUM(DataInput!O63,DataInput!AK63) -> 0 | O63: =DataInput!P63 -> 0 | Q63: 4644 | R63: =DataInput!R63 -> 0 | S63: =DataInput!Y63 -> 0 | T63: =IF(DataInput!U63-DataInput!E63>0,DataInput!U63-DataInput!E63,"") ->  | U63: =IF(DataInput!W63-DataInput!I63>0,DataInput!W63-DataInput!I63,"") ->  | W63: 0 | X63: 0 | Y63: 4644 | Z63: 518.93 | AA63: 4146.34 | AB63: =ROUNDDOWN((IF(AA64>0,IFERROR(IF(AVERAGE(DataInput!Q63:Q64)>AVERAGE(AA64,AA63),ROUNDDOWN(((((AA63-Z63)+(AA64-Z64))/2)*(A64-A63))/27+S63+T63,0),IF(((((DataInput!Q64-Z64)+(DataInput!Q63-Z63))/2)*(A64-A63))/27+S63+T63>0,ROUNDDOWN(((((DataInput!Q64-Z63)+(DataInput!Q63-Z63))/2)*(A64-A63))/27+S63+T63,0),0)),0),0)*$X$5),1) -> 0 | AC63: 159.49 | AD63: =ROUNDDOWN((IF(AC64>0,IFERROR(IF(((((DataInput!Q63-AC63)+(DataInput!Q64-AC64))/2)*(A64-A63))/27+S63+T63>0,ROUNDDOWN(((((DataInput!Q63-AC63)+(DataInput!Q64-AC64))/2)*(A64-A63))/27+S63+T63,0),0),0),0)*$X$5),1) -> 0 | AE63: =DataInput!U63 -> 167 | AF63: =DataInput!S63 -> 156 | AG63: 218.4 | AH63: -51.4
A64: =IF(DataInput!A64<>"",DataInput!A64,"") -> 12450 | B64: =SUM(DataInput!C64,DataInput!Y64)+(DataInput!U64-DataInput!E64) -> 5078 | C64: =SUM(DataInput!D64,DataInput!Z64) -> 4906 | D64: =DataInput!U64 -> 172 | E64: =SUM(DataInput!F64,DataInput!AB64) -> 0 | F64: =SUM(DataInput!G64,DataInput!AC64) -> 0 | G64: =SUM(DataInput!H64,DataInput!AD64) -> 0 | H64: =DataInput!I64 -> 0 | I64: =SUM(DataInput!J64,DataInput!AF64) -> 0 | J64: =SUM(DataInput!K64,DataInput!AG64) -> 0 | K64: =SUM(DataInput!L64,DataInput!AH64) -> 0 | L64: =SUM(DataInput!M64,DataInput!AI64) -> 0 | M64: =SUM(DataInput!N64,DataInput!AJ64) -> 0 | N64: =SUM(DataInput!O64,DataInput!AK64) -> 0 | O64: =DataInput!P64 -> 0 | Q64: 4906 | R64: =DataInput!R64 -> 0 | S64: =DataInput!Y64 -> 0 | T64: =IF(DataInput!U64-DataInput!E64>0,DataInput!U64-DataInput!E64,"") ->  | U64: =IF(DataInput!W64-DataInput!I64>0,DataInput!W64-DataInput!I64,"") ->  | W64: 0 | X64: 0 | Y64: 4906 | Z64: 518.93 | AA64: 4146.34 | AB64: =ROUNDDOWN((IF(AA65>0,IFERROR(IF(AVERAGE(DataInput!Q64:Q65)>AVERAGE(AA65,AA64),ROUNDDOWN(((((AA64-Z64)+(AA65-Z65))/2)*(A65-A64))/27+S64+T64,0),IF(((((DataInput!Q65-Z65)+(DataInput!Q64-Z64))/2)*(A65-A64))/27+S64+T64>0,ROUNDDOWN(((((DataInput!Q65-Z64)+(DataInput!Q64-Z64))/2)*(A65-A64))/27+S64+T64,0),0)),0),0)*$X$5),1) -> 0 | AC64: 159.49 | AD64: =ROUNDDOWN((IF(AC65>0,IFERROR(IF(((((DataInput!Q64-AC64)+(DataInput!Q65-AC65))/2)*(A65-A64))/27+S64+T64>0,ROUNDDOWN(((((DataInput!Q64-AC64)+(DataInput!Q65-AC65))/2)*(A65-A64))/27+S64+T64,0),0),0),0)*$X$5),1) -> 0 | AE64: =DataInput!U64 -> 172 | AF64: =DataInput!S64 -> 166 | AG64: 232.4 | AH64: -60.4
A65: =IF(DataInput!A65<>"",DataInput!A65,"") -> 12475 | B65: =SUM(DataInput!C65,DataInput!Y65)+(DataInput!U65-DataInput!E65) -> 5353 | C65: =SUM(DataInput!D65,DataInput!Z65) -> 5184 | D65: =DataInput!U65 -> 169 | E65: =SUM(DataInput!F65,DataInput!AB65) -> 0 | F65: =SUM(DataInput!G65,DataInput!AC65) -> 0 | G65: =SUM(DataInput!H65,DataInput!AD65) -> 0 | H65: =DataInput!I65 -> 0 | I65: =SUM(DataInput!J65,DataInput!AF65) -> 0 | J65: =SUM(DataInput!K65,DataInput!AG65) -> 0 | K65: =SUM(DataInput!L65,DataInput!AH65) -> 0 | L65: =SUM(DataInput!M65,DataInput!AI65) -> 0 | M65: =SUM(DataInput!N65,DataInput!AJ65) -> 0 | N65: =SUM(DataInput!O65,DataInput!AK65) -> 0 | O65: =DataInput!P65 -> 0 | Q65: 5184 | R65: =DataInput!R65 -> 0 | S65: =DataInput!Y65 -> 0 | T65: =IF(DataInput!U65-DataInput!E65>0,DataInput!U65-DataInput!E65,"") ->  | U65: =IF(DataInput!W65-DataInput!I65>0,DataInput!W65-DataInput!I65,"") ->  | W65: 0 | X65: 0 | Y65: 5184 | Z65: 518.93 | AA65: 4146.34 | AB65: =ROUNDDOWN((IF(AA66>0,IFERROR(IF(AVERAGE(DataInput!Q65:Q66)>AVERAGE(AA66,AA65),ROUNDDOWN(((((AA65-Z65)+(AA66-Z66))/2)*(A66-A65))/27+S65+T65,0),IF(((((DataInput!Q66-Z66)+(DataInput!Q65-Z65))/2)*(A66-A65))/27+S65+T65>0,ROUNDDOWN(((((DataInput!Q66-Z65)+(DataInput!Q65-Z65))/2)*(A66-A65))/27+S65+T65,0),0)),0),0)*$X$5),1) -> 0 | AC65: 159.49 | AD65: =ROUNDDOWN((IF(AC66>0,IFERROR(IF(((((DataInput!Q65-AC65)+(DataInput!Q66-AC66))/2)*(A66-A65))/27+S65+T65>0,ROUNDDOWN(((((DataInput!Q65-AC65)+(DataInput!Q66-AC66))/2)*(A66-A65))/27+S65+T65,0),0),0),0)*$X$5),1) -> 0 | AE65: =DataInput!U65 -> 169 | AF65: =DataInput!S65 -> 168 | AG65: 235.2 | AH65: -66.2
A66: =IF(DataInput!A66<>"",DataInput!A66,"") -> 12500 | B66: =SUM(DataInput!C66,DataInput!Y66)+(DataInput!U66-DataInput!E66) -> 5686 | C66: =SUM(DataInput!D66,DataInput!Z66) -> 5521 | D66: =DataInput!U66 -> 165 | E66: =SUM(DataInput!F66,DataInput!AB66) -> 0 | F66: =SUM(DataInput!G66,DataInput!AC66) -> 0 | G66: =SUM(DataInput!H66,DataInput!AD66) -> 0 | H66: =DataInput!I66 -> 0 | I66: =SUM(DataInput!J66,DataInput!AF66) -> 0 | J66: =SUM(DataInput!K66,DataInput!AG66) -> 0 | K66: =SUM(DataInput!L66,DataInput!AH66) -> 0 | L66: =SUM(DataInput!M66,DataInput!AI66) -> 0 | M66: =SUM(DataInput!N66,DataInput!AJ66) -> 0 | N66: =SUM(DataInput!O66,DataInput!AK66) -> 0 | O66: =DataInput!P66 -> 0 | Q66: 5521 | R66: =DataInput!R66 -> 0 | S66: =DataInput!Y66 -> 0 | T66: =IF(DataInput!U66-DataInput!E66>0,DataInput!U66-DataInput!E66,"") ->  | U66: =IF(DataInput!W66-DataInput!I66>0,DataInput!W66-DataInput!I66,"") ->  | W66: 0 | X66: 0 | Y66: 5521 | Z66: 518.93 | AA66: 4146.34 | AB66: =ROUNDDOWN((IF(AA67>0,IFERROR(IF(AVERAGE(DataInput!Q66:Q67)>AVERAGE(AA67,AA66),ROUNDDOWN(((((AA66-Z66)+(AA67-Z67))/2)*(A67-A66))/27+S66+T66,0),IF(((((DataInput!Q67-Z67)+(DataInput!Q66-Z66))/2)*(A67-A66))/27+S66+T66>0,ROUNDDOWN(((((DataInput!Q67-Z66)+(DataInput!Q66-Z66))/2)*(A67-A66))/27+S66+T66,0),0)),0),0)*$X$5),1) -> 0 | AC66: 159.49 | AD66: =ROUNDDOWN((IF(AC67>0,IFERROR(IF(((((DataInput!Q66-AC66)+(DataInput!Q67-AC67))/2)*(A67-A66))/27+S66+T66>0,ROUNDDOWN(((((DataInput!Q66-AC66)+(DataInput!Q67-AC67))/2)*(A67-A66))/27+S66+T66,0),0),0),0)*$X$5),1) -> 0 | AE66: =DataInput!U66 -> 165 | AF66: =DataInput!S66 -> 169 | AG66: 236.6 | AH66: -71.6
A67: =IF(DataInput!A67<>"",DataInput!A67,"") -> 12525 | B67: =SUM(DataInput!C67,DataInput!Y67)+(DataInput!U67-DataInput!E67) -> 6074 | C67: =SUM(DataInput!D67,DataInput!Z67) -> 5908 | D67: =DataInput!U67 -> 166 | E67: =SUM(DataInput!F67,DataInput!AB67) -> 0 | F67: =SUM(DataInput!G67,DataInput!AC67) -> 0 | G67: =SUM(DataInput!H67,DataInput!AD67) -> 0 | H67: =DataInput!I67 -> 0 | I67: =SUM(DataInput!J67,DataInput!AF67) -> 0 | J67: =SUM(DataInput!K67,DataInput!AG67) -> 0 | K67: =SUM(DataInput!L67,DataInput!AH67) -> 0 | L67: =SUM(DataInput!M67,DataInput!AI67) -> 0 | M67: =SUM(DataInput!N67,DataInput!AJ67) -> 0 | N67: =SUM(DataInput!O67,DataInput!AK67) -> 0 | O67: =DataInput!P67 -> 0 | Q67: 5908 | R67: =DataInput!R67 -> 0 | S67: =DataInput!Y67 -> 0 | T67: =IF(DataInput!U67-DataInput!E67>0,DataInput!U67-DataInput!E67,"") ->  | U67: =IF(DataInput!W67-DataInput!I67>0,DataInput!W67-DataInput!I67,"") ->  | W67: 0 | X67: 0 | Y67: 5908 | Z67: 518.93 | AA67: 4146.34 | AB67: =ROUNDDOWN((IF(AA68>0,IFERROR(IF(AVERAGE(DataInput!Q67:Q68)>AVERAGE(AA68,AA67),ROUNDDOWN(((((AA67-Z67)+(AA68-Z68))/2)*(A68-A67))/27+S67+T67,0),IF(((((DataInput!Q68-Z68)+(DataInput!Q67-Z67))/2)*(A68-A67))/27+S67+T67>0,ROUNDDOWN(((((DataInput!Q68-Z67)+(DataInput!Q67-Z67))/2)*(A68-A67))/27+S67+T67,0),0)),0),0)*$X$5),1) -> 0 | AC67: 159.49 | AD67: =ROUNDDOWN((IF(AC68>0,IFERROR(IF(((((DataInput!Q67-AC67)+(DataInput!Q68-AC68))/2)*(A68-A67))/27+S67+T67>0,ROUNDDOWN(((((DataInput!Q67-AC67)+(DataInput!Q68-AC68))/2)*(A68-A67))/27+S67+T67,0),0),0),0)*$X$5),1) -> 0 | AE67: =DataInput!U67 -> 166 | AF67: =DataInput!S67 -> 172 | AG67: 240.8 | AH67: -74.8
A68: =IF(DataInput!A68<>"",DataInput!A68,"") -> 12550 | B68: =SUM(DataInput!C68,DataInput!Y68)+(DataInput!U68-DataInput!E68) -> 6477 | C68: =SUM(DataInput!D68,DataInput!Z68) -> 6304 | D68: =DataInput!U68 -> 173 | E68: =SUM(DataInput!F68,DataInput!AB68) -> 0 | F68: =SUM(DataInput!G68,DataInput!AC68) -> 0 | G68: =SUM(DataInput!H68,DataInput!AD68) -> 0 | H68: =DataInput!I68 -> 0 | I68: =SUM(DataInput!J68,DataInput!AF68) -> 0 | J68: =SUM(DataInput!K68,DataInput!AG68) -> 0 | K68: =SUM(DataInput!L68,DataInput!AH68) -> 0 | L68: =SUM(DataInput!M68,DataInput!AI68) -> 0 | M68: =SUM(DataInput!N68,DataInput!AJ68) -> 0 | N68: =SUM(DataInput!O68,DataInput!AK68) -> 0 | O68: =DataInput!P68 -> 0 | Q68: 6304 | R68: =DataInput!R68 -> 0 | S68: =DataInput!Y68 -> 0 | T68: =IF(DataInput!U68-DataInput!E68>0,DataInput!U68-DataInput!E68,"") ->  | U68: =IF(DataInput!W68-DataInput!I68>0,DataInput!W68-DataInput!I68,"") ->  | W68: 0 | X68: 0 | Y68: 6304 | Z68: 518.93 | AA68: 4146.34 | AB68: =ROUNDDOWN((IF(AA69>0,IFERROR(IF(AVERAGE(DataInput!Q68:Q69)>AVERAGE(AA69,AA68),ROUNDDOWN(((((AA68-Z68)+(AA69-Z69))/2)*(A69-A68))/27+S68+T68,0),IF(((((DataInput!Q69-Z69)+(DataInput!Q68-Z68))/2)*(A69-A68))/27+S68+T68>0,ROUNDDOWN(((((DataInput!Q69-Z68)+(DataInput!Q68-Z68))/2)*(A69-A68))/27+S68+T68,0),0)),0),0)*$X$5),1) -> 0 | AC68: 159.49 | AD68: =ROUNDDOWN((IF(AC69>0,IFERROR(IF(((((DataInput!Q68-AC68)+(DataInput!Q69-AC69))/2)*(A69-A68))/27+S68+T68>0,ROUNDDOWN(((((DataInput!Q68-AC68)+(DataInput!Q69-AC69))/2)*(A69-A68))/27+S68+T68,0),0),0),0)*$X$5),1) -> 0 | AE68: =DataInput!U68 -> 173 | AF68: =DataInput!S68 -> 174 | AG68: 243.6 | AH68: -70.6
A69: =IF(DataInput!A69<>"",DataInput!A69,"") -> 12575 | B69: =SUM(DataInput!C69,DataInput!Y69)+(DataInput!U69-DataInput!E69) -> 6780 | C69: =SUM(DataInput!D69,DataInput!Z69) -> 6598 | D69: =DataInput!U69 -> 182 | E69: =SUM(DataInput!F69,DataInput!AB69) -> 0 | F69: =SUM(DataInput!G69,DataInput!AC69) -> 0 | G69: =SUM(DataInput!H69,DataInput!AD69) -> 0 | H69: =DataInput!I69 -> 0 | I69: =SUM(DataInput!J69,DataInput!AF69) -> 0 | J69: =SUM(DataInput!K69,DataInput!AG69) -> 0 | K69: =SUM(DataInput!L69,DataInput!AH69) -> 0 | L69: =SUM(DataInput!M69,DataInput!AI69) -> 0 | M69: =SUM(DataInput!N69,DataInput!AJ69) -> 0 | N69: =SUM(DataInput!O69,DataInput!AK69) -> 0 | O69: =DataInput!P69 -> 0 | Q69: 6598 | R69: =DataInput!R69 -> 0 | S69: =DataInput!Y69 -> 0 | T69: =IF(DataInput!U69-DataInput!E69>0,DataInput!U69-DataInput!E69,"") ->  | U69: =IF(DataInput!W69-DataInput!I69>0,DataInput!W69-DataInput!I69,"") ->  | W69: 0 | X69: 0 | Y69: 6598 | Z69: 518.93 | AA69: 4146.34 | AB69: =ROUNDDOWN((IF(AA70>0,IFERROR(IF(AVERAGE(DataInput!Q69:Q70)>AVERAGE(AA70,AA69),ROUNDDOWN(((((AA69-Z69)+(AA70-Z70))/2)*(A70-A69))/27+S69+T69,0),IF(((((DataInput!Q70-Z70)+(DataInput!Q69-Z69))/2)*(A70-A69))/27+S69+T69>0,ROUNDDOWN(((((DataInput!Q70-Z69)+(DataInput!Q69-Z69))/2)*(A70-A69))/27+S69+T69,0),0)),0),0)*$X$5),1) -> 0 | AC69: 159.49 | AD69: =ROUNDDOWN((IF(AC70>0,IFERROR(IF(((((DataInput!Q69-AC69)+(DataInput!Q70-AC70))/2)*(A70-A69))/27+S69+T69>0,ROUNDDOWN(((((DataInput!Q69-AC69)+(DataInput!Q70-AC70))/2)*(A70-A69))/27+S69+T69,0),0),0),0)*$X$5),1) -> 0 | AE69: =DataInput!U69 -> 182 | AF69: =DataInput!S69 -> 176 | AG69: 246.4 | AH69: -64.4
A70: =IF(DataInput!A70<>"",DataInput!A70,"") -> 12600 | B70: =SUM(DataInput!C70,DataInput!Y70)+(DataInput!U70-DataInput!E70) -> 6955 | C70: =SUM(DataInput!D70,DataInput!Z70) -> 6569 | D70: =DataInput!U70 -> 193 | E70: =SUM(DataInput!F70,DataInput!AB70) -> 0 | F70: =SUM(DataInput!G70,DataInput!AC70) -> 0 | G70: =SUM(DataInput!H70,DataInput!AD70) -> 0 | H70: =DataInput!I70 -> 0 | I70: =SUM(DataInput!J70,DataInput!AF70) -> 192 | J70: =SUM(DataInput!K70,DataInput!AG70) -> 0 | K70: =SUM(DataInput!L70,DataInput!AH70) -> 0 | L70: =SUM(DataInput!M70,DataInput!AI70) -> 0 | M70: =SUM(DataInput!N70,DataInput!AJ70) -> 0 | N70: =SUM(DataInput!O70,DataInput!AK70) -> 0 | O70: =DataInput!P70 -> 0 | Q70: 6761 | R70: =DataInput!R70 -> 0 | S70: =DataInput!Y70 -> 0 | T70: =IF(DataInput!U70-DataInput!E70>0,DataInput!U70-DataInput!E70,"") ->  | U70: =IF(DataInput!W70-DataInput!I70>0,DataInput!W70-DataInput!I70,"") ->  | W70: 0 | X70: 0 | Y70: 6761 | Z70: 518.93 | AA70: 4146.34 | AB70: =ROUNDDOWN((IF(AA71>0,IFERROR(IF(AVERAGE(DataInput!Q70:Q71)>AVERAGE(AA71,AA70),ROUNDDOWN(((((AA70-Z70)+(AA71-Z71))/2)*(A71-A70))/27+S70+T70,0),IF(((((DataInput!Q71-Z71)+(DataInput!Q70-Z70))/2)*(A71-A70))/27+S70+T70>0,ROUNDDOWN(((((DataInput!Q71-Z70)+(DataInput!Q70-Z70))/2)*(A71-A70))/27+S70+T70,0),0)),0),0)*$X$5),1) -> 0 | AC70: 159.49 | AD70: =ROUNDDOWN((IF(AC71>0,IFERROR(IF(((((DataInput!Q70-AC70)+(DataInput!Q71-AC71))/2)*(A71-A70))/27+S70+T70>0,ROUNDDOWN(((((DataInput!Q70-AC70)+(DataInput!Q71-AC71))/2)*(A71-A70))/27+S70+T70,0),0),0),0)*$X$5),1) -> 0 | AE70: =DataInput!U70 -> 193 | AF70: =DataInput!S70 -> 184 | AG70: 257.6 | AH70: -64.6
A71: =IF(DataInput!A71<>"",DataInput!A71,"") -> 12625 | B71: =SUM(DataInput!C71,DataInput!Y71)+(DataInput!U71-DataInput!E71) -> 7061 | C71: =SUM(DataInput!D71,DataInput!Z71) -> 6488 | D71: =DataInput!U71 -> 199 | E71: =SUM(DataInput!F71,DataInput!AB71) -> 0 | F71: =SUM(DataInput!G71,DataInput!AC71) -> 0 | G71: =SUM(DataInput!H71,DataInput!AD71) -> 0 | H71: =DataInput!I71 -> 0 | I71: =SUM(DataInput!J71,DataInput!AF71) -> 374 | J71: =SUM(DataInput!K71,DataInput!AG71) -> 0 | K71: =SUM(DataInput!L71,DataInput!AH71) -> 0 | L71: =SUM(DataInput!M71,DataInput!AI71) -> 0 | M71: =SUM(DataInput!N71,DataInput!AJ71) -> 0 | N71: =SUM(DataInput!O71,DataInput!AK71) -> 0 | O71: =DataInput!P71 -> 0 | Q71: 6862 | R71: =DataInput!R71 -> 0 | S71: =DataInput!Y71 -> 0 | T71: =IF(DataInput!U71-DataInput!E71>0,DataInput!U71-DataInput!E71,"") ->  | U71: =IF(DataInput!W71-DataInput!I71>0,DataInput!W71-DataInput!I71,"") ->  | W71: 0 | X71: 0 | Y71: 6862 | Z71: 518.93 | AA71: 4146.34 | AB71: =ROUNDDOWN((IF(AA72>0,IFERROR(IF(AVERAGE(DataInput!Q71:Q72)>AVERAGE(AA72,AA71),ROUNDDOWN(((((AA71-Z71)+(AA72-Z72))/2)*(A72-A71))/27+S71+T71,0),IF(((((DataInput!Q72-Z72)+(DataInput!Q71-Z71))/2)*(A72-A71))/27+S71+T71>0,ROUNDDOWN(((((DataInput!Q72-Z71)+(DataInput!Q71-Z71))/2)*(A72-A71))/27+S71+T71,0),0)),0),0)*$X$5),1) -> 0 | AC71: 159.49 | AD71: =ROUNDDOWN((IF(AC72>0,IFERROR(IF(((((DataInput!Q71-AC71)+(DataInput!Q72-AC72))/2)*(A72-A71))/27+S71+T71>0,ROUNDDOWN(((((DataInput!Q71-AC71)+(DataInput!Q72-AC72))/2)*(A72-A71))/27+S71+T71,0),0),0),0)*$X$5),1) -> 0 | AE71: =DataInput!U71 -> 199 | AF71: =DataInput!S71 -> 191 | AG71: 267.4 | AH71: -68.4
A72: =IF(DataInput!A72<>"",DataInput!A72,"") -> 12650 | B72: =SUM(DataInput!C72,DataInput!Y72)+(DataInput!U72-DataInput!E72) -> 7103 | C72: =SUM(DataInput!D72,DataInput!Z72) -> 6554 | D72: =DataInput!U72 -> 198 | E72: =SUM(DataInput!F72,DataInput!AB72) -> 0 | F72: =SUM(DataInput!G72,DataInput!AC72) -> 0 | G72: =SUM(DataInput!H72,DataInput!AD72) -> 0 | H72: =DataInput!I72 -> 0 | I72: =SUM(DataInput!J72,DataInput!AF72) -> 351 | J72: =SUM(DataInput!K72,DataInput!AG72) -> 0 | K72: =SUM(DataInput!L72,DataInput!AH72) -> 0 | L72: =SUM(DataInput!M72,DataInput!AI72) -> 0 | M72: =SUM(DataInput!N72,DataInput!AJ72) -> 0 | N72: =SUM(DataInput!O72,DataInput!AK72) -> 0 | O72: =DataInput!P72 -> 0 | Q72: 6905 | R72: =DataInput!R72 -> 0 | S72: =DataInput!Y72 -> 0 | T72: =IF(DataInput!U72-DataInput!E72>0,DataInput!U72-DataInput!E72,"") ->  | U72: =IF(DataInput!W72-DataInput!I72>0,DataInput!W72-DataInput!I72,"") ->  | W72: 0 | X72: 0 | Y72: 6905 | Z72: 518.93 | AA72: 4146.34 | AB72: =ROUNDDOWN((IF(AA73>0,IFERROR(IF(AVERAGE(DataInput!Q72:Q73)>AVERAGE(AA73,AA72),ROUNDDOWN(((((AA72-Z72)+(AA73-Z73))/2)*(A73-A72))/27+S72+T72,0),IF(((((DataInput!Q73-Z73)+(DataInput!Q72-Z72))/2)*(A73-A72))/27+S72+T72>0,ROUNDDOWN(((((DataInput!Q73-Z72)+(DataInput!Q72-Z72))/2)*(A73-A72))/27+S72+T72,0),0)),0),0)*$X$5),1) -> 0 | AC72: 159.49 | AD72: =ROUNDDOWN((IF(AC73>0,IFERROR(IF(((((DataInput!Q72-AC72)+(DataInput!Q73-AC73))/2)*(A73-A72))/27+S72+T72>0,ROUNDDOWN(((((DataInput!Q72-AC72)+(DataInput!Q73-AC73))/2)*(A73-A72))/27+S72+T72,0),0),0),0)*$X$5),1) -> 0 | AE72: =DataInput!U72 -> 198 | AF72: =DataInput!S72 -> 190 | AG72: 266 | AH72: -68
A73: =IF(DataInput!A73<>"",DataInput!A73,"") -> 12675 | B73: =SUM(DataInput!C73,DataInput!Y73)+(DataInput!U73-DataInput!E73) -> 7089 | C73: =SUM(DataInput!D73,DataInput!Z73) -> 6145 | D73: =DataInput!U73 -> 196 | E73: =SUM(DataInput!F73,DataInput!AB73) -> 0 | F73: =SUM(DataInput!G73,DataInput!AC73) -> 430 | G73: =SUM(DataInput!H73,DataInput!AD73) -> 0 | H73: =DataInput!I73 -> 0 | I73: =SUM(DataInput!J73,DataInput!AF73) -> 318 | J73: =SUM(DataInput!K73,DataInput!AG73) -> 0 | K73: =SUM(DataInput!L73,DataInput!AH73) -> 0 | L73: =SUM(DataInput!M73,DataInput!AI73) -> 0 | M73: =SUM(DataInput!N73,DataInput!AJ73) -> 0 | N73: =SUM(DataInput!O73,DataInput!AK73) -> 0 | O73: =DataInput!P73 -> 0 | Q73: 6893 | R73: =DataInput!R73 -> 0 | S73: =DataInput!Y73 -> 0 | T73: =IF(DataInput!U73-DataInput!E73>0,DataInput!U73-DataInput!E73,"") ->  | U73: =IF(DataInput!W73-DataInput!I73>0,DataInput!W73-DataInput!I73,"") ->  | W73: 0 | X73: 0 | Y73: 6893 | Z73: 518.93 | AA73: 4146.34 | AB73: =ROUNDDOWN((IF(AA74>0,IFERROR(IF(AVERAGE(DataInput!Q73:Q74)>AVERAGE(AA74,AA73),ROUNDDOWN(((((AA73-Z73)+(AA74-Z74))/2)*(A74-A73))/27+S73+T73,0),IF(((((DataInput!Q74-Z74)+(DataInput!Q73-Z73))/2)*(A74-A73))/27+S73+T73>0,ROUNDDOWN(((((DataInput!Q74-Z73)+(DataInput!Q73-Z73))/2)*(A74-A73))/27+S73+T73,0),0)),0),0)*$X$5),1) -> 0 | AC73: 159.49 | AD73: =ROUNDDOWN((IF(AC74>0,IFERROR(IF(((((DataInput!Q73-AC73)+(DataInput!Q74-AC74))/2)*(A74-A73))/27+S73+T73>0,ROUNDDOWN(((((DataInput!Q73-AC73)+(DataInput!Q74-AC74))/2)*(A74-A73))/27+S73+T73,0),0),0),0)*$X$5),1) -> 0 | AE73: =DataInput!U73 -> 196 | AF73: =DataInput!S73 -> 187 | AG73: 261.8 | AH73: -65.8
A74: =IF(DataInput!A74<>"",DataInput!A74,"") -> 12700 | B74: =SUM(DataInput!C74,DataInput!Y74)+(DataInput!U74-DataInput!E74) -> 6994 | C74: =SUM(DataInput!D74,DataInput!Z74) -> 5615 | D74: =DataInput!U74 -> 194 | E74: =SUM(DataInput!F74,DataInput!AB74) -> 0 | F74: =SUM(DataInput!G74,DataInput!AC74) -> 908 | G74: =SUM(DataInput!H74,DataInput!AD74) -> 0 | H74: =DataInput!I74 -> 0 | I74: =SUM(DataInput!J74,DataInput!AF74) -> 277 | J74: =SUM(DataInput!K74,DataInput!AG74) -> 0 | K74: =SUM(DataInput!L74,DataInput!AH74) -> 0 | L74: =SUM(DataInput!M74,DataInput!AI74) -> 0 | M74: =SUM(DataInput!N74,DataInput!AJ74) -> 0 | N74: =SUM(DataInput!O74,DataInput!AK74) -> 0 | O74: =DataInput!P74 -> 0 | Q74: 6800 | R74: =DataInput!R74 -> 0 | S74: =DataInput!Y74 -> 0 | T74: =IF(DataInput!U74-DataInput!E74>0,DataInput!U74-DataInput!E74,"") ->  | U74: =IF(DataInput!W74-DataInput!I74>0,DataInput!W74-DataInput!I74,"") ->  | W74: 0 | X74: 0 | Y74: 6800 | Z74: 518.93 | AA74: 4146.34 | AB74: =ROUNDDOWN((IF(AA75>0,IFERROR(IF(AVERAGE(DataInput!Q74:Q75)>AVERAGE(AA75,AA74),ROUNDDOWN(((((AA74-Z74)+(AA75-Z75))/2)*(A75-A74))/27+S74+T74,0),IF(((((DataInput!Q75-Z75)+(DataInput!Q74-Z74))/2)*(A75-A74))/27+S74+T74>0,ROUNDDOWN(((((DataInput!Q75-Z74)+(DataInput!Q74-Z74))/2)*(A75-A74))/27+S74+T74,0),0)),0),0)*$X$5),1) -> 0 | AC74: 159.49 | AD74: =ROUNDDOWN((IF(AC75>0,IFERROR(IF(((((DataInput!Q74-AC74)+(DataInput!Q75-AC75))/2)*(A75-A74))/27+S74+T74>0,ROUNDDOWN(((((DataInput!Q74-AC74)+(DataInput!Q75-AC75))/2)*(A75-A74))/27+S74+T74,0),0),0),0)*$X$5),1) -> 0 | AE74: =DataInput!U74 -> 194 | AF74: =DataInput!S74 -> 184 | AG74: 257.6 | AH74: -63.6
A75: =IF(DataInput!A75<>"",DataInput!A75,"") -> 12725 | B75: =SUM(DataInput!C75,DataInput!Y75)+(DataInput!U75-DataInput!E75) -> 6835 | C75: =SUM(DataInput!D75,DataInput!Z75) -> 5445 | D75: =DataInput!U75 -> 192 | E75: =SUM(DataInput!F75,DataInput!AB75) -> 0 | F75: =SUM(DataInput!G75,DataInput!AC75) -> 962 | G75: =SUM(DataInput!H75,DataInput!AD75) -> 0 | H75: =DataInput!I75 -> 0 | I75: =SUM(DataInput!J75,DataInput!AF75) -> 236 | J75: =SUM(DataInput!K75,DataInput!AG75) -> 0 | K75: =SUM(DataInput!L75,DataInput!AH75) -> 0 | L75: =SUM(DataInput!M75,DataInput!AI75) -> 0 | M75: =SUM(DataInput!N75,DataInput!AJ75) -> 0 | N75: =SUM(DataInput!O75,DataInput!AK75) -> 0 | O75: =DataInput!P75 -> 0 | Q75: 6643 | R75: =DataInput!R75 -> 0 | S75: =DataInput!Y75 -> 0 | T75: =IF(DataInput!U75-DataInput!E75>0,DataInput!U75-DataInput!E75,"") ->  | U75: =IF(DataInput!W75-DataInput!I75>0,DataInput!W75-DataInput!I75,"") ->  | W75: 0 | X75: 0 | Y75: 6643 | Z75: 518.93 | AA75: 4146.34 | AB75: =ROUNDDOWN((IF(AA76>0,IFERROR(IF(AVERAGE(DataInput!Q75:Q76)>AVERAGE(AA76,AA75),ROUNDDOWN(((((AA75-Z75)+(AA76-Z76))/2)*(A76-A75))/27+S75+T75,0),IF(((((DataInput!Q76-Z76)+(DataInput!Q75-Z75))/2)*(A76-A75))/27+S75+T75>0,ROUNDDOWN(((((DataInput!Q76-Z75)+(DataInput!Q75-Z75))/2)*(A76-A75))/27+S75+T75,0),0)),0),0)*$X$5),1) -> 0 | AC75: 159.49 | AD75: =ROUNDDOWN((IF(AC76>0,IFERROR(IF(((((DataInput!Q75-AC75)+(DataInput!Q76-AC76))/2)*(A76-A75))/27+S75+T75>0,ROUNDDOWN(((((DataInput!Q75-AC75)+(DataInput!Q76-AC76))/2)*(A76-A75))/27+S75+T75,0),0),0),0)*$X$5),1) -> 0 | AE75: =DataInput!U75 -> 192 | AF75: =DataInput!S75 -> 182 | AG75: 254.8 | AH75: -62.8
A76: =IF(DataInput!A76<>"",DataInput!A76,"") -> 12750 | B76: =SUM(DataInput!C76,DataInput!Y76)+(DataInput!U76-DataInput!E76) -> 6672 | C76: =SUM(DataInput!D76,DataInput!Z76) -> 5308 | D76: =DataInput!U76 -> 190 | E76: =SUM(DataInput!F76,DataInput!AB76) -> 0 | F76: =SUM(DataInput!G76,DataInput!AC76) -> 979 | G76: =SUM(DataInput!H76,DataInput!AD76) -> 0 | H76: =DataInput!I76 -> 0 | I76: =SUM(DataInput!J76,DataInput!AF76) -> 196 | J76: =SUM(DataInput!K76,DataInput!AG76) -> 0 | K76: =SUM(DataInput!L76,DataInput!AH76) -> 0 | L76: =SUM(DataInput!M76,DataInput!AI76) -> 0 | M76: =SUM(DataInput!N76,DataInput!AJ76) -> 0 | N76: =SUM(DataInput!O76,DataInput!AK76) -> 0 | O76: =DataInput!P76 -> 0 | Q76: 6483 | R76: =DataInput!R76 -> 0 | S76: =DataInput!Y76 -> 0 | T76: =IF(DataInput!U76-DataInput!E76>0,DataInput!U76-DataInput!E76,"") ->  | U76: =IF(DataInput!W76-DataInput!I76>0,DataInput!W76-DataInput!I76,"") ->  | W76: 0 | X76: 0 | Y76: 6483 | Z76: 518.93 | AA76: 4146.34 | AB76: =ROUNDDOWN((IF(AA77>0,IFERROR(IF(AVERAGE(DataInput!Q76:Q77)>AVERAGE(AA77,AA76),ROUNDDOWN(((((AA76-Z76)+(AA77-Z77))/2)*(A77-A76))/27+S76+T76,0),IF(((((DataInput!Q77-Z77)+(DataInput!Q76-Z76))/2)*(A77-A76))/27+S76+T76>0,ROUNDDOWN(((((DataInput!Q77-Z76)+(DataInput!Q76-Z76))/2)*(A77-A76))/27+S76+T76,0),0)),0),0)*$X$5),1) -> 0 | AC76: 159.49 | AD76: =ROUNDDOWN((IF(AC77>0,IFERROR(IF(((((DataInput!Q76-AC76)+(DataInput!Q77-AC77))/2)*(A77-A76))/27+S76+T76>0,ROUNDDOWN(((((DataInput!Q76-AC76)+(DataInput!Q77-AC77))/2)*(A77-A76))/27+S76+T76,0),0),0),0)*$X$5),1) -> 0 | AE76: =DataInput!U76 -> 190 | AF76: =DataInput!S76 -> 179 | AG76: 250.6 | AH76: -60.6
A77: =IF(DataInput!A77<>"",DataInput!A77,"") -> 12775 | B77: =SUM(DataInput!C77,DataInput!Y77)+(DataInput!U77-DataInput!E77) -> 6630 | C77: =SUM(DataInput!D77,DataInput!Z77) -> 5237 | D77: =DataInput!U77 -> 188 | E77: =SUM(DataInput!F77,DataInput!AB77) -> 0 | F77: =SUM(DataInput!G77,DataInput!AC77) -> 1042 | G77: =SUM(DataInput!H77,DataInput!AD77) -> 0 | H77: =DataInput!I77 -> 0 | I77: =SUM(DataInput!J77,DataInput!AF77) -> 163 | J77: =SUM(DataInput!K77,DataInput!AG77) -> 0 | K77: =SUM(DataInput!L77,DataInput!AH77) -> 0 | L77: =SUM(DataInput!M77,DataInput!AI77) -> 0 | M77: =SUM(DataInput!N77,DataInput!AJ77) -> 0 | N77: =SUM(DataInput!O77,DataInput!AK77) -> 0 | O77: =DataInput!P77 -> 0 | Q77: =SUM(C77,E77:G77,I77:L77,N77:P77) -> 6442 | R77: =DataInput!R77 -> 0 | S77: =DataInput!Y77 -> 0 | T77: =IF(DataInput!U77-DataInput!E77>0,DataInput!U77-DataInput!E77,"") ->  | U77: =IF(DataInput!W77-DataInput!I77>0,DataInput!W77-DataInput!I77,"") ->  | W77: =SUM(R77:V77) -> 0 | X77: =ROUNDUP(($W77*$X$5),1) -> 0 | Y77: =ROUNDUP(SUM(Q77-X77),1) -> 6442 | Z77: 518.93 | AA77: 4146.34 | AB77: =ROUNDDOWN((IF(AA78>0,IFERROR(IF(AVERAGE(DataInput!Q77:Q78)>AVERAGE(AA78,AA77),ROUNDDOWN(((((AA77-Z77)+(AA78-Z78))/2)*(A78-A77))/27+S77+T77,0),IF(((((DataInput!Q78-Z78)+(DataInput!Q77-Z77))/2)*(A78-A77))/27+S77+T77>0,ROUNDDOWN(((((DataInput!Q78-Z77)+(DataInput!Q77-Z77))/2)*(A78-A77))/27+S77+T77,0),0)),0),0)*$X$5),1) -> 0 | AC77: 159.49 | AD77: =ROUNDDOWN((IF(AC78>0,IFERROR(IF(((((DataInput!Q77-AC77)+(DataInput!Q78-AC78))/2)*(A78-A77))/27+S77+T77>0,ROUNDDOWN(((((DataInput!Q77-AC77)+(DataInput!Q78-AC78))/2)*(A78-A77))/27+S77+T77,0),0),0),0)*$X$5),1) -> 0 | AE77: =DataInput!U77 -> 188 | AF77: =DataInput!S77 -> 177 | AG77: =ROUNDUP((AF77*$AG$5),1) -> 247.8 | AH77: =ROUNDUP((AE77-AG77),1) -> -59.8
A78: =IF(DataInput!A78<>"",DataInput!A78,"") -> 12800 | B78: =SUM(DataInput!C78,DataInput!Y78)+(DataInput!U78-DataInput!E78) -> 6830 | C78: =SUM(DataInput!D78,DataInput!Z78) -> 5353 | D78: =DataInput!U78 -> 188 | E78: =SUM(DataInput!F78,DataInput!AB78) -> 0 | F78: =SUM(DataInput!G78,DataInput!AC78) -> 1144 | G78: =SUM(DataInput!H78,DataInput!AD78) -> 0 | H78: =DataInput!I78 -> 0 | I78: =SUM(DataInput!J78,DataInput!AF78) -> 145 | J78: =SUM(DataInput!K78,DataInput!AG78) -> 0 | K78: =SUM(DataInput!L78,DataInput!AH78) -> 0 | L78: =SUM(DataInput!M78,DataInput!AI78) -> 0 | M78: =SUM(DataInput!N78,DataInput!AJ78) -> 0 | N78: =SUM(DataInput!O78,DataInput!AK78) -> 0 | O78: =DataInput!P78 -> 0 | Q78: 6642 | R78: =DataInput!R78 -> 0 | S78: =DataInput!Y78 -> 0 | T78: =IF(DataInput!U78-DataInput!E78>0,DataInput!U78-DataInput!E78,"") ->  | U78: =IF(DataInput!W78-DataInput!I78>0,DataInput!W78-DataInput!I78,"") ->  | W78: 0 | X78: 0 | Y78: 6642 | Z78: =Z77 -> 518.93 | AA78: =AA77 -> 4146.34 | AB78: =ROUNDDOWN((IF(AA79>0,IFERROR(IF(AVERAGE(DataInput!Q78:Q79)>AVERAGE(AA79,AA78),ROUNDDOWN(((((AA78-Z78)+(AA79-Z79))/2)*(A79-A78))/27+S78+T78,0),IF(((((DataInput!Q79-Z79)+(DataInput!Q78-Z78))/2)*(A79-A78))/27+S78+T78>0,ROUNDDOWN(((((DataInput!Q79-Z78)+(DataInput!Q78-Z78))/2)*(A79-A78))/27+S78+T78,0),0)),0),0)*$X$5),1) -> 0 | AC78: =AC77 -> 159.49 | AD78: =ROUNDDOWN((IF(AC79>0,IFERROR(IF(((((DataInput!Q78-AC78)+(DataInput!Q79-AC79))/2)*(A79-A78))/27+S78+T78>0,ROUNDDOWN(((((DataInput!Q78-AC78)+(DataInput!Q79-AC79))/2)*(A79-A78))/27+S78+T78,0),0),0),0)*$X$5),1) -> 0 | AE78: =DataInput!U78 -> 188 | AF78: =DataInput!S78 -> 177 | AG78: 247.8 | AH78: -59.8
A79: =IF(DataInput!A79<>"",DataInput!A79,"") -> 12825 | B79: =SUM(DataInput!C79,DataInput!Y79)+(DataInput!U79-DataInput!E79) -> 7089 | C79: =SUM(DataInput!D79,DataInput!Z79) -> 5575 | D79: =DataInput!U79 -> 188 | E79: =SUM(DataInput!F79,DataInput!AB79) -> 0 | F79: =SUM(DataInput!G79,DataInput!AC79) -> 1196 | G79: =SUM(DataInput!H79,DataInput!AD79) -> 0 | H79: =DataInput!I79 -> 0 | I79: =SUM(DataInput!J79,DataInput!AF79) -> 130 | J79: =SUM(DataInput!K79,DataInput!AG79) -> 0 | K79: =SUM(DataInput!L79,DataInput!AH79) -> 0 | L79: =SUM(DataInput!M79,DataInput!AI79) -> 0 | M79: =SUM(DataInput!N79,DataInput!AJ79) -> 0 | N79: =SUM(DataInput!O79,DataInput!AK79) -> 0 | O79: =DataInput!P79 -> 0 | Q79: 6901 | R79: =DataInput!R79 -> 0 | S79: =DataInput!Y79 -> 0 | T79: =IF(DataInput!U79-DataInput!E79>0,DataInput!U79-DataInput!E79,"") ->  | U79: =IF(DataInput!W79-DataInput!I79>0,DataInput!W79-DataInput!I79,"") ->  | W79: 0 | X79: 0 | Y79: 6901 | Z79: 518.93 | AA79: 4146.34 | AB79: =ROUNDDOWN((IF(AA80>0,IFERROR(IF(AVERAGE(DataInput!Q79:Q80)>AVERAGE(AA80,AA79),ROUNDDOWN(((((AA79-Z79)+(AA80-Z80))/2)*(A80-A79))/27+S79+T79,0),IF(((((DataInput!Q80-Z80)+(DataInput!Q79-Z79))/2)*(A80-A79))/27+S79+T79>0,ROUNDDOWN(((((DataInput!Q80-Z79)+(DataInput!Q79-Z79))/2)*(A80-A79))/27+S79+T79,0),0)),0),0)*$X$5),1) -> 0 | AC79: 159.49 | AD79: =ROUNDDOWN((IF(AC80>0,IFERROR(IF(((((DataInput!Q79-AC79)+(DataInput!Q80-AC80))/2)*(A80-A79))/27+S79+T79>0,ROUNDDOWN(((((DataInput!Q79-AC79)+(DataInput!Q80-AC80))/2)*(A80-A79))/27+S79+T79,0),0),0),0)*$X$5),1) -> 0 | AE79: =DataInput!U79 -> 188 | AF79: =DataInput!S79 -> 177 | AG79: 247.8 | AH79: -59.8
A80: =IF(DataInput!A80<>"",DataInput!A80,"") -> 12850 | B80: =SUM(DataInput!C80,DataInput!Y80)+(DataInput!U80-DataInput!E80) -> 7204 | C80: =SUM(DataInput!D80,DataInput!Z80) -> 5728 | D80: =DataInput!U80 -> 188 | E80: =SUM(DataInput!F80,DataInput!AB80) -> 0 | F80: =SUM(DataInput!G80,DataInput!AC80) -> 1176 | G80: =SUM(DataInput!H80,DataInput!AD80) -> 0 | H80: =DataInput!I80 -> 0 | I80: =SUM(DataInput!J80,DataInput!AF80) -> 112 | J80: =SUM(DataInput!K80,DataInput!AG80) -> 0 | K80: =SUM(DataInput!L80,DataInput!AH80) -> 0 | L80: =SUM(DataInput!M80,DataInput!AI80) -> 0 | M80: =SUM(DataInput!N80,DataInput!AJ80) -> 0 | N80: =SUM(DataInput!O80,DataInput!AK80) -> 0 | O80: =DataInput!P80 -> 0 | Q80: 7016 | R80: =DataInput!R80 -> 0 | S80: =DataInput!Y80 -> 0 | T80: =IF(DataInput!U80-DataInput!E80>0,DataInput!U80-DataInput!E80,"") ->  | U80: =IF(DataInput!W80-DataInput!I80>0,DataInput!W80-DataInput!I80,"") ->  | W80: 0 | X80: 0 | Y80: 7016 | Z80: 518.93 | AA80: 4146.34 | AB80: =ROUNDDOWN((IF(AA81>0,IFERROR(IF(AVERAGE(DataInput!Q80:Q81)>AVERAGE(AA81,AA80),ROUNDDOWN(((((AA80-Z80)+(AA81-Z81))/2)*(A81-A80))/27+S80+T80,0),IF(((((DataInput!Q81-Z81)+(DataInput!Q80-Z80))/2)*(A81-A80))/27+S80+T80>0,ROUNDDOWN(((((DataInput!Q81-Z80)+(DataInput!Q80-Z80))/2)*(A81-A80))/27+S80+T80,0),0)),0),0)*$X$5),1) -> 0 | AC80: 159.49 | AD80: =ROUNDDOWN((IF(AC81>0,IFERROR(IF(((((DataInput!Q80-AC80)+(DataInput!Q81-AC81))/2)*(A81-A80))/27+S80+T80>0,ROUNDDOWN(((((DataInput!Q80-AC80)+(DataInput!Q81-AC81))/2)*(A81-A80))/27+S80+T80,0),0),0),0)*$X$5),1) -> 0 | AE80: =DataInput!U80 -> 188 | AF80: =DataInput!S80 -> 177 | AG80: 247.8 | AH80: -59.8
A81: =IF(DataInput!A81<>"",DataInput!A81,"") -> 12875 | B81: =SUM(DataInput!C81,DataInput!Y81)+(DataInput!U81-DataInput!E81) -> 7248 | C81: =SUM(DataInput!D81,DataInput!Z81) -> 5859 | D81: =DataInput!U81 -> 188 | E81: =SUM(DataInput!F81,DataInput!AB81) -> 0 | F81: =SUM(DataInput!G81,DataInput!AC81) -> 950 | G81: =SUM(DataInput!H81,DataInput!AD81) -> 0 | H81: =DataInput!I81 -> 0 | I81: =SUM(DataInput!J81,DataInput!AF81) -> 251 | J81: =SUM(DataInput!K81,DataInput!AG81) -> 0 | K81: =SUM(DataInput!L81,DataInput!AH81) -> 0 | L81: =SUM(DataInput!M81,DataInput!AI81) -> 0 | M81: =SUM(DataInput!N81,DataInput!AJ81) -> 0 | N81: =SUM(DataInput!O81,DataInput!AK81) -> 0 | O81: =DataInput!P81 -> 0 | Q81: 7060 | R81: =DataInput!R81 -> 0 | S81: =DataInput!Y81 -> 0 | T81: =IF(DataInput!U81-DataInput!E81>0,DataInput!U81-DataInput!E81,"") ->  | U81: =IF(DataInput!W81-DataInput!I81>0,DataInput!W81-DataInput!I81,"") ->  | W81: 0 | X81: 0 | Y81: 7060 | Z81: 518.93 | AA81: 4146.34 | AB81: =ROUNDDOWN((IF(AA82>0,IFERROR(IF(AVERAGE(DataInput!Q81:Q82)>AVERAGE(AA82,AA81),ROUNDDOWN(((((AA81-Z81)+(AA82-Z82))/2)*(A82-A81))/27+S81+T81,0),IF(((((DataInput!Q82-Z82)+(DataInput!Q81-Z81))/2)*(A82-A81))/27+S81+T81>0,ROUNDDOWN(((((DataInput!Q82-Z81)+(DataInput!Q81-Z81))/2)*(A82-A81))/27+S81+T81,0),0)),0),0)*$X$5),1) -> 0 | AC81: 159.49 | AD81: =ROUNDDOWN((IF(AC82>0,IFERROR(IF(((((DataInput!Q81-AC81)+(DataInput!Q82-AC82))/2)*(A82-A81))/27+S81+T81>0,ROUNDDOWN(((((DataInput!Q81-AC81)+(DataInput!Q82-AC82))/2)*(A82-A81))/27+S81+T81,0),0),0),0)*$X$5),1) -> 0 | AE81: =DataInput!U81 -> 188 | AF81: =DataInput!S81 -> 177 | AG81: 247.8 | AH81: -59.8
A82: =IF(DataInput!A82<>"",DataInput!A82,"") -> 12900 | B82: =SUM(DataInput!C82,DataInput!Y82)+(DataInput!U82-DataInput!E82) -> 7303 | C82: =SUM(DataInput!D82,DataInput!Z82) -> 6010 | D82: =DataInput!U82 -> 189 | E82: =SUM(DataInput!F82,DataInput!AB82) -> 0 | F82: =SUM(DataInput!G82,DataInput!AC82) -> 735 | G82: =SUM(DataInput!H82,DataInput!AD82) -> 0 | H82: =DataInput!I82 -> 0 | I82: =SUM(DataInput!J82,DataInput!AF82) -> 369 | J82: =SUM(DataInput!K82,DataInput!AG82) -> 0 | K82: =SUM(DataInput!L82,DataInput!AH82) -> 0 | L82: =SUM(DataInput!M82,DataInput!AI82) -> 0 | M82: =SUM(DataInput!N82,DataInput!AJ82) -> 0 | N82: =SUM(DataInput!O82,DataInput!AK82) -> 0 | O82: =DataInput!P82 -> 0 | Q82: 7114 | R82: =DataInput!R82 -> 0 | S82: =DataInput!Y82 -> 0 | T82: =IF(DataInput!U82-DataInput!E82>0,DataInput!U82-DataInput!E82,"") ->  | U82: =IF(DataInput!W82-DataInput!I82>0,DataInput!W82-DataInput!I82,"") ->  | W82: 0 | X82: 0 | Y82: 7114 | Z82: 518.93 | AA82: 4146.34 | AB82: =ROUNDDOWN((IF(AA83>0,IFERROR(IF(AVERAGE(DataInput!Q82:Q83)>AVERAGE(AA83,AA82),ROUNDDOWN(((((AA82-Z82)+(AA83-Z83))/2)*(A83-A82))/27+S82+T82,0),IF(((((DataInput!Q83-Z83)+(DataInput!Q82-Z82))/2)*(A83-A82))/27+S82+T82>0,ROUNDDOWN(((((DataInput!Q83-Z82)+(DataInput!Q82-Z82))/2)*(A83-A82))/27+S82+T82,0),0)),0),0)*$X$5),1) -> 0 | AC82: 159.49 | AD82: =ROUNDDOWN((IF(AC83>0,IFERROR(IF(((((DataInput!Q82-AC82)+(DataInput!Q83-AC83))/2)*(A83-A82))/27+S82+T82>0,ROUNDDOWN(((((DataInput!Q82-AC82)+(DataInput!Q83-AC83))/2)*(A83-A82))/27+S82+T82,0),0),0),0)*$X$5),1) -> 0 | AE82: =DataInput!U82 -> 189 | AF82: =DataInput!S82 -> 178 | AG82: 249.2 | AH82: -60.2
A83: =IF(DataInput!A83<>"",DataInput!A83,"") -> 12925 | B83: =SUM(DataInput!C83,DataInput!Y83)+(DataInput!U83-DataInput!E83) -> 7441 | C83: =SUM(DataInput!D83,DataInput!Z83) -> 6225 | D83: =DataInput!U83 -> 190 | E83: =SUM(DataInput!F83,DataInput!AB83) -> 0 | F83: =SUM(DataInput!G83,DataInput!AC83) -> 715 | G83: =SUM(DataInput!H83,DataInput!AD83) -> 0 | H83: =DataInput!I83 -> 0 | I83: =SUM(DataInput!J83,DataInput!AF83) -> 311 | J83: =SUM(DataInput!K83,DataInput!AG83) -> 0 | K83: =SUM(DataInput!L83,DataInput!AH83) -> 0 | L83: =SUM(DataInput!M83,DataInput!AI83) -> 0 | M83: =SUM(DataInput!N83,DataInput!AJ83) -> 0 | N83: =SUM(DataInput!O83,DataInput!AK83) -> 0 | O83: =DataInput!P83 -> 0 | Q83: 7251 | R83: =DataInput!R83 -> 0 | S83: =DataInput!Y83 -> 0 | T83: =IF(DataInput!U83-DataInput!E83>0,DataInput!U83-DataInput!E83,"") ->  | U83: =IF(DataInput!W83-DataInput!I83>0,DataInput!W83-DataInput!I83,"") ->  | W83: 0 | X83: 0 | Y83: 7251 | Z83: 518.93 | AA83: 4146.34 | AB83: =ROUNDDOWN((IF(AA84>0,IFERROR(IF(AVERAGE(DataInput!Q83:Q84)>AVERAGE(AA84,AA83),ROUNDDOWN(((((AA83-Z83)+(AA84-Z84))/2)*(A84-A83))/27+S83+T83,0),IF(((((DataInput!Q84-Z84)+(DataInput!Q83-Z83))/2)*(A84-A83))/27+S83+T83>0,ROUNDDOWN(((((DataInput!Q84-Z83)+(DataInput!Q83-Z83))/2)*(A84-A83))/27+S83+T83,0),0)),0),0)*$X$5),1) -> 0 | AC83: 159.49 | AD83: =ROUNDDOWN((IF(AC84>0,IFERROR(IF(((((DataInput!Q83-AC83)+(DataInput!Q84-AC84))/2)*(A84-A83))/27+S83+T83>0,ROUNDDOWN(((((DataInput!Q83-AC83)+(DataInput!Q84-AC84))/2)*(A84-A83))/27+S83+T83,0),0),0),0)*$X$5),1) -> 0 | AE83: =DataInput!U83 -> 190 | AF83: =DataInput!S83 -> 179 | AG83: 250.6 | AH83: -60.6
A84: =IF(DataInput!A84<>"",DataInput!A84,"") -> 12950 | B84: =SUM(DataInput!C84,DataInput!Y84)+(DataInput!U84-DataInput!E84) -> 7681 | C84: =SUM(DataInput!D84,DataInput!Z84) -> 6536 | D84: =DataInput!U84 -> 192 | E84: =SUM(DataInput!F84,DataInput!AB84) -> 0 | F84: =SUM(DataInput!G84,DataInput!AC84) -> 693 | G84: =SUM(DataInput!H84,DataInput!AD84) -> 0 | H84: =DataInput!I84 -> 0 | I84: =SUM(DataInput!J84,DataInput!AF84) -> 260 | J84: =SUM(DataInput!K84,DataInput!AG84) -> 0 | K84: =SUM(DataInput!L84,DataInput!AH84) -> 0 | L84: =SUM(DataInput!M84,DataInput!AI84) -> 0 | M84: =SUM(DataInput!N84,DataInput!AJ84) -> 0 | N84: =SUM(DataInput!O84,DataInput!AK84) -> 0 | O84: =DataInput!P84 -> 0 | Q84: 7489 | R84: =DataInput!R84 -> 0 | S84: =DataInput!Y84 -> 0 | T84: =IF(DataInput!U84-DataInput!E84>0,DataInput!U84-DataInput!E84,"") ->  | U84: =IF(DataInput!W84-DataInput!I84>0,DataInput!W84-DataInput!I84,"") ->  | W84: 0 | X84: 0 | Y84: 7489 | Z84: 518.93 | AA84: 4146.34 | AB84: =ROUNDDOWN((IF(AA85>0,IFERROR(IF(AVERAGE(DataInput!Q84:Q85)>AVERAGE(AA85,AA84),ROUNDDOWN(((((AA84-Z84)+(AA85-Z85))/2)*(A85-A84))/27+S84+T84,0),IF(((((DataInput!Q85-Z85)+(DataInput!Q84-Z84))/2)*(A85-A84))/27+S84+T84>0,ROUNDDOWN(((((DataInput!Q85-Z84)+(DataInput!Q84-Z84))/2)*(A85-A84))/27+S84+T84,0),0)),0),0)*$X$5),1) -> 0 | AC84: 159.49 | AD84: =ROUNDDOWN((IF(AC85>0,IFERROR(IF(((((DataInput!Q84-AC84)+(DataInput!Q85-AC85))/2)*(A85-A84))/27+S84+T84>0,ROUNDDOWN(((((DataInput!Q84-AC84)+(DataInput!Q85-AC85))/2)*(A85-A84))/27+S84+T84,0),0),0),0)*$X$5),1) -> 0 | AE84: =DataInput!U84 -> 192 | AF84: =DataInput!S84 -> 181 | AG84: 253.4 | AH84: -61.4
A85: =IF(DataInput!A85<>"",DataInput!A85,"") -> 12975 | B85: =SUM(DataInput!C85,DataInput!Y85)+(DataInput!U85-DataInput!E85) -> 7940 | C85: =SUM(DataInput!D85,DataInput!Z85) -> 6867 | D85: =DataInput!U85 -> 193 | E85: =SUM(DataInput!F85,DataInput!AB85) -> 0 | F85: =SUM(DataInput!G85,DataInput!AC85) -> 659 | G85: =SUM(DataInput!H85,DataInput!AD85) -> 0 | H85: =DataInput!I85 -> 0 | I85: =SUM(DataInput!J85,DataInput!AF85) -> 221 | J85: =SUM(DataInput!K85,DataInput!AG85) -> 0 | K85: =SUM(DataInput!L85,DataInput!AH85) -> 0 | L85: =SUM(DataInput!M85,DataInput!AI85) -> 0 | M85: =SUM(DataInput!N85,DataInput!AJ85) -> 0 | N85: =SUM(DataInput!O85,DataInput!AK85) -> 0 | O85: =DataInput!P85 -> 0 | Q85: 7747 | R85: =DataInput!R85 -> 0 | S85: =DataInput!Y85 -> 0 | T85: =IF(DataInput!U85-DataInput!E85>0,DataInput!U85-DataInput!E85,"") ->  | U85: =IF(DataInput!W85-DataInput!I85>0,DataInput!W85-DataInput!I85,"") ->  | W85: 0 | X85: 0 | Y85: 7747 | Z85: 518.93 | AA85: 4146.34 | AB85: =ROUNDDOWN((IF(AA86>0,IFERROR(IF(AVERAGE(DataInput!Q85:Q86)>AVERAGE(AA86,AA85),ROUNDDOWN(((((AA85-Z85)+(AA86-Z86))/2)*(A86-A85))/27+S85+T85,0),IF(((((DataInput!Q86-Z86)+(DataInput!Q85-Z85))/2)*(A86-A85))/27+S85+T85>0,ROUNDDOWN(((((DataInput!Q86-Z85)+(DataInput!Q85-Z85))/2)*(A86-A85))/27+S85+T85,0),0)),0),0)*$X$5),1) -> 0 | AC85: 159.49 | AD85: =ROUNDDOWN((IF(AC86>0,IFERROR(IF(((((DataInput!Q85-AC85)+(DataInput!Q86-AC86))/2)*(A86-A85))/27+S85+T85>0,ROUNDDOWN(((((DataInput!Q85-AC85)+(DataInput!Q86-AC86))/2)*(A86-A85))/27+S85+T85,0),0),0),0)*$X$5),1) -> 0 | AE85: =DataInput!U85 -> 193 | AF85: =DataInput!S85 -> 183 | AG85: 256.2 | AH85: -63.2
A86: =IF(DataInput!A86<>"",DataInput!A86,"") -> 13000 | B86: =SUM(DataInput!C86,DataInput!Y86)+(DataInput!U86-DataInput!E86) -> 8237 | C86: =SUM(DataInput!D86,DataInput!Z86) -> 7226 | D86: =DataInput!U86 -> 195 | E86: =SUM(DataInput!F86,DataInput!AB86) -> 0 | F86: =SUM(DataInput!G86,DataInput!AC86) -> 613 | G86: =SUM(DataInput!H86,DataInput!AD86) -> 0 | H86: =DataInput!I86 -> 0 | I86: =SUM(DataInput!J86,DataInput!AF86) -> 203 | J86: =SUM(DataInput!K86,DataInput!AG86) -> 0 | K86: =SUM(DataInput!L86,DataInput!AH86) -> 0 | L86: =SUM(DataInput!M86,DataInput!AI86) -> 0 | M86: =SUM(DataInput!N86,DataInput!AJ86) -> 0 | N86: =SUM(DataInput!O86,DataInput!AK86) -> 0 | O86: =DataInput!P86 -> 0 | Q86: 8042 | R86: =DataInput!R86 -> 0 | S86: =DataInput!Y86 -> 0 | T86: =IF(DataInput!U86-DataInput!E86>0,DataInput!U86-DataInput!E86,"") ->  | U86: =IF(DataInput!W86-DataInput!I86>0,DataInput!W86-DataInput!I86,"") ->  | W86: 0 | X86: 0 | Y86: 8042 | Z86: 518.93 | AA86: 4146.34 | AB86: =ROUNDDOWN((IF(AA87>0,IFERROR(IF(AVERAGE(DataInput!Q86:Q87)>AVERAGE(AA87,AA86),ROUNDDOWN(((((AA86-Z86)+(AA87-Z87))/2)*(A87-A86))/27+S86+T86,0),IF(((((DataInput!Q87-Z87)+(DataInput!Q86-Z86))/2)*(A87-A86))/27+S86+T86>0,ROUNDDOWN(((((DataInput!Q87-Z86)+(DataInput!Q86-Z86))/2)*(A87-A86))/27+S86+T86,0),0)),0),0)*$X$5),1) -> 0 | AC86: 159.49 | AD86: =ROUNDDOWN((IF(AC87>0,IFERROR(IF(((((DataInput!Q86-AC86)+(DataInput!Q87-AC87))/2)*(A87-A86))/27+S86+T86>0,ROUNDDOWN(((((DataInput!Q86-AC86)+(DataInput!Q87-AC87))/2)*(A87-A86))/27+S86+T86,0),0),0),0)*$X$5),1) -> 0 | AE86: =DataInput!U86 -> 195 | AF86: =DataInput!S86 -> 186 | AG86: 260.4 | AH86: -65.4
A87: =IF(DataInput!A87<>"",DataInput!A87,"") -> 13025 | B87: =SUM(DataInput!C87,DataInput!Y87)+(DataInput!U87-DataInput!E87) -> 8384 | C87: =SUM(DataInput!D87,DataInput!Z87) -> 7476 | D87: =DataInput!U87 -> 196 | E87: =SUM(DataInput!F87,DataInput!AB87) -> 0 | F87: =SUM(DataInput!G87,DataInput!AC87) -> 546 | G87: =SUM(DataInput!H87,DataInput!AD87) -> 0 | H87: =DataInput!I87 -> 0 | I87: =SUM(DataInput!J87,DataInput!AF87) -> 166 | J87: =SUM(DataInput!K87,DataInput!AG87) -> 0 | K87: =SUM(DataInput!L87,DataInput!AH87) -> 0 | L87: =SUM(DataInput!M87,DataInput!AI87) -> 0 | M87: =SUM(DataInput!N87,DataInput!AJ87) -> 0 | N87: =SUM(DataInput!O87,DataInput!AK87) -> 0 | O87: =DataInput!P87 -> 0 | Q87: 8188 | R87: =DataInput!R87 -> 0 | S87: =DataInput!Y87 -> 0 | T87: =IF(DataInput!U87-DataInput!E87>0,DataInput!U87-DataInput!E87,"") ->  | U87: =IF(DataInput!W87-DataInput!I87>0,DataInput!W87-DataInput!I87,"") ->  | W87: 0 | X87: 0 | Y87: 8188 | Z87: 518.93 | AA87: 4146.34 | AB87: =ROUNDDOWN((IF(AA88>0,IFERROR(IF(AVERAGE(DataInput!Q87:Q88)>AVERAGE(AA88,AA87),ROUNDDOWN(((((AA87-Z87)+(AA88-Z88))/2)*(A88-A87))/27+S87+T87,0),IF(((((DataInput!Q88-Z88)+(DataInput!Q87-Z87))/2)*(A88-A87))/27+S87+T87>0,ROUNDDOWN(((((DataInput!Q88-Z87)+(DataInput!Q87-Z87))/2)*(A88-A87))/27+S87+T87,0),0)),0),0)*$X$5),1) -> 0 | AC87: 159.49 | AD87: =ROUNDDOWN((IF(AC88>0,IFERROR(IF(((((DataInput!Q87-AC87)+(DataInput!Q88-AC88))/2)*(A88-A87))/27+S87+T87>0,ROUNDDOWN(((((DataInput!Q87-AC87)+(DataInput!Q88-AC88))/2)*(A88-A87))/27+S87+T87,0),0),0),0)*$X$5),1) -> 0 | AE87: =DataInput!U87 -> 196 | AF87: =DataInput!S87 -> 187 | AG87: 261.8 | AH87: -65.8
A88: =IF(DataInput!A88<>"",DataInput!A88,"") -> 13050 | B88: =SUM(DataInput!C88,DataInput!Y88)+(DataInput!U88-DataInput!E88) -> 8273 | C88: =SUM(DataInput!D88,DataInput!Z88) -> 7527 | D88: =DataInput!U88 -> 195 | E88: =SUM(DataInput!F88,DataInput!AB88) -> 0 | F88: =SUM(DataInput!G88,DataInput!AC88) -> 445 | G88: =SUM(DataInput!H88,DataInput!AD88) -> 0 | H88: =DataInput!I88 -> 0 | I88: =SUM(DataInput!J88,DataInput!AF88) -> 107 | J88: =SUM(DataInput!K88,DataInput!AG88) -> 0 | K88: =SUM(DataInput!L88,DataInput!AH88) -> 0 | L88: =SUM(DataInput!M88,DataInput!AI88) -> 0 | M88: =SUM(DataInput!N88,DataInput!AJ88) -> 0 | N88: =SUM(DataInput!O88,DataInput!AK88) -> 0 | O88: =DataInput!P88 -> 0 | Q88: 8079 | R88: =DataInput!R88 -> 0 | S88: =DataInput!Y88 -> 0 | T88: =IF(DataInput!U88-DataInput!E88>0,DataInput!U88-DataInput!E88,"") ->  | U88: =IF(DataInput!W88-DataInput!I88>0,DataInput!W88-DataInput!I88,"") ->  | W88: 0 | X88: 0 | Y88: 8079 | Z88: 518.93 | AA88: 4146.34 | AB88: =ROUNDDOWN((IF(AA89>0,IFERROR(IF(AVERAGE(DataInput!Q88:Q89)>AVERAGE(AA89,AA88),ROUNDDOWN(((((AA88-Z88)+(AA89-Z89))/2)*(A89-A88))/27+S88+T88,0),IF(((((DataInput!Q89-Z89)+(DataInput!Q88-Z88))/2)*(A89-A88))/27+S88+T88>0,ROUNDDOWN(((((DataInput!Q89-Z88)+(DataInput!Q88-Z88))/2)*(A89-A88))/27+S88+T88,0),0)),0),0)*$X$5),1) -> 0 | AC88: 159.49 | AD88: =ROUNDDOWN((IF(AC89>0,IFERROR(IF(((((DataInput!Q88-AC88)+(DataInput!Q89-AC89))/2)*(A89-A88))/27+S88+T88>0,ROUNDDOWN(((((DataInput!Q88-AC88)+(DataInput!Q89-AC89))/2)*(A89-A88))/27+S88+T88,0),0),0),0)*$X$5),1) -> 0 | AE88: =DataInput!U88 -> 195 | AF88: =DataInput!S88 -> 186 | AG88: 260.4 | AH88: -65.4
A89: =IF(DataInput!A89<>"",DataInput!A89,"") -> 13075 | B89: =SUM(DataInput!C89,DataInput!Y89)+(DataInput!U89-DataInput!E89) -> 8127 | C89: =SUM(DataInput!D89,DataInput!Z89) -> 7344 | D89: =DataInput!U89 -> 193 | E89: =SUM(DataInput!F89,DataInput!AB89) -> 0 | F89: =SUM(DataInput!G89,DataInput!AC89) -> 194 | G89: =SUM(DataInput!H89,DataInput!AD89) -> 0 | H89: =DataInput!I89 -> 0 | I89: =SUM(DataInput!J89,DataInput!AF89) -> 396 | J89: =SUM(DataInput!K89,DataInput!AG89) -> 0 | K89: =SUM(DataInput!L89,DataInput!AH89) -> 0 | L89: =SUM(DataInput!M89,DataInput!AI89) -> 0 | M89: =SUM(DataInput!N89,DataInput!AJ89) -> 0 | N89: =SUM(DataInput!O89,DataInput!AK89) -> 0 | O89: =DataInput!P89 -> 0 | Q89: 7934 | R89: =DataInput!R89 -> 0 | S89: =DataInput!Y89 -> 0 | T89: =IF(DataInput!U89-DataInput!E89>0,DataInput!U89-DataInput!E89,"") ->  | U89: =IF(DataInput!W89-DataInput!I89>0,DataInput!W89-DataInput!I89,"") ->  | W89: 0 | X89: 0 | Y89: 7934 | Z89: 518.93 | AA89: 4146.34 | AB89: =ROUNDDOWN((IF(AA90>0,IFERROR(IF(AVERAGE(DataInput!Q89:Q90)>AVERAGE(AA90,AA89),ROUNDDOWN(((((AA89-Z89)+(AA90-Z90))/2)*(A90-A89))/27+S89+T89,0),IF(((((DataInput!Q90-Z90)+(DataInput!Q89-Z89))/2)*(A90-A89))/27+S89+T89>0,ROUNDDOWN(((((DataInput!Q90-Z89)+(DataInput!Q89-Z89))/2)*(A90-A89))/27+S89+T89,0),0)),0),0)*$X$5),1) -> 0 | AC89: 159.49 | AD89: =ROUNDDOWN((IF(AC90>0,IFERROR(IF(((((DataInput!Q89-AC89)+(DataInput!Q90-AC90))/2)*(A90-A89))/27+S89+T89>0,ROUNDDOWN(((((DataInput!Q89-AC89)+(DataInput!Q90-AC90))/2)*(A90-A89))/27+S89+T89,0),0),0),0)*$X$5),1) -> 0 | AE89: =DataInput!U89 -> 193 | AF89: =DataInput!S89 -> 184 | AG89: 257.6 | AH89: -64.6
A90: =IF(DataInput!A90<>"",DataInput!A90,"") -> 13100 | B90: =SUM(DataInput!C90,DataInput!Y90)+(DataInput!U90-DataInput!E90) -> 8059 | C90: =SUM(DataInput!D90,DataInput!Z90) -> 7167 | D90: =DataInput!U90 -> 193 | E90: =SUM(DataInput!F90,DataInput!AB90) -> 0 | F90: =SUM(DataInput!G90,DataInput!AC90) -> 0 | G90: =SUM(DataInput!H90,DataInput!AD90) -> 0 | H90: =DataInput!I90 -> 0 | I90: =SUM(DataInput!J90,DataInput!AF90) -> 699 | J90: =SUM(DataInput!K90,DataInput!AG90) -> 0 | K90: =SUM(DataInput!L90,DataInput!AH90) -> 0 | L90: =SUM(DataInput!M90,DataInput!AI90) -> 0 | M90: =SUM(DataInput!N90,DataInput!AJ90) -> 0 | N90: =SUM(DataInput!O90,DataInput!AK90) -> 0 | O90: =DataInput!P90 -> 0 | Q90: 7866 | R90: =DataInput!R90 -> 0 | S90: =DataInput!Y90 -> 0 | T90: =IF(DataInput!U90-DataInput!E90>0,DataInput!U90-DataInput!E90,"") ->  | U90: =IF(DataInput!W90-DataInput!I90>0,DataInput!W90-DataInput!I90,"") ->  | W90: 0 | X90: 0 | Y90: 7866 | Z90: 518.93 | AA90: 4146.34 | AB90: =ROUNDDOWN((IF(AA91>0,IFERROR(IF(AVERAGE(DataInput!Q90:Q91)>AVERAGE(AA91,AA90),ROUNDDOWN(((((AA90-Z90)+(AA91-Z91))/2)*(A91-A90))/27+S90+T90,0),IF(((((DataInput!Q91-Z91)+(DataInput!Q90-Z90))/2)*(A91-A90))/27+S90+T90>0,ROUNDDOWN(((((DataInput!Q91-Z90)+(DataInput!Q90-Z90))/2)*(A91-A90))/27+S90+T90,0),0)),0),0)*$X$5),1) -> 0 | AC90: 159.49 | AD90: =ROUNDDOWN((IF(AC91>0,IFERROR(IF(((((DataInput!Q90-AC90)+(DataInput!Q91-AC91))/2)*(A91-A90))/27+S90+T90>0,ROUNDDOWN(((((DataInput!Q90-AC90)+(DataInput!Q91-AC91))/2)*(A91-A90))/27+S90+T90,0),0),0),0)*$X$5),1) -> 0 | AE90: =DataInput!U90 -> 193 | AF90: =DataInput!S90 -> 183 | AG90: 256.2 | AH90: -63.2
A91: =IF(DataInput!A91<>"",DataInput!A91,"") -> 13125 | B91: =SUM(DataInput!C91,DataInput!Y91)+(DataInput!U91-DataInput!E91) -> 8112 | C91: =SUM(DataInput!D91,DataInput!Z91) -> 7244 | D91: =DataInput!U91 -> 193 | E91: =SUM(DataInput!F91,DataInput!AB91) -> 0 | F91: =SUM(DataInput!G91,DataInput!AC91) -> 0 | G91: =SUM(DataInput!H91,DataInput!AD91) -> 0 | H91: =DataInput!I91 -> 0 | I91: =SUM(DataInput!J91,DataInput!AF91) -> 675 | J91: =SUM(DataInput!K91,DataInput!AG91) -> 0 | K91: =SUM(DataInput!L91,DataInput!AH91) -> 0 | L91: =SUM(DataInput!M91,DataInput!AI91) -> 0 | M91: =SUM(DataInput!N91,DataInput!AJ91) -> 0 | N91: =SUM(DataInput!O91,DataInput!AK91) -> 0 | O91: =DataInput!P91 -> 0 | Q91: 7919 | R91: =DataInput!R91 -> 0 | S91: =DataInput!Y91 -> 0 | T91: =IF(DataInput!U91-DataInput!E91>0,DataInput!U91-DataInput!E91,"") ->  | U91: =IF(DataInput!W91-DataInput!I91>0,DataInput!W91-DataInput!I91,"") ->  | W91: 0 | X91: 0 | Y91: 7919 | Z91: 518.93 | AA91: 4146.34 | AB91: =ROUNDDOWN((IF(AA92>0,IFERROR(IF(AVERAGE(DataInput!Q91:Q92)>AVERAGE(AA92,AA91),ROUNDDOWN(((((AA91-Z91)+(AA92-Z92))/2)*(A92-A91))/27+S91+T91,0),IF(((((DataInput!Q92-Z92)+(DataInput!Q91-Z91))/2)*(A92-A91))/27+S91+T91>0,ROUNDDOWN(((((DataInput!Q92-Z91)+(DataInput!Q91-Z91))/2)*(A92-A91))/27+S91+T91,0),0)),0),0)*$X$5),1) -> 0 | AC91: 159.49 | AD91: =ROUNDDOWN((IF(AC92>0,IFERROR(IF(((((DataInput!Q91-AC91)+(DataInput!Q92-AC92))/2)*(A92-A91))/27+S91+T91>0,ROUNDDOWN(((((DataInput!Q91-AC91)+(DataInput!Q92-AC92))/2)*(A92-A91))/27+S91+T91,0),0),0),0)*$X$5),1) -> 0 | AE91: =DataInput!U91 -> 193 | AF91: =DataInput!S91 -> 183 | AG91: 256.2 | AH91: -63.2
A92: =IF(DataInput!A92<>"",DataInput!A92,"") -> 13150 | B92: =SUM(DataInput!C92,DataInput!Y92)+(DataInput!U92-DataInput!E92) -> 8266 | C92: =SUM(DataInput!D92,DataInput!Z92) -> 7422 | D92: =DataInput!U92 -> 193 | E92: =SUM(DataInput!F92,DataInput!AB92) -> 0 | F92: =SUM(DataInput!G92,DataInput!AC92) -> 0 | G92: =SUM(DataInput!H92,DataInput!AD92) -> 0 | H92: =DataInput!I92 -> 0 | I92: =SUM(DataInput!J92,DataInput!AF92) -> 652 | J92: =SUM(DataInput!K92,DataInput!AG92) -> 0 | K92: =SUM(DataInput!L92,DataInput!AH92) -> 0 | L92: =SUM(DataInput!M92,DataInput!AI92) -> 0 | M92: =SUM(DataInput!N92,DataInput!AJ92) -> 0 | N92: =SUM(DataInput!O92,DataInput!AK92) -> 0 | O92: =DataInput!P92 -> 0 | Q92: 8074 | R92: =DataInput!R92 -> 0 | S92: =DataInput!Y92 -> 0 | T92: =IF(DataInput!U92-DataInput!E92>0,DataInput!U92-DataInput!E92,"") ->  | U92: =IF(DataInput!W92-DataInput!I92>0,DataInput!W92-DataInput!I92,"") ->  | W92: 0 | X92: 0 | Y92: 8074 | Z92: 518.93 | AA92: 4146.34 | AB92: =ROUNDDOWN((IF(AA93>0,IFERROR(IF(AVERAGE(DataInput!Q92:Q93)>AVERAGE(AA93,AA92),ROUNDDOWN(((((AA92-Z92)+(AA93-Z93))/2)*(A93-A92))/27+S92+T92,0),IF(((((DataInput!Q93-Z93)+(DataInput!Q92-Z92))/2)*(A93-A92))/27+S92+T92>0,ROUNDDOWN(((((DataInput!Q93-Z92)+(DataInput!Q92-Z92))/2)*(A93-A92))/27+S92+T92,0),0)),0),0)*$X$5),1) -> 0 | AC92: 159.49 | AD92: =ROUNDDOWN((IF(AC93>0,IFERROR(IF(((((DataInput!Q92-AC92)+(DataInput!Q93-AC93))/2)*(A93-A92))/27+S92+T92>0,ROUNDDOWN(((((DataInput!Q92-AC92)+(DataInput!Q93-AC93))/2)*(A93-A92))/27+S92+T92,0),0),0),0)*$X$5),1) -> 0 | AE92: =DataInput!U92 -> 193 | AF92: =DataInput!S92 -> 183 | AG92: 256.2 | AH92: -63.2
A93: =IF(DataInput!A93<>"",DataInput!A93,"") -> 13175 | B93: =SUM(DataInput!C93,DataInput!Y93)+(DataInput!U93-DataInput!E93) -> 8412 | C93: =SUM(DataInput!D93,DataInput!Z93) -> 7591 | D93: =DataInput!U93 -> 192 | E93: =SUM(DataInput!F93,DataInput!AB93) -> 0 | F93: =SUM(DataInput!G93,DataInput!AC93) -> 0 | G93: =SUM(DataInput!H93,DataInput!AD93) -> 0 | H93: =DataInput!I93 -> 0 | I93: =SUM(DataInput!J93,DataInput!AF93) -> 629 | J93: =SUM(DataInput!K93,DataInput!AG93) -> 0 | K93: =SUM(DataInput!L93,DataInput!AH93) -> 0 | L93: =SUM(DataInput!M93,DataInput!AI93) -> 0 | M93: =SUM(DataInput!N93,DataInput!AJ93) -> 0 | N93: =SUM(DataInput!O93,DataInput!AK93) -> 0 | O93: =DataInput!P93 -> 0 | Q93: 8220 | R93: =DataInput!R93 -> 0 | S93: =DataInput!Y93 -> 0 | T93: =IF(DataInput!U93-DataInput!E93>0,DataInput!U93-DataInput!E93,"") ->  | U93: =IF(DataInput!W93-DataInput!I93>0,DataInput!W93-DataInput!I93,"") ->  | W93: 0 | X93: 0 | Y93: 8220 | Z93: 518.93 | AA93: 4146.34 | AB93: =ROUNDDOWN((IF(AA94>0,IFERROR(IF(AVERAGE(DataInput!Q93:Q94)>AVERAGE(AA94,AA93),ROUNDDOWN(((((AA93-Z93)+(AA94-Z94))/2)*(A94-A93))/27+S93+T93,0),IF(((((DataInput!Q94-Z94)+(DataInput!Q93-Z93))/2)*(A94-A93))/27+S93+T93>0,ROUNDDOWN(((((DataInput!Q94-Z93)+(DataInput!Q93-Z93))/2)*(A94-A93))/27+S93+T93,0),0)),0),0)*$X$5),1) -> 0 | AC93: 159.49 | AD93: =ROUNDDOWN((IF(AC94>0,IFERROR(IF(((((DataInput!Q93-AC93)+(DataInput!Q94-AC94))/2)*(A94-A93))/27+S93+T93>0,ROUNDDOWN(((((DataInput!Q93-AC93)+(DataInput!Q94-AC94))/2)*(A94-A93))/27+S93+T93,0),0),0),0)*$X$5),1) -> 0 | AE93: =DataInput!U93 -> 192 | AF93: =DataInput!S93 -> 183 | AG93: 256.2 | AH93: -64.2
A94: =IF(DataInput!A94<>"",DataInput!A94,"") -> 13200 | B94: =SUM(DataInput!C94,DataInput!Y94)+(DataInput!U94-DataInput!E94) -> 8587 | C94: =SUM(DataInput!D94,DataInput!Z94) -> 7788 | D94: =DataInput!U94 -> 191 | E94: =SUM(DataInput!F94,DataInput!AB94) -> 0 | F94: =SUM(DataInput!G94,DataInput!AC94) -> 0 | G94: =SUM(DataInput!H94,DataInput!AD94) -> 0 | H94: =DataInput!I94 -> 0 | I94: =SUM(DataInput!J94,DataInput!AF94) -> 607 | J94: =SUM(DataInput!K94,DataInput!AG94) -> 0 | K94: =SUM(DataInput!L94,DataInput!AH94) -> 0 | L94: =SUM(DataInput!M94,DataInput!AI94) -> 0 | M94: =SUM(DataInput!N94,DataInput!AJ94) -> 0 | N94: =SUM(DataInput!O94,DataInput!AK94) -> 0 | O94: =DataInput!P94 -> 0 | Q94: 8395 | R94: =DataInput!R94 -> 0 | S94: =DataInput!Y94 -> 0 | T94: =IF(DataInput!U94-DataInput!E94>0,DataInput!U94-DataInput!E94,"") ->  | U94: =IF(DataInput!W94-DataInput!I94>0,DataInput!W94-DataInput!I94,"") ->  | W94: 0 | X94: 0 | Y94: 8395 | Z94: 518.93 | AA94: 4146.34 | AB94: =ROUNDDOWN((IF(AA95>0,IFERROR(IF(AVERAGE(DataInput!Q94:Q95)>AVERAGE(AA95,AA94),ROUNDDOWN(((((AA94-Z94)+(AA95-Z95))/2)*(A95-A94))/27+S94+T94,0),IF(((((DataInput!Q95-Z95)+(DataInput!Q94-Z94))/2)*(A95-A94))/27+S94+T94>0,ROUNDDOWN(((((DataInput!Q95-Z94)+(DataInput!Q94-Z94))/2)*(A95-A94))/27+S94+T94,0),0)),0),0)*$X$5),1) -> 0 | AC94: 159.49 | AD94: =ROUNDDOWN((IF(AC95>0,IFERROR(IF(((((DataInput!Q94-AC94)+(DataInput!Q95-AC95))/2)*(A95-A94))/27+S94+T94>0,ROUNDDOWN(((((DataInput!Q94-AC94)+(DataInput!Q95-AC95))/2)*(A95-A94))/27+S94+T94,0),0),0),0)*$X$5),1) -> 0 | AE94: =DataInput!U94 -> 191 | AF94: =DataInput!S94 -> 181 | AG94: 253.4 | AH94: -62.4
A95: =IF(DataInput!A95<>"",DataInput!A95,"") -> 13225 | B95: =SUM(DataInput!C95,DataInput!Y95)+(DataInput!U95-DataInput!E95) -> 8823 | C95: =SUM(DataInput!D95,DataInput!Z95) -> 8047 | D95: =DataInput!U95 -> 191 | E95: =SUM(DataInput!F95,DataInput!AB95) -> 0 | F95: =SUM(DataInput!G95,DataInput!AC95) -> 0 | G95: =SUM(DataInput!H95,DataInput!AD95) -> 0 | H95: =DataInput!I95 -> 0 | I95: =SUM(DataInput!J95,DataInput!AF95) -> 586 | J95: =SUM(DataInput!K95,DataInput!AG95) -> 0 | K95: =SUM(DataInput!L95,DataInput!AH95) -> 0 | L95: =SUM(DataInput!M95,DataInput!AI95) -> 0 | M95: =SUM(DataInput!N95,DataInput!AJ95) -> 0 | N95: =SUM(DataInput!O95,DataInput!AK95) -> 0 | O95: =DataInput!P95 -> 0 | Q95: 8633 | R95: =DataInput!R95 -> 0 | S95: =DataInput!Y95 -> 0 | T95: =IF(DataInput!U95-DataInput!E95>0,DataInput!U95-DataInput!E95,"") ->  | U95: =IF(DataInput!W95-DataInput!I95>0,DataInput!W95-DataInput!I95,"") ->  | W95: 0 | X95: 0 | Y95: 8633 | Z95: 518.93 | AA95: 4146.34 | AB95: =ROUNDDOWN((IF(AA96>0,IFERROR(IF(AVERAGE(DataInput!Q95:Q96)>AVERAGE(AA96,AA95),ROUNDDOWN(((((AA95-Z95)+(AA96-Z96))/2)*(A96-A95))/27+S95+T95,0),IF(((((DataInput!Q96-Z96)+(DataInput!Q95-Z95))/2)*(A96-A95))/27+S95+T95>0,ROUNDDOWN(((((DataInput!Q96-Z95)+(DataInput!Q95-Z95))/2)*(A96-A95))/27+S95+T95,0),0)),0),0)*$X$5),1) -> 0 | AC95: 159.49 | AD95: =ROUNDDOWN((IF(AC96>0,IFERROR(IF(((((DataInput!Q95-AC95)+(DataInput!Q96-AC96))/2)*(A96-A95))/27+S95+T95>0,ROUNDDOWN(((((DataInput!Q95-AC95)+(DataInput!Q96-AC96))/2)*(A96-A95))/27+S95+T95,0),0),0),0)*$X$5),1) -> 0 | AE95: =DataInput!U95 -> 191 | AF95: =DataInput!S95 -> 180 | AG95: 252 | AH95: -61
A96: =IF(DataInput!A96<>"",DataInput!A96,"") -> 13250 | B96: =SUM(DataInput!C96,DataInput!Y96)+(DataInput!U96-DataInput!E96) -> 9091 | C96: =SUM(DataInput!D96,DataInput!Z96) -> 8338 | D96: =DataInput!U96 -> 190 | E96: =SUM(DataInput!F96,DataInput!AB96) -> 0 | F96: =SUM(DataInput!G96,DataInput!AC96) -> 0 | G96: =SUM(DataInput!H96,DataInput!AD96) -> 0 | H96: =DataInput!I96 -> 0 | I96: =SUM(DataInput!J96,DataInput!AF96) -> 564 | J96: =SUM(DataInput!K96,DataInput!AG96) -> 0 | K96: =SUM(DataInput!L96,DataInput!AH96) -> 0 | L96: =SUM(DataInput!M96,DataInput!AI96) -> 0 | M96: =SUM(DataInput!N96,DataInput!AJ96) -> 0 | N96: =SUM(DataInput!O96,DataInput!AK96) -> 0 | O96: =DataInput!P96 -> 0 | Q96: 8902 | R96: =DataInput!R96 -> 0 | S96: =DataInput!Y96 -> 0 | T96: =IF(DataInput!U96-DataInput!E96>0,DataInput!U96-DataInput!E96,"") ->  | U96: =IF(DataInput!W96-DataInput!I96>0,DataInput!W96-DataInput!I96,"") ->  | W96: 0 | X96: 0 | Y96: 8902 | Z96: 518.93 | AA96: 4146.34 | AB96: =ROUNDDOWN((IF(AA97>0,IFERROR(IF(AVERAGE(DataInput!Q96:Q97)>AVERAGE(AA97,AA96),ROUNDDOWN(((((AA96-Z96)+(AA97-Z97))/2)*(A97-A96))/27+S96+T96,0),IF(((((DataInput!Q97-Z97)+(DataInput!Q96-Z96))/2)*(A97-A96))/27+S96+T96>0,ROUNDDOWN(((((DataInput!Q97-Z96)+(DataInput!Q96-Z96))/2)*(A97-A96))/27+S96+T96,0),0)),0),0)*$X$5),1) -> 0 | AC96: 159.49 | AD96: =ROUNDDOWN((IF(AC97>0,IFERROR(IF(((((DataInput!Q96-AC96)+(DataInput!Q97-AC97))/2)*(A97-A96))/27+S96+T96>0,ROUNDDOWN(((((DataInput!Q96-AC96)+(DataInput!Q97-AC97))/2)*(A97-A96))/27+S96+T96,0),0),0),0)*$X$5),1) -> 0 | AE96: =DataInput!U96 -> 190 | AF96: =DataInput!S96 -> 179 | AG96: 250.6 | AH96: -60.6
A97: =IF(DataInput!A97<>"",DataInput!A97,"") -> 13275 | B97: =SUM(DataInput!C97,DataInput!Y97)+(DataInput!U97-DataInput!E97) -> 9462 | C97: =SUM(DataInput!D97,DataInput!Z97) -> 8614 | D97: =DataInput!U97 -> 189 | E97: =SUM(DataInput!F97,DataInput!AB97) -> 0 | F97: =SUM(DataInput!G97,DataInput!AC97) -> 74 | G97: =SUM(DataInput!H97,DataInput!AD97) -> 0 | H97: =DataInput!I97 -> 0 | I97: =SUM(DataInput!J97,DataInput!AF97) -> 584 | J97: =SUM(DataInput!K97,DataInput!AG97) -> 0 | K97: =SUM(DataInput!L97,DataInput!AH97) -> 0 | L97: =SUM(DataInput!M97,DataInput!AI97) -> 0 | M97: =SUM(DataInput!N97,DataInput!AJ97) -> 0 | N97: =SUM(DataInput!O97,DataInput!AK97) -> 0 | O97: =DataInput!P97 -> 0 | Q97: 9272 | R97: =DataInput!R97 -> 0 | S97: =DataInput!Y97 -> 0 | T97: =IF(DataInput!U97-DataInput!E97>0,DataInput!U97-DataInput!E97,"") ->  | U97: =IF(DataInput!W97-DataInput!I97>0,DataInput!W97-DataInput!I97,"") ->  | W97: 0 | X97: 0 | Y97: 9272 | Z97: 518.93 | AA97: 4146.34 | AB97: =ROUNDDOWN((IF(AA98>0,IFERROR(IF(AVERAGE(DataInput!Q97:Q98)>AVERAGE(AA98,AA97),ROUNDDOWN(((((AA97-Z97)+(AA98-Z98))/2)*(A98-A97))/27+S97+T97,0),IF(((((DataInput!Q98-Z98)+(DataInput!Q97-Z97))/2)*(A98-A97))/27+S97+T97>0,ROUNDDOWN(((((DataInput!Q98-Z97)+(DataInput!Q97-Z97))/2)*(A98-A97))/27+S97+T97,0),0)),0),0)*$X$5),1) -> 0 | AC97: 159.49 | AD97: =ROUNDDOWN((IF(AC98>0,IFERROR(IF(((((DataInput!Q97-AC97)+(DataInput!Q98-AC98))/2)*(A98-A97))/27+S97+T97>0,ROUNDDOWN(((((DataInput!Q97-AC97)+(DataInput!Q98-AC98))/2)*(A98-A97))/27+S97+T97,0),0),0),0)*$X$5),1) -> 0 | AE97: =DataInput!U97 -> 189 | AF97: =DataInput!S97 -> 179 | AG97: 250.6 | AH97: -61.6
A98: =IF(DataInput!A98<>"",DataInput!A98,"") -> 13300 | B98: =SUM(DataInput!C98,DataInput!Y98)+(DataInput!U98-DataInput!E98) -> 9908 | C98: =SUM(DataInput!D98,DataInput!Z98) -> 8926 | D98: =DataInput!U98 -> 190 | E98: =SUM(DataInput!F98,DataInput!AB98) -> 0 | F98: =SUM(DataInput!G98,DataInput!AC98) -> 180 | G98: =SUM(DataInput!H98,DataInput!AD98) -> 0 | H98: =DataInput!I98 -> 0 | I98: =SUM(DataInput!J98,DataInput!AF98) -> 612 | J98: =SUM(DataInput!K98,DataInput!AG98) -> 0 | K98: =SUM(DataInput!L98,DataInput!AH98) -> 0 | L98: =SUM(DataInput!M98,DataInput!AI98) -> 0 | M98: =SUM(DataInput!N98,DataInput!AJ98) -> 0 | N98: =SUM(DataInput!O98,DataInput!AK98) -> 0 | O98: =DataInput!P98 -> 0 | Q98: 9718 | R98: =DataInput!R98 -> 0 | S98: =DataInput!Y98 -> 0 | T98: =IF(DataInput!U98-DataInput!E98>0,DataInput!U98-DataInput!E98,"") ->  | U98: =IF(DataInput!W98-DataInput!I98>0,DataInput!W98-DataInput!I98,"") ->  | W98: 0 | X98: 0 | Y98: 9718 | Z98: 518.93 | AA98: 4146.34 | AB98: =ROUNDDOWN((IF(AA99>0,IFERROR(IF(AVERAGE(DataInput!Q98:Q99)>AVERAGE(AA99,AA98),ROUNDDOWN(((((AA98-Z98)+(AA99-Z99))/2)*(A99-A98))/27+S98+T98,0),IF(((((DataInput!Q99-Z99)+(DataInput!Q98-Z98))/2)*(A99-A98))/27+S98+T98>0,ROUNDDOWN(((((DataInput!Q99-Z98)+(DataInput!Q98-Z98))/2)*(A99-A98))/27+S98+T98,0),0)),0),0)*$X$5),1) -> 0 | AC98: 159.49 | AD98: =ROUNDDOWN((IF(AC99>0,IFERROR(IF(((((DataInput!Q98-AC98)+(DataInput!Q99-AC99))/2)*(A99-A98))/27+S98+T98>0,ROUNDDOWN(((((DataInput!Q98-AC98)+(DataInput!Q99-AC99))/2)*(A99-A98))/27+S98+T98,0),0),0),0)*$X$5),1) -> 0 | AE98: =DataInput!U98 -> 190 | AF98: =DataInput!S98 -> 180 | AG98: 252 | AH98: -62
A99: =IF(DataInput!A99<>"",DataInput!A99,"") -> 13325 | B99: =SUM(DataInput!C99,DataInput!Y99)+(DataInput!U99-DataInput!E99) -> 10298 | C99: =SUM(DataInput!D99,DataInput!Z99) -> 9265 | D99: =DataInput!U99 -> 191 | E99: =SUM(DataInput!F99,DataInput!AB99) -> 0 | F99: =SUM(DataInput!G99,DataInput!AC99) -> 241 | G99: =SUM(DataInput!H99,DataInput!AD99) -> 0 | H99: =DataInput!I99 -> 0 | I99: =SUM(DataInput!J99,DataInput!AF99) -> 601 | J99: =SUM(DataInput!K99,DataInput!AG99) -> 0 | K99: =SUM(DataInput!L99,DataInput!AH99) -> 0 | L99: =SUM(DataInput!M99,DataInput!AI99) -> 0 | M99: =SUM(DataInput!N99,DataInput!AJ99) -> 0 | N99: =SUM(DataInput!O99,DataInput!AK99) -> 0 | O99: =DataInput!P99 -> 0 | Q99: 10107 | R99: =DataInput!R99 -> 0 | S99: =DataInput!Y99 -> 0 | T99: =IF(DataInput!U99-DataInput!E99>0,DataInput!U99-DataInput!E99,"") ->  | U99: =IF(DataInput!W99-DataInput!I99>0,DataInput!W99-DataInput!I99,"") ->  | W99: 0 | X99: 0 | Y99: 10107 | Z99: 518.93 | AA99: 4146.34 | AB99: =ROUNDDOWN((IF(AA100>0,IFERROR(IF(AVERAGE(DataInput!Q99:Q100)>AVERAGE(AA100,AA99),ROUNDDOWN(((((AA99-Z99)+(AA100-Z100))/2)*(A100-A99))/27+S99+T99,0),IF(((((DataInput!Q100-Z100)+(DataInput!Q99-Z99))/2)*(A100-A99))/27+S99+T99>0,ROUNDDOWN(((((DataInput!Q100-Z99)+(DataInput!Q99-Z99))/2)*(A100-A99))/27+S99+T99,0),0)),0),0)*$X$5),1) -> 0 | AC99: 159.49 | AD99: =ROUNDDOWN((IF(AC100>0,IFERROR(IF(((((DataInput!Q99-AC99)+(DataInput!Q100-AC100))/2)*(A100-A99))/27+S99+T99>0,ROUNDDOWN(((((DataInput!Q99-AC99)+(DataInput!Q100-AC100))/2)*(A100-A99))/27+S99+T99,0),0),0),0)*$X$5),1) -> 0 | AE99: =DataInput!U99 -> 191 | AF99: =DataInput!S99 -> 181 | AG99: 253.4 | AH99: -62.4
A100: =IF(DataInput!A100<>"",DataInput!A100,"") -> 13350 | B100: =SUM(DataInput!C100,DataInput!Y100)+(DataInput!U100-DataInput!E100) -> 10599 | C100: =SUM(DataInput!D100,DataInput!Z100) -> 9517 | D100: =DataInput!U100 -> 192 | E100: =SUM(DataInput!F100,DataInput!AB100) -> 0 | F100: =SUM(DataInput!G100,DataInput!AC100) -> 299 | G100: =SUM(DataInput!H100,DataInput!AD100) -> 0 | H100: =DataInput!I100 -> 0 | I100: =SUM(DataInput!J100,DataInput!AF100) -> 591 | J100: =SUM(DataInput!K100,DataInput!AG100) -> 0 | K100: =SUM(DataInput!L100,DataInput!AH100) -> 0 | L100: =SUM(DataInput!M100,DataInput!AI100) -> 0 | M100: =SUM(DataInput!N100,DataInput!AJ100) -> 0 | N100: =SUM(DataInput!O100,DataInput!AK100) -> 0 | O100: =DataInput!P100 -> 0 | P100: 19134 | Q100: 29541 | R100: =DataInput!R100 -> 0 | S100: =DataInput!Y100 -> 0 | T100: =IF(DataInput!U100-DataInput!E100>0,DataInput!U100-DataInput!E100,"") ->  | U100: =IF(DataInput!W100-DataInput!I100>0,DataInput!W100-DataInput!I100,"") ->  | V100: 477 | W100: 477 | X100: 620.1 | Y100: 28920.9 | Z100: 518.93 | AA100: 4146.34 | AB100: =ROUNDDOWN((IF(AA101>0,IFERROR(IF(AVERAGE(DataInput!Q100:Q101)>AVERAGE(AA101,AA100),ROUNDDOWN(((((AA100-Z100)+(AA101-Z101))/2)*(A101-A100))/27+S100+T100,0),IF(((((DataInput!Q101-Z101)+(DataInput!Q100-Z100))/2)*(A101-A100))/27+S100+T100>0,ROUNDDOWN(((((DataInput!Q101-Z100)+(DataInput!Q100-Z100))/2)*(A101-A100))/27+S100+T100,0),0)),0),0)*$X$5),1) -> 0 | AC100: 159.49 | AD100: =ROUNDDOWN((IF(AC101>0,IFERROR(IF(((((DataInput!Q100-AC100)+(DataInput!Q101-AC101))/2)*(A101-A100))/27+S100+T100>0,ROUNDDOWN(((((DataInput!Q100-AC100)+(DataInput!Q101-AC101))/2)*(A101-A100))/27+S100+T100,0),0),0),0)*$X$5),1) -> 0 | AE100: =DataInput!U100 -> 192 | AF100: =DataInput!S100 -> 181 | AG100: 253.4 | AH100: -61.4
A101: =IF(DataInput!A101<>"",DataInput!A101,"") -> 13375 | B101: =SUM(DataInput!C101,DataInput!Y101)+(DataInput!U101-DataInput!E101) -> 10796 | C101: =SUM(DataInput!D101,DataInput!Z101) -> 9674 | D101: =DataInput!U101 -> 192 | E101: =SUM(DataInput!F101,DataInput!AB101) -> 0 | F101: =SUM(DataInput!G101,DataInput!AC101) -> 348 | G101: =SUM(DataInput!H101,DataInput!AD101) -> 0 | H101: =DataInput!I101 -> 0 | I101: =SUM(DataInput!J101,DataInput!AF101) -> 582 | J101: =SUM(DataInput!K101,DataInput!AG101) -> 0 | K101: =SUM(DataInput!L101,DataInput!AH101) -> 0 | L101: =SUM(DataInput!M101,DataInput!AI101) -> 0 | M101: =SUM(DataInput!N101,DataInput!AJ101) -> 0 | N101: =SUM(DataInput!O101,DataInput!AK101) -> 0 | O101: =DataInput!P101 -> 0 | Q101: 10604 | R101: =DataInput!R101 -> 0 | S101: =DataInput!Y101 -> 0 | T101: =IF(DataInput!U101-DataInput!E101>0,DataInput!U101-DataInput!E101,"") ->  | U101: =IF(DataInput!W101-DataInput!I101>0,DataInput!W101-DataInput!I101,"") ->  | W101: 0 | X101: 0 | Y101: 10604 | Z101: 518.93 | AA101: 4146.34 | AB101: =ROUNDDOWN((IF(AA102>0,IFERROR(IF(AVERAGE(DataInput!Q101:Q102)>AVERAGE(AA102,AA101),ROUNDDOWN(((((AA101-Z101)+(AA102-Z102))/2)*(A102-A101))/27+S101+T101,0),IF(((((DataInput!Q102-Z102)+(DataInput!Q101-Z101))/2)*(A102-A101))/27+S101+T101>0,ROUNDDOWN(((((DataInput!Q102-Z101)+(DataInput!Q101-Z101))/2)*(A102-A101))/27+S101+T101,0),0)),0),0)*$X$5),1) -> 0 | AC101: 159.49 | AD101: =ROUNDDOWN((IF(AC102>0,IFERROR(IF(((((DataInput!Q101-AC101)+(DataInput!Q102-AC102))/2)*(A102-A101))/27+S101+T101>0,ROUNDDOWN(((((DataInput!Q101-AC101)+(DataInput!Q102-AC102))/2)*(A102-A101))/27+S101+T101,0),0),0),0)*$X$5),1) -> 0 | AE101: =DataInput!U101 -> 192 | AF101: =DataInput!S101 -> 182 | AG101: 254.8 | AH101: -62.8
A102: =IF(DataInput!A102<>"",DataInput!A102,"") -> 13400 | B102: =SUM(DataInput!C102,DataInput!Y102)+(DataInput!U102-DataInput!E102) -> 10785 | C102: =SUM(DataInput!D102,DataInput!Z102) -> 9664 | D102: =DataInput!U102 -> 190 | E102: =SUM(DataInput!F102,DataInput!AB102) -> 0 | F102: =SUM(DataInput!G102,DataInput!AC102) -> 358 | G102: =SUM(DataInput!H102,DataInput!AD102) -> 0 | H102: =DataInput!I102 -> 0 | I102: =SUM(DataInput!J102,DataInput!AF102) -> 573 | J102: =SUM(DataInput!K102,DataInput!AG102) -> 0 | K102: =SUM(DataInput!L102,DataInput!AH102) -> 0 | L102: =SUM(DataInput!M102,DataInput!AI102) -> 0 | M102: =SUM(DataInput!N102,DataInput!AJ102) -> 0 | N102: =SUM(DataInput!O102,DataInput!AK102) -> 0 | O102: =DataInput!P102 -> 0 | Q102: 10595 | R102: =DataInput!R102 -> 0 | S102: =DataInput!Y102 -> 0 | T102: =IF(DataInput!U102-DataInput!E102>0,DataInput!U102-DataInput!E102,"") ->  | U102: =IF(DataInput!W102-DataInput!I102>0,DataInput!W102-DataInput!I102,"") ->  | W102: 0 | X102: 0 | Y102: 10595 | Z102: 518.93 | AA102: 4146.34 | AB102: =ROUNDDOWN((IF(AA103>0,IFERROR(IF(AVERAGE(DataInput!Q102:Q103)>AVERAGE(AA103,AA102),ROUNDDOWN(((((AA102-Z102)+(AA103-Z103))/2)*(A103-A102))/27+S102+T102,0),IF(((((DataInput!Q103-Z103)+(DataInput!Q102-Z102))/2)*(A103-A102))/27+S102+T102>0,ROUNDDOWN(((((DataInput!Q103-Z102)+(DataInput!Q102-Z102))/2)*(A103-A102))/27+S102+T102,0),0)),0),0)*$X$5),1) -> 0 | AC102: 159.49 | AD102: =ROUNDDOWN((IF(AC103>0,IFERROR(IF(((((DataInput!Q102-AC102)+(DataInput!Q103-AC103))/2)*(A103-A102))/27+S102+T102>0,ROUNDDOWN(((((DataInput!Q102-AC102)+(DataInput!Q103-AC103))/2)*(A103-A102))/27+S102+T102,0),0),0),0)*$X$5),1) -> 0 | AE102: =DataInput!U102 -> 190 | AF102: =DataInput!S102 -> 181 | AG102: 253.4 | AH102: -63.4
A103: =IF(DataInput!A103<>"",DataInput!A103,"") -> 13425 | B103: =SUM(DataInput!C103,DataInput!Y103)+(DataInput!U103-DataInput!E103) -> 10509 | C103: =SUM(DataInput!D103,DataInput!Z103) -> 9443 | D103: =DataInput!U103 -> 182 | E103: =SUM(DataInput!F103,DataInput!AB103) -> 0 | F103: =SUM(DataInput!G103,DataInput!AC103) -> 320 | G103: =SUM(DataInput!H103,DataInput!AD103) -> 0 | H103: =DataInput!I103 -> 0 | I103: =SUM(DataInput!J103,DataInput!AF103) -> 564 | J103: =SUM(DataInput!K103,DataInput!AG103) -> 0 | K103: =SUM(DataInput!L103,DataInput!AH103) -> 0 | L103: =SUM(DataInput!M103,DataInput!AI103) -> 0 | M103: =SUM(DataInput!N103,DataInput!AJ103) -> 0 | N103: =SUM(DataInput!O103,DataInput!AK103) -> 0 | O103: =DataInput!P103 -> 0 | Q103: 10327 | R103: =DataInput!R103 -> 0 | S103: =DataInput!Y103 -> 0 | T103: =IF(DataInput!U103-DataInput!E103>0,DataInput!U103-DataInput!E103,"") ->  | U103: =IF(DataInput!W103-DataInput!I103>0,DataInput!W103-DataInput!I103,"") ->  | W103: 0 | X103: 0 | Y103: 10327 | Z103: 518.93 | AA103: 4146.34 | AB103: =ROUNDDOWN((IF(AA104>0,IFERROR(IF(AVERAGE(DataInput!Q103:Q104)>AVERAGE(AA104,AA103),ROUNDDOWN(((((AA103-Z103)+(AA104-Z104))/2)*(A104-A103))/27+S103+T103,0),IF(((((DataInput!Q104-Z104)+(DataInput!Q103-Z103))/2)*(A104-A103))/27+S103+T103>0,ROUNDDOWN(((((DataInput!Q104-Z103)+(DataInput!Q103-Z103))/2)*(A104-A103))/27+S103+T103,0),0)),0),0)*$X$5),1) -> 0 | AC103: 159.49 | AD103: =ROUNDDOWN((IF(AC104>0,IFERROR(IF(((((DataInput!Q103-AC103)+(DataInput!Q104-AC104))/2)*(A104-A103))/27+S103+T103>0,ROUNDDOWN(((((DataInput!Q103-AC103)+(DataInput!Q104-AC104))/2)*(A104-A103))/27+S103+T103,0),0),0),0)*$X$5),1) -> 0 | AE103: =DataInput!U103 -> 182 | AF103: =DataInput!S103 -> 179 | AG103: 250.6 | AH103: -68.6
A104: =IF(DataInput!A104<>"",DataInput!A104,"") -> 13450 | B104: =SUM(DataInput!C104,DataInput!Y104)+(DataInput!U104-DataInput!E104) -> 10037 | C104: =SUM(DataInput!D104,DataInput!Z104) -> 9049 | D104: =DataInput!U104 -> 177 | E104: =SUM(DataInput!F104,DataInput!AB104) -> 0 | F104: =SUM(DataInput!G104,DataInput!AC104) -> 255 | G104: =SUM(DataInput!H104,DataInput!AD104) -> 0 | H104: =DataInput!I104 -> 0 | I104: =SUM(DataInput!J104,DataInput!AF104) -> 557 | J104: =SUM(DataInput!K104,DataInput!AG104) -> 0 | K104: =SUM(DataInput!L104,DataInput!AH104) -> 0 | L104: =SUM(DataInput!M104,DataInput!AI104) -> 0 | M104: =SUM(DataInput!N104,DataInput!AJ104) -> 0 | N104: =SUM(DataInput!O104,DataInput!AK104) -> 0 | O104: =DataInput!P104 -> 0 | Q104: 9861 | R104: =DataInput!R104 -> 0 | S104: =DataInput!Y104 -> 0 | T104: =IF(DataInput!U104-DataInput!E104>0,DataInput!U104-DataInput!E104,"") ->  | U104: =IF(DataInput!W104-DataInput!I104>0,DataInput!W104-DataInput!I104,"") ->  | W104: 0 | X104: 0 | Y104: 9861 | Z104: 518.93 | AA104: 4146.34 | AB104: =ROUNDDOWN((IF(AA105>0,IFERROR(IF(AVERAGE(DataInput!Q104:Q105)>AVERAGE(AA105,AA104),ROUNDDOWN(((((AA104-Z104)+(AA105-Z105))/2)*(A105-A104))/27+S104+T104,0),IF(((((DataInput!Q105-Z105)+(DataInput!Q104-Z104))/2)*(A105-A104))/27+S104+T104>0,ROUNDDOWN(((((DataInput!Q105-Z104)+(DataInput!Q104-Z104))/2)*(A105-A104))/27+S104+T104,0),0)),0),0)*$X$5),1) -> 0 | AC104: 159.49 | AD104: =ROUNDDOWN((IF(AC105>0,IFERROR(IF(((((DataInput!Q104-AC104)+(DataInput!Q105-AC105))/2)*(A105-A104))/27+S104+T104>0,ROUNDDOWN(((((DataInput!Q104-AC104)+(DataInput!Q105-AC105))/2)*(A105-A104))/27+S104+T104,0),0),0),0)*$X$5),1) -> 0 | AE104: =DataInput!U104 -> 177 | AF104: =DataInput!S104 -> 175 | AG104: 245 | AH104: -68
A105: =IF(DataInput!A105<>"",DataInput!A105,"") -> 13475 | B105: =SUM(DataInput!C105,DataInput!Y105)+(DataInput!U105-DataInput!E105) -> 9494 | C105: =SUM(DataInput!D105,DataInput!Z105) -> 8454 | D105: =DataInput!U105 -> 178 | E105: =SUM(DataInput!F105,DataInput!AB105) -> 0 | F105: =SUM(DataInput!G105,DataInput!AC105) -> 586 | G105: =SUM(DataInput!H105,DataInput!AD105) -> 0 | H105: =DataInput!I105 -> 0 | I105: =SUM(DataInput!J105,DataInput!AF105) -> 277 | J105: =SUM(DataInput!K105,DataInput!AG105) -> 0 | K105: =SUM(DataInput!L105,DataInput!AH105) -> 0 | L105: =SUM(DataInput!M105,DataInput!AI105) -> 0 | M105: =SUM(DataInput!N105,DataInput!AJ105) -> 0 | N105: =SUM(DataInput!O105,DataInput!AK105) -> 0 | O105: =DataInput!P105 -> 0 | Q105: 9317 | R105: =DataInput!R105 -> 0 | S105: =DataInput!Y105 -> 0 | T105: =IF(DataInput!U105-DataInput!E105>0,DataInput!U105-DataInput!E105,"") ->  | U105: =IF(DataInput!W105-DataInput!I105>0,DataInput!W105-DataInput!I105,"") ->  | W105: 0 | X105: 0 | Y105: 9317 | Z105: 518.93 | AA105: 4146.34 | AB105: =ROUNDDOWN((IF(AA106>0,IFERROR(IF(AVERAGE(DataInput!Q105:Q106)>AVERAGE(AA106,AA105),ROUNDDOWN(((((AA105-Z105)+(AA106-Z106))/2)*(A106-A105))/27+S105+T105,0),IF(((((DataInput!Q106-Z106)+(DataInput!Q105-Z105))/2)*(A106-A105))/27+S105+T105>0,ROUNDDOWN(((((DataInput!Q106-Z105)+(DataInput!Q105-Z105))/2)*(A106-A105))/27+S105+T105,0),0)),0),0)*$X$5),1) -> 0 | AC105: 159.49 | AD105: =ROUNDDOWN((IF(AC106>0,IFERROR(IF(((((DataInput!Q105-AC105)+(DataInput!Q106-AC106))/2)*(A106-A105))/27+S105+T105>0,ROUNDDOWN(((((DataInput!Q105-AC105)+(DataInput!Q106-AC106))/2)*(A106-A105))/27+S105+T105,0),0),0),0)*$X$5),1) -> 0 | AE105: =DataInput!U105 -> 178 | AF105: =DataInput!S105 -> 170 | AG105: 238 | AH105: -60
A106: =IF(DataInput!A106<>"",DataInput!A106,"") -> 13500 | B106: =SUM(DataInput!C106,DataInput!Y106)+(DataInput!U106-DataInput!E106) -> 8916 | C106: =SUM(DataInput!D106,DataInput!Z106) -> 7800 | D106: =DataInput!U106 -> 176 | E106: =SUM(DataInput!F106,DataInput!AB106) -> 0 | F106: =SUM(DataInput!G106,DataInput!AC106) -> 941 | G106: =SUM(DataInput!H106,DataInput!AD106) -> 0 | H106: =DataInput!I106 -> 0 | I106: =SUM(DataInput!J106,DataInput!AF106) -> 0 | J106: =SUM(DataInput!K106,DataInput!AG106) -> 0 | K106: =SUM(DataInput!L106,DataInput!AH106) -> 0 | L106: =SUM(DataInput!M106,DataInput!AI106) -> 0 | M106: =SUM(DataInput!N106,DataInput!AJ106) -> 0 | N106: =SUM(DataInput!O106,DataInput!AK106) -> 0 | O106: =DataInput!P106 -> 0 | Q106: 8741 | R106: =DataInput!R106 -> 0 | S106: =DataInput!Y106 -> 0 | T106: =IF(DataInput!U106-DataInput!E106>0,DataInput!U106-DataInput!E106,"") ->  | U106: =IF(DataInput!W106-DataInput!I106>0,DataInput!W106-DataInput!I106,"") ->  | W106: 0 | X106: 0 | Y106: 8741 | Z106: 518.93 | AA106: 4146.34 | AB106: =ROUNDDOWN((IF(AA107>0,IFERROR(IF(AVERAGE(DataInput!Q106:Q107)>AVERAGE(AA107,AA106),ROUNDDOWN(((((AA106-Z106)+(AA107-Z107))/2)*(A107-A106))/27+S106+T106,0),IF(((((DataInput!Q107-Z107)+(DataInput!Q106-Z106))/2)*(A107-A106))/27+S106+T106>0,ROUNDDOWN(((((DataInput!Q107-Z106)+(DataInput!Q106-Z106))/2)*(A107-A106))/27+S106+T106,0),0)),0),0)*$X$5),1) -> 0 | AC106: 159.49 | AD106: =ROUNDDOWN((IF(AC107>0,IFERROR(IF(((((DataInput!Q106-AC106)+(DataInput!Q107-AC107))/2)*(A107-A106))/27+S106+T106>0,ROUNDDOWN(((((DataInput!Q106-AC106)+(DataInput!Q107-AC107))/2)*(A107-A106))/27+S106+T106,0),0),0),0)*$X$5),1) -> 0 | AE106: =DataInput!U106 -> 176 | AF106: =DataInput!S106 -> 167 | AG106: 233.8 | AH106: -57.8
A107: =IF(DataInput!A107<>"",DataInput!A107,"") -> 13525 | B107: =SUM(DataInput!C107,DataInput!Y107)+(DataInput!U107-DataInput!E107) -> 8266 | C107: =SUM(DataInput!D107,DataInput!Z107) -> 7192 | D107: =DataInput!U107 -> 172 | E107: =SUM(DataInput!F107,DataInput!AB107) -> 0 | F107: =SUM(DataInput!G107,DataInput!AC107) -> 902 | G107: =SUM(DataInput!H107,DataInput!AD107) -> 0 | H107: =DataInput!I107 -> 0 | I107: =SUM(DataInput!J107,DataInput!AF107) -> 0 | J107: =SUM(DataInput!K107,DataInput!AG107) -> 0 | K107: =SUM(DataInput!L107,DataInput!AH107) -> 0 | L107: =SUM(DataInput!M107,DataInput!AI107) -> 0 | M107: =SUM(DataInput!N107,DataInput!AJ107) -> 0 | N107: =SUM(DataInput!O107,DataInput!AK107) -> 0 | O107: =DataInput!P107 -> 0 | Q107: 8094 | R107: =DataInput!R107 -> 0 | S107: =DataInput!Y107 -> 0 | T107: =IF(DataInput!U107-DataInput!E107>0,DataInput!U107-DataInput!E107,"") ->  | U107: =IF(DataInput!W107-DataInput!I107>0,DataInput!W107-DataInput!I107,"") ->  | W107: 0 | X107: 0 | Y107: 8094 | Z107: 518.93 | AA107: 4146.34 | AB107: =ROUNDDOWN((IF(AA108>0,IFERROR(IF(AVERAGE(DataInput!Q107:Q108)>AVERAGE(AA108,AA107),ROUNDDOWN(((((AA107-Z107)+(AA108-Z108))/2)*(A108-A107))/27+S107+T107,0),IF(((((DataInput!Q108-Z108)+(DataInput!Q107-Z107))/2)*(A108-A107))/27+S107+T107>0,ROUNDDOWN(((((DataInput!Q108-Z107)+(DataInput!Q107-Z107))/2)*(A108-A107))/27+S107+T107,0),0)),0),0)*$X$5),1) -> 0 | AC107: 159.49 | AD107: =ROUNDDOWN((IF(AC108>0,IFERROR(IF(((((DataInput!Q107-AC107)+(DataInput!Q108-AC108))/2)*(A108-A107))/27+S107+T107>0,ROUNDDOWN(((((DataInput!Q107-AC107)+(DataInput!Q108-AC108))/2)*(A108-A107))/27+S107+T107,0),0),0),0)*$X$5),1) -> 0 | AE107: =DataInput!U107 -> 172 | AF107: =DataInput!S107 -> 163 | AG107: 228.2 | AH107: -56.2
A108: =IF(DataInput!A108<>"",DataInput!A108,"") -> 13550 | B108: =SUM(DataInput!C108,DataInput!Y108)+(DataInput!U108-DataInput!E108) -> 7525 | C108: =SUM(DataInput!D108,DataInput!Z108) -> 6509 | D108: =DataInput!U108 -> 167 | E108: =SUM(DataInput!F108,DataInput!AB108) -> 0 | F108: =SUM(DataInput!G108,DataInput!AC108) -> 849 | G108: =SUM(DataInput!H108,DataInput!AD108) -> 0 | H108: =DataInput!I108 -> 0 | I108: =SUM(DataInput!J108,DataInput!AF108) -> 0 | J108: =SUM(DataInput!K108,DataInput!AG108) -> 0 | K108: =SUM(DataInput!L108,DataInput!AH108) -> 0 | L108: =SUM(DataInput!M108,DataInput!AI108) -> 0 | M108: =SUM(DataInput!N108,DataInput!AJ108) -> 0 | N108: =SUM(DataInput!O108,DataInput!AK108) -> 0 | O108: =DataInput!P108 -> 0 | Q108: 7358 | R108: =DataInput!R108 -> 0 | S108: =DataInput!Y108 -> 0 | T108: =IF(DataInput!U108-DataInput!E108>0,DataInput!U108-DataInput!E108,"") ->  | U108: =IF(DataInput!W108-DataInput!I108>0,DataInput!W108-DataInput!I108,"") ->  | W108: 0 | X108: 0 | Y108: 7358 | Z108: 518.93 | AA108: 4146.34 | AB108: =ROUNDDOWN((IF(AA109>0,IFERROR(IF(AVERAGE(DataInput!Q108:Q109)>AVERAGE(AA109,AA108),ROUNDDOWN(((((AA108-Z108)+(AA109-Z109))/2)*(A109-A108))/27+S108+T108,0),IF(((((DataInput!Q109-Z109)+(DataInput!Q108-Z108))/2)*(A109-A108))/27+S108+T108>0,ROUNDDOWN(((((DataInput!Q109-Z108)+(DataInput!Q108-Z108))/2)*(A109-A108))/27+S108+T108,0),0)),0),0)*$X$5),1) -> 0 | AC108: 159.49 | AD108: =ROUNDDOWN((IF(AC109>0,IFERROR(IF(((((DataInput!Q108-AC108)+(DataInput!Q109-AC109))/2)*(A109-A108))/27+S108+T108>0,ROUNDDOWN(((((DataInput!Q108-AC108)+(DataInput!Q109-AC109))/2)*(A109-A108))/27+S108+T108,0),0),0),0)*$X$5),1) -> 0 | AE108: =DataInput!U108 -> 167 | AF108: =DataInput!S108 -> 158 | AG108: 221.2 | AH108: -54.2
A109: =IF(DataInput!A109<>"",DataInput!A109,"") -> 13575 | B109: =SUM(DataInput!C109,DataInput!Y109)+(DataInput!U109-DataInput!E109) -> 6756 | C109: =SUM(DataInput!D109,DataInput!Z109) -> 5803 | D109: =DataInput!U109 -> 163 | E109: =SUM(DataInput!F109,DataInput!AB109) -> 0 | F109: =SUM(DataInput!G109,DataInput!AC109) -> 790 | G109: =SUM(DataInput!H109,DataInput!AD109) -> 0 | H109: =DataInput!I109 -> 0 | I109: =SUM(DataInput!J109,DataInput!AF109) -> 0 | J109: =SUM(DataInput!K109,DataInput!AG109) -> 0 | K109: =SUM(DataInput!L109,DataInput!AH109) -> 0 | L109: =SUM(DataInput!M109,DataInput!AI109) -> 0 | M109: =SUM(DataInput!N109,DataInput!AJ109) -> 0 | N109: =SUM(DataInput!O109,DataInput!AK109) -> 0 | O109: =DataInput!P109 -> 0 | Q109: 6593 | R109: =DataInput!R109 -> 0 | S109: =DataInput!Y109 -> 0 | T109: =IF(DataInput!U109-DataInput!E109>0,DataInput!U109-DataInput!E109,"") ->  | U109: =IF(DataInput!W109-DataInput!I109>0,DataInput!W109-DataInput!I109,"") ->  | W109: 0 | X109: 0 | Y109: 6593 | Z109: 518.93 | AA109: 4146.34 | AB109: =ROUNDDOWN((IF(AA110>0,IFERROR(IF(AVERAGE(DataInput!Q109:Q110)>AVERAGE(AA110,AA109),ROUNDDOWN(((((AA109-Z109)+(AA110-Z110))/2)*(A110-A109))/27+S109+T109,0),IF(((((DataInput!Q110-Z110)+(DataInput!Q109-Z109))/2)*(A110-A109))/27+S109+T109>0,ROUNDDOWN(((((DataInput!Q110-Z109)+(DataInput!Q109-Z109))/2)*(A110-A109))/27+S109+T109,0),0)),0),0)*$X$5),1) -> 0 | AC109: 159.49 | AD109: =ROUNDDOWN((IF(AC110>0,IFERROR(IF(((((DataInput!Q109-AC109)+(DataInput!Q110-AC110))/2)*(A110-A109))/27+S109+T109>0,ROUNDDOWN(((((DataInput!Q109-AC109)+(DataInput!Q110-AC110))/2)*(A110-A109))/27+S109+T109,0),0),0),0)*$X$5),1) -> 0 | AE109: =DataInput!U109 -> 163 | AF109: =DataInput!S109 -> 153 | AG109: 214.2 | AH109: -51.2
A110: =IF(DataInput!A110<>"",DataInput!A110,"") -> 13600 | B110: =SUM(DataInput!C110,DataInput!Y110)+(DataInput!U110-DataInput!E110) -> 5949 | C110: =SUM(DataInput!D110,DataInput!Z110) -> 5061 | D110: =DataInput!U110 -> 153 | E110: =SUM(DataInput!F110,DataInput!AB110) -> 0 | F110: =SUM(DataInput!G110,DataInput!AC110) -> 735 | G110: =SUM(DataInput!H110,DataInput!AD110) -> 0 | H110: =DataInput!I110 -> 0 | I110: =SUM(DataInput!J110,DataInput!AF110) -> 0 | J110: =SUM(DataInput!K110,DataInput!AG110) -> 0 | K110: =SUM(DataInput!L110,DataInput!AH110) -> 0 | L110: =SUM(DataInput!M110,DataInput!AI110) -> 0 | M110: =SUM(DataInput!N110,DataInput!AJ110) -> 0 | N110: =SUM(DataInput!O110,DataInput!AK110) -> 0 | O110: =DataInput!P110 -> 0 | Q110: 5796 | R110: =DataInput!R110 -> 0 | S110: =DataInput!Y110 -> 0 | T110: =IF(DataInput!U110-DataInput!E110>0,DataInput!U110-DataInput!E110,"") ->  | U110: =IF(DataInput!W110-DataInput!I110>0,DataInput!W110-DataInput!I110,"") ->  | W110: 0 | X110: 0 | Y110: 5796 | Z110: 518.93 | AA110: 4146.34 | AB110: =ROUNDDOWN((IF(AA111>0,IFERROR(IF(AVERAGE(DataInput!Q110:Q111)>AVERAGE(AA111,AA110),ROUNDDOWN(((((AA110-Z110)+(AA111-Z111))/2)*(A111-A110))/27+S110+T110,0),IF(((((DataInput!Q111-Z111)+(DataInput!Q110-Z110))/2)*(A111-A110))/27+S110+T110>0,ROUNDDOWN(((((DataInput!Q111-Z110)+(DataInput!Q110-Z110))/2)*(A111-A110))/27+S110+T110,0),0)),0),0)*$X$5),1) -> 0 | AC110: 159.49 | AD110: =ROUNDDOWN((IF(AC111>0,IFERROR(IF(((((DataInput!Q110-AC110)+(DataInput!Q111-AC111))/2)*(A111-A110))/27+S110+T110>0,ROUNDDOWN(((((DataInput!Q110-AC110)+(DataInput!Q111-AC111))/2)*(A111-A110))/27+S110+T110,0),0),0),0)*$X$5),1) -> 0 | AE110: =DataInput!U110 -> 153 | AF110: =DataInput!S110 -> 148 | AG110: 207.2 | AH110: -54.2
A111: =IF(DataInput!A111<>"",DataInput!A111,"") -> 13625 | B111: =SUM(DataInput!C111,DataInput!Y111)+(DataInput!U111-DataInput!E111) -> 5147 | C111: =SUM(DataInput!D111,DataInput!Z111) -> 4298 | D111: =DataInput!U111 -> 144 | E111: =SUM(DataInput!F111,DataInput!AB111) -> 0 | F111: =SUM(DataInput!G111,DataInput!AC111) -> 705 | G111: =SUM(DataInput!H111,DataInput!AD111) -> 0 | H111: =DataInput!I111 -> 0 | I111: =SUM(DataInput!J111,DataInput!AF111) -> 0 | J111: =SUM(DataInput!K111,DataInput!AG111) -> 0 | K111: =SUM(DataInput!L111,DataInput!AH111) -> 0 | L111: =SUM(DataInput!M111,DataInput!AI111) -> 0 | M111: =SUM(DataInput!N111,DataInput!AJ111) -> 0 | N111: =SUM(DataInput!O111,DataInput!AK111) -> 0 | O111: =DataInput!P111 -> 0 | Q111: 5003 | R111: =DataInput!R111 -> 0 | S111: =DataInput!Y111 -> 0 | T111: =IF(DataInput!U111-DataInput!E111>0,DataInput!U111-DataInput!E111,"") ->  | U111: =IF(DataInput!W111-DataInput!I111>0,DataInput!W111-DataInput!I111,"") ->  | W111: 0 | X111: 0 | Y111: 5003 | Z111: 518.93 | AA111: 4146.34 | AB111: =ROUNDDOWN((IF(AA112>0,IFERROR(IF(AVERAGE(DataInput!Q111:Q112)>AVERAGE(AA112,AA111),ROUNDDOWN(((((AA111-Z111)+(AA112-Z112))/2)*(A112-A111))/27+S111+T111,0),IF(((((DataInput!Q112-Z112)+(DataInput!Q111-Z111))/2)*(A112-A111))/27+S111+T111>0,ROUNDDOWN(((((DataInput!Q112-Z111)+(DataInput!Q111-Z111))/2)*(A112-A111))/27+S111+T111,0),0)),0),0)*$X$5),1) -> 0 | AC111: 159.49 | AD111: =ROUNDDOWN((IF(AC112>0,IFERROR(IF(((((DataInput!Q111-AC111)+(DataInput!Q112-AC112))/2)*(A112-A111))/27+S111+T111>0,ROUNDDOWN(((((DataInput!Q111-AC111)+(DataInput!Q112-AC112))/2)*(A112-A111))/27+S111+T111,0),0),0),0)*$X$5),1) -> 0 | AE111: =DataInput!U111 -> 144 | AF111: =DataInput!S111 -> 141 | AG111: 197.4 | AH111: -53.4
A112: =IF(DataInput!A112<>"",DataInput!A112,"") -> 13650 | B112: =SUM(DataInput!C112,DataInput!Y112)+(DataInput!U112-DataInput!E112) -> 4523 | C112: =SUM(DataInput!D112,DataInput!Z112) -> 3691 | D112: =DataInput!U112 -> 148 | E112: =SUM(DataInput!F112,DataInput!AB112) -> 0 | F112: =SUM(DataInput!G112,DataInput!AC112) -> 685 | G112: =SUM(DataInput!H112,DataInput!AD112) -> 0 | H112: =DataInput!I112 -> 0 | I112: =SUM(DataInput!J112,DataInput!AF112) -> 0 | J112: =SUM(DataInput!K112,DataInput!AG112) -> 0 | K112: =SUM(DataInput!L112,DataInput!AH112) -> 0 | L112: =SUM(DataInput!M112,DataInput!AI112) -> 0 | M112: =SUM(DataInput!N112,DataInput!AJ112) -> 0 | N112: =SUM(DataInput!O112,DataInput!AK112) -> 0 | O112: =DataInput!P112 -> 0 | Q112: 4376 | R112: =DataInput!R112 -> 0 | S112: =DataInput!Y112 -> 0 | T112: =IF(DataInput!U112-DataInput!E112>0,DataInput!U112-DataInput!E112,"") ->  | U112: =IF(DataInput!W112-DataInput!I112>0,DataInput!W112-DataInput!I112,"") ->  | W112: 0 | X112: 0 | Y112: 4376 | Z112: 518.93 | AA112: 4146.34 | AB112: =ROUNDDOWN((IF(AA113>0,IFERROR(IF(AVERAGE(DataInput!Q112:Q113)>AVERAGE(AA113,AA112),ROUNDDOWN(((((AA112-Z112)+(AA113-Z113))/2)*(A113-A112))/27+S112+T112,0),IF(((((DataInput!Q113-Z113)+(DataInput!Q112-Z112))/2)*(A113-A112))/27+S112+T112>0,ROUNDDOWN(((((DataInput!Q113-Z112)+(DataInput!Q112-Z112))/2)*(A113-A112))/27+S112+T112,0),0)),0),0)*$X$5),1) -> 0 | AC112: 159.49 | AD112: =ROUNDDOWN((IF(AC113>0,IFERROR(IF(((((DataInput!Q112-AC112)+(DataInput!Q113-AC113))/2)*(A113-A112))/27+S112+T112>0,ROUNDDOWN(((((DataInput!Q112-AC112)+(DataInput!Q113-AC113))/2)*(A113-A112))/27+S112+T112,0),0),0),0)*$X$5),1) -> 0 | AE112: =DataInput!U112 -> 148 | AF112: =DataInput!S112 -> 134 | AG112: 187.6 | AH112: -39.6
A113: =IF(DataInput!A113<>"",DataInput!A113,"") -> 13675 | B113: =SUM(DataInput!C113,DataInput!Y113)+(DataInput!U113-DataInput!E113) -> 3639 | C113: =SUM(DataInput!D113,DataInput!Z113) -> 2859 | D113: =DataInput!U113 -> 147 | E113: =SUM(DataInput!F113,DataInput!AB113) -> 0 | F113: =SUM(DataInput!G113,DataInput!AC113) -> 633 | G113: =SUM(DataInput!H113,DataInput!AD113) -> 0 | H113: =DataInput!I113 -> 0 | I113: =SUM(DataInput!J113,DataInput!AF113) -> 0 | J113: =SUM(DataInput!K113,DataInput!AG113) -> 0 | K113: =SUM(DataInput!L113,DataInput!AH113) -> 0 | L113: =SUM(DataInput!M113,DataInput!AI113) -> 0 | M113: =SUM(DataInput!N113,DataInput!AJ113) -> 0 | N113: =SUM(DataInput!O113,DataInput!AK113) -> 0 | O113: =DataInput!P113 -> 0 | Q113: 3492 | R113: =DataInput!R113 -> 0 | S113: =DataInput!Y113 -> 0 | T113: =IF(DataInput!U113-DataInput!E113>0,DataInput!U113-DataInput!E113,"") ->  | U113: =IF(DataInput!W113-DataInput!I113>0,DataInput!W113-DataInput!I113,"") ->  | W113: 0 | X113: 0 | Y113: 3492 | Z113: 518.93 | AA113: 4146.34 | AB113: =ROUNDDOWN((IF(AA114>0,IFERROR(IF(AVERAGE(DataInput!Q113:Q114)>AVERAGE(AA114,AA113),ROUNDDOWN(((((AA113-Z113)+(AA114-Z114))/2)*(A114-A113))/27+S113+T113,0),IF(((((DataInput!Q114-Z114)+(DataInput!Q113-Z113))/2)*(A114-A113))/27+S113+T113>0,ROUNDDOWN(((((DataInput!Q114-Z113)+(DataInput!Q113-Z113))/2)*(A114-A113))/27+S113+T113,0),0)),0),0)*$X$5),1) -> 0 | AC113: 159.49 | AD113: =ROUNDDOWN((IF(AC114>0,IFERROR(IF(((((DataInput!Q113-AC113)+(DataInput!Q114-AC114))/2)*(A114-A113))/27+S113+T113>0,ROUNDDOWN(((((DataInput!Q113-AC113)+(DataInput!Q114-AC114))/2)*(A114-A113))/27+S113+T113,0),0),0),0)*$X$5),1) -> 0 | AE113: =DataInput!U113 -> 147 | AF113: =DataInput!S113 -> 122 | AG113: 170.8 | AH113: -23.8
A114: =IF(DataInput!A114<>"",DataInput!A114,"") -> 13700 | B114: =SUM(DataInput!C114,DataInput!Y114)+(DataInput!U114-DataInput!E114) -> 2593 | C114: =SUM(DataInput!D114,DataInput!Z114) -> 2158 | D114: =DataInput!U114 -> 136 | E114: =SUM(DataInput!F114,DataInput!AB114) -> 0 | F114: =SUM(DataInput!G114,DataInput!AC114) -> 298 | G114: =SUM(DataInput!H114,DataInput!AD114) -> 0 | H114: =DataInput!I114 -> 0 | I114: =SUM(DataInput!J114,DataInput!AF114) -> 0 | J114: =SUM(DataInput!K114,DataInput!AG114) -> 0 | K114: =SUM(DataInput!L114,DataInput!AH114) -> 0 | L114: =SUM(DataInput!M114,DataInput!AI114) -> 0 | M114: =SUM(DataInput!N114,DataInput!AJ114) -> 0 | N114: =SUM(DataInput!O114,DataInput!AK114) -> 0 | O114: =DataInput!P114 -> 0 | Q114: 2456 | R114: =DataInput!R114 -> 0 | S114: =DataInput!Y114 -> 0 | T114: =IF(DataInput!U114-DataInput!E114>0,DataInput!U114-DataInput!E114,"") ->  | U114: =IF(DataInput!W114-DataInput!I114>0,DataInput!W114-DataInput!I114,"") ->  | W114: 0 | X114: 0 | Y114: 2456 | Z114: 518.93 | AA114: 4146.34 | AB114: =ROUNDDOWN((IF(AA115>0,IFERROR(IF(AVERAGE(DataInput!Q114:Q115)>AVERAGE(AA115,AA114),ROUNDDOWN(((((AA114-Z114)+(AA115-Z115))/2)*(A115-A114))/27+S114+T114,0),IF(((((DataInput!Q115-Z115)+(DataInput!Q114-Z114))/2)*(A115-A114))/27+S114+T114>0,ROUNDDOWN(((((DataInput!Q115-Z114)+(DataInput!Q114-Z114))/2)*(A115-A114))/27+S114+T114,0),0)),0),0)*$X$5),1) -> 0 | AC114: 159.49 | AD114: =ROUNDDOWN((IF(AC115>0,IFERROR(IF(((((DataInput!Q114-AC114)+(DataInput!Q115-AC115))/2)*(A115-A114))/27+S114+T114>0,ROUNDDOWN(((((DataInput!Q114-AC114)+(DataInput!Q115-AC115))/2)*(A115-A114))/27+S114+T114,0),0),0),0)*$X$5),1) -> 0 | AE114: =DataInput!U114 -> 136 | AF114: =DataInput!S114 -> 108 | AG114: 151.2 | AH114: -15.2
A115: =IF(DataInput!A115<>"",DataInput!A115,"") -> 13725 | B115: =SUM(DataInput!C115,DataInput!Y115)+(DataInput!U115-DataInput!E115) -> 1706 | C115: =SUM(DataInput!D115,DataInput!Z115) -> 1580 | D115: =DataInput!U115 -> 126 | E115: =SUM(DataInput!F115,DataInput!AB115) -> 0 | F115: =SUM(DataInput!G115,DataInput!AC115) -> 0 | G115: =SUM(DataInput!H115,DataInput!AD115) -> 0 | H115: =DataInput!I115 -> 0 | I115: =SUM(DataInput!J115,DataInput!AF115) -> 0 | J115: =SUM(DataInput!K115,DataInput!AG115) -> 0 | K115: =SUM(DataInput!L115,DataInput!AH115) -> 0 | L115: =SUM(DataInput!M115,DataInput!AI115) -> 0 | M115: =SUM(DataInput!N115,DataInput!AJ115) -> 0 | N115: =SUM(DataInput!O115,DataInput!AK115) -> 0 | O115: =DataInput!P115 -> 0 | Q115: 1580 | R115: =DataInput!R115 -> 0 | S115: =DataInput!Y115 -> 0 | T115: =IF(DataInput!U115-DataInput!E115>0,DataInput!U115-DataInput!E115,"") ->  | U115: =IF(DataInput!W115-DataInput!I115>0,DataInput!W115-DataInput!I115,"") ->  | W115: 0 | X115: 0 | Y115: 1580 | Z115: 518.93 | AA115: 4146.34 | AB115: =ROUNDDOWN((IF(AA116>0,IFERROR(IF(AVERAGE(DataInput!Q115:Q116)>AVERAGE(AA116,AA115),ROUNDDOWN(((((AA115-Z115)+(AA116-Z116))/2)*(A116-A115))/27+S115+T115,0),IF(((((DataInput!Q116-Z116)+(DataInput!Q115-Z115))/2)*(A116-A115))/27+S115+T115>0,ROUNDDOWN(((((DataInput!Q116-Z115)+(DataInput!Q115-Z115))/2)*(A116-A115))/27+S115+T115,0),0)),0),0)*$X$5),1) -> 0 | AC115: 159.49 | AD115: =ROUNDDOWN((IF(AC116>0,IFERROR(IF(((((DataInput!Q115-AC115)+(DataInput!Q116-AC116))/2)*(A116-A115))/27+S115+T115>0,ROUNDDOWN(((((DataInput!Q115-AC115)+(DataInput!Q116-AC116))/2)*(A116-A115))/27+S115+T115,0),0),0),0)*$X$5),1) -> 0 | AE115: =DataInput!U115 -> 126 | AF115: =DataInput!S115 -> 94 | AG115: 131.6 | AH115: -5.6
A116: =IF(DataInput!A116<>"",DataInput!A116,"") -> 13750 | B116: =SUM(DataInput!C116,DataInput!Y116)+(DataInput!U116-DataInput!E116) -> 851 | C116: =SUM(DataInput!D116,DataInput!Z116) -> 737 | D116: =DataInput!U116 -> 114 | E116: =SUM(DataInput!F116,DataInput!AB116) -> 0 | F116: =SUM(DataInput!G116,DataInput!AC116) -> 0 | G116: =SUM(DataInput!H116,DataInput!AD116) -> 0 | H116: =DataInput!I116 -> 0 | I116: =SUM(DataInput!J116,DataInput!AF116) -> 0 | J116: =SUM(DataInput!K116,DataInput!AG116) -> 0 | K116: =SUM(DataInput!L116,DataInput!AH116) -> 0 | L116: =SUM(DataInput!M116,DataInput!AI116) -> 0 | M116: =SUM(DataInput!N116,DataInput!AJ116) -> 0 | N116: =SUM(DataInput!O116,DataInput!AK116) -> 0 | O116: =DataInput!P116 -> 0 | Q116: 737 | R116: =DataInput!R116 -> 22 | S116: =DataInput!Y116 -> 0 | T116: =IF(DataInput!U116-DataInput!E116>0,DataInput!U116-DataInput!E116,"") -> 15 | U116: =IF(DataInput!W116-DataInput!I116>0,DataInput!W116-DataInput!I116,"") ->  | W116: 37 | X116: 48.1 | Y116: 688.9 | Z116: 518.93 | AA116: 4146.34 | AB116: =ROUNDDOWN((IF(AA117>0,IFERROR(IF(AVERAGE(DataInput!Q116:Q117)>AVERAGE(AA117,AA116),ROUNDDOWN(((((AA116-Z116)+(AA117-Z117))/2)*(A117-A116))/27+S116+T116,0),IF(((((DataInput!Q117-Z117)+(DataInput!Q116-Z116))/2)*(A117-A116))/27+S116+T116>0,ROUNDDOWN(((((DataInput!Q117-Z116)+(DataInput!Q116-Z116))/2)*(A117-A116))/27+S116+T116,0),0)),0),0)*$X$5),1) -> 0 | AC116: 159.49 | AD116: =ROUNDDOWN((IF(AC117>0,IFERROR(IF(((((DataInput!Q116-AC116)+(DataInput!Q117-AC117))/2)*(A117-A116))/27+S116+T116>0,ROUNDDOWN(((((DataInput!Q116-AC116)+(DataInput!Q117-AC117))/2)*(A117-A116))/27+S116+T116,0),0),0),0)*$X$5),1) -> 0 | AE116: =DataInput!U116 -> 114 | AF116: =DataInput!S116 -> 79 | AG116: 110.6 | AH116: 3.5
A117: =IF(DataInput!A117<>"",DataInput!A117,"") -> 13775 | B117: =SUM(DataInput!C117,DataInput!Y117)+(DataInput!U117-DataInput!E117) -> 318 | C117: =SUM(DataInput!D117,DataInput!Z117) -> 214 | D117: =DataInput!U117 -> 103 | E117: =SUM(DataInput!F117,DataInput!AB117) -> 0 | F117: =SUM(DataInput!G117,DataInput!AC117) -> 0 | G117: =SUM(DataInput!H117,DataInput!AD117) -> 0 | H117: =DataInput!I117 -> 0 | I117: =SUM(DataInput!J117,DataInput!AF117) -> 0 | J117: =SUM(DataInput!K117,DataInput!AG117) -> 0 | K117: =SUM(DataInput!L117,DataInput!AH117) -> 0 | L117: =SUM(DataInput!M117,DataInput!AI117) -> 0 | M117: =SUM(DataInput!N117,DataInput!AJ117) -> 0 | N117: =SUM(DataInput!O117,DataInput!AK117) -> 0 | O117: =DataInput!P117 -> 0 | Q117: 214 | R117: =DataInput!R117 -> 174 | S117: =DataInput!Y117 -> 0 | T117: =IF(DataInput!U117-DataInput!E117>0,DataInput!U117-DataInput!E117,"") -> 54 | U117: =IF(DataInput!W117-DataInput!I117>0,DataInput!W117-DataInput!I117,"") ->  | W117: 228 | X117: 296.4 | Y117: -82.4 | Z117: 518.93 | AA117: 4146.34 | AB117: =ROUNDDOWN((IF(AA118>0,IFERROR(IF(AVERAGE(DataInput!Q117:Q118)>AVERAGE(AA118,AA117),ROUNDDOWN(((((AA117-Z117)+(AA118-Z118))/2)*(A118-A117))/27+S117+T117,0),IF(((((DataInput!Q118-Z118)+(DataInput!Q117-Z117))/2)*(A118-A117))/27+S117+T117>0,ROUNDDOWN(((((DataInput!Q118-Z117)+(DataInput!Q117-Z117))/2)*(A118-A117))/27+S117+T117,0),0)),0),0)*$X$5),1) -> 0 | AC117: 159.49 | AD117: =ROUNDDOWN((IF(AC118>0,IFERROR(IF(((((DataInput!Q117-AC117)+(DataInput!Q118-AC118))/2)*(A118-A117))/27+S117+T117>0,ROUNDDOWN(((((DataInput!Q117-AC117)+(DataInput!Q118-AC118))/2)*(A118-A117))/27+S117+T117,0),0),0),0)*$X$5),1) -> 104 | AE117: =DataInput!U117 -> 103 | AF117: =DataInput!S117 -> 63 | AG117: 88.2 | AH117: 14.8
A118: =IF(DataInput!A118<>"",DataInput!A118,"") -> 13800 | B118: =SUM(DataInput!C118,DataInput!Y118)+(DataInput!U118-DataInput!E118) -> 135 | C118: =SUM(DataInput!D118,DataInput!Z118) -> 39 | D118: =DataInput!U118 -> 96 | E118: =SUM(DataInput!F118,DataInput!AB118) -> 0 | F118: =SUM(DataInput!G118,DataInput!AC118) -> 0 | G118: =SUM(DataInput!H118,DataInput!AD118) -> 0 | H118: =DataInput!I118 -> 0 | I118: =SUM(DataInput!J118,DataInput!AF118) -> 0 | J118: =SUM(DataInput!K118,DataInput!AG118) -> 0 | K118: =SUM(DataInput!L118,DataInput!AH118) -> 0 | L118: =SUM(DataInput!M118,DataInput!AI118) -> 0 | M118: =SUM(DataInput!N118,DataInput!AJ118) -> 0 | N118: =SUM(DataInput!O118,DataInput!AK118) -> 0 | O118: =DataInput!P118 -> 0 | Q118: 39 | R118: =DataInput!R118 -> 457 | S118: =DataInput!Y118 -> 0 | T118: =IF(DataInput!U118-DataInput!E118>0,DataInput!U118-DataInput!E118,"") -> 81 | U118: =IF(DataInput!W118-DataInput!I118>0,DataInput!W118-DataInput!I118,"") ->  | W118: 538 | X118: 699.4 | Y118: -660.4 | Z118: 518.93 | AA118: 4146.34 | AB118: =ROUNDDOWN((IF(AA119>0,IFERROR(IF(AVERAGE(DataInput!Q118:Q119)>AVERAGE(AA119,AA118),ROUNDDOWN(((((AA118-Z118)+(AA119-Z119))/2)*(A119-A118))/27+S118+T118,0),IF(((((DataInput!Q119-Z119)+(DataInput!Q118-Z118))/2)*(A119-A118))/27+S118+T118>0,ROUNDDOWN(((((DataInput!Q119-Z118)+(DataInput!Q118-Z118))/2)*(A119-A118))/27+S118+T118,0),0)),0),0)*$X$5),1) -> 74.1 | AC118: 159.49 | AD118: =ROUNDDOWN((IF(AC119>0,IFERROR(IF(((((DataInput!Q118-AC118)+(DataInput!Q119-AC119))/2)*(A119-A118))/27+S118+T118>0,ROUNDDOWN(((((DataInput!Q118-AC118)+(DataInput!Q119-AC119))/2)*(A119-A118))/27+S118+T118,0),0),0),0)*$X$5),1) -> 507 | AE118: =DataInput!U118 -> 96 | AF118: =DataInput!S118 -> 54 | AG118: 75.6 | AH118: 20.4
A119: =IF(DataInput!A119<>"",DataInput!A119,"") -> 13825 | B119: =SUM(DataInput!C119,DataInput!Y119)+(DataInput!U119-DataInput!E119) -> 100 | C119: =SUM(DataInput!D119,DataInput!Z119) -> 5 | D119: =DataInput!U119 -> 95 | E119: =SUM(DataInput!F119,DataInput!AB119) -> 0 | F119: =SUM(DataInput!G119,DataInput!AC119) -> 0 | G119: =SUM(DataInput!H119,DataInput!AD119) -> 0 | H119: =DataInput!I119 -> 0 | I119: =SUM(DataInput!J119,DataInput!AF119) -> 0 | J119: =SUM(DataInput!K119,DataInput!AG119) -> 0 | K119: =SUM(DataInput!L119,DataInput!AH119) -> 0 | L119: =SUM(DataInput!M119,DataInput!AI119) -> 0 | M119: =SUM(DataInput!N119,DataInput!AJ119) -> 0 | N119: =SUM(DataInput!O119,DataInput!AK119) -> 0 | O119: =DataInput!P119 -> 0 | Q119: 5 | R119: =DataInput!R119 -> 698 | S119: =DataInput!Y119 -> 0 | T119: =IF(DataInput!U119-DataInput!E119>0,DataInput!U119-DataInput!E119,"") -> 87 | U119: =IF(DataInput!W119-DataInput!I119>0,DataInput!W119-DataInput!I119,"") ->  | W119: 785 | X119: 1020.5 | Y119: -1015.5 | Z119: 518.93 | AA119: 4146.34 | AB119: =ROUNDDOWN((IF(AA120>0,IFERROR(IF(AVERAGE(DataInput!Q119:Q120)>AVERAGE(AA120,AA119),ROUNDDOWN(((((AA119-Z119)+(AA120-Z120))/2)*(A120-A119))/27+S119+T119,0),IF(((((DataInput!Q120-Z120)+(DataInput!Q119-Z119))/2)*(A120-A119))/27+S119+T119>0,ROUNDDOWN(((((DataInput!Q120-Z119)+(DataInput!Q119-Z119))/2)*(A120-A119))/27+S119+T119,0),0)),0),0)*$X$5),1) -> 395.2 | AC119: 159.49 | AD119: =ROUNDDOWN((IF(AC120>0,IFERROR(IF(((((DataInput!Q119-AC119)+(DataInput!Q120-AC120))/2)*(A120-A119))/27+S119+T119>0,ROUNDDOWN(((((DataInput!Q119-AC119)+(DataInput!Q120-AC120))/2)*(A120-A119))/27+S119+T119,0),0),0),0)*$X$5),1) -> 828.1 | AE119: =DataInput!U119 -> 95 | AF119: =DataInput!S119 -> 53 | AG119: 74.2 | AH119: 20.8
A120: =IF(DataInput!A120<>"",DataInput!A120,"") -> 13850 | B120: =SUM(DataInput!C120,DataInput!Y120)+(DataInput!U120-DataInput!E120) -> 113 | C120: =SUM(DataInput!D120,DataInput!Z120) -> 14 | D120: =DataInput!U120 -> 99 | E120: =SUM(DataInput!F120,DataInput!AB120) -> 0 | F120: =SUM(DataInput!G120,DataInput!AC120) -> 0 | G120: =SUM(DataInput!H120,DataInput!AD120) -> 0 | H120: =DataInput!I120 -> 0 | I120: =SUM(DataInput!J120,DataInput!AF120) -> 0 | J120: =SUM(DataInput!K120,DataInput!AG120) -> 0 | K120: =SUM(DataInput!L120,DataInput!AH120) -> 0 | L120: =SUM(DataInput!M120,DataInput!AI120) -> 0 | M120: =SUM(DataInput!N120,DataInput!AJ120) -> 0 | N120: =SUM(DataInput!O120,DataInput!AK120) -> 0 | O120: =DataInput!P120 -> 0 | Q120: 14 | R120: =DataInput!R120 -> 832 | S120: =DataInput!Y120 -> 0 | T120: =IF(DataInput!U120-DataInput!E120>0,DataInput!U120-DataInput!E120,"") -> 91 | U120: =IF(DataInput!W120-DataInput!I120>0,DataInput!W120-DataInput!I120,"") ->  | W120: 923 | X120: 1199.9 | Y120: -1185.9 | Z120: 518.93 | AA120: 4146.34 | AB120: =ROUNDDOWN((IF(AA121>0,IFERROR(IF(AVERAGE(DataInput!Q120:Q121)>AVERAGE(AA121,AA120),ROUNDDOWN(((((AA120-Z120)+(AA121-Z121))/2)*(A121-A120))/27+S120+T120,0),IF(((((DataInput!Q121-Z121)+(DataInput!Q120-Z120))/2)*(A121-A120))/27+S120+T120>0,ROUNDDOWN(((((DataInput!Q121-Z120)+(DataInput!Q120-Z120))/2)*(A121-A120))/27+S120+T120,0),0)),0),0)*$X$5),1) -> 574.6 | AC120: 159.49 | AD120: =ROUNDDOWN((IF(AC121>0,IFERROR(IF(((((DataInput!Q120-AC120)+(DataInput!Q121-AC121))/2)*(A121-A120))/27+S120+T120>0,ROUNDDOWN(((((DataInput!Q120-AC120)+(DataInput!Q121-AC121))/2)*(A121-A120))/27+S120+T120,0),0),0),0)*$X$5),1) -> 1007.5 | AE120: =DataInput!U120 -> 99 | AF120: =DataInput!S120 -> 59 | AG120: 82.6 | AH120: 16.4
A121: =IF(DataInput!A121<>"",DataInput!A121,"") -> 13875 | B121: =SUM(DataInput!C121,DataInput!Y121)+(DataInput!U121-DataInput!E121) -> 129 | C121: =SUM(DataInput!D121,DataInput!Z121) -> 26 | D121: =DataInput!U121 -> 103 | E121: =SUM(DataInput!F121,DataInput!AB121) -> 0 | F121: =SUM(DataInput!G121,DataInput!AC121) -> 0 | G121: =SUM(DataInput!H121,DataInput!AD121) -> 0 | H121: =DataInput!I121 -> 0 | I121: =SUM(DataInput!J121,DataInput!AF121) -> 0 | J121: =SUM(DataInput!K121,DataInput!AG121) -> 0 | K121: =SUM(DataInput!L121,DataInput!AH121) -> 0 | L121: =SUM(DataInput!M121,DataInput!AI121) -> 0 | M121: =SUM(DataInput!N121,DataInput!AJ121) -> 0 | N121: =SUM(DataInput!O121,DataInput!AK121) -> 0 | O121: =DataInput!P121 -> 0 | Q121: 26 | R121: =DataInput!R121 -> 901 | S121: =DataInput!Y121 -> 0 | T121: =IF(DataInput!U121-DataInput!E121>0,DataInput!U121-DataInput!E121,"") -> 93 | U121: =IF(DataInput!W121-DataInput!I121>0,DataInput!W121-DataInput!I121,"") ->  | W121: 994 | X121: 1292.2 | Y121: -1266.2 | Z121: 518.93 | AA121: 4146.34 | AB121: =ROUNDDOWN((IF(AA122>0,IFERROR(IF(AVERAGE(DataInput!Q121:Q122)>AVERAGE(AA122,AA121),ROUNDDOWN(((((AA121-Z121)+(AA122-Z122))/2)*(A122-A121))/27+S121+T121,0),IF(((((DataInput!Q122-Z122)+(DataInput!Q121-Z121))/2)*(A122-A121))/27+S121+T121>0,ROUNDDOWN(((((DataInput!Q122-Z121)+(DataInput!Q121-Z121))/2)*(A122-A121))/27+S121+T121,0),0)),0),0)*$X$5),1) -> 666.9 | AC121: 159.49 | AD121: =ROUNDDOWN((IF(AC122>0,IFERROR(IF(((((DataInput!Q121-AC121)+(DataInput!Q122-AC122))/2)*(A122-A121))/27+S121+T121>0,ROUNDDOWN(((((DataInput!Q121-AC121)+(DataInput!Q122-AC122))/2)*(A122-A121))/27+S121+T121,0),0),0),0)*$X$5),1) -> 1099.8 | AE121: =DataInput!U121 -> 103 | AF121: =DataInput!S121 -> 63 | AG121: 88.2 | AH121: 14.8
A122: =IF(DataInput!A122<>"",DataInput!A122,"") -> 13900 | B122: =SUM(DataInput!C122,DataInput!Y122)+(DataInput!U122-DataInput!E122) -> 147 | C122: =SUM(DataInput!D122,DataInput!Z122) -> 43 | D122: =DataInput!U122 -> 104 | E122: =SUM(DataInput!F122,DataInput!AB122) -> 0 | F122: =SUM(DataInput!G122,DataInput!AC122) -> 0 | G122: =SUM(DataInput!H122,DataInput!AD122) -> 0 | H122: =DataInput!I122 -> 0 | I122: =SUM(DataInput!J122,DataInput!AF122) -> 0 | J122: =SUM(DataInput!K122,DataInput!AG122) -> 0 | K122: =SUM(DataInput!L122,DataInput!AH122) -> 0 | L122: =SUM(DataInput!M122,DataInput!AI122) -> 0 | M122: =SUM(DataInput!N122,DataInput!AJ122) -> 0 | N122: =SUM(DataInput!O122,DataInput!AK122) -> 0 | O122: =DataInput!P122 -> 0 | Q122: 43 | R122: =DataInput!R122 -> 926 | S122: =DataInput!Y122 -> 0 | T122: =IF(DataInput!U122-DataInput!E122>0,DataInput!U122-DataInput!E122,"") -> 91 | U122: =IF(DataInput!W122-DataInput!I122>0,DataInput!W122-DataInput!I122,"") ->  | W122: 1017 | X122: 1322.1 | Y122: -1279.1 | Z122: 518.93 | AA122: 4146.34 | AB122: =ROUNDDOWN((IF(AA123>0,IFERROR(IF(AVERAGE(DataInput!Q122:Q123)>AVERAGE(AA123,AA122),ROUNDDOWN(((((AA122-Z122)+(AA123-Z123))/2)*(A123-A122))/27+S122+T122,0),IF(((((DataInput!Q123-Z123)+(DataInput!Q122-Z122))/2)*(A123-A122))/27+S122+T122>0,ROUNDDOWN(((((DataInput!Q123-Z122)+(DataInput!Q122-Z122))/2)*(A123-A122))/27+S122+T122,0),0)),0),0)*$X$5),1) -> 696.8 | AC122: 159.49 | AD122: =ROUNDDOWN((IF(AC123>0,IFERROR(IF(((((DataInput!Q122-AC122)+(DataInput!Q123-AC123))/2)*(A123-A122))/27+S122+T122>0,ROUNDDOWN(((((DataInput!Q122-AC122)+(DataInput!Q123-AC123))/2)*(A123-A122))/27+S122+T122,0),0),0),0)*$X$5),1) -> 1129.7 | AE122: =DataInput!U122 -> 104 | AF122: =DataInput!S122 -> 65 | AG122: 91 | AH122: 13
A123: =IF(DataInput!A123<>"",DataInput!A123,"") -> 13925 | B123: =SUM(DataInput!C123,DataInput!Y123)+(DataInput!U123-DataInput!E123) -> 198 | C123: =SUM(DataInput!D123,DataInput!Z123) -> 90 | D123: =DataInput!U123 -> 107 | E123: =SUM(DataInput!F123,DataInput!AB123) -> 0 | F123: =SUM(DataInput!G123,DataInput!AC123) -> 0 | G123: =SUM(DataInput!H123,DataInput!AD123) -> 0 | H123: =DataInput!I123 -> 0 | I123: =SUM(DataInput!J123,DataInput!AF123) -> 0 | J123: =SUM(DataInput!K123,DataInput!AG123) -> 0 | K123: =SUM(DataInput!L123,DataInput!AH123) -> 0 | L123: =SUM(DataInput!M123,DataInput!AI123) -> 0 | M123: =SUM(DataInput!N123,DataInput!AJ123) -> 0 | N123: =SUM(DataInput!O123,DataInput!AK123) -> 0 | O123: =DataInput!P123 -> 0 | Q123: 90 | R123: =DataInput!R123 -> 911 | S123: =DataInput!Y123 -> 0 | T123: =IF(DataInput!U123-DataInput!E123>0,DataInput!U123-DataInput!E123,"") -> 90 | U123: =IF(DataInput!W123-DataInput!I123>0,DataInput!W123-DataInput!I123,"") ->  | W123: 1001 | X123: 1301.3 | Y123: -1211.3 | Z123: 518.93 | AA123: 4146.34 | AB123: =ROUNDDOWN((IF(AA124>0,IFERROR(IF(AVERAGE(DataInput!Q123:Q124)>AVERAGE(AA124,AA123),ROUNDDOWN(((((AA123-Z123)+(AA124-Z124))/2)*(A124-A123))/27+S123+T123,0),IF(((((DataInput!Q124-Z124)+(DataInput!Q123-Z123))/2)*(A124-A123))/27+S123+T123>0,ROUNDDOWN(((((DataInput!Q124-Z123)+(DataInput!Q123-Z123))/2)*(A124-A123))/27+S123+T123,0),0)),0),0)*$X$5),1) -> 677.3 | AC123: 159.49 | AD123: =ROUNDDOWN((IF(AC124>0,IFERROR(IF(((((DataInput!Q123-AC123)+(DataInput!Q124-AC124))/2)*(A124-A123))/27+S123+T123>0,ROUNDDOWN(((((DataInput!Q123-AC123)+(DataInput!Q124-AC124))/2)*(A124-A123))/27+S123+T123,0),0),0),0)*$X$5),1) -> 1108.9 | AE123: =DataInput!U123 -> 107 | AF123: =DataInput!S123 -> 69 | AG123: 96.6 | AH123: 10.4
A124: =IF(DataInput!A124<>"",DataInput!A124,"") -> 13950 | B124: =SUM(DataInput!C124,DataInput!Y124)+(DataInput!U124-DataInput!E124) -> 308 | C124: =SUM(DataInput!D124,DataInput!Z124) -> 196 | D124: =DataInput!U124 -> 112 | E124: =SUM(DataInput!F124,DataInput!AB124) -> 0 | F124: =SUM(DataInput!G124,DataInput!AC124) -> 0 | G124: =SUM(DataInput!H124,DataInput!AD124) -> 0 | H124: =DataInput!I124 -> 0 | I124: =SUM(DataInput!J124,DataInput!AF124) -> 0 | J124: =SUM(DataInput!K124,DataInput!AG124) -> 0 | K124: =SUM(DataInput!L124,DataInput!AH124) -> 0 | L124: =SUM(DataInput!M124,DataInput!AI124) -> 0 | M124: =SUM(DataInput!N124,DataInput!AJ124) -> 0 | N124: =SUM(DataInput!O124,DataInput!AK124) -> 0 | O124: =DataInput!P124 -> 0 | Q124: 196 | R124: =DataInput!R124 -> 814 | S124: =DataInput!Y124 -> 0 | T124: =IF(DataInput!U124-DataInput!E124>0,DataInput!U124-DataInput!E124,"") -> 86 | U124: =IF(DataInput!W124-DataInput!I124>0,DataInput!W124-DataInput!I124,"") ->  | W124: 900 | X124: 1170 | Y124: -974 | Z124: 518.93 | AA124: 4146.34 | AB124: =ROUNDDOWN((IF(AA125>0,IFERROR(IF(AVERAGE(DataInput!Q124:Q125)>AVERAGE(AA125,AA124),ROUNDDOWN(((((AA124-Z124)+(AA125-Z125))/2)*(A125-A124))/27+S124+T124,0),IF(((((DataInput!Q125-Z125)+(DataInput!Q124-Z124))/2)*(A125-A124))/27+S124+T124>0,ROUNDDOWN(((((DataInput!Q125-Z124)+(DataInput!Q124-Z124))/2)*(A125-A124))/27+S124+T124,0),0)),0),0)*$X$5),1) -> 544.7 | AC124: 159.49 | AD124: =ROUNDDOWN((IF(AC125>0,IFERROR(IF(((((DataInput!Q124-AC124)+(DataInput!Q125-AC125))/2)*(A125-A124))/27+S124+T124>0,ROUNDDOWN(((((DataInput!Q124-AC124)+(DataInput!Q125-AC125))/2)*(A125-A124))/27+S124+T124,0),0),0),0)*$X$5),1) -> 977.6 | AE124: =DataInput!U124 -> 112 | AF124: =DataInput!S124 -> 75 | AG124: 105 | AH124: 7
A125: =IF(DataInput!A125<>"",DataInput!A125,"") -> 13975 | B125: =SUM(DataInput!C125,DataInput!Y125)+(DataInput!U125-DataInput!E125) -> 524 | C125: =SUM(DataInput!D125,DataInput!Z125) -> 406 | D125: =DataInput!U125 -> 118 | E125: =SUM(DataInput!F125,DataInput!AB125) -> 0 | F125: =SUM(DataInput!G125,DataInput!AC125) -> 0 | G125: =SUM(DataInput!H125,DataInput!AD125) -> 0 | H125: =DataInput!I125 -> 0 | I125: =SUM(DataInput!J125,DataInput!AF125) -> 0 | J125: =SUM(DataInput!K125,DataInput!AG125) -> 0 | K125: =SUM(DataInput!L125,DataInput!AH125) -> 0 | L125: =SUM(DataInput!M125,DataInput!AI125) -> 0 | M125: =SUM(DataInput!N125,DataInput!AJ125) -> 0 | N125: =SUM(DataInput!O125,DataInput!AK125) -> 0 | O125: =DataInput!P125 -> 0 | Q125: 406 | R125: =DataInput!R125 -> 665 | S125: =DataInput!Y125 -> 0 | T125: =IF(DataInput!U125-DataInput!E125>0,DataInput!U125-DataInput!E125,"") -> 75 | U125: =IF(DataInput!W125-DataInput!I125>0,DataInput!W125-DataInput!I125,"") ->  | W125: 740 | X125: 962 | Y125: -556 | Z125: 518.93 | AA125: 4146.34 | AB125: =ROUNDDOWN((IF(AA126>0,IFERROR(IF(AVERAGE(DataInput!Q125:Q126)>AVERAGE(AA126,AA125),ROUNDDOWN(((((AA125-Z125)+(AA126-Z126))/2)*(A126-A125))/27+S125+T125,0),IF(((((DataInput!Q126-Z126)+(DataInput!Q125-Z125))/2)*(A126-A125))/27+S125+T125>0,ROUNDDOWN(((((DataInput!Q126-Z125)+(DataInput!Q125-Z125))/2)*(A126-A125))/27+S125+T125,0),0)),0),0)*$X$5),1) -> 336.7 | AC125: 159.49 | AD125: =ROUNDDOWN((IF(AC126>0,IFERROR(IF(((((DataInput!Q125-AC125)+(DataInput!Q126-AC126))/2)*(A126-A125))/27+S125+T125>0,ROUNDDOWN(((((DataInput!Q125-AC125)+(DataInput!Q126-AC126))/2)*(A126-A125))/27+S125+T125,0),0),0),0)*$X$5),1) -> 769.6 | AE125: =DataInput!U125 -> 118 | AF125: =DataInput!S125 -> 83 | AG125: 116.2 | AH125: 1.8
A126: =IF(DataInput!A126<>"",DataInput!A126,"") -> 14000 | B126: =SUM(DataInput!C126,DataInput!Y126)+(DataInput!U126-DataInput!E126) -> 798 | C126: =SUM(DataInput!D126,DataInput!Z126) -> 676 | D126: =DataInput!U126 -> 122 | E126: =SUM(DataInput!F126,DataInput!AB126) -> 0 | F126: =SUM(DataInput!G126,DataInput!AC126) -> 0 | G126: =SUM(DataInput!H126,DataInput!AD126) -> 0 | H126: =DataInput!I126 -> 0 | I126: =SUM(DataInput!J126,DataInput!AF126) -> 0 | J126: =SUM(DataInput!K126,DataInput!AG126) -> 0 | K126: =SUM(DataInput!L126,DataInput!AH126) -> 0 | L126: =SUM(DataInput!M126,DataInput!AI126) -> 0 | M126: =SUM(DataInput!N126,DataInput!AJ126) -> 0 | N126: =SUM(DataInput!O126,DataInput!AK126) -> 0 | O126: =DataInput!P126 -> 0 | Q126: 676 | R126: =DataInput!R126 -> 533 | S126: =DataInput!Y126 -> 0 | T126: =IF(DataInput!U126-DataInput!E126>0,DataInput!U126-DataInput!E126,"") -> 62 | U126: =IF(DataInput!W126-DataInput!I126>0,DataInput!W126-DataInput!I126,"") ->  | W126: 595 | X126: 773.5 | Y126: -97.5 | Z126: 518.93 | AA126: 4146.34 | AB126: =ROUNDDOWN((IF(AA127>0,IFERROR(IF(AVERAGE(DataInput!Q126:Q127)>AVERAGE(AA127,AA126),ROUNDDOWN(((((AA126-Z126)+(AA127-Z127))/2)*(A127-A126))/27+S126+T126,0),IF(((((DataInput!Q127-Z127)+(DataInput!Q126-Z126))/2)*(A127-A126))/27+S126+T126>0,ROUNDDOWN(((((DataInput!Q127-Z126)+(DataInput!Q126-Z126))/2)*(A127-A126))/27+S126+T126,0),0)),0),0)*$X$5),1) -> 149.5 | AC126: 159.49 | AD126: =ROUNDDOWN((IF(AC127>0,IFERROR(IF(((((DataInput!Q126-AC126)+(DataInput!Q127-AC127))/2)*(A127-A126))/27+S126+T126>0,ROUNDDOWN(((((DataInput!Q126-AC126)+(DataInput!Q127-AC127))/2)*(A127-A126))/27+S126+T126,0),0),0),0)*$X$5),1) -> 582.4 | AE126: =DataInput!U126 -> 122 | AF126: =DataInput!S126 -> 89 | AG126: 124.6 | AH126: -2.6
A127: =IF(DataInput!A127<>"",DataInput!A127,"") -> 14025 | B127: =SUM(DataInput!C127,DataInput!Y127)+(DataInput!U127-DataInput!E127) -> 1074 | C127: =SUM(DataInput!D127,DataInput!Z127) -> 950 | D127: =DataInput!U127 -> 124 | E127: =SUM(DataInput!F127,DataInput!AB127) -> 0 | F127: =SUM(DataInput!G127,DataInput!AC127) -> 0 | G127: =SUM(DataInput!H127,DataInput!AD127) -> 0 | H127: =DataInput!I127 -> 0 | I127: =SUM(DataInput!J127,DataInput!AF127) -> 0 | J127: =SUM(DataInput!K127,DataInput!AG127) -> 0 | K127: =SUM(DataInput!L127,DataInput!AH127) -> 0 | L127: =SUM(DataInput!M127,DataInput!AI127) -> 0 | M127: =SUM(DataInput!N127,DataInput!AJ127) -> 0 | N127: =SUM(DataInput!O127,DataInput!AK127) -> 0 | O127: =DataInput!P127 -> 0 | Q127: 950 | R127: =DataInput!R127 -> 411 | S127: =DataInput!Y127 -> 0 | T127: =IF(DataInput!U127-DataInput!E127>0,DataInput!U127-DataInput!E127,"") -> 50 | U127: =IF(DataInput!W127-DataInput!I127>0,DataInput!W127-DataInput!I127,"") ->  | W127: 461 | X127: 599.3 | Y127: 350.7 | Z127: 518.93 | AA127: 4146.34 | AB127: =ROUNDDOWN((IF(AA128>0,IFERROR(IF(AVERAGE(DataInput!Q127:Q128)>AVERAGE(AA128,AA127),ROUNDDOWN(((((AA127-Z127)+(AA128-Z128))/2)*(A128-A127))/27+S127+T127,0),IF(((((DataInput!Q128-Z128)+(DataInput!Q127-Z127))/2)*(A128-A127))/27+S127+T127>0,ROUNDDOWN(((((DataInput!Q128-Z127)+(DataInput!Q127-Z127))/2)*(A128-A127))/27+S127+T127,0),0)),0),0)*$X$5),1) -> 0 | AC127: 159.49 | AD127: =ROUNDDOWN((IF(AC128>0,IFERROR(IF(((((DataInput!Q127-AC127)+(DataInput!Q128-AC128))/2)*(A128-A127))/27+S127+T127>0,ROUNDDOWN(((((DataInput!Q127-AC127)+(DataInput!Q128-AC128))/2)*(A128-A127))/27+S127+T127,0),0),0),0)*$X$5),1) -> 406.9 | AE127: =DataInput!U127 -> 124 | AF127: =DataInput!S127 -> 91 | AG127: 127.4 | AH127: -3.5
A128: =IF(DataInput!A128<>"",DataInput!A128,"") -> 14050 | B128: =SUM(DataInput!C128,DataInput!Y128)+(DataInput!U128-DataInput!E128) -> 1367 | C128: =SUM(DataInput!D128,DataInput!Z128) -> 1238 | D128: =DataInput!U128 -> 129 | E128: =SUM(DataInput!F128,DataInput!AB128) -> 0 | F128: =SUM(DataInput!G128,DataInput!AC128) -> 0 | G128: =SUM(DataInput!H128,DataInput!AD128) -> 0 | H128: =DataInput!I128 -> 0 | I128: =SUM(DataInput!J128,DataInput!AF128) -> 0 | J128: =SUM(DataInput!K128,DataInput!AG128) -> 0 | K128: =SUM(DataInput!L128,DataInput!AH128) -> 0 | L128: =SUM(DataInput!M128,DataInput!AI128) -> 0 | M128: =SUM(DataInput!N128,DataInput!AJ128) -> 0 | N128: =SUM(DataInput!O128,DataInput!AK128) -> 0 | O128: =DataInput!P128 -> 0 | Q128: 1238 | R128: =DataInput!R128 -> 195 | S128: =DataInput!Y128 -> 0 | T128: =IF(DataInput!U128-DataInput!E128>0,DataInput!U128-DataInput!E128,"") -> 36 | U128: =IF(DataInput!W128-DataInput!I128>0,DataInput!W128-DataInput!I128,"") ->  | W128: 231 | X128: 300.3 | Y128: 937.7 | Z128: 518.93 | AA128: 4146.34 | AB128: =ROUNDDOWN((IF(AA129>0,IFERROR(IF(AVERAGE(DataInput!Q128:Q129)>AVERAGE(AA129,AA128),ROUNDDOWN(((((AA128-Z128)+(AA129-Z129))/2)*(A129-A128))/27+S128+T128,0),IF(((((DataInput!Q129-Z129)+(DataInput!Q128-Z128))/2)*(A129-A128))/27+S128+T128>0,ROUNDDOWN(((((DataInput!Q129-Z128)+(DataInput!Q128-Z128))/2)*(A129-A128))/27+S128+T128,0),0)),0),0)*$X$5),1) -> 0 | AC128: 159.49 | AD128: =ROUNDDOWN((IF(AC129>0,IFERROR(IF(((((DataInput!Q128-AC128)+(DataInput!Q129-AC129))/2)*(A129-A128))/27+S128+T128>0,ROUNDDOWN(((((DataInput!Q128-AC128)+(DataInput!Q129-AC129))/2)*(A129-A128))/27+S128+T128,0),0),0),0)*$X$5),1) -> 107.9 | AE128: =DataInput!U128 -> 129 | AF128: =DataInput!S128 -> 98 | AG128: 137.2 | AH128: -8.2
A129: =IF(DataInput!A129<>"",DataInput!A129,"") -> 14075 | B129: =SUM(DataInput!C129,DataInput!Y129)+(DataInput!U129-DataInput!E129) -> 2139 | C129: =SUM(DataInput!D129,DataInput!Z129) -> 2003 | D129: =DataInput!U129 -> 136 | E129: =SUM(DataInput!F129,DataInput!AB129) -> 0 | F129: =SUM(DataInput!G129,DataInput!AC129) -> 0 | G129: =SUM(DataInput!H129,DataInput!AD129) -> 0 | H129: =DataInput!I129 -> 0 | I129: =SUM(DataInput!J129,DataInput!AF129) -> 0 | J129: =SUM(DataInput!K129,DataInput!AG129) -> 0 | K129: =SUM(DataInput!L129,DataInput!AH129) -> 0 | L129: =SUM(DataInput!M129,DataInput!AI129) -> 0 | M129: =SUM(DataInput!N129,DataInput!AJ129) -> 0 | N129: =SUM(DataInput!O129,DataInput!AK129) -> 0 | O129: =DataInput!P129 -> 0 | Q129: 2003 | R129: =DataInput!R129 -> 19 | S129: =DataInput!Y129 -> 0 | T129: =IF(DataInput!U129-DataInput!E129>0,DataInput!U129-DataInput!E129,"") -> 14 | U129: =IF(DataInput!W129-DataInput!I129>0,DataInput!W129-DataInput!I129,"") ->  | W129: 33 | X129: 42.9 | Y129: 1960.1 | Z129: 518.93 | AA129: 4146.34 | AB129: =ROUNDDOWN((IF(AA130>0,IFERROR(IF(AVERAGE(DataInput!Q129:Q130)>AVERAGE(AA130,AA129),ROUNDDOWN(((((AA129-Z129)+(AA130-Z130))/2)*(A130-A129))/27+S129+T129,0),IF(((((DataInput!Q130-Z130)+(DataInput!Q129-Z129))/2)*(A130-A129))/27+S129+T129>0,ROUNDDOWN(((((DataInput!Q130-Z129)+(DataInput!Q129-Z129))/2)*(A130-A129))/27+S129+T129,0),0)),0),0)*$X$5),1) -> 0 | AC129: 159.49 | AD129: =ROUNDDOWN((IF(AC130>0,IFERROR(IF(((((DataInput!Q129-AC129)+(DataInput!Q130-AC130))/2)*(A130-A129))/27+S129+T129>0,ROUNDDOWN(((((DataInput!Q129-AC129)+(DataInput!Q130-AC130))/2)*(A130-A129))/27+S129+T129,0),0),0),0)*$X$5),1) -> 0 | AE129: =DataInput!U129 -> 136 | AF129: =DataInput!S129 -> 107 | AG129: 149.8 | AH129: -13.8
A130: =IF(DataInput!A130<>"",DataInput!A130,"") -> 14100 | B130: =SUM(DataInput!C130,DataInput!Y130)+(DataInput!U130-DataInput!E130) -> 2873 | C130: =SUM(DataInput!D130,DataInput!Z130) -> 2739 | D130: =DataInput!U130 -> 134 | E130: =SUM(DataInput!F130,DataInput!AB130) -> 0 | F130: =SUM(DataInput!G130,DataInput!AC130) -> 0 | G130: =SUM(DataInput!H130,DataInput!AD130) -> 0 | H130: =DataInput!I130 -> 0 | I130: =SUM(DataInput!J130,DataInput!AF130) -> 0 | J130: =SUM(DataInput!K130,DataInput!AG130) -> 0 | K130: =SUM(DataInput!L130,DataInput!AH130) -> 0 | L130: =SUM(DataInput!M130,DataInput!AI130) -> 0 | M130: =SUM(DataInput!N130,DataInput!AJ130) -> 0 | N130: =SUM(DataInput!O130,DataInput!AK130) -> 0 | O130: =DataInput!P130 -> 0 | Q130: 2739 | R130: =DataInput!R130 -> 0 | S130: =DataInput!Y130 -> 0 | T130: =IF(DataInput!U130-DataInput!E130>0,DataInput!U130-DataInput!E130,"") ->  | U130: =IF(DataInput!W130-DataInput!I130>0,DataInput!W130-DataInput!I130,"") ->  | W130: 0 | X130: 0 | Y130: 2739 | Z130: 518.93 | AA130: 4146.34 | AB130: =ROUNDDOWN((IF(AA131>0,IFERROR(IF(AVERAGE(DataInput!Q130:Q131)>AVERAGE(AA131,AA130),ROUNDDOWN(((((AA130-Z130)+(AA131-Z131))/2)*(A131-A130))/27+S130+T130,0),IF(((((DataInput!Q131-Z131)+(DataInput!Q130-Z130))/2)*(A131-A130))/27+S130+T130>0,ROUNDDOWN(((((DataInput!Q131-Z130)+(DataInput!Q130-Z130))/2)*(A131-A130))/27+S130+T130,0),0)),0),0)*$X$5),1) -> 0 | AC130: 159.49 | AD130: =ROUNDDOWN((IF(AC131>0,IFERROR(IF(((((DataInput!Q130-AC130)+(DataInput!Q131-AC131))/2)*(A131-A130))/27+S130+T130>0,ROUNDDOWN(((((DataInput!Q130-AC130)+(DataInput!Q131-AC131))/2)*(A131-A130))/27+S130+T130,0),0),0),0)*$X$5),1) -> 0 | AE130: =DataInput!U130 -> 134 | AF130: =DataInput!S130 -> 108 | AG130: 151.2 | AH130: -17.2
A131: =IF(DataInput!A131<>"",DataInput!A131,"") -> 14125 | B131: =SUM(DataInput!C131,DataInput!Y131)+(DataInput!U131-DataInput!E131) -> 3017 | C131: =SUM(DataInput!D131,DataInput!Z131) -> 2900 | D131: =DataInput!U131 -> 117 | E131: =SUM(DataInput!F131,DataInput!AB131) -> 0 | F131: =SUM(DataInput!G131,DataInput!AC131) -> 0 | G131: =SUM(DataInput!H131,DataInput!AD131) -> 0 | H131: =DataInput!I131 -> 0 | I131: =SUM(DataInput!J131,DataInput!AF131) -> 0 | J131: =SUM(DataInput!K131,DataInput!AG131) -> 0 | K131: =SUM(DataInput!L131,DataInput!AH131) -> 0 | L131: =SUM(DataInput!M131,DataInput!AI131) -> 0 | M131: =SUM(DataInput!N131,DataInput!AJ131) -> 0 | N131: =SUM(DataInput!O131,DataInput!AK131) -> 0 | O131: =DataInput!P131 -> 0 | Q131: 2900 | R131: =DataInput!R131 -> 0 | S131: =DataInput!Y131 -> 0 | T131: =IF(DataInput!U131-DataInput!E131>0,DataInput!U131-DataInput!E131,"") ->  | U131: =IF(DataInput!W131-DataInput!I131>0,DataInput!W131-DataInput!I131,"") ->  | W131: 0 | X131: 0 | Y131: 2900 | Z131: 518.93 | AA131: 4146.34 | AB131: =ROUNDDOWN((IF(AA132>0,IFERROR(IF(AVERAGE(DataInput!Q131:Q132)>AVERAGE(AA132,AA131),ROUNDDOWN(((((AA131-Z131)+(AA132-Z132))/2)*(A132-A131))/27+S131+T131,0),IF(((((DataInput!Q132-Z132)+(DataInput!Q131-Z131))/2)*(A132-A131))/27+S131+T131>0,ROUNDDOWN(((((DataInput!Q132-Z131)+(DataInput!Q131-Z131))/2)*(A132-A131))/27+S131+T131,0),0)),0),0)*$X$5),1) -> 0 | AC131: 159.49 | AD131: =ROUNDDOWN((IF(AC132>0,IFERROR(IF(((((DataInput!Q131-AC131)+(DataInput!Q132-AC132))/2)*(A132-A131))/27+S131+T131>0,ROUNDDOWN(((((DataInput!Q131-AC131)+(DataInput!Q132-AC132))/2)*(A132-A131))/27+S131+T131,0),0),0),0)*$X$5),1) -> 0 | AE131: =DataInput!U131 -> 117 | AF131: =DataInput!S131 -> 105 | AG131: 147 | AH131: -30
A132: =IF(DataInput!A132<>"",DataInput!A132,"") -> 14150 | B132: =SUM(DataInput!C132,DataInput!Y132)+(DataInput!U132-DataInput!E132) -> 3001 | C132: =SUM(DataInput!D132,DataInput!Z132) -> 2897 | D132: =DataInput!U132 -> 104 | E132: =SUM(DataInput!F132,DataInput!AB132) -> 0 | F132: =SUM(DataInput!G132,DataInput!AC132) -> 0 | G132: =SUM(DataInput!H132,DataInput!AD132) -> 0 | H132: =DataInput!I132 -> 0 | I132: =SUM(DataInput!J132,DataInput!AF132) -> 0 | J132: =SUM(DataInput!K132,DataInput!AG132) -> 0 | K132: =SUM(DataInput!L132,DataInput!AH132) -> 0 | L132: =SUM(DataInput!M132,DataInput!AI132) -> 0 | M132: =SUM(DataInput!N132,DataInput!AJ132) -> 0 | N132: =SUM(DataInput!O132,DataInput!AK132) -> 0 | O132: =DataInput!P132 -> 0 | Q132: 2897 | R132: =DataInput!R132 -> 0 | S132: =DataInput!Y132 -> 0 | T132: =IF(DataInput!U132-DataInput!E132>0,DataInput!U132-DataInput!E132,"") ->  | U132: =IF(DataInput!W132-DataInput!I132>0,DataInput!W132-DataInput!I132,"") ->  | W132: 0 | X132: 0 | Y132: 2897 | Z132: 518.93 | AA132: 4146.34 | AB132: =ROUNDDOWN((IF(AA133>0,IFERROR(IF(AVERAGE(DataInput!Q132:Q133)>AVERAGE(AA133,AA132),ROUNDDOWN(((((AA132-Z132)+(AA133-Z133))/2)*(A133-A132))/27+S132+T132,0),IF(((((DataInput!Q133-Z133)+(DataInput!Q132-Z132))/2)*(A133-A132))/27+S132+T132>0,ROUNDDOWN(((((DataInput!Q133-Z132)+(DataInput!Q132-Z132))/2)*(A133-A132))/27+S132+T132,0),0)),0),0)*$X$5),1) -> 0 | AC132: 159.49 | AD132: =ROUNDDOWN((IF(AC133>0,IFERROR(IF(((((DataInput!Q132-AC132)+(DataInput!Q133-AC133))/2)*(A133-A132))/27+S132+T132>0,ROUNDDOWN(((((DataInput!Q132-AC132)+(DataInput!Q133-AC133))/2)*(A133-A132))/27+S132+T132,0),0),0),0)*$X$5),1) -> 0 | AE132: =DataInput!U132 -> 104 | AF132: =DataInput!S132 -> 104 | AG132: 145.6 | AH132: -41.6
A133: =IF(DataInput!A133<>"",DataInput!A133,"") -> 14175 | B133: =SUM(DataInput!C133,DataInput!Y133)+(DataInput!U133-DataInput!E133) -> 2935 | C133: =SUM(DataInput!D133,DataInput!Z133) -> 2858 | D133: =DataInput!U133 -> 77 | E133: =SUM(DataInput!F133,DataInput!AB133) -> 0 | F133: =SUM(DataInput!G133,DataInput!AC133) -> 0 | G133: =SUM(DataInput!H133,DataInput!AD133) -> 0 | H133: =DataInput!I133 -> 0 | I133: =SUM(DataInput!J133,DataInput!AF133) -> 0 | J133: =SUM(DataInput!K133,DataInput!AG133) -> 0 | K133: =SUM(DataInput!L133,DataInput!AH133) -> 0 | L133: =SUM(DataInput!M133,DataInput!AI133) -> 0 | M133: =SUM(DataInput!N133,DataInput!AJ133) -> 0 | N133: =SUM(DataInput!O133,DataInput!AK133) -> 0 | O133: =DataInput!P133 -> 0 | Q133: 2858 | R133: =DataInput!R133 -> 0 | S133: =DataInput!Y133 -> 0 | T133: =IF(DataInput!U133-DataInput!E133>0,DataInput!U133-DataInput!E133,"") ->  | U133: =IF(DataInput!W133-DataInput!I133>0,DataInput!W133-DataInput!I133,"") ->  | W133: 0 | X133: 0 | Y133: 2858 | Z133: 518.93 | AA133: 4146.34 | AB133: =ROUNDDOWN((IF(AA134>0,IFERROR(IF(AVERAGE(DataInput!Q133:Q134)>AVERAGE(AA134,AA133),ROUNDDOWN(((((AA133-Z133)+(AA134-Z134))/2)*(A134-A133))/27+S133+T133,0),IF(((((DataInput!Q134-Z134)+(DataInput!Q133-Z133))/2)*(A134-A133))/27+S133+T133>0,ROUNDDOWN(((((DataInput!Q134-Z133)+(DataInput!Q133-Z133))/2)*(A134-A133))/27+S133+T133,0),0)),0),0)*$X$5),1) -> 0 | AC133: 159.49 | AD133: =ROUNDDOWN((IF(AC134>0,IFERROR(IF(((((DataInput!Q133-AC133)+(DataInput!Q134-AC134))/2)*(A134-A133))/27+S133+T133>0,ROUNDDOWN(((((DataInput!Q133-AC133)+(DataInput!Q134-AC134))/2)*(A134-A133))/27+S133+T133,0),0),0),0)*$X$5),1) -> 0 | AE133: =DataInput!U133 -> 77 | AF133: =DataInput!S133 -> 105 | AG133: 147 | AH133: -70
A134: =IF(DataInput!A134<>"",DataInput!A134,"") -> 14200 | B134: =SUM(DataInput!C134,DataInput!Y134)+(DataInput!U134-DataInput!E134) -> 2892 | C134: =SUM(DataInput!D134,DataInput!Z134) -> 2801 | D134: =DataInput!U134 -> 91 | E134: =SUM(DataInput!F134,DataInput!AB134) -> 0 | F134: =SUM(DataInput!G134,DataInput!AC134) -> 0 | G134: =SUM(DataInput!H134,DataInput!AD134) -> 0 | H134: =DataInput!I134 -> 0 | I134: =SUM(DataInput!J134,DataInput!AF134) -> 0 | J134: =SUM(DataInput!K134,DataInput!AG134) -> 0 | K134: =SUM(DataInput!L134,DataInput!AH134) -> 0 | L134: =SUM(DataInput!M134,DataInput!AI134) -> 0 | M134: =SUM(DataInput!N134,DataInput!AJ134) -> 0 | N134: =SUM(DataInput!O134,DataInput!AK134) -> 0 | O134: =DataInput!P134 -> 0 | Q134: 2801 | R134: =DataInput!R134 -> 0 | S134: =DataInput!Y134 -> 0 | T134: =IF(DataInput!U134-DataInput!E134>0,DataInput!U134-DataInput!E134,"") ->  | U134: =IF(DataInput!W134-DataInput!I134>0,DataInput!W134-DataInput!I134,"") ->  | W134: 0 | X134: 0 | Y134: 2801 | Z134: 518.93 | AA134: 4146.34 | AB134: =ROUNDDOWN((IF(AA135>0,IFERROR(IF(AVERAGE(DataInput!Q134:Q135)>AVERAGE(AA135,AA134),ROUNDDOWN(((((AA134-Z134)+(AA135-Z135))/2)*(A135-A134))/27+S134+T134,0),IF(((((DataInput!Q135-Z135)+(DataInput!Q134-Z134))/2)*(A135-A134))/27+S134+T134>0,ROUNDDOWN(((((DataInput!Q135-Z134)+(DataInput!Q134-Z134))/2)*(A135-A134))/27+S134+T134,0),0)),0),0)*$X$5),1) -> 0 | AC134: 159.49 | AD134: =ROUNDDOWN((IF(AC135>0,IFERROR(IF(((((DataInput!Q134-AC134)+(DataInput!Q135-AC135))/2)*(A135-A134))/27+S134+T134>0,ROUNDDOWN(((((DataInput!Q134-AC134)+(DataInput!Q135-AC135))/2)*(A135-A134))/27+S134+T134,0),0),0),0)*$X$5),1) -> 0 | AE134: =DataInput!U134 -> 91 | AF134: =DataInput!S134 -> 104 | AG134: 145.6 | AH134: -54.6
A135: =IF(DataInput!A135<>"",DataInput!A135,"") -> 14225 | B135: =SUM(DataInput!C135,DataInput!Y135)+(DataInput!U135-DataInput!E135) -> 2628 | C135: =SUM(DataInput!D135,DataInput!Z135) -> 2499 | D135: =DataInput!U135 -> 129 | E135: =SUM(DataInput!F135,DataInput!AB135) -> 0 | F135: =SUM(DataInput!G135,DataInput!AC135) -> 0 | G135: =SUM(DataInput!H135,DataInput!AD135) -> 0 | H135: =DataInput!I135 -> 0 | I135: =SUM(DataInput!J135,DataInput!AF135) -> 0 | J135: =SUM(DataInput!K135,DataInput!AG135) -> 0 | K135: =SUM(DataInput!L135,DataInput!AH135) -> 0 | L135: =SUM(DataInput!M135,DataInput!AI135) -> 0 | M135: =SUM(DataInput!N135,DataInput!AJ135) -> 0 | N135: =SUM(DataInput!O135,DataInput!AK135) -> 0 | O135: =DataInput!P135 -> 0 | Q135: 2499 | R135: =DataInput!R135 -> 0 | S135: =DataInput!Y135 -> 0 | T135: =IF(DataInput!U135-DataInput!E135>0,DataInput!U135-DataInput!E135,"") ->  | U135: =IF(DataInput!W135-DataInput!I135>0,DataInput!W135-DataInput!I135,"") ->  | W135: 0 | X135: 0 | Y135: 2499 | Z135: 518.93 | AA135: 4146.34 | AB135: =ROUNDDOWN((IF(AA136>0,IFERROR(IF(AVERAGE(DataInput!Q135:Q136)>AVERAGE(AA136,AA135),ROUNDDOWN(((((AA135-Z135)+(AA136-Z136))/2)*(A136-A135))/27+S135+T135,0),IF(((((DataInput!Q136-Z136)+(DataInput!Q135-Z135))/2)*(A136-A135))/27+S135+T135>0,ROUNDDOWN(((((DataInput!Q136-Z135)+(DataInput!Q135-Z135))/2)*(A136-A135))/27+S135+T135,0),0)),0),0)*$X$5),1) -> 0 | AC135: 159.49 | AD135: =ROUNDDOWN((IF(AC136>0,IFERROR(IF(((((DataInput!Q135-AC135)+(DataInput!Q136-AC136))/2)*(A136-A135))/27+S135+T135>0,ROUNDDOWN(((((DataInput!Q135-AC135)+(DataInput!Q136-AC136))/2)*(A136-A135))/27+S135+T135,0),0),0),0)*$X$5),1) -> 0 | AE135: =DataInput!U135 -> 129 | AF135: =DataInput!S135 -> 98 | AG135: 137.2 | AH135: -8.2
A136: =IF(DataInput!A136<>"",DataInput!A136,"") -> 14250 | B136: =SUM(DataInput!C136,DataInput!Y136)+(DataInput!U136-DataInput!E136) -> 1975 | C136: =SUM(DataInput!D136,DataInput!Z136) -> 1855 | D136: =DataInput!U136 -> 121 | E136: =SUM(DataInput!F136,DataInput!AB136) -> 0 | F136: =SUM(DataInput!G136,DataInput!AC136) -> 0 | G136: =SUM(DataInput!H136,DataInput!AD136) -> 0 | H136: =DataInput!I136 -> 0 | I136: =SUM(DataInput!J136,DataInput!AF136) -> 0 | J136: =SUM(DataInput!K136,DataInput!AG136) -> 0 | K136: =SUM(DataInput!L136,DataInput!AH136) -> 0 | L136: =SUM(DataInput!M136,DataInput!AI136) -> 0 | M136: =SUM(DataInput!N136,DataInput!AJ136) -> 0 | N136: =SUM(DataInput!O136,DataInput!AK136) -> 0 | O136: =DataInput!P136 -> 0 | Q136: 1855 | R136: =DataInput!R136 -> 0 | S136: =DataInput!Y136 -> 0 | T136: =IF(DataInput!U136-DataInput!E136>0,DataInput!U136-DataInput!E136,"") ->  | U136: =IF(DataInput!W136-DataInput!I136>0,DataInput!W136-DataInput!I136,"") ->  | W136: 0 | X136: 0 | Y136: 1855 | Z136: 518.93 | AA136: 4146.34 | AB136: =ROUNDDOWN((IF(AA137>0,IFERROR(IF(AVERAGE(DataInput!Q136:Q137)>AVERAGE(AA137,AA136),ROUNDDOWN(((((AA136-Z136)+(AA137-Z137))/2)*(A137-A136))/27+S136+T136,0),IF(((((DataInput!Q137-Z137)+(DataInput!Q136-Z136))/2)*(A137-A136))/27+S136+T136>0,ROUNDDOWN(((((DataInput!Q137-Z136)+(DataInput!Q136-Z136))/2)*(A137-A136))/27+S136+T136,0),0)),0),0)*$X$5),1) -> 0 | AC136: 159.49 | AD136: =ROUNDDOWN((IF(AC137>0,IFERROR(IF(((((DataInput!Q136-AC136)+(DataInput!Q137-AC137))/2)*(A137-A136))/27+S136+T136>0,ROUNDDOWN(((((DataInput!Q136-AC136)+(DataInput!Q137-AC137))/2)*(A137-A136))/27+S136+T136,0),0),0),0)*$X$5),1) -> 0 | AE136: =DataInput!U136 -> 121 | AF136: =DataInput!S136 -> 87 | AG136: 121.8 | AH136: -0.8
A137: =IF(DataInput!A137<>"",DataInput!A137,"") -> 14275 | B137: =SUM(DataInput!C137,DataInput!Y137)+(DataInput!U137-DataInput!E137) -> 1094 | C137: =SUM(DataInput!D137,DataInput!Z137) -> 980 | D137: =DataInput!U137 -> 114 | E137: =SUM(DataInput!F137,DataInput!AB137) -> 0 | F137: =SUM(DataInput!G137,DataInput!AC137) -> 0 | G137: =SUM(DataInput!H137,DataInput!AD137) -> 0 | H137: =DataInput!I137 -> 0 | I137: =SUM(DataInput!J137,DataInput!AF137) -> 0 | J137: =SUM(DataInput!K137,DataInput!AG137) -> 0 | K137: =SUM(DataInput!L137,DataInput!AH137) -> 0 | L137: =SUM(DataInput!M137,DataInput!AI137) -> 0 | M137: =SUM(DataInput!N137,DataInput!AJ137) -> 0 | N137: =SUM(DataInput!O137,DataInput!AK137) -> 0 | O137: =DataInput!P137 -> 0 | Q137: 980 | R137: =DataInput!R137 -> 0 | S137: =DataInput!Y137 -> 0 | T137: =IF(DataInput!U137-DataInput!E137>0,DataInput!U137-DataInput!E137,"") -> 2 | U137: =IF(DataInput!W137-DataInput!I137>0,DataInput!W137-DataInput!I137,"") ->  | W137: 2 | X137: 2.6 | Y137: 977.4 | Z137: 518.93 | AA137: 4146.34 | AB137: =ROUNDDOWN((IF(AA138>0,IFERROR(IF(AVERAGE(DataInput!Q137:Q138)>AVERAGE(AA138,AA137),ROUNDDOWN(((((AA137-Z137)+(AA138-Z138))/2)*(A138-A137))/27+S137+T137,0),IF(((((DataInput!Q138-Z138)+(DataInput!Q137-Z137))/2)*(A138-A137))/27+S137+T137>0,ROUNDDOWN(((((DataInput!Q138-Z137)+(DataInput!Q137-Z137))/2)*(A138-A137))/27+S137+T137,0),0)),0),0)*$X$5),1) -> 0 | AC137: 159.49 | AD137: =ROUNDDOWN((IF(AC138>0,IFERROR(IF(((((DataInput!Q137-AC137)+(DataInput!Q138-AC138))/2)*(A138-A137))/27+S137+T137>0,ROUNDDOWN(((((DataInput!Q137-AC137)+(DataInput!Q138-AC138))/2)*(A138-A137))/27+S137+T137,0),0),0),0)*$X$5),1) -> 0 | AE137: =DataInput!U137 -> 114 | AF137: =DataInput!S137 -> 78 | AG137: 109.2 | AH137: 4.8
A138: =IF(DataInput!A138<>"",DataInput!A138,"") -> 14300 | B138: =SUM(DataInput!C138,DataInput!Y138)+(DataInput!U138-DataInput!E138) -> 418 | C138: =SUM(DataInput!D138,DataInput!Z138) -> 307 | D138: =DataInput!U138 -> 111 | E138: =SUM(DataInput!F138,DataInput!AB138) -> 0 | F138: =SUM(DataInput!G138,DataInput!AC138) -> 0 | G138: =SUM(DataInput!H138,DataInput!AD138) -> 0 | H138: =DataInput!I138 -> 0 | I138: =SUM(DataInput!J138,DataInput!AF138) -> 0 | J138: =SUM(DataInput!K138,DataInput!AG138) -> 0 | K138: =SUM(DataInput!L138,DataInput!AH138) -> 0 | L138: =SUM(DataInput!M138,DataInput!AI138) -> 0 | M138: =SUM(DataInput!N138,DataInput!AJ138) -> 0 | N138: =SUM(DataInput!O138,DataInput!AK138) -> 0 | O138: =DataInput!P138 -> 0 | Q138: 307 | R138: =DataInput!R138 -> 121 | S138: =DataInput!Y138 -> 0 | T138: =IF(DataInput!U138-DataInput!E138>0,DataInput!U138-DataInput!E138,"") -> 44 | U138: =IF(DataInput!W138-DataInput!I138>0,DataInput!W138-DataInput!I138,"") ->  | W138: 165 | X138: 214.5 | Y138: 92.5 | Z138: 518.93 | AA138: 4146.34 | AB138: =ROUNDDOWN((IF(AA139>0,IFERROR(IF(AVERAGE(DataInput!Q138:Q139)>AVERAGE(AA139,AA138),ROUNDDOWN(((((AA138-Z138)+(AA139-Z139))/2)*(A139-A138))/27+S138+T138,0),IF(((((DataInput!Q139-Z139)+(DataInput!Q138-Z138))/2)*(A139-A138))/27+S138+T138>0,ROUNDDOWN(((((DataInput!Q139-Z138)+(DataInput!Q138-Z138))/2)*(A139-A138))/27+S138+T138,0),0)),0),0)*$X$5),1) -> 0 | AC138: 159.49 | AD138: =ROUNDDOWN((IF(AC139>0,IFERROR(IF(((((DataInput!Q138-AC138)+(DataInput!Q139-AC139))/2)*(A139-A138))/27+S138+T138>0,ROUNDDOWN(((((DataInput!Q138-AC138)+(DataInput!Q139-AC139))/2)*(A139-A138))/27+S138+T138,0),0),0),0)*$X$5),1) -> 22.1 | AE138: =DataInput!U138 -> 111 | AF138: =DataInput!S138 -> 74 | AG138: 103.6 | AH138: 7.5
A139: =IF(DataInput!A139<>"",DataInput!A139,"") -> 14325 | B139: =SUM(DataInput!C139,DataInput!Y139)+(DataInput!U139-DataInput!E139) -> 168 | C139: =SUM(DataInput!D139,DataInput!Z139) -> 59 | D139: =DataInput!U139 -> 109 | E139: =SUM(DataInput!F139,DataInput!AB139) -> 0 | F139: =SUM(DataInput!G139,DataInput!AC139) -> 0 | G139: =SUM(DataInput!H139,DataInput!AD139) -> 0 | H139: =DataInput!I139 -> 0 | I139: =SUM(DataInput!J139,DataInput!AF139) -> 0 | J139: =SUM(DataInput!K139,DataInput!AG139) -> 0 | K139: =SUM(DataInput!L139,DataInput!AH139) -> 0 | L139: =SUM(DataInput!M139,DataInput!AI139) -> 0 | M139: =SUM(DataInput!N139,DataInput!AJ139) -> 0 | N139: =SUM(DataInput!O139,DataInput!AK139) -> 0 | O139: =DataInput!P139 -> 0 | Q139: 59 | R139: =DataInput!R139 -> 616 | S139: =DataInput!Y139 -> 0 | T139: =IF(DataInput!U139-DataInput!E139>0,DataInput!U139-DataInput!E139,"") -> 91 | U139: =IF(DataInput!W139-DataInput!I139>0,DataInput!W139-DataInput!I139,"") ->  | W139: 707 | X139: 919.1 | Y139: -860.1 | Z139: 518.93 | AA139: 4146.34 | AB139: =ROUNDDOWN((IF(AA140>0,IFERROR(IF(AVERAGE(DataInput!Q139:Q140)>AVERAGE(AA140,AA139),ROUNDDOWN(((((AA139-Z139)+(AA140-Z140))/2)*(A140-A139))/27+S139+T139,0),IF(((((DataInput!Q140-Z140)+(DataInput!Q139-Z139))/2)*(A140-A139))/27+S139+T139>0,ROUNDDOWN(((((DataInput!Q140-Z139)+(DataInput!Q139-Z139))/2)*(A140-A139))/27+S139+T139,0),0)),0),0)*$X$5),1) -> 293.8 | AC139: 159.49 | AD139: =ROUNDDOWN((IF(AC140>0,IFERROR(IF(((((DataInput!Q139-AC139)+(DataInput!Q140-AC140))/2)*(A140-A139))/27+S139+T139>0,ROUNDDOWN(((((DataInput!Q139-AC139)+(DataInput!Q140-AC140))/2)*(A140-A139))/27+S139+T139,0),0),0),0)*$X$5),1) -> 726.7 | AE139: =DataInput!U139 -> 109 | AF139: =DataInput!S139 -> 71 | AG139: 99.4 | AH139: 9.6
A140: =IF(DataInput!A140<>"",DataInput!A140,"") -> 14350 | B140: =SUM(DataInput!C140,DataInput!Y140)+(DataInput!U140-DataInput!E140) -> 123 | C140: =SUM(DataInput!D140,DataInput!Z140) -> 16 | D140: =DataInput!U140 -> 106 | E140: =SUM(DataInput!F140,DataInput!AB140) -> 0 | F140: =SUM(DataInput!G140,DataInput!AC140) -> 0 | G140: =SUM(DataInput!H140,DataInput!AD140) -> 0 | H140: =DataInput!I140 -> 0 | I140: =SUM(DataInput!J140,DataInput!AF140) -> 0 | J140: =SUM(DataInput!K140,DataInput!AG140) -> 0 | K140: =SUM(DataInput!L140,DataInput!AH140) -> 0 | L140: =SUM(DataInput!M140,DataInput!AI140) -> 0 | M140: =SUM(DataInput!N140,DataInput!AJ140) -> 0 | N140: =SUM(DataInput!O140,DataInput!AK140) -> 0 | O140: =DataInput!P140 -> 0 | P140: 734 | Q140: 750 | R140: =DataInput!R140 -> 1099 | S140: =DataInput!Y140 -> 0 | T140: =IF(DataInput!U140-DataInput!E140>0,DataInput!U140-DataInput!E140,"") -> 97 | U140: =IF(DataInput!W140-DataInput!I140>0,DataInput!W140-DataInput!I140,"") ->  | V140: 6340 | W140: 7536 | X140: 9796.8 | Y140: -9046.8 | Z140: 518.93 | AA140: 4146.34 | AB140: =ROUNDDOWN((IF(AA141>0,IFERROR(IF(AVERAGE(DataInput!Q140:Q141)>AVERAGE(AA141,AA140),ROUNDDOWN(((((AA140-Z140)+(AA141-Z141))/2)*(A141-A140))/27+S140+T140,0),IF(((((DataInput!Q141-Z141)+(DataInput!Q140-Z140))/2)*(A141-A140))/27+S140+T140>0,ROUNDDOWN(((((DataInput!Q141-Z140)+(DataInput!Q140-Z140))/2)*(A141-A140))/27+S140+T140,0),0)),0),0)*$X$5),1) -> 929.5 | AC140: 159.49 | AD140: =ROUNDDOWN((IF(AC141>0,IFERROR(IF(((((DataInput!Q140-AC140)+(DataInput!Q141-AC141))/2)*(A141-A140))/27+S140+T140>0,ROUNDDOWN(((((DataInput!Q140-AC140)+(DataInput!Q141-AC141))/2)*(A141-A140))/27+S140+T140,0),0),0),0)*$X$5),1) -> 1362.4 | AE140: =DataInput!U140 -> 106 | AF140: =DataInput!S140 -> 67 | AG140: 93.8 | AH140: 12.2
A141: =IF(DataInput!A141<>"",DataInput!A141,"") -> 14375 | B141: =SUM(DataInput!C141,DataInput!Y141)+(DataInput!U141-DataInput!E141) -> 125 | C141: =SUM(DataInput!D141,DataInput!Z141) -> 20 | D141: =DataInput!U141 -> 105 | E141: =SUM(DataInput!F141,DataInput!AB141) -> 0 | F141: =SUM(DataInput!G141,DataInput!AC141) -> 0 | G141: =SUM(DataInput!H141,DataInput!AD141) -> 0 | H141: =DataInput!I141 -> 0 | I141: =SUM(DataInput!J141,DataInput!AF141) -> 0 | J141: =SUM(DataInput!K141,DataInput!AG141) -> 0 | K141: =SUM(DataInput!L141,DataInput!AH141) -> 0 | L141: =SUM(DataInput!M141,DataInput!AI141) -> 0 | M141: =SUM(DataInput!N141,DataInput!AJ141) -> 0 | N141: =SUM(DataInput!O141,DataInput!AK141) -> 0 | O141: =DataInput!P141 -> 0 | Q141: =SUM(C141,E141:G141,I141:L141,N141:P141) -> 20 | R141: =DataInput!R141 -> 1201 | S141: =DataInput!Y141 -> 0 | T141: =IF(DataInput!U141-DataInput!E141>0,DataInput!U141-DataInput!E141,"") -> 95 | U141: =IF(DataInput!W141-DataInput!I141>0,DataInput!W141-DataInput!I141,"") ->  | W141: =SUM(R141:V141) -> 1296 | X141: =ROUNDUP(($W141*$X$5),1) -> 1684.8 | Y141: =ROUNDUP(SUM(Q141-X141),1) -> -1664.8 | Z141: 518.93 | AA141: 4146.34 | AB141: =ROUNDDOWN((IF(AA142>0,IFERROR(IF(AVERAGE(DataInput!Q141:Q142)>AVERAGE(AA142,AA141),ROUNDDOWN(((((AA141-Z141)+(AA142-Z142))/2)*(A142-A141))/27+S141+T141,0),IF(((((DataInput!Q142-Z142)+(DataInput!Q141-Z141))/2)*(A142-A141))/27+S141+T141>0,ROUNDDOWN(((((DataInput!Q142-Z141)+(DataInput!Q141-Z141))/2)*(A142-A141))/27+S141+T141,0),0)),0),0)*$X$5),1) -> 1059.5 | AC141: 159.49 | AD141: =ROUNDDOWN((IF(AC142>0,IFERROR(IF(((((DataInput!Q141-AC141)+(DataInput!Q142-AC142))/2)*(A142-A141))/27+S141+T141>0,ROUNDDOWN(((((DataInput!Q141-AC141)+(DataInput!Q142-AC142))/2)*(A142-A141))/27+S141+T141,0),0),0),0)*$X$5),1) -> 1492.4 | AE141: =DataInput!U141 -> 105 | AF141: =DataInput!S141 -> 67 | AG141: =ROUNDUP((AF141*$AG$5),1) -> 93.8 | AH141: =ROUNDUP((AE141-AG141),1) -> 11.2
A142: =IF(DataInput!A142<>"",DataInput!A142,"") -> 14400 | B142: =SUM(DataInput!C142,DataInput!Y142)+(DataInput!U142-DataInput!E142) -> 143 | C142: =SUM(DataInput!D142,DataInput!Z142) -> 36 | D142: =DataInput!U142 -> 107 | E142: =SUM(DataInput!F142,DataInput!AB142) -> 0 | F142: =SUM(DataInput!G142,DataInput!AC142) -> 0 | G142: =SUM(DataInput!H142,DataInput!AD142) -> 0 | H142: =DataInput!I142 -> 0 | I142: =SUM(DataInput!J142,DataInput!AF142) -> 0 | J142: =SUM(DataInput!K142,DataInput!AG142) -> 0 | K142: =SUM(DataInput!L142,DataInput!AH142) -> 0 | L142: =SUM(DataInput!M142,DataInput!AI142) -> 0 | M142: =SUM(DataInput!N142,DataInput!AJ142) -> 0 | N142: =SUM(DataInput!O142,DataInput!AK142) -> 0 | O142: =DataInput!P142 -> 0 | Q142: 36 | R142: =DataInput!R142 -> 1152 | S142: =DataInput!Y142 -> 0 | T142: =IF(DataInput!U142-DataInput!E142>0,DataInput!U142-DataInput!E142,"") -> 95 | U142: =IF(DataInput!W142-DataInput!I142>0,DataInput!W142-DataInput!I142,"") ->  | W142: 1247 | X142: 1621.1 | Y142: -1585.1 | Z142: =Z141 -> 518.93 | AA142: =AA141 -> 4146.34 | AB142: =ROUNDDOWN((IF(AA143>0,IFERROR(IF(AVERAGE(DataInput!Q142:Q143)>AVERAGE(AA143,AA142),ROUNDDOWN(((((AA142-Z142)+(AA143-Z143))/2)*(A143-A142))/27+S142+T142,0),IF(((((DataInput!Q143-Z143)+(DataInput!Q142-Z142))/2)*(A143-A142))/27+S142+T142>0,ROUNDDOWN(((((DataInput!Q143-Z142)+(DataInput!Q142-Z142))/2)*(A143-A142))/27+S142+T142,0),0)),0),0)*$X$5),1) -> 995.8 | AC142: =AC141 -> 159.49 | AD142: =ROUNDDOWN((IF(AC143>0,IFERROR(IF(((((DataInput!Q142-AC142)+(DataInput!Q143-AC143))/2)*(A143-A142))/27+S142+T142>0,ROUNDDOWN(((((DataInput!Q142-AC142)+(DataInput!Q143-AC143))/2)*(A143-A142))/27+S142+T142,0),0),0),0)*$X$5),1) -> 1428.7 | AE142: =DataInput!U142 -> 107 | AF142: =DataInput!S142 -> 69 | AG142: 96.6 | AH142: 10.4
A143: =IF(DataInput!A143<>"",DataInput!A143,"") -> 14425 | B143: =SUM(DataInput!C143,DataInput!Y143)+(DataInput!U143-DataInput!E143) -> 149 | C143: =SUM(DataInput!D143,DataInput!Z143) -> 42 | D143: =DataInput!U143 -> 107 | E143: =SUM(DataInput!F143,DataInput!AB143) -> 0 | F143: =SUM(DataInput!G143,DataInput!AC143) -> 0 | G143: =SUM(DataInput!H143,DataInput!AD143) -> 0 | H143: =DataInput!I143 -> 0 | I143: =SUM(DataInput!J143,DataInput!AF143) -> 0 | J143: =SUM(DataInput!K143,DataInput!AG143) -> 0 | K143: =SUM(DataInput!L143,DataInput!AH143) -> 0 | L143: =SUM(DataInput!M143,DataInput!AI143) -> 0 | M143: =SUM(DataInput!N143,DataInput!AJ143) -> 0 | N143: =SUM(DataInput!O143,DataInput!AK143) -> 0 | O143: =DataInput!P143 -> 0 | Q143: 42 | R143: =DataInput!R143 -> 1059 | S143: =DataInput!Y143 -> 0 | T143: =IF(DataInput!U143-DataInput!E143>0,DataInput!U143-DataInput!E143,"") -> 94 | U143: =IF(DataInput!W143-DataInput!I143>0,DataInput!W143-DataInput!I143,"") ->  | W143: 1153 | X143: 1498.9 | Y143: -1456.9 | Z143: 518.93 | AA143: 4146.34 | AB143: =ROUNDDOWN((IF(AA144>0,IFERROR(IF(AVERAGE(DataInput!Q143:Q144)>AVERAGE(AA144,AA143),ROUNDDOWN(((((AA143-Z143)+(AA144-Z144))/2)*(A144-A143))/27+S143+T143,0),IF(((((DataInput!Q144-Z144)+(DataInput!Q143-Z143))/2)*(A144-A143))/27+S143+T143>0,ROUNDDOWN(((((DataInput!Q144-Z143)+(DataInput!Q143-Z143))/2)*(A144-A143))/27+S143+T143,0),0)),0),0)*$X$5),1) -> 873.6 | AC143: 159.49 | AD143: =ROUNDDOWN((IF(AC144>0,IFERROR(IF(((((DataInput!Q143-AC143)+(DataInput!Q144-AC144))/2)*(A144-A143))/27+S143+T143>0,ROUNDDOWN(((((DataInput!Q143-AC143)+(DataInput!Q144-AC144))/2)*(A144-A143))/27+S143+T143,0),0),0),0)*$X$5),1) -> 1306.5 | AE143: =DataInput!U143 -> 107 | AF143: =DataInput!S143 -> 69 | AG143: 96.6 | AH143: 10.4
A144: =IF(DataInput!A144<>"",DataInput!A144,"") -> 14450 | B144: =SUM(DataInput!C144,DataInput!Y144)+(DataInput!U144-DataInput!E144) -> 138 | C144: =SUM(DataInput!D144,DataInput!Z144) -> 35 | D144: =DataInput!U144 -> 104 | E144: =SUM(DataInput!F144,DataInput!AB144) -> 0 | F144: =SUM(DataInput!G144,DataInput!AC144) -> 0 | G144: =SUM(DataInput!H144,DataInput!AD144) -> 0 | H144: =DataInput!I144 -> 0 | I144: =SUM(DataInput!J144,DataInput!AF144) -> 0 | J144: =SUM(DataInput!K144,DataInput!AG144) -> 0 | K144: =SUM(DataInput!L144,DataInput!AH144) -> 0 | L144: =SUM(DataInput!M144,DataInput!AI144) -> 0 | M144: =SUM(DataInput!N144,DataInput!AJ144) -> 0 | N144: =SUM(DataInput!O144,DataInput!AK144) -> 0 | O144: =DataInput!P144 -> 0 | Q144: 35 | R144: =DataInput!R144 -> 922 | S144: =DataInput!Y144 -> 0 | T144: =IF(DataInput!U144-DataInput!E144>0,DataInput!U144-DataInput!E144,"") -> 92 | U144: =IF(DataInput!W144-DataInput!I144>0,DataInput!W144-DataInput!I144,"") ->  | W144: 1014 | X144: 1318.2 | Y144: -1283.2 | Z144: 518.93 | AA144: 4146.34 | AB144: =ROUNDDOWN((IF(AA145>0,IFERROR(IF(AVERAGE(DataInput!Q144:Q145)>AVERAGE(AA145,AA144),ROUNDDOWN(((((AA144-Z144)+(AA145-Z145))/2)*(A145-A144))/27+S144+T144,0),IF(((((DataInput!Q145-Z145)+(DataInput!Q144-Z144))/2)*(A145-A144))/27+S144+T144>0,ROUNDDOWN(((((DataInput!Q145-Z144)+(DataInput!Q144-Z144))/2)*(A145-A144))/27+S144+T144,0),0)),0),0)*$X$5),1) -> 692.9 | AC144: 159.49 | AD144: =ROUNDDOWN((IF(AC145>0,IFERROR(IF(((((DataInput!Q144-AC144)+(DataInput!Q145-AC145))/2)*(A145-A144))/27+S144+T144>0,ROUNDDOWN(((((DataInput!Q144-AC144)+(DataInput!Q145-AC145))/2)*(A145-A144))/27+S144+T144,0),0),0),0)*$X$5),1) -> 1125.8 | AE144: =DataInput!U144 -> 104 | AF144: =DataInput!S144 -> 65 | AG144: 91 | AH144: 13
A145: =IF(DataInput!A145<>"",DataInput!A145,"") -> 14475 | B145: =SUM(DataInput!C145,DataInput!Y145)+(DataInput!U145-DataInput!E145) -> 138 | C145: =SUM(DataInput!D145,DataInput!Z145) -> 37 | D145: =DataInput!U145 -> 102 | E145: =SUM(DataInput!F145,DataInput!AB145) -> 0 | F145: =SUM(DataInput!G145,DataInput!AC145) -> 0 | G145: =SUM(DataInput!H145,DataInput!AD145) -> 0 | H145: =DataInput!I145 -> 0 | I145: =SUM(DataInput!J145,DataInput!AF145) -> 0 | J145: =SUM(DataInput!K145,DataInput!AG145) -> 0 | K145: =SUM(DataInput!L145,DataInput!AH145) -> 0 | L145: =SUM(DataInput!M145,DataInput!AI145) -> 0 | M145: =SUM(DataInput!N145,DataInput!AJ145) -> 0 | N145: =SUM(DataInput!O145,DataInput!AK145) -> 0 | O145: =DataInput!P145 -> 0 | Q145: 37 | R145: =DataInput!R145 -> 726 | S145: =DataInput!Y145 -> 0 | T145: =IF(DataInput!U145-DataInput!E145>0,DataInput!U145-DataInput!E145,"") -> 89 | U145: =IF(DataInput!W145-DataInput!I145>0,DataInput!W145-DataInput!I145,"") ->  | W145: 815 | X145: 1059.5 | Y145: -1022.5 | Z145: 518.93 | AA145: 4146.34 | AB145: =ROUNDDOWN((IF(AA146>0,IFERROR(IF(AVERAGE(DataInput!Q145:Q146)>AVERAGE(AA146,AA145),ROUNDDOWN(((((AA145-Z145)+(AA146-Z146))/2)*(A146-A145))/27+S145+T145,0),IF(((((DataInput!Q146-Z146)+(DataInput!Q145-Z145))/2)*(A146-A145))/27+S145+T145>0,ROUNDDOWN(((((DataInput!Q146-Z145)+(DataInput!Q145-Z145))/2)*(A146-A145))/27+S145+T145,0),0)),0),0)*$X$5),1) -> 432.9 | AC145: 159.49 | AD145: =ROUNDDOWN((IF(AC146>0,IFERROR(IF(((((DataInput!Q145-AC145)+(DataInput!Q146-AC146))/2)*(A146-A145))/27+S145+T145>0,ROUNDDOWN(((((DataInput!Q145-AC145)+(DataInput!Q146-AC146))/2)*(A146-A145))/27+S145+T145,0),0),0),0)*$X$5),1) -> 865.8 | AE145: =DataInput!U145 -> 102 | AF145: =DataInput!S145 -> 63 | AG145: 88.2 | AH145: 13.8
A146: =IF(DataInput!A146<>"",DataInput!A146,"") -> 14500 | B146: =SUM(DataInput!C146,DataInput!Y146)+(DataInput!U146-DataInput!E146) -> 208 | C146: =SUM(DataInput!D146,DataInput!Z146) -> 103 | D146: =DataInput!U146 -> 105 | E146: =SUM(DataInput!F146,DataInput!AB146) -> 0 | F146: =SUM(DataInput!G146,DataInput!AC146) -> 0 | G146: =SUM(DataInput!H146,DataInput!AD146) -> 0 | H146: =DataInput!I146 -> 0 | I146: =SUM(DataInput!J146,DataInput!AF146) -> 0 | J146: =SUM(DataInput!K146,DataInput!AG146) -> 0 | K146: =SUM(DataInput!L146,DataInput!AH146) -> 0 | L146: =SUM(DataInput!M146,DataInput!AI146) -> 0 | M146: =SUM(DataInput!N146,DataInput!AJ146) -> 0 | N146: =SUM(DataInput!O146,DataInput!AK146) -> 0 | O146: =DataInput!P146 -> 0 | P146: 0 | Q146: 103 | R146: =DataInput!R146 -> 457 | S146: =DataInput!Y146 -> 0 | T146: =IF(DataInput!U146-DataInput!E146>0,DataInput!U146-DataInput!E146,"") -> 77 | U146: =IF(DataInput!W146-DataInput!I146>0,DataInput!W146-DataInput!I146,"") ->  | V146: 25 | W146: 559 | X146: 726.7 | Y146: -623.7 | Z146: 518.93 | AA146: 4146.34 | AB146: =ROUNDDOWN((IF(AA147>0,IFERROR(IF(AVERAGE(DataInput!Q146:Q147)>AVERAGE(AA147,AA146),ROUNDDOWN(((((AA146-Z146)+(AA147-Z147))/2)*(A147-A146))/27+S146+T146,0),IF(((((DataInput!Q147-Z147)+(DataInput!Q146-Z146))/2)*(A147-A146))/27+S146+T146>0,ROUNDDOWN(((((DataInput!Q147-Z146)+(DataInput!Q146-Z146))/2)*(A147-A146))/27+S146+T146,0),0)),0),0)*$X$5),1) -> 68.9 | AC146: 159.49 | AD146: =ROUNDDOWN((IF(AC147>0,IFERROR(IF(((((DataInput!Q146-AC146)+(DataInput!Q147-AC147))/2)*(A147-A146))/27+S146+T146>0,ROUNDDOWN(((((DataInput!Q146-AC146)+(DataInput!Q147-AC147))/2)*(A147-A146))/27+S146+T146,0),0),0),0)*$X$5),1) -> 501.8 | AE146: =DataInput!U146 -> 105 | AF146: =DataInput!S146 -> 66 | AG146: 92.4 | AH146: 12.6
A147: =IF(DataInput!A147<>"",DataInput!A147,"") -> 14525 | B147: =SUM(DataInput!C147,DataInput!Y147)+(DataInput!U147-DataInput!E147) -> 497 | C147: =SUM(DataInput!D147,DataInput!Z147) -> 384 | D147: =DataInput!U147 -> 113 | E147: =SUM(DataInput!F147,DataInput!AB147) -> 0 | F147: =SUM(DataInput!G147,DataInput!AC147) -> 0 | G147: =SUM(DataInput!H147,DataInput!AD147) -> 0 | H147: =DataInput!I147 -> 0 | I147: =SUM(DataInput!J147,DataInput!AF147) -> 0 | J147: =SUM(DataInput!K147,DataInput!AG147) -> 0 | K147: =SUM(DataInput!L147,DataInput!AH147) -> 0 | L147: =SUM(DataInput!M147,DataInput!AI147) -> 0 | M147: =SUM(DataInput!N147,DataInput!AJ147) -> 0 | N147: =SUM(DataInput!O147,DataInput!AK147) -> 0 | O147: =DataInput!P147 -> 0 | Q147: 384 | R147: =DataInput!R147 -> 170 | S147: =DataInput!Y147 -> 0 | T147: =IF(DataInput!U147-DataInput!E147>0,DataInput!U147-DataInput!E147,"") -> 43 | U147: =IF(DataInput!W147-DataInput!I147>0,DataInput!W147-DataInput!I147,"") ->  | W147: 213 | X147: 276.9 | Y147: 107.1 | Z147: 518.93 | AA147: 4146.34 | AB147: =ROUNDDOWN((IF(AA148>0,IFERROR(IF(AVERAGE(DataInput!Q147:Q148)>AVERAGE(AA148,AA147),ROUNDDOWN(((((AA147-Z147)+(AA148-Z148))/2)*(A148-A147))/27+S147+T147,0),IF(((((DataInput!Q148-Z148)+(DataInput!Q147-Z147))/2)*(A148-A147))/27+S147+T147>0,ROUNDDOWN(((((DataInput!Q148-Z147)+(DataInput!Q147-Z147))/2)*(A148-A147))/27+S147+T147,0),0)),0),0)*$X$5),1) -> 0 | AC147: 159.49 | AD147: =ROUNDDOWN((IF(AC148>0,IFERROR(IF(((((DataInput!Q147-AC147)+(DataInput!Q148-AC148))/2)*(A148-A147))/27+S147+T147>0,ROUNDDOWN(((((DataInput!Q147-AC147)+(DataInput!Q148-AC148))/2)*(A148-A147))/27+S147+T147,0),0),0),0)*$X$5),1) -> 84.5 | AE147: =DataInput!U147 -> 113 | AF147: =DataInput!S147 -> 76 | AG147: 106.4 | AH147: 6.6
A148: =IF(DataInput!A148<>"",DataInput!A148,"") -> 14550 | B148: =SUM(DataInput!C148,DataInput!Y148)+(DataInput!U148-DataInput!E148) -> 1209 | C148: =SUM(DataInput!D148,DataInput!Z148) -> 1083 | D148: =DataInput!U148 -> 125 | E148: =SUM(DataInput!F148,DataInput!AB148) -> 0 | F148: =SUM(DataInput!G148,DataInput!AC148) -> 0 | G148: =SUM(DataInput!H148,DataInput!AD148) -> 0 | H148: =DataInput!I148 -> 0 | I148: =SUM(DataInput!J148,DataInput!AF148) -> 0 | J148: =SUM(DataInput!K148,DataInput!AG148) -> 0 | K148: =SUM(DataInput!L148,DataInput!AH148) -> 0 | L148: =SUM(DataInput!M148,DataInput!AI148) -> 0 | M148: =SUM(DataInput!N148,DataInput!AJ148) -> 0 | N148: =SUM(DataInput!O148,DataInput!AK148) -> 0 | O148: =DataInput!P148 -> 0 | Q148: 1083 | R148: =DataInput!R148 -> 20 | S148: =DataInput!Y148 -> 0 | T148: =IF(DataInput!U148-DataInput!E148>0,DataInput!U148-DataInput!E148,"") -> 11 | U148: =IF(DataInput!W148-DataInput!I148>0,DataInput!W148-DataInput!I148,"") ->  | W148: 31 | X148: 40.3 | Y148: 1042.7 | Z148: 518.93 | AA148: 4146.34 | AB148: =ROUNDDOWN((IF(AA149>0,IFERROR(IF(AVERAGE(DataInput!Q148:Q149)>AVERAGE(AA149,AA148),ROUNDDOWN(((((AA148-Z148)+(AA149-Z149))/2)*(A149-A148))/27+S148+T148,0),IF(((((DataInput!Q149-Z149)+(DataInput!Q148-Z148))/2)*(A149-A148))/27+S148+T148>0,ROUNDDOWN(((((DataInput!Q149-Z148)+(DataInput!Q148-Z148))/2)*(A149-A148))/27+S148+T148,0),0)),0),0)*$X$5),1) -> 0 | AC148: 159.49 | AD148: =ROUNDDOWN((IF(AC149>0,IFERROR(IF(((((DataInput!Q148-AC148)+(DataInput!Q149-AC149))/2)*(A149-A148))/27+S148+T148>0,ROUNDDOWN(((((DataInput!Q148-AC148)+(DataInput!Q149-AC149))/2)*(A149-A148))/27+S148+T148,0),0),0),0)*$X$5),1) -> 0 | AE148: =DataInput!U148 -> 125 | AF148: =DataInput!S148 -> 92 | AG148: 128.8 | AH148: -3.9
A149: =IF(DataInput!A149<>"",DataInput!A149,"") -> 14575 | B149: =SUM(DataInput!C149,DataInput!Y149)+(DataInput!U149-DataInput!E149) -> 2305 | C149: =SUM(DataInput!D149,DataInput!Z149) -> 2164 | D149: =DataInput!U149 -> 141 | E149: =SUM(DataInput!F149,DataInput!AB149) -> 0 | F149: =SUM(DataInput!G149,DataInput!AC149) -> 0 | G149: =SUM(DataInput!H149,DataInput!AD149) -> 0 | H149: =DataInput!I149 -> 0 | I149: =SUM(DataInput!J149,DataInput!AF149) -> 0 | J149: =SUM(DataInput!K149,DataInput!AG149) -> 0 | K149: =SUM(DataInput!L149,DataInput!AH149) -> 0 | L149: =SUM(DataInput!M149,DataInput!AI149) -> 0 | M149: =SUM(DataInput!N149,DataInput!AJ149) -> 0 | N149: =SUM(DataInput!O149,DataInput!AK149) -> 0 | O149: =DataInput!P149 -> 0 | Q149: 2164 | R149: =DataInput!R149 -> 0 | S149: =DataInput!Y149 -> 0 | T149: =IF(DataInput!U149-DataInput!E149>0,DataInput!U149-DataInput!E149,"") ->  | U149: =IF(DataInput!W149-DataInput!I149>0,DataInput!W149-DataInput!I149,"") ->  | W149: 0 | X149: 0 | Y149: 2164 | Z149: 518.93 | AA149: 4146.34 | AB149: =ROUNDDOWN((IF(AA150>0,IFERROR(IF(AVERAGE(DataInput!Q149:Q150)>AVERAGE(AA150,AA149),ROUNDDOWN(((((AA149-Z149)+(AA150-Z150))/2)*(A150-A149))/27+S149+T149,0),IF(((((DataInput!Q150-Z150)+(DataInput!Q149-Z149))/2)*(A150-A149))/27+S149+T149>0,ROUNDDOWN(((((DataInput!Q150-Z149)+(DataInput!Q149-Z149))/2)*(A150-A149))/27+S149+T149,0),0)),0),0)*$X$5),1) -> 0 | AC149: 159.49 | AD149: =ROUNDDOWN((IF(AC150>0,IFERROR(IF(((((DataInput!Q149-AC149)+(DataInput!Q150-AC150))/2)*(A150-A149))/27+S149+T149>0,ROUNDDOWN(((((DataInput!Q149-AC149)+(DataInput!Q150-AC150))/2)*(A150-A149))/27+S149+T149,0),0),0),0)*$X$5),1) -> 0 | AE149: =DataInput!U149 -> 141 | AF149: =DataInput!S149 -> 114 | AG149: 159.6 | AH149: -18.6
A150: =IF(DataInput!A150<>"",DataInput!A150,"") -> 14600 | B150: =SUM(DataInput!C150,DataInput!Y150)+(DataInput!U150-DataInput!E150) -> 3561 | C150: =SUM(DataInput!D150,DataInput!Z150) -> 3405 | D150: =DataInput!U150 -> 156 | E150: =SUM(DataInput!F150,DataInput!AB150) -> 0 | F150: =SUM(DataInput!G150,DataInput!AC150) -> 0 | G150: =SUM(DataInput!H150,DataInput!AD150) -> 0 | H150: =DataInput!I150 -> 0 | I150: =SUM(DataInput!J150,DataInput!AF150) -> 0 | J150: =SUM(DataInput!K150,DataInput!AG150) -> 0 | K150: =SUM(DataInput!L150,DataInput!AH150) -> 0 | L150: =SUM(DataInput!M150,DataInput!AI150) -> 0 | M150: =SUM(DataInput!N150,DataInput!AJ150) -> 0 | N150: =SUM(DataInput!O150,DataInput!AK150) -> 0 | O150: =DataInput!P150 -> 0 | Q150: 3405 | R150: =DataInput!R150 -> 0 | S150: =DataInput!Y150 -> 0 | T150: =IF(DataInput!U150-DataInput!E150>0,DataInput!U150-DataInput!E150,"") ->  | U150: =IF(DataInput!W150-DataInput!I150>0,DataInput!W150-DataInput!I150,"") ->  | W150: 0 | X150: 0 | Y150: 3405 | Z150: 518.93 | AA150: 4146.34 | AB150: =ROUNDDOWN((IF(AA151>0,IFERROR(IF(AVERAGE(DataInput!Q150:Q151)>AVERAGE(AA151,AA150),ROUNDDOWN(((((AA150-Z150)+(AA151-Z151))/2)*(A151-A150))/27+S150+T150,0),IF(((((DataInput!Q151-Z151)+(DataInput!Q150-Z150))/2)*(A151-A150))/27+S150+T150>0,ROUNDDOWN(((((DataInput!Q151-Z150)+(DataInput!Q150-Z150))/2)*(A151-A150))/27+S150+T150,0),0)),0),0)*$X$5),1) -> 0 | AC150: 159.49 | AD150: =ROUNDDOWN((IF(AC151>0,IFERROR(IF(((((DataInput!Q150-AC150)+(DataInput!Q151-AC151))/2)*(A151-A150))/27+S150+T150>0,ROUNDDOWN(((((DataInput!Q150-AC150)+(DataInput!Q151-AC151))/2)*(A151-A150))/27+S150+T150,0),0),0),0)*$X$5),1) -> 0 | AE150: =DataInput!U150 -> 156 | AF150: =DataInput!S150 -> 134 | AG150: 187.6 | AH150: -31.6
